Workbook

Sheet Guide
G2: Guide
B7: Class File
B8: This spreadsheet provides the teacher, coach or leader with all the tools to:
B10: 1. Calculate point scores for each event and return Sportshall Pentathlon and Decathlon Award Levels.
B11: 2. Calculate Sportshall Awards Team score for use in Virtual Competitions.
B13: Information on each section is detailed below.
B15: Input
B16: This is the most important page - scores for each event are entered here. Please read the comments at the top of each column (denoted by a red triangle) before entering any data. If data is entered incorrectly, perhaps in the wrong format, some or all of the spreadsheet functionality may be lost. PLEASE AVOID CUTTING AND PASTING WITHIN THIS DOCUMENT.
B20: Any number of events can be entered with an Individuals Pentathlon Award formed from the accumulation of the top 5 points scores.
B22: Overhead Heave and Shot are presented as alternatives (to Target Throw and Javelin Throw respectively) for the Secondary Age Group. Primary Year groups should not complete these events.
B26: Individual Points
B27: Individual points and Award Levels are displayed here.
B29: Scoresheets
B30: Blank Scoresheets to be printed out.
B32: Tables
B33: Provides the Points and Awards Tables in order to score manually / remotely.
B35: Virtual Competition
B36: Virtual competition provides schools with the opportunity to compete against other schools either locally or Nationally within their own school setting. To take part in the National competition please send your results to your Regional Development Officer:
B39: http://www.sportshall.org/VTL/Contact_Us.aspx
B41: Primary Virtual competition scores are based on the Top 25 Event points scores recorded by Boys in addition to the Top 25 Event points scores recorded by Girls to create a Mixed score.
B43: The Secondary Virtual competition is scored in the same manner although seperate Boys and Girls scores are provided.
B46: The Sportshall Team welcome comments on all aspects of its work. Please contact us via email for equipment, badges and certificates, visit:
B48: team@sportshall.org
B49: www.eveque.co.uk
B51: Please email your completed spreadsheet to your Regional Sportshall Development Officer for inclusion in the National Virtual League and Free Certificates (whilst stocks last).
B55: Sportshall Contacts
B56: Please include in your email the name/s of the school/s, the town and region and we will upload the result and League standing to the Sportshall website.
B60: 290713

Sheet Input
Q2: Virtual Competition Team Score
J3: Virtual Competition Results | Q3: Mixed | T3: Girls | V3: Boys
Q4: =IF($C52="P",'Individual Points'!BL56," ") -> 2330.00527 | T4: =IF($C52="S",'Individual Points'!BR54," ") ->  | V4: =IF($C52="S",'Individual Points'!BG54," ") -> 
D6: Awards Performance
K7: Either / Or | Q7: Either / Or
D8: Name | E8: Year Group | F8: Age | G8: Boy or Girl | H8: Balance Test | I8: St. Long Jump | J8: Speed Bounce | K8: Target Throw | L8: Overhead Heave | M8: Hi-Stepper | N8: Chest Push | O8: Vertical Jump | P8: Shuttle Run | Q8: Javelin Throw | R8: Shot | S8: St. Triple Jump | T8: Pentathlon Score | U8: Pentathlon Award | V8: Decathlon Score | W8: Decathlon Award
G9: Boy
G10: Girl
C11: =IF(OR(E11=" ",E11=0)," ",IF(E11<12,E11,VLOOKUP(E11,SCOT,2,))) -> 6 | D11: Nathan Cant | E11: 6 | F11: 10 | G11: BOY | H11: 34 | I11: 1.62 | J11: 33 | K11: 14 | M11: 17.7 | T11: ='Individual Points'!T7 -> 173 | U11: ='Individual Points'!U7 -> Step 10 | V11: ='Individual Points'!V7 ->  | W11: ='Individual Points'!W7 ->  | X11: =IF(OR(K11>0,L11>0),1," ") -> 1 | Y11: =IF(OR(Q11>0,R11>0),1," ") -> 
C12: 5 | D12: Hollie Scott | E12: 5 | F12: 10 | G12: GIRL | H12: 39 | I12: 1.44 | J12: 29 | K12: 7 | M12: 21.1 | T12: ='Individual Points'!T8 -> 133 | U12: ='Individual Points'!U8 -> Step 7 | V12: ='Individual Points'!V8 ->  | W12: ='Individual Points'!W8 ->  | X12: 1 | AA12: 10.1 | AB12: 0.25 | AC12: Boy | AD12: 3 | AF12: 1 | AH12: 1-1 | AI12: P | AK12: P1 | AL12: 1
C13: 4 | D13: Katie Keane | E13: 4 | F13: 9 | G13: GIRL | H13: 30 | I13: 1.06 | J13: 19 | K13: 10 | M13: 23.1 | T13: ='Individual Points'!T9 -> 102 | U13: ='Individual Points'!U9 -> Step 5 | V13: ='Individual Points'!V9 ->  | W13: ='Individual Points'!W9 ->  | X13: 1 | AA13: 10.2 | AB13: 0.5 | AC13: Girl | AD13: 4 | AF13: 2 | AH13: 2-1 | AI13: P | AK13: P2 | AL13: 2
C14: 5 | D14: Sophie Ford | E14: 5 | F14: 9 | G14: GIRL | H14: 60 | I14: 1.38 | J14: 26 | K14: 17 | M14: 21.7 | T14: ='Individual Points'!T10 -> 179 | U14: ='Individual Points'!U10 -> Bronze | V14: ='Individual Points'!V10 ->  | W14: ='Individual Points'!W10 ->  | X14: 1 | AA14: 10.3 | AB14: 0.75 | AD14: 5 | AF14: 3 | AH14: 3-1 | AI14: P | AK14: P3 | AL14: 3
C15: 6 | D15: Katie Killick | E15: 6 | F15: 10 | G15: GIRL | H15: 60 | I15: 1.72 | J15: 38 | K15: 8 | M15: 17.7 | T15: ='Individual Points'!T11 -> 196 | U15: ='Individual Points'!U11 -> Bronze | V15: ='Individual Points'!V11 ->  | W15: ='Individual Points'!W11 ->  | X15: 1 | AA15: 10.4 | AB15: 1 | AD15: 6 | AF15: 4 | AH15: 4-1 | AI15: P | AK15: P4 | AL15: 4
C16: 2 | D16: Bradley Cant | E16: 2 | F16: 7 | G16: BOY | H16: 31 | I16: 1.42 | J16: 23 | K16: 6 | M16: 19.5 | T16: ='Individual Points'!T12 -> 115 | U16: ='Individual Points'!U12 -> Step 6 | V16: ='Individual Points'!V12 ->  | W16: ='Individual Points'!W12 ->  | X16: 1 | AA16: 10.5 | AB16: 1.25 | AD16: 7 | AF16: 5 | AH16: 5-1 | AI16: P | AK16: P5 | AL16: 5
C17: 5 | D17: Thaila Jade-Mason | E17: 5 | F17: 10 | G17: GIRL | H17: 51 | I17: 1.8 | J17: 32 | K17: 11 | M17: 16.8 | T17: ='Individual Points'!T13 -> 199 | U17: ='Individual Points'!U13 -> Bronze | V17: ='Individual Points'!V13 ->  | W17: ='Individual Points'!W13 ->  | X17: 1 | AA17: 10.6 | AB17: 1.5 | AD17: 8 | AF17: 6 | AH17: 6-1 | AI17: P | AK17: P6 | AL17: 6
C18: 5 | D18: Grace Smith | E18: 5 | F18: 9 | G18: GIRL | H18: 59 | I18: 1.6 | J18: 34 | K18: 13 | M18: 18.8 | T18: ='Individual Points'!T14 -> 197 | U18: ='Individual Points'!U14 -> Bronze | V18: ='Individual Points'!V14 ->  | W18: ='Individual Points'!W14 ->  | X18: 1 | AA18: 10.7 | AB18: 1.75 | AD18: 9 | AF18: 7 | AH18: 7-1 | AI18: P | AK18: P7 | AL18: 6
C19: 6 | D19: Logan Dewar | E19: 6 | F19: 10 | G19: BOY | H19: 39 | I19: 1.42 | J19: 33 | K19: 19 | M19: 15.9 | T19: ='Individual Points'!T15 -> 194 | U19: ='Individual Points'!U15 -> Bronze | V19: ='Individual Points'!V15 ->  | W19: ='Individual Points'!W15 ->  | X19: 1 | AA19: 10.8 | AB19: 2 | AD19: 10 | AF19: 8 | AH19: 8-1 | AI19: P | AK19: S1 | AL19: 8
C20: 6 | D20: Ash Carter | E20: 6 | F20: 10 | G20: BOY | H20: 57 | I20: 1.46 | J20: 36 | K20: 12 | M20: 14.5 | T20: ='Individual Points'!T16 -> 212 | U20: ='Individual Points'!U16 -> Bronze | V20: ='Individual Points'!V16 ->  | W20: ='Individual Points'!W16 ->  | X20: 1 | AA20: 10.9 | AB20: 2.25 | AD20: 11 | AF20: 9 | AH20: 9-1 | AI20: P | AK20: S2 | AL20: 9
C21: 6 | D21: Archie Wright | E21: 6 | F21: 10 | G21: BOY | H21: 24 | I21: 1.52 | J21: 30 | K21: 9 | M21: 17.2 | T21: ='Individual Points'!T17 -> 139 | U21: ='Individual Points'!U17 -> Step 7 | V21: ='Individual Points'!V17 ->  | W21: ='Individual Points'!W17 ->  | X21: 1 | AA21: 11 | AB21: 2.5 | AD21: 12 | AF21: 10 | AH21: 10-1 | AI21: P | AK21: S3 | AL21: 10
C22: 7 | D22: Charlotte Keane | E22: 7 | F22: 11 | G22: GIRL | H22: 60 | I22: 1.62 | J22: 35 | M22: 17 | N22: 5.25 | T22: ='Individual Points'!T18 -> 204 | U22: ='Individual Points'!U18 -> Step 10 | V22: ='Individual Points'!V18 ->  | W22: ='Individual Points'!W18 ->  | AA22: 11.1 | AB22: 2.75 | AD22: 13 | AF22: 11 | AH22: 11-1 | AI22: P | AK22: S4 | AL22: 11
C23: 8 | D23: Arti Mead | E23: 8 | F23: 12 | G23: BOY | H23: 51 | I23: 1.52 | J23: 34 | M23: 15.1 | N23: 5.25 | T23: ='Individual Points'!T19 -> 202 | U23: ='Individual Points'!U19 -> Step 9 | V23: ='Individual Points'!V19 ->  | W23: ='Individual Points'!W19 ->  | AA23: 11.2 | AB23: 3 | AD23: 14 | AH23: 2-2 | AI23: P
C24: 7 | D24: Sid Mead | E24: 7 | F24: 11 | G24: BOY | H24: 40 | I24: 1.22 | J24: 32 | M24: 15.8 | N24: 4.75 | T24: ='Individual Points'!T20 -> 162 | U24: ='Individual Points'!U20 -> Step 7 | V24: ='Individual Points'!V20 ->  | W24: ='Individual Points'!W20 ->  | AA24: 11.3 | AB24: 3.25 | AD24: 15 | AH24: 3-2 | AI24: P
C25: 7 | D25: Arron O'Dwyer | E25: 7 | F25: 11 | G25: BOY | H25: 60 | I25: 1.82 | J25: 44 | M25: 15.1 | N25: 5.75 | T25: ='Individual Points'!T21 -> 243 | U25: ='Individual Points'!U21 -> Bronze | V25: ='Individual Points'!V21 ->  | W25: ='Individual Points'!W21 ->  | AA25: 11.4 | AB25: 3.5 | AD25: 16 | AH25: 4-2 | AI25: P
C26: 5 | D26: Emily Axen-Blackwell | E26: 5 | F26: 9 | G26: Girl | H26: 26 | I26: 1.44 | J26: 27 | K26: 10 | M26: 16.8 | T26: ='Individual Points'!T22 -> 138 | U26: ='Individual Points'!U22 -> Step 7 | V26: ='Individual Points'!V22 ->  | W26: ='Individual Points'!W22 ->  | X26: 1 | AA26: 11.5 | AB26: 3.75 | AD26: 17 | AH26: 5-2 | AI26: P
C27: =IF(OR(E27=" ",E27=0)," ",IF(E27<12,E27,VLOOKUP(E27,SCOT,2,))) -> 4 | D27: Alice Burhams | E27: 4 | F27: 8 | G27: Girl | H27: 26 | I27: 1.46 | J27: 25 | K27: 2 | M27: 18.2 | T27: ='Individual Points'!T23 -> 106 | U27: ='Individual Points'!U23 -> Step 5 | V27: ='Individual Points'!V23 ->  | W27: ='Individual Points'!W23 ->  | X27: =IF(OR(K27>0,L27>0),1," ") -> 1 | Y27: =IF(OR(Q27>0,R27>0),1," ") ->  | AA27: 11.6 | AB27: 4 | AD27: 18 | AH27: 6-2 | AI27: P
C28: =IF(OR(E28=" ",E28=0)," ",IF(E28<12,E28,VLOOKUP(E28,SCOT,2,))) -> 7 | D28: Mukhtar Farah | E28: 7 | F28: 11 | G28: BOY | H28: 40 | I28: 1.68 | J28: 33 | M28: 17.4 | N28: 4.5 | T28: ='Individual Points'!T24 -> 174 | U28: ='Individual Points'!U24 -> Step 8 | V28: ='Individual Points'!V24 ->  | W28: ='Individual Points'!W24 ->  | X28: =IF(OR(K28>0,L28>0),1," ") ->  | Y28: =IF(OR(Q28>0,R28>0),1," ") ->  | AA28: 11.7 | AB28: 4.25 | AD28: 19 | AH28: 7-2 | AI28: P
C29: =IF(OR(E29=" ",E29=0)," ",IF(E29<12,E29,VLOOKUP(E29,SCOT,2,))) -> 3 | D29: Fenya Treece | E29: 3 | F29: 7 | G29: GIRL | H29: 24 | I29: 1.34 | J29: 16 | K29: 6 | M29: 20.7 | T29: ='Individual Points'!T25 -> 93 | U29: ='Individual Points'!U25 -> Step 4 | V29: ='Individual Points'!V25 ->  | W29: ='Individual Points'!W25 ->  | X29: =IF(OR(K29>0,L29>0),1," ") -> 1 | Y29: =IF(OR(Q29>0,R29>0),1," ") ->  | AA29: 11.8 | AB29: 4.5 | AD29: 20 | AH29: 8-2 | AI29: P
C30: =IF(OR(E30=" ",E30=0)," ",IF(E30<12,E30,VLOOKUP(E30,SCOT,2,))) -> 6 | D30: Arlo Treece | E30: 6 | F30: 10 | G30: BOY | H30: 60 | I30: 1.62 | J30: 35 | K30: 14 | M30: 15.8 | T30: ='Individual Points'!T26 -> 220 | U30: ='Individual Points'!U26 -> Bronze | V30: ='Individual Points'!V26 ->  | W30: ='Individual Points'!W26 ->  | X30: =IF(OR(K30>0,L30>0),1," ") -> 1 | Y30: =IF(OR(Q30>0,R30>0),1," ") ->  | AA30: 11.9 | AB30: 4.75 | AD30: 21 | AH30: 9-2 | AI30: P
C31: 3 | D31: Esa Blake | E31: 3 | F31: 7 | G31: GIRL | H31: 36 | I31: 1.2 | J31: 16 | K31: 4 | M31: 19.1 | T31: ='Individual Points'!T27 -> 99 | U31: ='Individual Points'!U27 -> Step 4 | V31: ='Individual Points'!V27 ->  | W31: ='Individual Points'!W27 ->  | X31: =IF(OR(K31>0,L31>0),1," ") -> 1 | Y31: =IF(OR(Q31>0,R31>0),1," ") ->  | AA31: 12 | AB31: 5 | AD31: 22 | AH31: 10-2 | AI31: P
C32: 4 | D32: Oran Blake | E32: 4 | F32: 8 | G32: BOY | H32: 13 | I32: 1.32 | J32: 22 | K32: 8 | M32: 21 | T32: ='Individual Points'!T28 -> 94 | U32: ='Individual Points'!U28 -> Step 4 | V32: ='Individual Points'!V28 ->  | W32: ='Individual Points'!W28 ->  | X32: 1 | AA32: 12.1 | AB32: 5.25 | AD32: 23 | AH32: 11-2 | AI32: P
C33: =IF(OR(E33=" ",E33=0)," ",IF(E33<12,E33,VLOOKUP(E33,SCOT,2,))) -> 6 | D33: Donncha Blake | E33: 6 | F33: 10 | G33: BOY | H33: 50 | I33: 1.44 | J33: 30 | K33: 16 | M33: 17.4 | T33: ='Individual Points'!T29 -> 185 | U33: ='Individual Points'!U29 -> Bronze | V33: ='Individual Points'!V29 ->  | W33: ='Individual Points'!W29 ->  | X33: 1 | AA33: 12.2 | AB33: 5.5 | AD33: 24 | AH33: 3-3 | AI33: P
C34: 8 | D34: Teagan Blake | E34: 8 | F34: 12 | G34: GIRL | H34: 57 | I34: 1.76 | J34: 34 | M34: 17.1 | N34: 6.25 | T34: ='Individual Points'!T30 -> 214 | U34: ='Individual Points'!U30 -> Step 10 | V34: ='Individual Points'!V30 ->  | W34: ='Individual Points'!W30 ->  | AA34: 12.3 | AB34: 5.75 | AD34: 25 | AH34: 4-3 | AI34: P
C35: 8 | D35: Ruby Sanders | E35: 8 | F35: 12 | G35: GIRL | H35: 60 | I35: 1.78 | J35: 34 | M35: 15.7 | N35: 6 | T35: ='Individual Points'!T31 -> 228 | U35: ='Individual Points'!U31 -> Bronze | V35: ='Individual Points'!V31 ->  | W35: ='Individual Points'!W31 ->  | AA35: 12.4 | AB35: 6 | AD35: 26 | AH35: 5-3 | AI35: P
C36: 8 | D36: Annabelle Deards | E36: 8 | F36: 12 | G36: GIRL | H36: 24 | I36: 1.54 | J36: 33 | M36: 16.9 | N36: 6.5 | T36: ='Individual Points'!T32 -> 164 | U36: ='Individual Points'!U32 -> Step 8 | V36: ='Individual Points'!V32 ->  | W36: ='Individual Points'!W32 ->  | AA36: 12.5 | AB36: 6.25 | AD36: 27 | AH36: 6-3 | AI36: P
C37: 3 | D37: William Deards | E37: 3 | F37: 8 | G37: BOY | H37: 43 | I37: 1.24 | J37: 19 | K37: 10 | M37: 18.1 | T37: ='Individual Points'!T33 -> 135 | U37: ='Individual Points'!U33 -> Step 7 | V37: ='Individual Points'!V33 ->  | W37: ='Individual Points'!W33 ->  | X37: 1 | AA37: 12.6 | AB37: 6.5 | AD37: 28 | AH37: 7-3 | AI37: P
C38: 2 | D38: William Blunt | E38: 2 | F38: 6 | G38: BOY | H38: 19 | I38: 1.02 | J38: 16 | K38: 2 | M38: 20.2 | T38: ='Individual Points'!T34 -> 69 | U38: ='Individual Points'!U34 -> Step 3 | V38: ='Individual Points'!V34 ->  | W38: ='Individual Points'!W34 ->  | X38: 1 | AA38: 12.7 | AB38: 6.75 | AD38: 29 | AH38: 8-3 | AI38: P
C39: 4 | D39: Barni Fritz | E39: 4 | F39: 8 | G39: BOY | H39: 25 | I39: 1.08 | J39: 17 | K39: 9 | M39: 21.6 | T39: ='Individual Points'!T35 -> 95 | U39: ='Individual Points'!U35 -> Step 4 | V39: ='Individual Points'!V35 ->  | W39: ='Individual Points'!W35 ->  | X39: 1 | AA39: 12.8 | AB39: 7 | AD39: 30 | AH39: 9-3 | AI39: P
C40: 6 | D40: Charlie Sabbitini | E40: 6 | F40: 10 | G40: BOY | H40: 38 | I40: 1.26 | J40: 26 | K40: 3 | M40: 19.4 | T40: ='Individual Points'!T36 -> 112 | U40: ='Individual Points'!U36 -> Step 5 | V40: ='Individual Points'!V36 ->  | W40: ='Individual Points'!W36 ->  | X40: 1 | AA40: 12.9 | AB40: 7.25 | AD40: 31 | AH40: 10-3 | AI40: P
C41: 6 | D41: Toby Evans | E41: 6 | F41: 10 | G41: BOY | H41: 58 | I41: 1.52 | J41: 31 | K41: 18 | M41: 17.7 | T41: ='Individual Points'!T37 -> 203 | U41: ='Individual Points'!U37 -> Bronze | V41: ='Individual Points'!V37 ->  | W41: ='Individual Points'!W37 ->  | X41: 1 | AA41: 13 | AB41: 7.5 | AD41: 32 | AH41: 11-3 | AI41: P
C42: 4 | D42: Charlotte Evans | E42: 4 | F42: 8 | G42: GIRL | H42: 56 | I42: 1.18 | J42: 30 | K42: 4 | M42: 18.3 | T42: ='Individual Points'!T38 -> 142 | U42: ='Individual Points'!U38 -> Step 8 | V42: ='Individual Points'!V38 ->  | W42: ='Individual Points'!W38 ->  | X42: 1 | AA42: 13.1 | AB42: 7.75 | AD42: 33 | AH42: 4-4 | AI42: P
C43: 5 | D43: James Gibney | E43: 5 | F43: 9 | G43: BOY | H43: 50 | I43: 1.36 | J43: 24 | K43: 9 | M43: 21.4 | T43: ='Individual Points'!T39 -> 142 | U43: ='Individual Points'!U39 -> Step 7 | V43: ='Individual Points'!V39 ->  | W43: ='Individual Points'!W39 ->  | X43: 1 | AA43: 13.2 | AB43: 8 | AD43: 34 | AH43: 5-4 | AI43: P
C44: 5 | D44: Orlagh Brunning | E44: 5 | F44: 9 | G44: GIRL | H44: 53 | I44: 1.74 | J44: 30 | K44: 17 | M44: 16.4 | T44: ='Individual Points'!T40 -> 217 | U44: ='Individual Points'!U40 -> Bronze | V44: ='Individual Points'!V40 ->  | W44: ='Individual Points'!W40 ->  | X44: 1 | AA44: 13.3 | AB44: 8.25 | AD44: 35 | AH44: 6-4 | AI44: P
C45: 6 | D45: Harriet Butlin | E45: 6 | F45: 10 | G45: GIRL | H45: 26 | I45: 1.42 | J45: 32 | K45: 10 | M45: 18.9 | T45: ='Individual Points'!T41 -> 134 | U45: ='Individual Points'!U41 -> Step 7 | V45: ='Individual Points'!V41 ->  | W45: ='Individual Points'!W41 ->  | X45: 1 | AA45: 13.4 | AB45: 8.5 | AD45: 36 | AH45: 7-4 | AI45: P
C46: 4 | D46: Koye Sule | E46: 4 | F46: 8 | G46: BOY | H46: 14 | I46: 1.78 | J46: 24 | K46: 12 | M46: 21.7 | T46: ='Individual Points'!T42 -> 135 | U46: ='Individual Points'!U42 -> Step 7 | V46: ='Individual Points'!V42 ->  | W46: ='Individual Points'!W42 ->  | X46: =IF(OR(K46>0,L46>0),1," ") -> 1 | Y46: =IF(OR(Q46>0,R46>0),1," ") ->  | AA46: 13.5 | AB46: 8.75 | AD46: 37 | AH46: 8-4 | AI46: P
T47: ='Individual Points'!T43 ->  | U47: ='Individual Points'!U43 ->  | V47: ='Individual Points'!V43 ->  | W47: ='Individual Points'!W43 ->  | X47: =IF(OR(K47>0,L47>0),1," ") ->  | Y47: =IF(OR(Q47>0,R47>0),1," ") ->  | AA47: 13.6 | AB47: 9 | AD47: 38 | AH47: 9-4 | AI47: P
T48: ='Individual Points'!T44 ->  | U48: ='Individual Points'!U44 ->  | V48: ='Individual Points'!V44 ->  | W48: ='Individual Points'!W44 ->  | X48: =IF(OR(K48>0,L48>0),1," ") ->  | Y48: =IF(OR(Q48>0,R48>0),1," ") ->  | AA48: 13.7 | AB48: 9.25 | AD48: 39 | AH48: 10-4 | AI48: P
T49: ='Individual Points'!T45 ->  | U49: ='Individual Points'!U45 ->  | V49: ='Individual Points'!V45 ->  | W49: ='Individual Points'!W45 ->  | X49: =IF(OR(K49>0,L49>0),1," ") ->  | Y49: =IF(OR(Q49>0,R49>0),1," ") ->  | AA49: 13.8 | AB49: 9.5 | AD49: 40 | AH49: 11-4 | AI49: P
T50: ='Individual Points'!T46 ->  | U50: ='Individual Points'!U46 ->  | V50: ='Individual Points'!V46 ->  | W50: ='Individual Points'!W46 ->  | AA50: 13.9 | AB50: 9.75 | AD50: 41 | AH50: 5-5 | AI50: P
C51: =CONCATENATE(MAX(C11:C50),"-",(MIN(C11:C50))) -> 8-2 | AA51: 14 | AB51: 10 | AD51: 42 | AH51: 6-5 | AI51: P
C52: =IF(ISNA(VLOOKUP(C51,VCGROUP,2,))," ",(VLOOKUP(C51,VCGROUP,2,))) -> P | AA52: 14.1 | AB52: 10.25 | AD52: 43 | AH52: 7-5 | AI52: P
AA53: 14.2 | AB53: 10.5 | AD53: 44 | AH53: 8-5 | AI53: P
AA54: 14.3 | AB54: 10.75 | AD54: 45 | AH54: 9-5 | AI54: P
AA55: 14.4 | AB55: 11 | AD55: 46 | AH55: 10-5 | AI55: P
AA56: 14.5 | AB56: 11.25 | AD56: 47 | AH56: 11-5 | AI56: P
AA57: 14.6 | AB57: 11.5 | AD57: 48 | AH57: 6-6 | AI57: P
AA58: 14.7 | AB58: 11.75 | AD58: 49 | AH58: 7-6 | AI58: P
AA59: 14.8 | AB59: 12 | AD59: 50 | AH59: 8-6 | AI59: P
AA60: 14.9 | AB60: 12.25 | AD60: 51 | AH60: 9-6 | AI60: P
AA61: 15 | AB61: 12.5 | AD61: 52 | AH61: 10-6 | AI61: P
AA62: 15.1 | AB62: 12.75 | AD62: 53 | AH62: 11-6 | AI62: P
AA63: 15.2 | AB63: 13 | AD63: 54 | AH63: 7-7 | AI63: S
AA64: 15.3 | AB64: 13.25 | AD64: 55 | AH64: 8-7 | AI64: S
AA65: 15.4 | AB65: 13.5 | AD65: 56 | AH65: 9-7 | AI65: S
AA66: 15.5 | AB66: 13.75 | AD66: 57 | AH66: 10-7 | AI66: S
AA67: 15.6 | AB67: 14 | AD67: 58 | AH67: 11-7 | AI67: S
AA68: 15.7 | AB68: 14.25 | AD68: 59 | AH68: 8-8 | AI68: S
AA69: 15.8 | AB69: 14.5 | AD69: 60 | AH69: 9-8 | AI69: S
AA70: 15.9 | AB70: 14.75 | AD70: 61 | AH70: 10-8 | AI70: S
AA71: 16 | AB71: 15 | AD71: 62 | AH71: 11-8 | AI71: S
AA72: 16.1 | AD72: 63 | AH72: 9-9 | AI72: S
AA73: 16.2 | AD73: 64 | AH73: 10-9 | AI73: S
AA74: 16.3 | AD74: 65 | AH74: 11-9 | AI74: S
AA75: 16.4 | AD75: 66 | AH75: 10-10 | AI75: S
AA76: 16.5 | AD76: 67 | AH76: 11-10 | AI76: S
AA77: 16.6 | AD77: 68 | AH77: 11-11 | AI77: S
AA78: 16.7 | AD78: 69
AA79: 16.8 | AD79: 70
AA80: 16.9 | AD80: 71
AA81: 17 | AD81: 72
AA82: 17.1 | AD82: 73
AA83: 17.2 | AD83: 74
AA84: 17.3 | AD84: 75
AA85: 17.4 | AD85: 76
AA86: 17.5 | AD86: 77
AA87: 17.6 | AD87: 78
AA88: 17.7 | AD88: 79
AA89: 17.8 | AD89: 80
AA90: 17.9
AA91: 18
AA92: 18.1
AA93: 18.2
AA94: 18.3
AA95: 18.4
AA96: 18.5
AA97: 18.6
AA98: 18.7
AA99: 18.8
AA100: 18.9
AA101: 19
AA102: 19.1
AA103: 19.2
AA104: 19.3
AA105: 19.4
AA106: 19.5
AA107: 19.6
AA108: 19.7
AA109: 19.8
AA110: 19.9
AA111: 20
AA112: 20.1
AA113: 20.2
AA114: 20.3
AA115: 20.4
AA116: 20.5
AA117: 20.6
AA118: 20.7
AA119: 20.8
AA120: 20.9
AA121: 21
AA122: 21.1
AA123: 21.2
AA124: 21.3
AA125: 21.4
AA126: 21.5
AA127: 21.6
AA128: 21.7
AA129: 21.8
AA130: 21.9
AA131: 22
AA132: 22.1
AA133: 22.2
AA134: 22.3
AA135: 22.4
AA136: 22.5
AA137: 22.6
AA138: 22.7
AA139: 22.8
AA140: 22.9
AA141: 23
AA142: 23.1
AA143: 23.2
AA144: 23.3
AA145: 23.4
AA146: 23.5
AA147: 23.6
AA148: 23.7
AA149: 23.8
AA150: 23.9
AA151: 24 | AB151: 24
AA152: 24.1 | AB152: 24.1
AA153: 24.2 | AB153: 24.2
AA154: 24.3 | AB154: 24.3
AA155: 24.4 | AB155: 24.4
AA156: 24.5 | AB156: 24.5
AA157: 24.6 | AB157: 24.6
AA158: 24.7 | AB158: 24.7
AA159: 24.8 | AB159: 24.8
AA160: 24.9 | AB160: 24.9
AA161: 25 | AB161: 25
AA162: 25.1 | AB162: 25.1
AA163: 25.2 | AB163: 25.2
AA164: 25.3 | AB164: 25.3
AA165: 25.4 | AB165: 25.4
AA166: 25.5 | AB166: 25.5
AA167: 25.6 | AB167: 25.6
AA168: 25.7 | AB168: 25.7
AA169: 25.8 | AB169: 25.8
AA170: 25.9 | AB170: 25.9
AA171: 26 | AB171: 26
AA172: 26.1 | AB172: 26.1
AA173: 26.2 | AB173: 26.2
AA174: 26.3 | AB174: 26.3
AA175: 26.4 | AB175: 26.4
AA176: 26.5 | AB176: 26.5
AA177: 26.6 | AB177: 26.6
AA178: 26.7 | AB178: 26.7
AA179: 26.8 | AB179: 26.8
AA180: 26.9 | AB180: 26.9
AA181: 27 | AB181: 27
AA182: 27.1 | AB182: 27.1
AA183: 27.2 | AB183: 27.2
AA184: 27.3 | AB184: 27.3
AA185: 27.4 | AB185: 27.4
AA186: 27.5 | AB186: 27.5
AA187: 27.6 | AB187: 27.6
AA188: 27.7 | AB188: 27.7
AA189: 27.8 | AB189: 27.8
AA190: 27.9 | AB190: 27.9
AA191: 28 | AB191: 28
AA192: 28.1 | AB192: 28.1
AA193: 28.2 | AB193: 28.2
AA194: 28.3 | AB194: 28.3
AA195: 28.4 | AB195: 28.4
AA196: 28.5 | AB196: 28.5
AA197: 28.6 | AB197: 28.6
AA198: 28.7 | AB198: 28.7
AA199: 28.8 | AB199: 28.8
AA200: 28.9 | AB200: 28.9
AA201: 29 | AB201: 29
AA202: 29.1 | AB202: 29.1
... 609 more rows

Sheet Event Data Set (hidden)
A1: points1 Sec | F1: award2 Sec | L1: award12 Pri
A3: Balance Test-0 | B3: 0 | F3: Girls Pent | G3: Boys Pent | H3: Girls Dec | I3: Boys Dec | M3: Girls Pent | N3: Boys Pent | O3: Girls Dec | P3: Boys Dec
A4: Balance Test-1 | B4: 1 | E4: 0 | F4: Step 1 | G4: Step 1 | H4: Step 1 | I4: Step 1 | L4: 0 | M4: Step 1 | N4: Step 1 | O4: Step 1 | P4: Step 1
A5: Balance Test-2 | B5: 2 | E5: 1 | F5: Step 1 | G5: Step 1 | H5: Step 1 | I5: Step 1 | L5: 1 | M5: Step 1 | N5: Step 1 | O5: Step 1 | P5: Step 1
A6: Balance Test-3 | B6: 3 | E6: 2 | F6: Step 1 | G6: Step 1 | H6: Step 1 | I6: Step 1 | L6: 2 | M6: Step 1 | N6: Step 1 | O6: Step 1 | P6: Step 1
A7: Balance Test-4 | B7: 4 | E7: 3 | F7: Step 1 | G7: Step 1 | H7: Step 1 | I7: Step 1 | L7: 3 | M7: Step 1 | N7: Step 1 | O7: Step 1 | P7: Step 1
A8: Balance Test-5 | B8: 5 | E8: 4 | F8: Step 1 | G8: Step 1 | H8: Step 1 | I8: Step 1 | L8: 4 | M8: Step 1 | N8: Step 1 | O8: Step 1 | P8: Step 1
A9: Balance Test-6 | B9: 6 | E9: 5 | F9: Step 1 | G9: Step 1 | H9: Step 1 | I9: Step 1 | L9: 5 | M9: Step 1 | N9: Step 1 | O9: Step 1 | P9: Step 1
A10: Balance Test-7 | B10: 7 | E10: 6 | F10: Step 1 | G10: Step 1 | H10: Step 1 | I10: Step 1 | L10: 6 | M10: Step 1 | N10: Step 1 | O10: Step 1 | P10: Step 1
A11: Balance Test-8 | B11: 8 | E11: 7 | F11: Step 1 | G11: Step 1 | H11: Step 1 | I11: Step 1 | L11: 7 | M11: Step 1 | N11: Step 1 | O11: Step 1 | P11: Step 1
A12: Balance Test-9 | B12: 9 | E12: 8 | F12: Step 1 | G12: Step 1 | H12: Step 1 | I12: Step 1 | L12: 8 | M12: Step 1 | N12: Step 1 | O12: Step 1 | P12: Step 1
A13: Balance Test-10 | B13: 10 | E13: 9 | F13: Step 1 | G13: Step 1 | H13: Step 1 | I13: Step 1 | L13: 9 | M13: Step 1 | N13: Step 1 | O13: Step 1 | P13: Step 1
A14: Balance Test-11 | B14: 11 | E14: 10 | F14: Step 1 | G14: Step 1 | H14: Step 1 | I14: Step 1 | L14: 10 | M14: Step 1 | N14: Step 1 | O14: Step 1 | P14: Step 1
A15: Balance Test-12 | B15: 12 | E15: 11 | F15: Step 1 | G15: Step 1 | H15: Step 1 | I15: Step 1 | L15: 11 | M15: Step 1 | N15: Step 1 | O15: Step 1 | P15: Step 1
A16: Balance Test-13 | B16: 13 | E16: 12 | F16: Step 1 | G16: Step 1 | H16: Step 1 | I16: Step 1 | L16: 12 | M16: Step 1 | N16: Step 1 | O16: Step 1 | P16: Step 1
A17: Balance Test-14 | B17: 14 | E17: 13 | F17: Step 1 | G17: Step 1 | H17: Step 1 | I17: Step 1 | L17: 13 | M17: Step 1 | N17: Step 1 | O17: Step 1 | P17: Step 1
A18: Balance Test-15 | B18: 15 | E18: 14 | F18: Step 1 | G18: Step 1 | H18: Step 1 | I18: Step 1 | L18: 14 | M18: Step 1 | N18: Step 1 | O18: Step 1 | P18: Step 1
A19: Balance Test-16 | B19: 16 | E19: 15 | F19: Step 1 | G19: Step 1 | H19: Step 1 | I19: Step 1 | L19: 15 | M19: Step 1 | N19: Step 1 | O19: Step 1 | P19: Step 1
A20: Balance Test-17 | B20: 17 | E20: 16 | F20: Step 1 | G20: Step 1 | H20: Step 1 | I20: Step 1 | L20: 16 | M20: Step 1 | N20: Step 1 | O20: Step 1 | P20: Step 1
A21: Balance Test-18 | B21: 18 | E21: 17 | F21: Step 1 | G21: Step 1 | H21: Step 1 | I21: Step 1 | L21: 17 | M21: Step 1 | N21: Step 1 | O21: Step 1 | P21: Step 1
A22: Balance Test-19 | B22: 19 | E22: 18 | F22: Step 1 | G22: Step 1 | H22: Step 1 | I22: Step 1 | L22: 18 | M22: Step 1 | N22: Step 1 | O22: Step 1 | P22: Step 1
A23: Balance Test-20 | B23: 20 | E23: 19 | F23: Step 1 | G23: Step 1 | H23: Step 1 | I23: Step 1 | L23: 19 | M23: Step 1 | N23: Step 1 | O23: Step 1 | P23: Step 1
A24: Balance Test-21 | B24: 21 | E24: 20 | F24: Step 1 | G24: Step 1 | H24: Step 1 | I24: Step 1 | L24: 20 | M24: Step 1 | N24: Step 1 | O24: Step 1 | P24: Step 1
A25: Balance Test-22 | B25: 22 | E25: 21 | F25: Step 1 | G25: Step 1 | H25: Step 1 | I25: Step 1 | L25: 21 | M25: Step 1 | N25: Step 1 | O25: Step 1 | P25: Step 1
A26: Balance Test-23 | B26: 23 | E26: 22 | F26: Step 1 | G26: Step 1 | H26: Step 1 | I26: Step 1 | L26: 22 | M26: Step 1 | N26: Step 1 | O26: Step 1 | P26: Step 1
A27: Balance Test-24 | B27: 24 | E27: 23 | F27: Step 1 | G27: Step 1 | H27: Step 1 | I27: Step 1 | L27: 23 | M27: Step 1 | N27: Step 1 | O27: Step 1 | P27: Step 1
A28: Balance Test-25 | B28: 25 | E28: 24 | F28: Step 1 | G28: Step 1 | H28: Step 1 | I28: Step 1 | L28: 24 | M28: Step 1 | N28: Step 1 | O28: Step 1 | P28: Step 1
A29: Balance Test-26 | B29: 26 | E29: 25 | F29: Step 2 | G29: Step 2 | H29: Step 1 | I29: Step 1 | L29: 25 | M29: Step 1 | N29: Step 1 | O29: Step 1 | P29: Step 1
A30: Balance Test-27 | B30: 27 | E30: 26 | F30: Step 2 | G30: Step 2 | H30: Step 1 | I30: Step 1 | L30: 26 | M30: Step 1 | N30: Step 1 | O30: Step 1 | P30: Step 1
A31: Balance Test-28 | B31: 28 | E31: 27 | F31: Step 2 | G31: Step 2 | H31: Step 1 | I31: Step 1 | L31: 27 | M31: Step 1 | N31: Step 1 | O31: Step 1 | P31: Step 1
A32: Balance Test-29 | B32: 29 | E32: 28 | F32: Step 2 | G32: Step 2 | H32: Step 1 | I32: Step 1 | L32: 28 | M32: Step 1 | N32: Step 1 | O32: Step 1 | P32: Step 1
A33: Balance Test-30 | B33: 30 | E33: 29 | F33: Step 2 | G33: Step 2 | H33: Step 1 | I33: Step 1 | L33: 29 | M33: Step 1 | N33: Step 1 | O33: Step 1 | P33: Step 1
A34: Balance Test-31 | B34: 31 | E34: 30 | F34: Step 2 | G34: Step 2 | H34: Step 1 | I34: Step 1 | L34: 30 | M34: Step 2 | N34: Step 2 | O34: Step 1 | P34: Step 1
A35: Balance Test-32 | B35: 32 | E35: 31 | F35: Step 2 | G35: Step 2 | H35: Step 1 | I35: Step 1 | L35: 31 | M35: Step 2 | N35: Step 2 | O35: Step 1 | P35: Step 1
A36: Balance Test-33 | B36: 33 | E36: 32 | F36: Step 2 | G36: Step 2 | H36: Step 1 | I36: Step 1 | L36: 32 | M36: Step 2 | N36: Step 2 | O36: Step 1 | P36: Step 1
A37: Balance Test-34 | B37: 34 | E37: 33 | F37: Step 2 | G37: Step 2 | H37: Step 1 | I37: Step 1 | L37: 33 | M37: Step 2 | N37: Step 2 | O37: Step 1 | P37: Step 1
A38: Balance Test-35 | B38: 35 | E38: 34 | F38: Step 2 | G38: Step 2 | H38: Step 1 | I38: Step 1 | L38: 34 | M38: Step 2 | N38: Step 2 | O38: Step 1 | P38: Step 1
A39: Balance Test-36 | B39: 36 | E39: 35 | F39: Step 2 | G39: Step 2 | H39: Step 1 | I39: Step 1 | L39: 35 | M39: Step 2 | N39: Step 2 | O39: Step 1 | P39: Step 1
A40: Balance Test-37 | B40: 38 | E40: 36 | F40: Step 2 | G40: Step 2 | H40: Step 1 | I40: Step 1 | L40: 36 | M40: Step 2 | N40: Step 2 | O40: Step 1 | P40: Step 1
A41: Balance Test-38 | B41: 40 | E41: 37 | F41: Step 2 | G41: Step 2 | H41: Step 1 | I41: Step 1 | L41: 37 | M41: Step 2 | N41: Step 2 | O41: Step 1 | P41: Step 1
A42: Balance Test-39 | B42: 42 | E42: 38 | F42: Step 2 | G42: Step 2 | H42: Step 1 | I42: Step 1 | L42: 38 | M42: Step 2 | N42: Step 2 | O42: Step 1 | P42: Step 1
A43: Balance Test-40 | B43: 44 | E43: 39 | F43: Step 2 | G43: Step 2 | H43: Step 1 | I43: Step 1 | L43: 39 | M43: Step 2 | N43: Step 2 | O43: Step 1 | P43: Step 1
A44: Balance Test-41 | B44: 46 | E44: 40 | F44: Step 2 | G44: Step 2 | H44: Step 1 | I44: Step 1 | L44: 40 | M44: Step 2 | N44: Step 2 | O44: Step 2 | P44: Step 1
A45: Balance Test-42 | B45: 47 | E45: 41 | F45: Step 2 | G45: Step 2 | H45: Step 1 | I45: Step 1 | L45: 41 | M45: Step 2 | N45: Step 2 | O45: Step 2 | P45: Step 1
A46: Balance Test-43 | B46: 48 | E46: 42 | F46: Step 2 | G46: Step 2 | H46: Step 1 | I46: Step 1 | L46: 42 | M46: Step 2 | N46: Step 2 | O46: Step 2 | P46: Step 1
A47: Balance Test-44 | B47: 49 | E47: 43 | F47: Step 2 | G47: Step 2 | H47: Step 1 | I47: Step 1 | L47: 43 | M47: Step 2 | N47: Step 2 | O47: Step 2 | P47: Step 1
A48: Balance Test-45 | B48: 50 | E48: 44 | F48: Step 2 | G48: Step 2 | H48: Step 1 | I48: Step 1 | L48: 44 | M48: Step 2 | N48: Step 2 | O48: Step 2 | P48: Step 1
A49: Balance Test-46 | B49: 51 | E49: 45 | F49: Step 2 | G49: Step 2 | H49: Step 1 | I49: Step 1 | L49: 45 | M49: Step 2 | N49: Step 2 | O49: Step 2 | P49: Step 1
A50: Balance Test-47 | B50: 52 | E50: 46 | F50: Step 2 | G50: Step 2 | H50: Step 1 | I50: Step 1 | L50: 46 | M50: Step 2 | N50: Step 2 | O50: Step 2 | P50: Step 1
A51: Balance Test-48 | B51: 53 | E51: 47 | F51: Step 2 | G51: Step 2 | H51: Step 1 | I51: Step 1 | L51: 47 | M51: Step 2 | N51: Step 2 | O51: Step 2 | P51: Step 1
A52: Balance Test-49 | B52: 54 | E52: 48 | F52: Step 2 | G52: Step 2 | H52: Step 1 | I52: Step 1 | L52: 48 | M52: Step 2 | N52: Step 2 | O52: Step 2 | P52: Step 1
A53: Balance Test-50 | B53: 55 | E53: 49 | F53: Step 2 | G53: Step 2 | H53: Step 1 | I53: Step 1 | L53: 49 | M53: Step 2 | N53: Step 2 | O53: Step 2 | P53: Step 1
A54: Balance Test-51 | B54: 56 | E54: 50 | F54: Step 2 | G54: Step 3 | H54: Step 2 | I54: Step 2 | L54: 50 | M54: Step 2 | N54: Step 2 | O54: Step 2 | P54: Step 2
A55: Balance Test-52 | B55: 57 | E55: 51 | F55: Step 3 | G55: Step 3 | H55: Step 2 | I55: Step 2 | L55: 51 | M55: Step 2 | N55: Step 2 | O55: Step 2 | P55: Step 2
A56: Balance Test-53 | B56: 58 | E56: 52 | F56: Step 3 | G56: Step 3 | H56: Step 2 | I56: Step 2 | L56: 52 | M56: Step 2 | N56: Step 2 | O56: Step 2 | P56: Step 2
A57: Balance Test-54 | B57: 59 | E57: 53 | F57: Step 3 | G57: Step 3 | H57: Step 2 | I57: Step 2 | L57: 53 | M57: Step 2 | N57: Step 2 | O57: Step 2 | P57: Step 2
A58: Balance Test-55 | B58: 60 | E58: 54 | F58: Step 3 | G58: Step 3 | H58: Step 2 | I58: Step 2 | L58: 54 | M58: Step 2 | N58: Step 2 | O58: Step 2 | P58: Step 2
A59: Balance Test-56 | B59: 61 | E59: 55 | F59: Step 3 | G59: Step 3 | H59: Step 2 | I59: Step 2 | L59: 55 | M59: Step 2 | N59: Step 2 | O59: Step 2 | P59: Step 2
A60: Balance Test-57 | B60: 62 | E60: 56 | F60: Step 3 | G60: Step 3 | H60: Step 2 | I60: Step 2 | L60: 56 | M60: Step 2 | N60: Step 2 | O60: Step 2 | P60: Step 2
A61: Balance Test-58 | B61: 63 | E61: 57 | F61: Step 3 | G61: Step 3 | H61: Step 2 | I61: Step 2 | L61: 57 | M61: Step 2 | N61: Step 2 | O61: Step 2 | P61: Step 2
A62: Balance Test-59 | B62: 64 | E62: 58 | F62: Step 3 | G62: Step 3 | H62: Step 2 | I62: Step 2 | L62: 58 | M62: Step 2 | N62: Step 2 | O62: Step 2 | P62: Step 2
A63: Balance Test-60 | B63: 65 | E63: 59 | F63: Step 3 | G63: Step 3 | H63: Step 2 | I63: Step 2 | L63: 59 | M63: Step 2 | N63: Step 2 | O63: Step 2 | P63: Step 2
A64: Standing Long Jump-0.01 | B64: 1 | E64: 60 | F64: Step 3 | G64: Step 3 | H64: Step 2 | I64: Step 2 | L64: 60 | M64: Step 3 | N64: Step 3 | O64: Step 2 | P64: Step 2
A65: Standing Long Jump-0.02 | B65: 1 | E65: 61 | F65: Step 3 | G65: Step 3 | H65: Step 2 | I65: Step 2 | L65: 61 | M65: Step 3 | N65: Step 3 | O65: Step 2 | P65: Step 2
A66: Standing Long Jump-0.03 | B66: 1 | E66: 62 | F66: Step 3 | G66: Step 3 | H66: Step 2 | I66: Step 2 | L66: 62 | M66: Step 3 | N66: Step 3 | O66: Step 2 | P66: Step 2
A67: Standing Long Jump-0.04 | B67: 1 | E67: 63 | F67: Step 3 | G67: Step 3 | H67: Step 2 | I67: Step 2 | L67: 63 | M67: Step 3 | N67: Step 3 | O67: Step 2 | P67: Step 2
A68: Standing Long Jump-0.05 | B68: 1 | E68: 64 | F68: Step 3 | G68: Step 3 | H68: Step 2 | I68: Step 2 | L68: 64 | M68: Step 3 | N68: Step 3 | O68: Step 2 | P68: Step 2
A69: Standing Long Jump-0.06 | B69: 1 | E69: 65 | F69: Step 3 | G69: Step 3 | H69: Step 2 | I69: Step 2 | L69: 65 | M69: Step 3 | N69: Step 3 | O69: Step 2 | P69: Step 2
A70: Standing Long Jump-0.07 | B70: 1 | E70: 66 | F70: Step 3 | G70: Step 3 | H70: Step 2 | I70: Step 2 | L70: 66 | M70: Step 3 | N70: Step 3 | O70: Step 2 | P70: Step 2
A71: Standing Long Jump-0.08 | B71: 1 | E71: 67 | F71: Step 3 | G71: Step 3 | H71: Step 2 | I71: Step 2 | L71: 67 | M71: Step 3 | N71: Step 3 | O71: Step 2 | P71: Step 2
A72: Standing Long Jump-0.09 | B72: 1 | E72: 68 | F72: Step 3 | G72: Step 3 | H72: Step 2 | I72: Step 2 | L72: 68 | M72: Step 3 | N72: Step 3 | O72: Step 2 | P72: Step 2
A73: Standing Long Jump-0.1 | B73: 1 | E73: 69 | F73: Step 3 | G73: Step 3 | H73: Step 2 | I73: Step 2 | L73: 69 | M73: Step 3 | N73: Step 3 | O73: Step 2 | P73: Step 2
A74: Standing Long Jump-0.11 | B74: 1 | E74: 70 | F74: Step 3 | G74: Step 3 | H74: Step 2 | I74: Step 2 | L74: 70 | M74: Step 3 | N74: Step 3 | O74: Step 2 | P74: Step 2
A75: Standing Long Jump-0.12 | B75: 1 | E75: 71 | F75: Step 3 | G75: Step 3 | H75: Step 2 | I75: Step 2 | L75: 71 | M75: Step 3 | N75: Step 3 | O75: Step 2 | P75: Step 2
A76: Standing Long Jump-0.13 | B76: 1 | E76: 72 | F76: Step 3 | G76: Step 3 | H76: Step 2 | I76: Step 2 | L76: 72 | M76: Step 3 | N76: Step 3 | O76: Step 2 | P76: Step 2
A77: Standing Long Jump-0.14 | B77: 1 | E77: 73 | F77: Step 3 | G77: Step 3 | H77: Step 2 | I77: Step 2 | L77: 73 | M77: Step 3 | N77: Step 3 | O77: Step 2 | P77: Step 2
A78: Standing Long Jump-0.15 | B78: 1 | E78: 74 | F78: Step 3 | G78: Step 3 | H78: Step 2 | I78: Step 2 | L78: 74 | M78: Step 3 | N78: Step 3 | O78: Step 2 | P78: Step 2
A79: Standing Long Jump-0.16 | B79: 1 | E79: 75 | F79: Step 3 | G79: Step 3 | H79: Step 2 | I79: Step 2 | L79: 75 | M79: Step 3 | N79: Step 3 | O79: Step 2 | P79: Step 2
A80: Standing Long Jump-0.17 | B80: 1 | E80: 76 | F80: Step 3 | G80: Step 3 | H80: Step 2 | I80: Step 2 | L80: 76 | M80: Step 3 | N80: Step 3 | O80: Step 2 | P80: Step 2
A81: Standing Long Jump-0.18 | B81: 1 | E81: 77 | F81: Step 3 | G81: Step 3 | H81: Step 2 | I81: Step 2 | L81: 77 | M81: Step 3 | N81: Step 3 | O81: Step 2 | P81: Step 2
A82: Standing Long Jump-0.19 | B82: 1 | E82: 78 | F82: Step 3 | G82: Step 3 | H82: Step 2 | I82: Step 2 | L82: 78 | M82: Step 3 | N82: Step 3 | O82: Step 2 | P82: Step 2
A83: Standing Long Jump-0.2 | B83: 1 | E83: 79 | F83: Step 3 | G83: Step 3 | H83: Step 2 | I83: Step 2 | L83: 79 | M83: Step 3 | N83: Step 3 | O83: Step 2 | P83: Step 2
A84: Standing Long Jump-0.21 | B84: 1 | E84: 80 | F84: Step 4 | G84: Step 4 | H84: Step 2 | I84: Step 2 | L84: 80 | M84: Step 4 | N84: Step 4 | O84: Step 3 | P84: Step 2
A85: Standing Long Jump-0.22 | B85: 1 | E85: 81 | F85: Step 4 | G85: Step 4 | H85: Step 2 | I85: Step 2 | L85: 81 | M85: Step 4 | N85: Step 4 | O85: Step 3 | P85: Step 2
A86: Standing Long Jump-0.23 | B86: 1 | E86: 82 | F86: Step 4 | G86: Step 4 | H86: Step 2 | I86: Step 2 | L86: 82 | M86: Step 4 | N86: Step 4 | O86: Step 3 | P86: Step 2
A87: Standing Long Jump-0.24 | B87: 1 | E87: 83 | F87: Step 4 | G87: Step 4 | H87: Step 2 | I87: Step 2 | L87: 83 | M87: Step 4 | N87: Step 4 | O87: Step 3 | P87: Step 2
A88: Standing Long Jump-0.25 | B88: 1 | E88: 84 | F88: Step 4 | G88: Step 4 | H88: Step 2 | I88: Step 2 | L88: 84 | M88: Step 4 | N88: Step 4 | O88: Step 3 | P88: Step 2
A89: Standing Long Jump-0.26 | B89: 1 | E89: 85 | F89: Step 4 | G89: Step 4 | H89: Step 2 | I89: Step 2 | L89: 85 | M89: Step 4 | N89: Step 4 | O89: Step 3 | P89: Step 2
A90: Standing Long Jump-0.27 | B90: 1 | E90: 86 | F90: Step 4 | G90: Step 4 | H90: Step 2 | I90: Step 2 | L90: 86 | M90: Step 4 | N90: Step 4 | O90: Step 3 | P90: Step 2
A91: Standing Long Jump-0.28 | B91: 1 | E91: 87 | F91: Step 4 | G91: Step 4 | H91: Step 2 | I91: Step 2 | L91: 87 | M91: Step 4 | N91: Step 4 | O91: Step 3 | P91: Step 2
A92: Standing Long Jump-0.29 | B92: 1 | E92: 88 | F92: Step 4 | G92: Step 4 | H92: Step 2 | I92: Step 2 | L92: 88 | M92: Step 4 | N92: Step 4 | O92: Step 3 | P92: Step 2
A93: Standing Long Jump-0.3 | B93: 1 | E93: 89 | F93: Step 4 | G93: Step 4 | H93: Step 2 | I93: Step 2 | L93: 89 | M93: Step 4 | N93: Step 4 | O93: Step 3 | P93: Step 2
A94: Standing Long Jump-0.31 | B94: 1 | E94: 90 | F94: Step 4 | G94: Step 4 | H94: Step 2 | I94: Step 2 | L94: 90 | M94: Step 4 | N94: Step 4 | O94: Step 3 | P94: Step 2
A95: Standing Long Jump-0.32 | B95: 1 | E95: 91 | F95: Step 4 | G95: Step 4 | H95: Step 2 | I95: Step 2 | L95: 91 | M95: Step 4 | N95: Step 4 | O95: Step 3 | P95: Step 2
A96: Standing Long Jump-0.33 | B96: 1 | E96: 92 | F96: Step 4 | G96: Step 4 | H96: Step 2 | I96: Step 2 | L96: 92 | M96: Step 4 | N96: Step 4 | O96: Step 3 | P96: Step 2
A97: Standing Long Jump-0.34 | B97: 1 | E97: 93 | F97: Step 4 | G97: Step 4 | H97: Step 2 | I97: Step 2 | L97: 93 | M97: Step 4 | N97: Step 4 | O97: Step 3 | P97: Step 2
A98: Standing Long Jump-0.35 | B98: 1 | E98: 94 | F98: Step 4 | G98: Step 4 | H98: Step 2 | I98: Step 2 | L98: 94 | M98: Step 4 | N98: Step 4 | O98: Step 3 | P98: Step 2
A99: Standing Long Jump-0.36 | B99: 1 | E99: 95 | F99: Step 5 | G99: Step 4 | H99: Step 2 | I99: Step 2 | L99: 95 | M99: Step 4 | N99: Step 4 | O99: Step 3 | P99: Step 2
A100: Standing Long Jump-0.37 | B100: 1 | E100: 96 | F100: Step 5 | G100: Step 4 | H100: Step 2 | I100: Step 2 | L100: 96 | M100: Step 4 | N100: Step 4 | O100: Step 3 | P100: Step 2
A101: Standing Long Jump-0.38 | B101: 1 | E101: 97 | F101: Step 5 | G101: Step 4 | H101: Step 2 | I101: Step 2 | L101: 97 | M101: Step 4 | N101: Step 4 | O101: Step 3 | P101: Step 2
A102: Standing Long Jump-0.39 | B102: 1 | E102: 98 | F102: Step 5 | G102: Step 4 | H102: Step 2 | I102: Step 2 | L102: 98 | M102: Step 4 | N102: Step 4 | O102: Step 3 | P102: Step 2
A103: Standing Long Jump-0.4 | B103: 2 | E103: 99 | F103: Step 5 | G103: Step 4 | H103: Step 2 | I103: Step 2 | L103: 99 | M103: Step 4 | N103: Step 4 | O103: Step 3 | P103: Step 2
A104: Standing Long Jump-0.41 | B104: 2 | E104: 100 | F104: Step 5 | G104: Step 5 | H104: Step 3 | I104: Step 3 | L104: 100 | M104: Step 5 | N104: Step 5 | O104: Step 3 | P104: Step 3
A105: Standing Long Jump-0.42 | B105: 2 | E105: 101 | F105: Step 5 | G105: Step 5 | H105: Step 3 | I105: Step 3 | L105: 101 | M105: Step 5 | N105: Step 5 | O105: Step 3 | P105: Step 3
A106: Standing Long Jump-0.43 | B106: 2 | E106: 102 | F106: Step 5 | G106: Step 5 | H106: Step 3 | I106: Step 3 | L106: 102 | M106: Step 5 | N106: Step 5 | O106: Step 3 | P106: Step 3
A107: Standing Long Jump-0.44 | B107: 2 | E107: 103 | F107: Step 5 | G107: Step 5 | H107: Step 3 | I107: Step 3 | L107: 103 | M107: Step 5 | N107: Step 5 | O107: Step 3 | P107: Step 3
A108: Standing Long Jump-0.45 | B108: 3 | E108: 104 | F108: Step 5 | G108: Step 5 | H108: Step 3 | I108: Step 3 | L108: 104 | M108: Step 5 | N108: Step 5 | O108: Step 3 | P108: Step 3
A109: Standing Long Jump-0.46 | B109: 3 | E109: 105 | F109: Step 5 | G109: Step 5 | H109: Step 3 | I109: Step 3 | L109: 105 | M109: Step 5 | N109: Step 5 | O109: Step 3 | P109: Step 3
A110: Standing Long Jump-0.47 | B110: 3 | E110: 106 | F110: Step 5 | G110: Step 5 | H110: Step 3 | I110: Step 3 | L110: 106 | M110: Step 5 | N110: Step 5 | O110: Step 3 | P110: Step 3
A111: Standing Long Jump-0.48 | B111: 3 | E111: 107 | F111: Step 5 | G111: Step 5 | H111: Step 3 | I111: Step 3 | L111: 107 | M111: Step 5 | N111: Step 5 | O111: Step 3 | P111: Step 3
A112: Standing Long Jump-0.49 | B112: 3 | E112: 108 | F112: Step 5 | G112: Step 5 | H112: Step 3 | I112: Step 3 | L112: 108 | M112: Step 5 | N112: Step 5 | O112: Step 3 | P112: Step 3
A113: Standing Long Jump-0.5 | B113: 4 | E113: 109 | F113: Step 5 | G113: Step 5 | H113: Step 3 | I113: Step 3 | L113: 109 | M113: Step 5 | N113: Step 5 | O113: Step 3 | P113: Step 3
A114: Standing Long Jump-0.51 | B114: 4 | E114: 110 | F114: Step 6 | G114: Step 5 | H114: Step 3 | I114: Step 3 | L114: 110 | M114: Step 6 | N114: Step 5 | O114: Step 3 | P114: Step 3
A115: Standing Long Jump-0.52 | B115: 4 | E115: 111 | F115: Step 6 | G115: Step 5 | H115: Step 3 | I115: Step 3 | L115: 111 | M115: Step 6 | N115: Step 5 | O115: Step 3 | P115: Step 3
A116: Standing Long Jump-0.53 | B116: 4 | E116: 112 | F116: Step 6 | G116: Step 5 | H116: Step 3 | I116: Step 3 | L116: 112 | M116: Step 6 | N116: Step 5 | O116: Step 3 | P116: Step 3
A117: Standing Long Jump-0.54 | B117: 4 | E117: 113 | F117: Step 6 | G117: Step 5 | H117: Step 3 | I117: Step 3 | L117: 113 | M117: Step 6 | N117: Step 5 | O117: Step 3 | P117: Step 3
A118: Standing Long Jump-0.55 | B118: 5 | E118: 114 | F118: Step 6 | G118: Step 5 | H118: Step 3 | I118: Step 3 | L118: 114 | M118: Step 6 | N118: Step 5 | O118: Step 3 | P118: Step 3
A119: Standing Long Jump-0.56 | B119: 5 | E119: 115 | F119: Step 6 | G119: Step 6 | H119: Step 3 | I119: Step 3 | L119: 115 | M119: Step 6 | N119: Step 6 | O119: Step 3 | P119: Step 3
A120: Standing Long Jump-0.57 | B120: 5 | E120: 116 | F120: Step 6 | G120: Step 6 | H120: Step 3 | I120: Step 3 | L120: 116 | M120: Step 6 | N120: Step 6 | O120: Step 3 | P120: Step 3
A121: Standing Long Jump-0.58 | B121: 5 | E121: 117 | F121: Step 6 | G121: Step 6 | H121: Step 3 | I121: Step 3 | L121: 117 | M121: Step 6 | N121: Step 6 | O121: Step 3 | P121: Step 3
A122: Standing Long Jump-0.59 | B122: 5 | E122: 118 | F122: Step 6 | G122: Step 6 | H122: Step 3 | I122: Step 3 | L122: 118 | M122: Step 6 | N122: Step 6 | O122: Step 3 | P122: Step 3
A123: Standing Long Jump-0.6 | B123: 6 | E123: 119 | F123: Step 6 | G123: Step 6 | H123: Step 3 | I123: Step 3 | L123: 119 | M123: Step 6 | N123: Step 6 | O123: Step 3 | P123: Step 3
A124: Standing Long Jump-0.61 | B124: 6 | E124: 120 | F124: Step 6 | G124: Step 6 | H124: Step 3 | I124: Step 3 | L124: 120 | M124: Step 6 | N124: Step 6 | O124: Step 4 | P124: Step 3
A125: Standing Long Jump-0.62 | B125: 6 | E125: 121 | F125: Step 6 | G125: Step 6 | H125: Step 3 | I125: Step 3 | L125: 121 | M125: Step 6 | N125: Step 6 | O125: Step 4 | P125: Step 3
A126: Standing Long Jump-0.63 | B126: 6 | E126: 122 | F126: Step 6 | G126: Step 6 | H126: Step 3 | I126: Step 3 | L126: 122 | M126: Step 6 | N126: Step 6 | O126: Step 4 | P126: Step 3
A127: Standing Long Jump-0.64 | B127: 6 | E127: 123 | F127: Step 6 | G127: Step 6 | H127: Step 3 | I127: Step 3 | L127: 123 | M127: Step 6 | N127: Step 6 | O127: Step 4 | P127: Step 3
A128: Standing Long Jump-0.65 | B128: 7 | E128: 124 | F128: Step 6 | G128: Step 6 | H128: Step 3 | I128: Step 3 | L128: 124 | M128: Step 6 | N128: Step 6 | O128: Step 4 | P128: Step 3
A129: Standing Long Jump-0.66 | B129: 7 | E129: 125 | F129: Step 6 | G129: Step 6 | H129: Step 3 | I129: Step 3 | L129: 125 | M129: Step 7 | N129: Step 6 | O129: Step 4 | P129: Step 3
A130: Standing Long Jump-0.67 | B130: 7 | E130: 126 | F130: Step 6 | G130: Step 6 | H130: Step 3 | I130: Step 3 | L130: 126 | M130: Step 7 | N130: Step 6 | O130: Step 4 | P130: Step 3
A131: Standing Long Jump-0.68 | B131: 7 | E131: 127 | F131: Step 6 | G131: Step 6 | H131: Step 3 | I131: Step 3 | L131: 127 | M131: Step 7 | N131: Step 6 | O131: Step 4 | P131: Step 3
A132: Standing Long Jump-0.69 | B132: 7 | E132: 128 | F132: Step 6 | G132: Step 6 | H132: Step 3 | I132: Step 3 | L132: 128 | M132: Step 7 | N132: Step 6 | O132: Step 4 | P132: Step 3
A133: Standing Long Jump-0.7 | B133: 8 | E133: 129 | F133: Step 6 | G133: Step 6 | H133: Step 3 | I133: Step 3 | L133: 129 | M133: Step 7 | N133: Step 6 | O133: Step 4 | P133: Step 3
A134: Standing Long Jump-0.71 | B134: 8 | E134: 130 | F134: Step 6 | G134: Step 6 | H134: Step 3 | I134: Step 3 | L134: 130 | M134: Step 7 | N134: Step 7 | O134: Step 4 | P134: Step 3
A135: Standing Long Jump-0.72 | B135: 8 | E135: 131 | F135: Step 6 | G135: Step 6 | H135: Step 3 | I135: Step 3 | L135: 131 | M135: Step 7 | N135: Step 7 | O135: Step 4 | P135: Step 3
A136: Standing Long Jump-0.73 | B136: 8 | E136: 132 | F136: Step 6 | G136: Step 6 | H136: Step 3 | I136: Step 3 | L136: 132 | M136: Step 7 | N136: Step 7 | O136: Step 4 | P136: Step 3
A137: Standing Long Jump-0.74 | B137: 8 | E137: 133 | F137: Step 6 | G137: Step 6 | H137: Step 3 | I137: Step 3 | L137: 133 | M137: Step 7 | N137: Step 7 | O137: Step 4 | P137: Step 3
A138: Standing Long Jump-0.75 | B138: 9 | E138: 134 | F138: Step 6 | G138: Step 6 | H138: Step 3 | I138: Step 3 | L138: 134 | M138: Step 7 | N138: Step 7 | O138: Step 4 | P138: Step 3
A139: Standing Long Jump-0.76 | B139: 9 | E139: 135 | F139: Step 6 | G139: Step 6 | H139: Step 3 | I139: Step 3 | L139: 135 | M139: Step 7 | N139: Step 7 | O139: Step 4 | P139: Step 3
A140: Standing Long Jump-0.77 | B140: 9 | E140: 136 | F140: Step 6 | G140: Step 6 | H140: Step 3 | I140: Step 3 | L140: 136 | M140: Step 7 | N140: Step 7 | O140: Step 4 | P140: Step 3
A141: Standing Long Jump-0.78 | B141: 9 | E141: 137 | F141: Step 6 | G141: Step 6 | H141: Step 3 | I141: Step 3 | L141: 137 | M141: Step 7 | N141: Step 7 | O141: Step 4 | P141: Step 3
A142: Standing Long Jump-0.79 | B142: 9 | E142: 138 | F142: Step 6 | G142: Step 6 | H142: Step 3 | I142: Step 3 | L142: 138 | M142: Step 7 | N142: Step 7 | O142: Step 4 | P142: Step 3
A143: Standing Long Jump-0.8 | B143: 10 | E143: 139 | F143: Step 6 | G143: Step 6 | H143: Step 3 | I143: Step 3 | L143: 139 | M143: Step 7 | N143: Step 7 | O143: Step 4 | P143: Step 3
A144: Standing Long Jump-0.81 | B144: 10 | E144: 140 | F144: Step 7 | G144: Step 6 | H144: Step 3 | I144: Step 3 | L144: 140 | M144: Step 8 | N144: Step 7 | O144: Step 4 | P144: Step 3
A145: Standing Long Jump-0.82 | B145: 10 | E145: 141 | F145: Step 7 | G145: Step 6 | H145: Step 3 | I145: Step 3 | L145: 141 | M145: Step 8 | N145: Step 7 | O145: Step 4 | P145: Step 3
A146: Standing Long Jump-0.83 | B146: 10 | E146: 142 | F146: Step 7 | G146: Step 6 | H146: Step 3 | I146: Step 3 | L146: 142 | M146: Step 8 | N146: Step 7 | O146: Step 4 | P146: Step 3
A147: Standing Long Jump-0.84 | B147: 10 | E147: 143 | F147: Step 7 | G147: Step 6 | H147: Step 3 | I147: Step 3 | L147: 143 | M147: Step 8 | N147: Step 7 | O147: Step 4 | P147: Step 3
A148: Standing Long Jump-0.85 | B148: 11 | E148: 144 | F148: Step 7 | G148: Step 6 | H148: Step 3 | I148: Step 3 | L148: 144 | M148: Step 8 | N148: Step 7 | O148: Step 4 | P148: Step 3
A149: Standing Long Jump-0.86 | B149: 11 | E149: 145 | F149: Step 7 | G149: Step 6 | H149: Step 3 | I149: Step 3 | L149: 145 | M149: Step 8 | N149: Step 8 | O149: Step 4 | P149: Step 3
A150: Standing Long Jump-0.87 | B150: 11 | E150: 146 | F150: Step 7 | G150: Step 6 | H150: Step 3 | I150: Step 3 | L150: 146 | M150: Step 8 | N150: Step 8 | O150: Step 4 | P150: Step 3
A151: Standing Long Jump-0.88 | B151: 11 | E151: 147 | F151: Step 7 | G151: Step 6 | H151: Step 3 | I151: Step 3 | L151: 147 | M151: Step 8 | N151: Step 8 | O151: Step 4 | P151: Step 3
A152: Standing Long Jump-0.89 | B152: 11 | E152: 148 | F152: Step 7 | G152: Step 6 | H152: Step 3 | I152: Step 3 | L152: 148 | M152: Step 8 | N152: Step 8 | O152: Step 4 | P152: Step 3
A153: Standing Long Jump-0.9 | B153: 12 | E153: 149 | F153: Step 7 | G153: Step 6 | H153: Step 3 | I153: Step 3 | L153: 149 | M153: Step 8 | N153: Step 8 | O153: Step 4 | P153: Step 3
A154: Standing Long Jump-0.91 | B154: 12 | E154: 150 | F154: Step 7 | G154: Step 7 | H154: Step 4 | I154: Step 4 | L154: 150 | M154: Step 9 | N154: Step 8 | O154: Step 5 | P154: Step 4
A155: Standing Long Jump-0.92 | B155: 12 | E155: 151 | F155: Step 7 | G155: Step 7 | H155: Step 4 | I155: Step 4 | L155: 151 | M155: Step 9 | N155: Step 8 | O155: Step 5 | P155: Step 4
A156: Standing Long Jump-0.93 | B156: 12 | E156: 152 | F156: Step 7 | G156: Step 7 | H156: Step 4 | I156: Step 4 | L156: 152 | M156: Step 9 | N156: Step 8 | O156: Step 5 | P156: Step 4
A157: Standing Long Jump-0.94 | B157: 12 | E157: 153 | F157: Step 7 | G157: Step 7 | H157: Step 4 | I157: Step 4 | L157: 153 | M157: Step 9 | N157: Step 8 | O157: Step 5 | P157: Step 4
A158: Standing Long Jump-0.95 | B158: 13 | E158: 154 | F158: Step 7 | G158: Step 7 | H158: Step 4 | I158: Step 4 | L158: 154 | M158: Step 9 | N158: Step 8 | O158: Step 5 | P158: Step 4
A159: Standing Long Jump-0.96 | B159: 13 | E159: 155 | F159: Step 7 | G159: Step 7 | H159: Step 4 | I159: Step 4 | L159: 155 | M159: Step 9 | N159: Step 8 | O159: Step 5 | P159: Step 4
A160: Standing Long Jump-0.97 | B160: 13 | E160: 156 | F160: Step 7 | G160: Step 7 | H160: Step 4 | I160: Step 4 | L160: 156 | M160: Step 9 | N160: Step 8 | O160: Step 5 | P160: Step 4
A161: Standing Long Jump-0.98 | B161: 13 | E161: 157 | F161: Step 7 | G161: Step 7 | H161: Step 4 | I161: Step 4 | L161: 157 | M161: Step 9 | N161: Step 8 | O161: Step 5 | P161: Step 4
A162: Standing Long Jump-0.99 | B162: 13 | E162: 158 | F162: Step 7 | G162: Step 7 | H162: Step 4 | I162: Step 4 | L162: 158 | M162: Step 9 | N162: Step 8 | O162: Step 5 | P162: Step 4
A163: Standing Long Jump-1 | B163: 14 | E163: 159 | F163: Step 7 | G163: Step 7 | H163: Step 4 | I163: Step 4 | L163: 159 | M163: Step 9 | N163: Step 8 | O163: Step 5 | P163: Step 4
A164: Standing Long Jump-1.01 | B164: 14 | E164: 160 | F164: Step 8 | G164: Step 7 | H164: Step 4 | I164: Step 4 | L164: 160 | M164: Step 10 | N164: Step 9 | O164: Step 5 | P164: Step 4
A165: Standing Long Jump-1.02 | B165: 14 | E165: 161 | F165: Step 8 | G165: Step 7 | H165: Step 4 | I165: Step 4 | L165: 161 | M165: Step 10 | N165: Step 9 | O165: Step 5 | P165: Step 4
A166: Standing Long Jump-1.03 | B166: 14 | E166: 162 | F166: Step 8 | G166: Step 7 | H166: Step 4 | I166: Step 4 | L166: 162 | M166: Step 10 | N166: Step 9 | O166: Step 5 | P166: Step 4
A167: Standing Long Jump-1.04 | B167: 14 | E167: 163 | F167: Step 8 | G167: Step 7 | H167: Step 4 | I167: Step 4 | L167: 163 | M167: Step 10 | N167: Step 9 | O167: Step 5 | P167: Step 4
A168: Standing Long Jump-1.05 | B168: 15 | E168: 164 | F168: Step 8 | G168: Step 7 | H168: Step 4 | I168: Step 4 | L168: 164 | M168: Step 10 | N168: Step 9 | O168: Step 5 | P168: Step 4
A169: Standing Long Jump-1.06 | B169: 15 | E169: 165 | F169: Step 8 | G169: Step 7 | H169: Step 4 | I169: Step 4 | L169: 165 | M169: Step 10 | N169: Step 9 | O169: Step 5 | P169: Step 4
A170: Standing Long Jump-1.07 | B170: 15 | E170: 166 | F170: Step 8 | G170: Step 7 | H170: Step 4 | I170: Step 4 | L170: 166 | M170: Step 10 | N170: Step 9 | O170: Step 5 | P170: Step 4
A171: Standing Long Jump-1.08 | B171: 15 | E171: 167 | F171: Step 8 | G171: Step 7 | H171: Step 4 | I171: Step 4 | L171: 167 | M171: Step 10 | N171: Step 9 | O171: Step 5 | P171: Step 4
A172: Standing Long Jump-1.09 | B172: 15 | E172: 168 | F172: Step 8 | G172: Step 7 | H172: Step 4 | I172: Step 4 | L172: 168 | M172: Step 10 | N172: Step 9 | O172: Step 5 | P172: Step 4
A173: Standing Long Jump-1.1 | B173: 16 | E173: 169 | F173: Step 8 | G173: Step 7 | H173: Step 4 | I173: Step 4 | L173: 169 | M173: Step 10 | N173: Step 9 | O173: Step 5 | P173: Step 4
A174: Standing Long Jump-1.11 | B174: 16 | E174: 170 | F174: Step 8 | G174: Step 8 | H174: Step 4 | I174: Step 4 | L174: 170 | M174: Bronze | N174: Step 10 | O174: Step 5 | P174: Step 4
A175: Standing Long Jump-1.12 | B175: 16 | E175: 171 | F175: Step 8 | G175: Step 8 | H175: Step 4 | I175: Step 4 | L175: 171 | M175: Bronze | N175: Step 10 | O175: Step 5 | P175: Step 4
A176: Standing Long Jump-1.13 | B176: 16 | E176: 172 | F176: Step 8 | G176: Step 8 | H176: Step 4 | I176: Step 4 | L176: 172 | M176: Bronze | N176: Step 10 | O176: Step 5 | P176: Step 4
A177: Standing Long Jump-1.14 | B177: 16 | E177: 173 | F177: Step 8 | G177: Step 8 | H177: Step 4 | I177: Step 4 | L177: 173 | M177: Bronze | N177: Step 10 | O177: Step 5 | P177: Step 4
A178: Standing Long Jump-1.15 | B178: 17 | E178: 174 | F178: Step 8 | G178: Step 8 | H178: Step 4 | I178: Step 4 | L178: 174 | M178: Bronze | N178: Step 10 | O178: Step 5 | P178: Step 4
A179: Standing Long Jump-1.16 | B179: 17 | E179: 175 | F179: Step 8 | G179: Step 8 | H179: Step 4 | I179: Step 4 | L179: 175 | M179: Bronze | N179: Step 10 | O179: Step 5 | P179: Step 4
A180: Standing Long Jump-1.17 | B180: 17 | E180: 176 | F180: Step 8 | G180: Step 8 | H180: Step 4 | I180: Step 4 | L180: 176 | M180: Bronze | N180: Step 10 | O180: Step 5 | P180: Step 4
A181: Standing Long Jump-1.18 | B181: 17 | E181: 177 | F181: Step 8 | G181: Step 8 | H181: Step 4 | I181: Step 4 | L181: 177 | M181: Bronze | N181: Step 10 | O181: Step 5 | P181: Step 4
A182: Standing Long Jump-1.19 | B182: 17 | E182: 178 | F182: Step 8 | G182: Step 8 | H182: Step 4 | I182: Step 4 | L182: 178 | M182: Bronze | N182: Step 10 | O182: Step 5 | P182: Step 4
A183: Standing Long Jump-1.2 | B183: 18 | E183: 179 | F183: Step 8 | G183: Step 8 | H183: Step 4 | I183: Step 4 | L183: 179 | M183: Bronze | N183: Step 10 | O183: Step 5 | P183: Step 4
A184: Standing Long Jump-1.21 | B184: 18 | E184: 180 | F184: Step 9 | G184: Step 8 | H184: Step 5 | I184: Step 4 | L184: 180 | M184: Bronze | N184: Bronze | O184: Step 6 | P184: Step 5
A185: Standing Long Jump-1.22 | B185: 18 | E185: 181 | F185: Step 9 | G185: Step 8 | H185: Step 5 | I185: Step 4 | L185: 181 | M185: Bronze | N185: Bronze | O185: Step 6 | P185: Step 5
A186: Standing Long Jump-1.23 | B186: 18 | E186: 182 | F186: Step 9 | G186: Step 8 | H186: Step 5 | I186: Step 4 | L186: 182 | M186: Bronze | N186: Bronze | O186: Step 6 | P186: Step 5
A187: Standing Long Jump-1.24 | B187: 18 | E187: 183 | F187: Step 9 | G187: Step 8 | H187: Step 5 | I187: Step 4 | L187: 183 | M187: Bronze | N187: Bronze | O187: Step 6 | P187: Step 5
A188: Standing Long Jump-1.25 | B188: 19 | E188: 184 | F188: Step 9 | G188: Step 8 | H188: Step 5 | I188: Step 4 | L188: 184 | M188: Bronze | N188: Bronze | O188: Step 6 | P188: Step 5
A189: Standing Long Jump-1.26 | B189: 19 | E189: 185 | F189: Step 9 | G189: Step 8 | H189: Step 5 | I189: Step 4 | L189: 185 | M189: Bronze | N189: Bronze | O189: Step 6 | P189: Step 5
A190: Standing Long Jump-1.27 | B190: 19 | E190: 186 | F190: Step 9 | G190: Step 8 | H190: Step 5 | I190: Step 4 | L190: 186 | M190: Bronze | N190: Bronze | O190: Step 6 | P190: Step 5
A191: Standing Long Jump-1.28 | B191: 19 | E191: 187 | F191: Step 9 | G191: Step 8 | H191: Step 5 | I191: Step 4 | L191: 187 | M191: Bronze | N191: Bronze | O191: Step 6 | P191: Step 5
A192: Standing Long Jump-1.29 | B192: 19 | E192: 188 | F192: Step 9 | G192: Step 8 | H192: Step 5 | I192: Step 4 | L192: 188 | M192: Bronze | N192: Bronze | O192: Step 6 | P192: Step 5
A193: Standing Long Jump-1.3 | B193: 20 | E193: 189 | F193: Step 9 | G193: Step 8 | H193: Step 5 | I193: Step 4 | L193: 189 | M193: Bronze | N193: Bronze | O193: Step 6 | P193: Step 5
A194: Standing Long Jump-1.31 | B194: 20 | E194: 190 | F194: Step 9 | G194: Step 9 | H194: Step 5 | I194: Step 5 | L194: 190 | M194: Bronze | N194: Bronze | O194: Step 6 | P194: Step 5
A195: Standing Long Jump-1.32 | B195: 21 | E195: 191 | F195: Step 9 | G195: Step 9 | H195: Step 5 | I195: Step 5 | L195: 191 | M195: Bronze | N195: Bronze | O195: Step 6 | P195: Step 5
A196: Standing Long Jump-1.33 | B196: 21 | E196: 192 | F196: Step 9 | G196: Step 9 | H196: Step 5 | I196: Step 5 | L196: 192 | M196: Bronze | N196: Bronze | O196: Step 6 | P196: Step 5
A197: Standing Long Jump-1.34 | B197: 22 | E197: 193 | F197: Step 9 | G197: Step 9 | H197: Step 5 | I197: Step 5 | L197: 193 | M197: Bronze | N197: Bronze | O197: Step 6 | P197: Step 5
A198: Standing Long Jump-1.35 | B198: 22 | E198: 194 | F198: Step 9 | G198: Step 9 | H198: Step 5 | I198: Step 5 | L198: 194 | M198: Bronze | N198: Bronze | O198: Step 6 | P198: Step 5
A199: Standing Long Jump-1.36 | B199: 23 | E199: 195 | F199: Step 9 | G199: Step 9 | H199: Step 5 | I199: Step 5 | L199: 195 | M199: Bronze | N199: Bronze | O199: Step 6 | P199: Step 5
A200: Standing Long Jump-1.37 | B200: 23 | E200: 196 | F200: Step 9 | G200: Step 9 | H200: Step 5 | I200: Step 5 | L200: 196 | M200: Bronze | N200: Bronze | O200: Step 6 | P200: Step 5
A201: Standing Long Jump-1.38 | B201: 24 | E201: 197 | F201: Step 9 | G201: Step 9 | H201: Step 5 | I201: Step 5 | L201: 197 | M201: Bronze | N201: Bronze | O201: Step 6 | P201: Step 5
... 2204 more rows

Sheet Individual Points
J2: Individual Points
BI4: Top 5 Ranking Per Athlete - Boys | BT4: Top 5 Ranking Per Athlete - Girls
C6: Name | D6: Team | E6: Year Group | F6: Age | G6: Boy or Girl | H6: Balance Test | I6: St. Long Jump | J6: Speed Bounce | K6: Target Throw | L6: Overhead Heave | M6: Hi-Stepper | N6: Chest Push | O6: Vertical Jump | P6: Shuttle Run | Q6: Javelin Throw | R6: Shot | S6: St. Triple Jump | T6: Pentathlon Score | U6: Pentathlon Award | V6: Decathlon Score | W6: Decathlon Award | X6: Overall Points | AA6: Balance Test | AB6: Standing Long Jump | AC6: Speed Bounce | AD6: Target Throw | AE6: Overhead Heave | AF6: Either/Or | AG6: Hi-Stepper | AH6: Chest Push | AI6: Vertical Jump | AJ6: Shuttle Run | AK6: Javelin Throw | AL6: Shot | AM6: Either/Or | AN6: Standing Triple Jump | AO6: Adapted Pentathlon Count | AP6: Adapted Pentathlon Score | AQ6: Adapted Pentathlon Award | AS6: Decathlon Score | AT6: Decathlon Award | AV6: Balance Test | AW6: Standing Long Jump | AX6: Speed Bounce | AY6: Either/Or | AZ6: Hi-Stepper | BA6: Chest Push | BB6: Vertical Jump | BC6: Shuttle Run | BD6: Either/Or | BE6: Standing Triple Jump | BG6: Balance Test | BH6: Standing Long Jump | BI6: Speed Bounce | BJ6: Either/Or | BK6: Hi-Stepper | BL6: Chest Push | BM6: Vertical Jump | BN6: Shuttle Run | BO6: Either/Or | BP6: Standing Triple Jump | BR6: Balance Test | BS6: Standing Long Jump | BT6: Speed Bounce | BU6: Either/Or | BV6: Hi-Stepper | BW6: Chest Push | BX6: Vertical Jump | BY6: Shuttle Run | BZ6: Either/Or | CA6: Standing Triple Jump | CC6: Balance Test | CD6: Standing Long Jump | CE6: Speed Bounce | CF6: Either/Or | CG6: Hi-Stepper | CH6: Chest Push | CI6: Vertical Jump | CJ6: Shuttle Run | CK6: Either/Or | CL6: Standing Triple Jump | CN6: Balance Test | CO6: Standing Long Jump | CP6: Speed Bounce | CQ6: Either/Or | CR6: Hi-Stepper | CS6: Chest Push | CT6: Vertical Jump | CU6: Shuttle Run | CV6: Either/Or | CW6: Standing Triple Jump | DH6: Balance Test | DI6: Standing Long Jump | DJ6: Speed Bounce | DK6: Either/Or | DL6: Hi-Stepper | DM6: Chest Push | DN6: Vertical Jump | DO6: Shuttle Run | DP6: Either/Or | DQ6: Standing Triple Jump | DS6: Balance Test | DT6: Standing Long Jump | DU6: Speed Bounce | DV6: Either/Or | DW6: Hi-Stepper | DX6: Chest Push | DY6: Vertical Jump | DZ6: Shuttle Run | EA6: Either/Or | EB6: Standing Triple Jump
C7: =Input!D11 -> Nathan Cant | D7: =Input!#REF! ->  | E7: =Input!E11 -> 6 | F7: =Input!F11 -> 10 | G7: =Input!G11 -> BOY | H7: =IF(AA7=0,0,AA7) -> 34 | I7: =IF(AB7=0,0,AB7) -> 41 | J7: =IF(AC7=0,0,AC7) -> 31 | K7: =IF(AD7=0,0,AD7) -> 42 | L7: =IF(AE7=0,0,AE7) -> 0 | M7: =IF(AG7=0,0,AG7) -> 25 | N7: 0 | O7: 0 | P7: 0 | Q7: 0 | R7: 0 | S7: =IF(AN7=0,0,AN7) -> 0 | T7: =IF(AP7=0," ",AP7) -> 173 | U7: =IF(AQ7=0," ",AQ7) -> Step 10 | V7: =IF(AS7=0," ",AS7) ->  | W7: =IF(AT7=0," ",AT7) ->  | X7: =SUM(H7:S7) -> 173 | Y7: =CONCATENATE(T7,"-",G7,"-",E7) -> 173-BOY-6 | Z7: =Input!D11 -> Nathan Cant | AA7: =IF(Input!E11=0,0,IF(ISNA(VLOOKUP((CONCATENATE("Balance Test-",Input!H11)),points1,2,)),0,(VLOOKUP((CONCATENATE("Balance Test-",Input!H11)),points1,2,)))) -> 34 | AB7: =IF(Input!E11=0,0,IF(ISNA(VLOOKUP((CONCATENATE("Standing Long Jump-",Input!I11)),points1,2,)),0,(VLOOKUP((CONCATENATE("Standing Long Jump-",Input!I11)),points1,2,)))) -> 41 | AC7: =IF(Input!E11=0,0,IF(ISNA(VLOOKUP((CONCATENATE("Speed Bounce-",Input!J11)),points1,2,)),0,(VLOOKUP((CONCATENATE("Speed Bounce-",Input!J11)),points1,2,)))) -> 31 | AD7: =IF(Input!E11=0,0,IF(ISNA(VLOOKUP((CONCATENATE("Target Throw-",Input!K11)),points1,2,)),0,(VLOOKUP((CONCATENATE("Target Throw-",Input!K11)),points1,2,)))) -> 42 | AE7: =IF(Input!E11=0,0,IF(Input!$C11>6,IF(ISNA(VLOOKUP((CONCATENATE("Overhead Heave-",Input!L11)),points1,2,)),0,(VLOOKUP((CONCATENATE("Overhead Heave-",Input!L11)),points1,2,))),0)) -> 0 | AF7: =LARGE(AD7:AE7,1) -> 42 | AG7: =IF(Input!E11=0,0,IF(ISNA(VLOOKUP((CONCATENATE("Hi-Stepper-",Input!M11)),points1,2,)),0,(VLOOKUP((CONCATENATE("Hi-Stepper-",Input!M11)),points1,2,)))) -> 25 | AH7: =IF(Input!E11=0,0,IF(ISNA(VLOOKUP((CONCATENATE("Chest Push-",Input!N11)),points1,2,)),0,(VLOOKUP((CONCATENATE("Chest Push-",Input!N11)),points1,2,)))) -> 0 | AI7: =IF(Input!E11=0,0,IF(ISNA(VLOOKUP((CONCATENATE("Vertical Jump-",Input!O11)),points1,2,)),0,(VLOOKUP((CONCATENATE("Vertical Jump-",Input!O11)),points1,2,)))) -> 0 | AJ7: =IF(Input!E11=0,0,IF(ISNA(VLOOKUP((CONCATENATE("Shuttle Run-",Input!P11)),points1,2,)),0,(VLOOKUP((CONCATENATE("Shuttle Run-",Input!P11)),points1,2,)))) -> 0 | AK7: =IF(Input!E11=0,0,IF(ISNA(VLOOKUP((CONCATENATE("Javelin Throw-",Input!Q11)),points1,2,)),0,(VLOOKUP((CONCATENATE("Javelin Throw-",Input!Q11)),points1,2,)))) -> 0 | AL7: =IF(Input!E11=0,0,IF(Input!$C11>6,IF(ISNA(VLOOKUP((CONCATENATE("Shot-",Input!R11)),points1,2,)),0,(VLOOKUP((CONCATENATE("Shot-",Input!R11)),points1,2,))),0)) -> 0 | AM7: =LARGE(AK7:AL7,1) -> 0 | AN7: =IF(Input!E11=0,0,IF(ISNA(VLOOKUP((CONCATENATE("Standing Triple Jump-",Input!S11)),points1,2,)),0,(VLOOKUP((CONCATENATE("Standing Triple Jump-",Input!S11)),points1,2,)))) -> 0 | AO7: =IF(Input!$C11>6,COUNT(Input!H11:J11,Input!M11:P11,Input!S11,Input!X11:Y11),IF(Input!$C11<=6,COUNT(Input!H11:K11,Input!M11:Q11,Input!S11))) -> 5 | AP7: =IF(AO7>=5,(LARGE((AA7:AC7,AF7:AJ7,AM7:AN7),1))+LARGE((AA7:AC7,AF7:AJ7,AM7:AN7),2)+LARGE((AA7:AC7,AF7:AJ7,AM7:AN7),3)+LARGE((AA7:AC7,AF7:AJ7,AM7:AN7),4)+LARGE((AA7:AC7,AF7:AJ7,AM7:AN7),5),0) -> 173 | AQ7: =IF(AP7=0,0,IF((Input!G11="Boy")*AND(Input!C11>6),VLOOKUP(AP7,award2,3),IF((Input!G11="Girl")*AND(Input!C11>6),VLOOKUP(AP7,award2,2),IF((Input!G11="Boy")*AND(Input!C11<=6),VLOOKUP(AP7,award12,3),IF((Input!G11="Girl")*AND(Input!C11<=6),VLOOKUP(AP7,award12,2),0))))) -> Step 10 | AR7: =IF(Input!$C11>6,COUNT(Input!H11:J11,Input!M11:P11,Input!S11,Input!X11:Y11),IF(Input!$C11<=6,COUNT(Input!H11:K11,Input!M11:Q11,Input!S11))) -> 5 | AS7: =IF(AR7=10,(IF(ISNA(SUM(AA7:AC7,AF7:AJ7,AM7:AN7)),0,(SUM(AA7:AC7,AF7:AJ7,AM7:AN7)))),0) -> 0 | AT7: =IF(AS7=0,0,IF((Input!G11="Boy")*AND(Input!C11>6),VLOOKUP(AS7,award2,5),IF((Input!G11="Girl")*AND(Input!C11>6),VLOOKUP(AS7,award2,4),IF((Input!G11="Boy")*AND(Input!C11<=6),VLOOKUP(AS7,award12,5),IF((Input!G11="Girl")*AND(Input!C11<=6),VLOOKUP(AS7,award12,4),0))))) -> 0 | AV7: =IF(OR(AA7=0,AA7=" ")," ",AA7+CX7) -> 34.000001 | AW7: =IF(OR(AB7=0,AB7=" ")," ",AB7+CY7) -> 41.000041 | AX7: =IF(OR(AC7=0,AC7=" ")," ",AC7+CZ7) -> 31.000081 | AY7: =IF(OR(AF7=0,AF7=" ")," ",AF7+DA7) -> 42.000121 | AZ7: =IF(OR(AG7=0,AG7=" ")," ",AG7+DB7) -> 25.000161 | BA7: =IF(OR(AH7=0,AH7=" ")," ",AH7+DC7) ->  | BB7: =IF(OR(AI7=0,AI7=" ")," ",AI7+DD7) ->  | BC7: =IF(OR(AJ7=0,AJ7=" ")," ",AJ7+DE7) ->  | BD7: =IF(OR(AM7=0,AM7=" ")," ",AM7+DF7) ->  | BE7: =IF(OR(AN7=0,AN7=" ")," ",AN7+DG7) ->  | BG7: =IF(AV7=" "," ",IF(Input!$G11="Boy",IF(RANK(AV7,($AV7:$BE7),0)<=5,AV7," ")," ")) -> 34.000001 | BH7: =IF(AW7=" "," ",IF(Input!$G11="Boy",IF(RANK(AW7,($AV7:$BE7),0)<=5,AW7," ")," ")) -> 41.000041 | BI7: =IF(AX7=" "," ",IF(Input!$G11="Boy",IF(RANK(AX7,($AV7:$BE7),0)<=5,AX7," ")," ")) -> 31.000081 | BJ7: =IF(AY7=" "," ",IF(Input!$G11="Boy",IF(RANK(AY7,($AV7:$BE7),0)<=5,AY7," ")," ")) -> 42.000121 | BK7: =IF(AZ7=" "," ",IF(Input!$G11="Boy",IF(RANK(AZ7,($AV7:$BE7),0)<=5,AZ7," ")," ")) -> 25.000161 | BL7: =IF(BA7=" "," ",IF(Input!$G11="Boy",IF(RANK(BA7,($AV7:$BE7),0)<=5,BA7," ")," ")) ->  | BM7: =IF(BB7=" "," ",IF(Input!$G11="Boy",IF(RANK(BB7,($AV7:$BE7),0)<=5,BB7," ")," ")) ->  | BN7: =IF(BC7=" "," ",IF(Input!$G11="Boy",IF(RANK(BC7,($AV7:$BE7),0)<=5,BC7," ")," ")) ->  | BO7: =IF(BD7=" "," ",IF(Input!$G11="Boy",IF(RANK(BD7,($AV7:$BE7),0)<=5,BD7," ")," ")) ->  | BP7: =IF(BE7=" "," ",IF(Input!$G11="Boy",IF(RANK(BE7,($AV7:$BE7),0)<=5,BE7," ")," ")) ->  | BR7: =IF(AV7=" "," ",IF(Input!$G11="Girl",IF(RANK(AV7,($AV7:$BE7),0)<=5,AV7," ")," ")) ->  | BS7: =IF(AW7=" "," ",IF(Input!$G11="Girl",IF(RANK(AW7,($AV7:$BE7),0)<=5,AW7," ")," ")) ->  | BT7: =IF(AX7=" "," ",IF(Input!$G11="Girl",IF(RANK(AX7,($AV7:$BE7),0)<=5,AX7," ")," ")) ->  | BU7: =IF(AY7=" "," ",IF(Input!$G11="Girl",IF(RANK(AY7,($AV7:$BE7),0)<=5,AY7," ")," ")) ->  | BV7: =IF(AZ7=" "," ",IF(Input!$G11="Girl",IF(RANK(AZ7,($AV7:$BE7),0)<=5,AZ7," ")," ")) ->  | BW7: =IF(BA7=" "," ",IF(Input!$G11="Girl",IF(RANK(BA7,($AV7:$BE7),0)<=5,BA7," ")," ")) ->  | BX7: =IF(BB7=" "," ",IF(Input!$G11="Girl",IF(RANK(BB7,($AV7:$BE7),0)<=5,BB7," ")," ")) ->  | BY7: =IF(BC7=" "," ",IF(Input!$G11="Girl",IF(RANK(BC7,($AV7:$BE7),0)<=5,BC7," ")," ")) ->  | BZ7: =IF(BD7=" "," ",IF(Input!$G11="Girl",IF(RANK(BD7,($AV7:$BE7),0)<=5,BD7," ")," ")) ->  | CA7: =IF(BE7=" "," ",IF(Input!$G11="Girl",IF(RANK(BE7,($AV7:$BE7),0)<=5,BE7," ")," ")) ->  | CC7: =IF(DH7=" "," ",IF(RANK(DH7,$DH$48:$DQ$52,0)<=25,"RED"," ")) ->  | CD7: =IF(DI7=" "," ",IF(RANK(DI7,$DH$48:$DQ$52,0)<=25,"RED"," ")) -> RED | CF7: RED | CM7: =IF(DR7=" ",0,IF(RANK(DR7,DR$48:EA$52,0)<=25,"RED",0)) -> 0 | CN7: =IF(DS7=" "," ",IF(RANK(DS7,$DS$48:$EB$52,0)<=25,"RED"," ")) ->  | CO7: =IF(DT7=" "," ",IF(RANK(DT7,$DS$48:$EB$52,0)<=25,"RED"," ")) ->  | CX7: 1e-06 | CY7: 4.1e-05 | CZ7: 8.1e-05 | DA7: 0.000121 | DB7: 0.000161 | DC7: 0.000201 | DD7: 0.000241 | DE7: 0.000281 | DF7: 0.000321 | DG7: 0.000361 | DH7: =IF(OR(BG7=0,BG7=" ")," ",BG7) -> 34.000001 | DI7: =IF(OR(BH7=0,BH7=" ")," ",BH7) -> 41.000041 | DJ7: 31.000081 | DK7: 42.000121 | DL7: 25.000161
C8: =Input!D12 -> Hollie Scott | D8: =Input!#REF! ->  | E8: =Input!E12 -> 5 | F8: =Input!F12 -> 10 | G8: =Input!G12 -> GIRL | H8: =IF(AA8=0,0,AA8) -> 42 | I8: =IF(AB8=0,0,AB8) -> 27 | J8: =IF(AC8=0,0,AC8) -> 27 | K8: 21 | L8: =IF(AE8=0,0,AE8) -> 0 | M8: =IF(AG8=0,0,AG8) -> 16 | N8: =IF(AH8=0,0,AH8) -> 0 | O8: =IF(AI8=0,0,AI8) -> 0 | P8: =IF(AJ8=0,0,AJ8) -> 0 | Q8: =IF(AK8=0,0,AK8) -> 0 | R8: =IF(AL8=0,0,AL8) -> 0 | S8: =IF(AN8=0,0,AN8) -> 0 | T8: =IF(AP8=0," ",AP8) -> 133 | U8: =IF(AQ8=0," ",AQ8) -> Step 7 | V8: =IF(AS8=0," ",AS8) ->  | W8: =IF(AT8=0," ",AT8) ->  | X8: =SUM(H8:S8) -> 133 | Y8: 133-GIRL-5 | Z8: =Input!D12 -> Hollie Scott | AA8: =IF(Input!E12=0,0,IF(ISNA(VLOOKUP((CONCATENATE("Balance Test-",Input!H12)),points1,2,)),0,(VLOOKUP((CONCATENATE("Balance Test-",Input!H12)),points1,2,)))) -> 42 | AB8: =IF(Input!E12=0,0,IF(ISNA(VLOOKUP((CONCATENATE("Standing Long Jump-",Input!I12)),points1,2,)),0,(VLOOKUP((CONCATENATE("Standing Long Jump-",Input!I12)),points1,2,)))) -> 27 | AC8: =IF(Input!E12=0,0,IF(ISNA(VLOOKUP((CONCATENATE("Speed Bounce-",Input!J12)),points1,2,)),0,(VLOOKUP((CONCATENATE("Speed Bounce-",Input!J12)),points1,2,)))) -> 27 | AD8: =IF(Input!E12=0,0,IF(ISNA(VLOOKUP((CONCATENATE("Target Throw-",Input!K12)),points1,2,)),0,(VLOOKUP((CONCATENATE("Target Throw-",Input!K12)),points1,2,)))) -> 21 | AE8: =IF(Input!E12=0,0,IF(Input!$C12>6,IF(ISNA(VLOOKUP((CONCATENATE("Overhead Heave-",Input!L12)),points1,2,)),0,(VLOOKUP((CONCATENATE("Overhead Heave-",Input!L12)),points1,2,))),0)) -> 0 | AF8: =LARGE(AD8:AE8,1) -> 21 | AG8: =IF(Input!E12=0,0,IF(ISNA(VLOOKUP((CONCATENATE("Hi-Stepper-",Input!M12)),points1,2,)),0,(VLOOKUP((CONCATENATE("Hi-Stepper-",Input!M12)),points1,2,)))) -> 16 | AH8: =IF(Input!E12=0,0,IF(ISNA(VLOOKUP((CONCATENATE("Chest Push-",Input!N12)),points1,2,)),0,(VLOOKUP((CONCATENATE("Chest Push-",Input!N12)),points1,2,)))) -> 0 | AI8: =IF(Input!E12=0,0,IF(ISNA(VLOOKUP((CONCATENATE("Vertical Jump-",Input!O12)),points1,2,)),0,(VLOOKUP((CONCATENATE("Vertical Jump-",Input!O12)),points1,2,)))) -> 0 | AJ8: =IF(Input!E12=0,0,IF(ISNA(VLOOKUP((CONCATENATE("Shuttle Run-",Input!P12)),points1,2,)),0,(VLOOKUP((CONCATENATE("Shuttle Run-",Input!P12)),points1,2,)))) -> 0 | AK8: =IF(Input!E12=0,0,IF(ISNA(VLOOKUP((CONCATENATE("Javelin Throw-",Input!Q12)),points1,2,)),0,(VLOOKUP((CONCATENATE("Javelin Throw-",Input!Q12)),points1,2,)))) -> 0 | AL8: =IF(Input!E12=0,0,IF(Input!$C12>6,IF(ISNA(VLOOKUP((CONCATENATE("Shot-",Input!R12)),points1,2,)),0,(VLOOKUP((CONCATENATE("Shot-",Input!R12)),points1,2,))),0)) -> 0 | AM8: =LARGE(AK8:AL8,1) -> 0 | AN8: =IF(Input!E12=0,0,IF(ISNA(VLOOKUP((CONCATENATE("Standing Triple Jump-",Input!S12)),points1,2,)),0,(VLOOKUP((CONCATENATE("Standing Triple Jump-",Input!S12)),points1,2,)))) -> 0 | AO8: =IF(Input!$C12>6,COUNT(Input!H12:J12,Input!M12:P12,Input!S12,Input!X12:Y12),IF(Input!$C12<=6,COUNT(Input!H12:K12,Input!M12:Q12,Input!S12))) -> 5 | AP8: =IF(AO8>=5,(LARGE((AA8:AC8,AF8:AJ8,AM8:AN8),1))+LARGE((AA8:AC8,AF8:AJ8,AM8:AN8),2)+LARGE((AA8:AC8,AF8:AJ8,AM8:AN8),3)+LARGE((AA8:AC8,AF8:AJ8,AM8:AN8),4)+LARGE((AA8:AC8,AF8:AJ8,AM8:AN8),5),0) -> 133 | AQ8: =IF(AP8=0,0,IF((Input!G12="Boy")*AND(Input!C12>6),VLOOKUP(AP8,award2,3),IF((Input!G12="Girl")*AND(Input!C12>6),VLOOKUP(AP8,award2,2),IF((Input!G12="Boy")*AND(Input!C12<=6),VLOOKUP(AP8,award12,3),IF((Input!G12="Girl")*AND(Input!C12<=6),VLOOKUP(AP8,award12,2),0))))) -> Step 7 | AR8: =IF(Input!$C12>6,COUNT(Input!H12:J12,Input!M12:P12,Input!S12,Input!X12:Y12),IF(Input!$C12<=6,COUNT(Input!H12:K12,Input!M12:Q12,Input!S12))) -> 5 | AS8: =IF(AR8=10,(IF(ISNA(SUM(AA8:AC8,AF8:AJ8,AM8:AN8)),0,(SUM(AA8:AC8,AF8:AJ8,AM8:AN8)))),0) -> 0 | AT8: =IF(AS8=0,0,IF((Input!G12="Boy")*AND(Input!C12>6),VLOOKUP(AS8,award2,5),IF((Input!G12="Girl")*AND(Input!C12>6),VLOOKUP(AS8,award2,4),IF((Input!G12="Boy")*AND(Input!C12<=6),VLOOKUP(AS8,award12,5),IF((Input!G12="Girl")*AND(Input!C12<=6),VLOOKUP(AS8,award12,4),0))))) -> 0 | AV8: =IF(OR(AA8=0,AA8=" ")," ",AA8+CX8) -> 42.000002 | AW8: =IF(OR(AB8=0,AB8=" ")," ",AB8+CY8) -> 27.000042 | AX8: =IF(OR(AC8=0,AC8=" ")," ",AC8+CZ8) -> 27.000082 | AY8: =IF(OR(AF8=0,AF8=" ")," ",AF8+DA8) -> 21.000122 | AZ8: =IF(OR(AG8=0,AG8=" ")," ",AG8+DB8) -> 16.000162 | BA8: =IF(OR(AH8=0,AH8=" ")," ",AH8+DC8) ->  | BB8: =IF(OR(AI8=0,AI8=" ")," ",AI8+DD8) ->  | BC8: =IF(OR(AJ8=0,AJ8=" ")," ",AJ8+DE8) ->  | BD8: =IF(OR(AM8=0,AM8=" ")," ",AM8+DF8) ->  | BE8: =IF(OR(AN8=0,AN8=" ")," ",AN8+DG8) ->  | BG8: =IF(AV8=" "," ",IF(Input!$G12="Boy",IF(RANK(AV8,($AV8:$BE8),0)<=5,AV8," ")," ")) ->  | BH8: =IF(AW8=" "," ",IF(Input!$G12="Boy",IF(RANK(AW8,($AV8:$BE8),0)<=5,AW8," ")," ")) ->  | BI8: =IF(AX8=" "," ",IF(Input!$G12="Boy",IF(RANK(AX8,($AV8:$BE8),0)<=5,AX8," ")," ")) ->  | BJ8: =IF(AY8=" "," ",IF(Input!$G12="Boy",IF(RANK(AY8,($AV8:$BE8),0)<=5,AY8," ")," ")) ->  | BK8: =IF(AZ8=" "," ",IF(Input!$G12="Boy",IF(RANK(AZ8,($AV8:$BE8),0)<=5,AZ8," ")," ")) ->  | BL8: =IF(BA8=" "," ",IF(Input!$G12="Boy",IF(RANK(BA8,($AV8:$BE8),0)<=5,BA8," ")," ")) ->  | BM8: =IF(BB8=" "," ",IF(Input!$G12="Boy",IF(RANK(BB8,($AV8:$BE8),0)<=5,BB8," ")," ")) ->  | BN8: =IF(BC8=" "," ",IF(Input!$G12="Boy",IF(RANK(BC8,($AV8:$BE8),0)<=5,BC8," ")," ")) ->  | BO8: =IF(BD8=" "," ",IF(Input!$G12="Boy",IF(RANK(BD8,($AV8:$BE8),0)<=5,BD8," ")," ")) ->  | BP8: =IF(BE8=" "," ",IF(Input!$G12="Boy",IF(RANK(BE8,($AV8:$BE8),0)<=5,BE8," ")," ")) ->  | BR8: =IF(AV8=" "," ",IF(Input!$G12="Girl",IF(RANK(AV8,($AV8:$BE8),0)<=5,AV8," ")," ")) -> 42.000002 | BS8: =IF(AW8=" "," ",IF(Input!$G12="Girl",IF(RANK(AW8,($AV8:$BE8),0)<=5,AW8," ")," ")) -> 27.000042 | BT8: =IF(AX8=" "," ",IF(Input!$G12="Girl",IF(RANK(AX8,($AV8:$BE8),0)<=5,AX8," ")," ")) -> 27.000082 | BU8: =IF(AY8=" "," ",IF(Input!$G12="Girl",IF(RANK(AY8,($AV8:$BE8),0)<=5,AY8," ")," ")) -> 21.000122 | BV8: =IF(AZ8=" "," ",IF(Input!$G12="Girl",IF(RANK(AZ8,($AV8:$BE8),0)<=5,AZ8," ")," ")) -> 16.000162 | BW8: =IF(BA8=" "," ",IF(Input!$G12="Girl",IF(RANK(BA8,($AV8:$BE8),0)<=5,BA8," ")," ")) ->  | BX8: =IF(BB8=" "," ",IF(Input!$G12="Girl",IF(RANK(BB8,($AV8:$BE8),0)<=5,BB8," ")," ")) ->  | BY8: =IF(BC8=" "," ",IF(Input!$G12="Girl",IF(RANK(BC8,($AV8:$BE8),0)<=5,BC8," ")," ")) ->  | BZ8: =IF(BD8=" "," ",IF(Input!$G12="Girl",IF(RANK(BD8,($AV8:$BE8),0)<=5,BD8," ")," ")) ->  | CA8: =IF(BE8=" "," ",IF(Input!$G12="Girl",IF(RANK(BE8,($AV8:$BE8),0)<=5,BE8," ")," ")) ->  | CC8: =IF(DH8=" "," ",IF(RANK(DH8,$DH$48:$DQ$52,0)<=25,"RED"," ")) ->  | CD8: =IF(DI8=" "," ",IF(RANK(DI8,$DH$48:$DQ$52,0)<=25,"RED"," ")) ->  | CE8: =IF(DJ8=" "," ",IF(RANK(DJ8,$DH$48:$DQ$52,0)<=25,"RED"," ")) ->  | CF8: =IF(DK8=" "," ",IF(RANK(DK8,$DH$48:$DQ$52,0)<=25,"RED"," ")) ->  | CG8: =IF(DL8=" "," ",IF(RANK(DL8,$DH$48:$DQ$52,0)<=25,"RED"," ")) ->  | CH8: =IF(DM8=" "," ",IF(RANK(DM8,$DH$48:$DQ$52,0)<=25,"RED"," ")) ->  | CI8: =IF(DN8=" "," ",IF(RANK(DN8,$DH$48:$DQ$52,0)<=25,"RED"," ")) ->  | CJ8: =IF(DO8=" "," ",IF(RANK(DO8,$DH$48:$DQ$52,0)<=25,"RED"," ")) ->  | CK8: =IF(DP8=" "," ",IF(RANK(DP8,$DH$48:$DQ$52,0)<=25,"RED"," ")) ->  | CL8: =IF(DQ8=" "," ",IF(RANK(DQ8,$DH$48:$DQ$52,0)<=25,"RED"," ")) ->  | CN8: =IF(DS8=" "," ",IF(RANK(DS8,$DS$48:$EB$52,0)<=25,"RED"," ")) ->  | CO8: =IF(DT8=" "," ",IF(RANK(DT8,$DS$48:$EB$52,0)<=25,"RED"," ")) ->  | CP8: =IF(DU8=" "," ",IF(RANK(DU8,$DS$48:$EB$52,0)<=25,"RED"," ")) ->  | CQ8: =IF(DV8=" "," ",IF(RANK(DV8,$DS$48:$EB$52,0)<=25,"RED"," ")) ->  | CR8: =IF(DW8=" "," ",IF(RANK(DW8,$DS$48:$EB$52,0)<=25,"RED"," ")) ->  | CS8: =IF(DX8=" "," ",IF(RANK(DX8,$DS$48:$EB$52,0)<=25,"RED"," ")) ->  | CT8: =IF(DY8=" "," ",IF(RANK(DY8,$DS$48:$EB$52,0)<=25,"RED"," ")) ->  | CU8: =IF(DZ8=" "," ",IF(RANK(DZ8,$DS$48:$EB$52,0)<=25,"RED"," ")) ->  | CV8: =IF(EA8=" "," ",IF(RANK(EA8,$DS$48:$EB$52,0)<=25,"RED"," ")) ->  | CW8: =IF(EB8=" "," ",IF(RANK(EB8,$DS$48:$EB$52,0)<=25,"RED"," ")) ->  | CX8: 2e-06 | CY8: 4.2e-05 | CZ8: 8.2e-05 | DA8: 0.000122 | DB8: 0.000162 | DC8: 0.000202 | DD8: 0.000242 | DE8: 0.000282 | DF8: 0.000322 | DG8: 0.000362 | DH8: =IF(OR(BG8=0,BG8=" ")," ",BG8) ->  | DI8: =IF(OR(BH8=0,BH8=" ")," ",BH8) ->  | DJ8: =IF(OR(BI8=0,BI8=" ")," ",BI8) ->  | DK8: =IF(OR(BJ8=0,BJ8=" ")," ",BJ8) ->  | DL8: =IF(OR(BK8=0,BK8=" ")," ",BK8) ->  | DM8: =IF(OR(BL8=0,BL8=" ")," ",BL8) ->  | DN8: =IF(OR(BM8=0,BM8=" ")," ",BM8) ->  | DO8: =IF(OR(BN8=0,BN8=" ")," ",BN8) ->  | DP8: =IF(OR(BO8=0,BO8=" ")," ",BO8) ->  | DQ8: =IF(OR(BP8=0,BP8=" ")," ",BP8) ->  | DR8: =IF(OR(BQ8=0,BQ8=" ")," ",BQ8) ->  | DS8: =IF(OR(BR8=0,BR8=" ")," ",BR8) -> 42.000002 | DT8: =IF(OR(BS8=0,BS8=" ")," ",BS8) -> 27.000042 | DU8: =IF(OR(BT8=0,BT8=" ")," ",BT8) -> 27.000082 | DV8: =IF(OR(BU8=0,BU8=" ")," ",BU8) -> 21.000122 | DW8: =IF(OR(BV8=0,BV8=" ")," ",BV8) -> 16.000162 | DX8: =IF(OR(BW8=0,BW8=" ")," ",BW8) ->  | DY8: =IF(OR(BX8=0,BX8=" ")," ",BX8) ->  | DZ8: =IF(OR(BY8=0,BY8=" ")," ",BY8) ->  | EA8: =IF(OR(BZ8=0,BZ8=" ")," ",BZ8) ->  | EB8: =IF(OR(CA8=0,CA8=" ")," ",CA8) -> 
C9: =Input!D13 -> Katie Keane | D9: =Input!#REF! ->  | E9: =Input!E13 -> 4 | F9: =Input!F13 -> 9 | G9: =Input!G13 -> GIRL | H9: 30 | I9: 15 | J9: 15 | K9: 30 | L9: 0 | M9: 12 | N9: 0 | O9: 0 | P9: 0 | Q9: 0 | R9: 0 | S9: 0 | T9: 102 | U9: Step 5 | X9: 102 | Y9: 102-GIRL-4 | Z9: =Input!D13 -> Katie Keane | AA9: =IF(Input!E13=0,0,IF(ISNA(VLOOKUP((CONCATENATE("Balance Test-",Input!H13)),points1,2,)),0,(VLOOKUP((CONCATENATE("Balance Test-",Input!H13)),points1,2,)))) -> 30 | AB9: =IF(Input!E13=0,0,IF(ISNA(VLOOKUP((CONCATENATE("Standing Long Jump-",Input!I13)),points1,2,)),0,(VLOOKUP((CONCATENATE("Standing Long Jump-",Input!I13)),points1,2,)))) -> 15 | AC9: =IF(Input!E13=0,0,IF(ISNA(VLOOKUP((CONCATENATE("Speed Bounce-",Input!J13)),points1,2,)),0,(VLOOKUP((CONCATENATE("Speed Bounce-",Input!J13)),points1,2,)))) -> 15 | AD9: =IF(Input!E13=0,0,IF(ISNA(VLOOKUP((CONCATENATE("Target Throw-",Input!K13)),points1,2,)),0,(VLOOKUP((CONCATENATE("Target Throw-",Input!K13)),points1,2,)))) -> 30 | AE9: =IF(Input!E13=0,0,IF(Input!$C13>6,IF(ISNA(VLOOKUP((CONCATENATE("Overhead Heave-",Input!L13)),points1,2,)),0,(VLOOKUP((CONCATENATE("Overhead Heave-",Input!L13)),points1,2,))),0)) -> 0 | AF9: 30 | AG9: =IF(Input!E13=0,0,IF(ISNA(VLOOKUP((CONCATENATE("Hi-Stepper-",Input!M13)),points1,2,)),0,(VLOOKUP((CONCATENATE("Hi-Stepper-",Input!M13)),points1,2,)))) -> 12 | AH9: =IF(Input!E13=0,0,IF(ISNA(VLOOKUP((CONCATENATE("Chest Push-",Input!N13)),points1,2,)),0,(VLOOKUP((CONCATENATE("Chest Push-",Input!N13)),points1,2,)))) -> 0 | AI9: =IF(Input!E13=0,0,IF(ISNA(VLOOKUP((CONCATENATE("Vertical Jump-",Input!O13)),points1,2,)),0,(VLOOKUP((CONCATENATE("Vertical Jump-",Input!O13)),points1,2,)))) -> 0 | AJ9: =IF(Input!E13=0,0,IF(ISNA(VLOOKUP((CONCATENATE("Shuttle Run-",Input!P13)),points1,2,)),0,(VLOOKUP((CONCATENATE("Shuttle Run-",Input!P13)),points1,2,)))) -> 0 | AK9: =IF(Input!E13=0,0,IF(ISNA(VLOOKUP((CONCATENATE("Javelin Throw-",Input!Q13)),points1,2,)),0,(VLOOKUP((CONCATENATE("Javelin Throw-",Input!Q13)),points1,2,)))) -> 0 | AL9: =IF(Input!E13=0,0,IF(Input!$C13>6,IF(ISNA(VLOOKUP((CONCATENATE("Shot-",Input!R13)),points1,2,)),0,(VLOOKUP((CONCATENATE("Shot-",Input!R13)),points1,2,))),0)) -> 0 | AM9: 0 | AN9: =IF(Input!E13=0,0,IF(ISNA(VLOOKUP((CONCATENATE("Standing Triple Jump-",Input!S13)),points1,2,)),0,(VLOOKUP((CONCATENATE("Standing Triple Jump-",Input!S13)),points1,2,)))) -> 0 | AO9: =IF(Input!$C13>6,COUNT(Input!H13:J13,Input!M13:P13,Input!S13,Input!X13:Y13),IF(Input!$C13<=6,COUNT(Input!H13:K13,Input!M13:Q13,Input!S13))) -> 5 | AP9: =IF(AO9>=5,(LARGE((AA9:AC9,AF9:AJ9,AM9:AN9),1))+LARGE((AA9:AC9,AF9:AJ9,AM9:AN9),2)+LARGE((AA9:AC9,AF9:AJ9,AM9:AN9),3)+LARGE((AA9:AC9,AF9:AJ9,AM9:AN9),4)+LARGE((AA9:AC9,AF9:AJ9,AM9:AN9),5),0) -> 102 | AQ9: =IF(AP9=0,0,IF((Input!G13="Boy")*AND(Input!C13>6),VLOOKUP(AP9,award2,3),IF((Input!G13="Girl")*AND(Input!C13>6),VLOOKUP(AP9,award2,2),IF((Input!G13="Boy")*AND(Input!C13<=6),VLOOKUP(AP9,award12,3),IF((Input!G13="Girl")*AND(Input!C13<=6),VLOOKUP(AP9,award12,2),0))))) -> Step 5 | AR9: =IF(Input!$C13>6,COUNT(Input!H13:J13,Input!M13:P13,Input!S13,Input!X13:Y13),IF(Input!$C13<=6,COUNT(Input!H13:K13,Input!M13:Q13,Input!S13))) -> 5 | AS9: 0 | AT9: =IF(AS9=0,0,IF((Input!G13="Boy")*AND(Input!C13>6),VLOOKUP(AS9,award2,5),IF((Input!G13="Girl")*AND(Input!C13>6),VLOOKUP(AS9,award2,4),IF((Input!G13="Boy")*AND(Input!C13<=6),VLOOKUP(AS9,award12,5),IF((Input!G13="Girl")*AND(Input!C13<=6),VLOOKUP(AS9,award12,4),0))))) -> 0 | AV9: 30.000003 | AW9: 15.000043 | AX9: 15.000083 | AY9: 30.000123 | AZ9: 12.000163 | BG9: =IF(AV9=" "," ",IF(Input!$G13="Boy",IF(RANK(AV9,($AV9:$BE9),0)<=5,AV9," ")," ")) ->  | BH9: =IF(AW9=" "," ",IF(Input!$G13="Boy",IF(RANK(AW9,($AV9:$BE9),0)<=5,AW9," ")," ")) ->  | BI9: =IF(AX9=" "," ",IF(Input!$G13="Boy",IF(RANK(AX9,($AV9:$BE9),0)<=5,AX9," ")," ")) ->  | BJ9: =IF(AY9=" "," ",IF(Input!$G13="Boy",IF(RANK(AY9,($AV9:$BE9),0)<=5,AY9," ")," ")) ->  | BK9: =IF(AZ9=" "," ",IF(Input!$G13="Boy",IF(RANK(AZ9,($AV9:$BE9),0)<=5,AZ9," ")," ")) ->  | BL9: =IF(BA9=" "," ",IF(Input!$G13="Boy",IF(RANK(BA9,($AV9:$BE9),0)<=5,BA9," ")," ")) ->  | BM9: =IF(BB9=" "," ",IF(Input!$G13="Boy",IF(RANK(BB9,($AV9:$BE9),0)<=5,BB9," ")," ")) ->  | BN9: =IF(BC9=" "," ",IF(Input!$G13="Boy",IF(RANK(BC9,($AV9:$BE9),0)<=5,BC9," ")," ")) ->  | BO9: =IF(BD9=" "," ",IF(Input!$G13="Boy",IF(RANK(BD9,($AV9:$BE9),0)<=5,BD9," ")," ")) ->  | BP9: =IF(BE9=" "," ",IF(Input!$G13="Boy",IF(RANK(BE9,($AV9:$BE9),0)<=5,BE9," ")," ")) ->  | BR9: =IF(AV9=" "," ",IF(Input!$G13="Girl",IF(RANK(AV9,($AV9:$BE9),0)<=5,AV9," ")," ")) -> 30.000003 | BS9: =IF(AW9=" "," ",IF(Input!$G13="Girl",IF(RANK(AW9,($AV9:$BE9),0)<=5,AW9," ")," ")) -> 15.000043 | BT9: =IF(AX9=" "," ",IF(Input!$G13="Girl",IF(RANK(AX9,($AV9:$BE9),0)<=5,AX9," ")," ")) -> 15.000083 | BU9: =IF(AY9=" "," ",IF(Input!$G13="Girl",IF(RANK(AY9,($AV9:$BE9),0)<=5,AY9," ")," ")) -> 30.000123 | BV9: =IF(AZ9=" "," ",IF(Input!$G13="Girl",IF(RANK(AZ9,($AV9:$BE9),0)<=5,AZ9," ")," ")) -> 12.000163 | BW9: =IF(BA9=" "," ",IF(Input!$G13="Girl",IF(RANK(BA9,($AV9:$BE9),0)<=5,BA9," ")," ")) ->  | BX9: =IF(BB9=" "," ",IF(Input!$G13="Girl",IF(RANK(BB9,($AV9:$BE9),0)<=5,BB9," ")," ")) ->  | BY9: =IF(BC9=" "," ",IF(Input!$G13="Girl",IF(RANK(BC9,($AV9:$BE9),0)<=5,BC9," ")," ")) ->  | BZ9: =IF(BD9=" "," ",IF(Input!$G13="Girl",IF(RANK(BD9,($AV9:$BE9),0)<=5,BD9," ")," ")) ->  | CA9: =IF(BE9=" "," ",IF(Input!$G13="Girl",IF(RANK(BE9,($AV9:$BE9),0)<=5,BE9," ")," ")) ->  | CX9: 3e-06 | CY9: 4.3e-05 | CZ9: 8.3e-05 | DA9: 0.000123 | DB9: 0.000163 | DC9: 0.000203 | DD9: 0.000243 | DE9: 0.000283 | DF9: 0.000323 | DG9: 0.000363 | DS9: 30.000003 | DT9: 15.000043 | DU9: 15.000083 | DV9: 30.000123 | DW9: 12.000163
C10: =Input!D14 -> Sophie Ford | D10: =Input!#REF! ->  | E10: =Input!E14 -> 5 | F10: =Input!F14 -> 9 | G10: =Input!G14 -> GIRL | H10: 65 | I10: 24 | J10: 24 | K10: 51 | L10: 0 | M10: 15 | N10: 0 | O10: 0 | P10: 0 | Q10: 0 | R10: 0 | S10: 0 | T10: 179 | U10: Bronze | X10: 179 | Y10: 179-GIRL-5 | Z10: =Input!D14 -> Sophie Ford | AA10: =IF(Input!E14=0,0,IF(ISNA(VLOOKUP((CONCATENATE("Balance Test-",Input!H14)),points1,2,)),0,(VLOOKUP((CONCATENATE("Balance Test-",Input!H14)),points1,2,)))) -> 65 | AB10: =IF(Input!E14=0,0,IF(ISNA(VLOOKUP((CONCATENATE("Standing Long Jump-",Input!I14)),points1,2,)),0,(VLOOKUP((CONCATENATE("Standing Long Jump-",Input!I14)),points1,2,)))) -> 24 | AC10: =IF(Input!E14=0,0,IF(ISNA(VLOOKUP((CONCATENATE("Speed Bounce-",Input!J14)),points1,2,)),0,(VLOOKUP((CONCATENATE("Speed Bounce-",Input!J14)),points1,2,)))) -> 24 | AD10: =IF(Input!E14=0,0,IF(ISNA(VLOOKUP((CONCATENATE("Target Throw-",Input!K14)),points1,2,)),0,(VLOOKUP((CONCATENATE("Target Throw-",Input!K14)),points1,2,)))) -> 51 | AE10: =IF(Input!E14=0,0,IF(Input!$C14>6,IF(ISNA(VLOOKUP((CONCATENATE("Overhead Heave-",Input!L14)),points1,2,)),0,(VLOOKUP((CONCATENATE("Overhead Heave-",Input!L14)),points1,2,))),0)) -> 0 | AF10: 51 | AG10: =IF(Input!E14=0,0,IF(ISNA(VLOOKUP((CONCATENATE("Hi-Stepper-",Input!M14)),points1,2,)),0,(VLOOKUP((CONCATENATE("Hi-Stepper-",Input!M14)),points1,2,)))) -> 15 | AH10: =IF(Input!E14=0,0,IF(ISNA(VLOOKUP((CONCATENATE("Chest Push-",Input!N14)),points1,2,)),0,(VLOOKUP((CONCATENATE("Chest Push-",Input!N14)),points1,2,)))) -> 0 | AI10: =IF(Input!E14=0,0,IF(ISNA(VLOOKUP((CONCATENATE("Vertical Jump-",Input!O14)),points1,2,)),0,(VLOOKUP((CONCATENATE("Vertical Jump-",Input!O14)),points1,2,)))) -> 0 | AJ10: =IF(Input!E14=0,0,IF(ISNA(VLOOKUP((CONCATENATE("Shuttle Run-",Input!P14)),points1,2,)),0,(VLOOKUP((CONCATENATE("Shuttle Run-",Input!P14)),points1,2,)))) -> 0 | AK10: =IF(Input!E14=0,0,IF(ISNA(VLOOKUP((CONCATENATE("Javelin Throw-",Input!Q14)),points1,2,)),0,(VLOOKUP((CONCATENATE("Javelin Throw-",Input!Q14)),points1,2,)))) -> 0 | AL10: =IF(Input!E14=0,0,IF(Input!$C14>6,IF(ISNA(VLOOKUP((CONCATENATE("Shot-",Input!R14)),points1,2,)),0,(VLOOKUP((CONCATENATE("Shot-",Input!R14)),points1,2,))),0)) -> 0 | AM10: 0 | AN10: =IF(Input!E14=0,0,IF(ISNA(VLOOKUP((CONCATENATE("Standing Triple Jump-",Input!S14)),points1,2,)),0,(VLOOKUP((CONCATENATE("Standing Triple Jump-",Input!S14)),points1,2,)))) -> 0 | AO10: =IF(Input!$C14>6,COUNT(Input!H14:J14,Input!M14:P14,Input!S14,Input!X14:Y14),IF(Input!$C14<=6,COUNT(Input!H14:K14,Input!M14:Q14,Input!S14))) -> 5 | AP10: =IF(AO10>=5,(LARGE((AA10:AC10,AF10:AJ10,AM10:AN10),1))+LARGE((AA10:AC10,AF10:AJ10,AM10:AN10),2)+LARGE((AA10:AC10,AF10:AJ10,AM10:AN10),3)+LARGE((AA10:AC10,AF10:AJ10,AM10:AN10),4)+LARGE((AA10:AC10,AF10:AJ10,AM10:AN10),5),0) -> 179 | AQ10: =IF(AP10=0,0,IF((Input!G14="Boy")*AND(Input!C14>6),VLOOKUP(AP10,award2,3),IF((Input!G14="Girl")*AND(Input!C14>6),VLOOKUP(AP10,award2,2),IF((Input!G14="Boy")*AND(Input!C14<=6),VLOOKUP(AP10,award12,3),IF((Input!G14="Girl")*AND(Input!C14<=6),VLOOKUP(AP10,award12,2),0))))) -> Bronze | AR10: =IF(Input!$C14>6,COUNT(Input!H14:J14,Input!M14:P14,Input!S14,Input!X14:Y14),IF(Input!$C14<=6,COUNT(Input!H14:K14,Input!M14:Q14,Input!S14))) -> 5 | AS10: 0 | AT10: =IF(AS10=0,0,IF((Input!G14="Boy")*AND(Input!C14>6),VLOOKUP(AS10,award2,5),IF((Input!G14="Girl")*AND(Input!C14>6),VLOOKUP(AS10,award2,4),IF((Input!G14="Boy")*AND(Input!C14<=6),VLOOKUP(AS10,award12,5),IF((Input!G14="Girl")*AND(Input!C14<=6),VLOOKUP(AS10,award12,4),0))))) -> 0 | AV10: 65.000004 | AW10: 24.000044 | AX10: 24.000084 | AY10: 51.000124 | AZ10: 15.000164 | BG10: =IF(AV10=" "," ",IF(Input!$G14="Boy",IF(RANK(AV10,($AV10:$BE10),0)<=5,AV10," ")," ")) ->  | BH10: =IF(AW10=" "," ",IF(Input!$G14="Boy",IF(RANK(AW10,($AV10:$BE10),0)<=5,AW10," ")," ")) ->  | BI10: =IF(AX10=" "," ",IF(Input!$G14="Boy",IF(RANK(AX10,($AV10:$BE10),0)<=5,AX10," ")," ")) ->  | BJ10: =IF(AY10=" "," ",IF(Input!$G14="Boy",IF(RANK(AY10,($AV10:$BE10),0)<=5,AY10," ")," ")) ->  | BK10: =IF(AZ10=" "," ",IF(Input!$G14="Boy",IF(RANK(AZ10,($AV10:$BE10),0)<=5,AZ10," ")," ")) ->  | BL10: =IF(BA10=" "," ",IF(Input!$G14="Boy",IF(RANK(BA10,($AV10:$BE10),0)<=5,BA10," ")," ")) ->  | BM10: =IF(BB10=" "," ",IF(Input!$G14="Boy",IF(RANK(BB10,($AV10:$BE10),0)<=5,BB10," ")," ")) ->  | BN10: =IF(BC10=" "," ",IF(Input!$G14="Boy",IF(RANK(BC10,($AV10:$BE10),0)<=5,BC10," ")," ")) ->  | BO10: =IF(BD10=" "," ",IF(Input!$G14="Boy",IF(RANK(BD10,($AV10:$BE10),0)<=5,BD10," ")," ")) ->  | BP10: =IF(BE10=" "," ",IF(Input!$G14="Boy",IF(RANK(BE10,($AV10:$BE10),0)<=5,BE10," ")," ")) ->  | BR10: =IF(AV10=" "," ",IF(Input!$G14="Girl",IF(RANK(AV10,($AV10:$BE10),0)<=5,AV10," ")," ")) -> 65.000004 | BS10: =IF(AW10=" "," ",IF(Input!$G14="Girl",IF(RANK(AW10,($AV10:$BE10),0)<=5,AW10," ")," ")) -> 24.000044 | BT10: =IF(AX10=" "," ",IF(Input!$G14="Girl",IF(RANK(AX10,($AV10:$BE10),0)<=5,AX10," ")," ")) -> 24.000084 | BU10: =IF(AY10=" "," ",IF(Input!$G14="Girl",IF(RANK(AY10,($AV10:$BE10),0)<=5,AY10," ")," ")) -> 51.000124 | BV10: =IF(AZ10=" "," ",IF(Input!$G14="Girl",IF(RANK(AZ10,($AV10:$BE10),0)<=5,AZ10," ")," ")) -> 15.000164 | BW10: =IF(BA10=" "," ",IF(Input!$G14="Girl",IF(RANK(BA10,($AV10:$BE10),0)<=5,BA10," ")," ")) ->  | BX10: =IF(BB10=" "," ",IF(Input!$G14="Girl",IF(RANK(BB10,($AV10:$BE10),0)<=5,BB10," ")," ")) ->  | BY10: =IF(BC10=" "," ",IF(Input!$G14="Girl",IF(RANK(BC10,($AV10:$BE10),0)<=5,BC10," ")," ")) ->  | BZ10: =IF(BD10=" "," ",IF(Input!$G14="Girl",IF(RANK(BD10,($AV10:$BE10),0)<=5,BD10," ")," ")) ->  | CA10: =IF(BE10=" "," ",IF(Input!$G14="Girl",IF(RANK(BE10,($AV10:$BE10),0)<=5,BE10," ")," ")) ->  | CN10: RED | CQ10: RED | CX10: 4e-06 | CY10: 4.4e-05 | CZ10: 8.4e-05 | DA10: 0.000124 | DB10: 0.000164 | DC10: 0.000204 | DD10: 0.000244 | DE10: 0.000284 | DF10: 0.000324 | DG10: 0.000364 | DS10: 65.000004 | DT10: 24.000044 | DU10: 24.000084 | DV10: 51.000124 | DW10: 15.000164
C11: =Input!D15 -> Katie Killick | D11: =Input!#REF! ->  | E11: =Input!E15 -> 6 | F11: =Input!F15 -> 10 | G11: =Input!G15 -> GIRL | H11: 65 | I11: 46 | J11: 36 | K11: 24 | L11: 0 | M11: 25 | N11: 0 | O11: 0 | P11: 0 | Q11: 0 | R11: 0 | S11: 0 | T11: 196 | U11: Bronze | X11: 196 | Y11: 196-GIRL-6 | Z11: =Input!D15 -> Katie Killick | AA11: =IF(Input!E15=0,0,IF(ISNA(VLOOKUP((CONCATENATE("Balance Test-",Input!H15)),points1,2,)),0,(VLOOKUP((CONCATENATE("Balance Test-",Input!H15)),points1,2,)))) -> 65 | AB11: =IF(Input!E15=0,0,IF(ISNA(VLOOKUP((CONCATENATE("Standing Long Jump-",Input!I15)),points1,2,)),0,(VLOOKUP((CONCATENATE("Standing Long Jump-",Input!I15)),points1,2,)))) -> 46 | AC11: =IF(Input!E15=0,0,IF(ISNA(VLOOKUP((CONCATENATE("Speed Bounce-",Input!J15)),points1,2,)),0,(VLOOKUP((CONCATENATE("Speed Bounce-",Input!J15)),points1,2,)))) -> 36 | AD11: =IF(Input!E15=0,0,IF(ISNA(VLOOKUP((CONCATENATE("Target Throw-",Input!K15)),points1,2,)),0,(VLOOKUP((CONCATENATE("Target Throw-",Input!K15)),points1,2,)))) -> 24 | AE11: =IF(Input!E15=0,0,IF(Input!$C15>6,IF(ISNA(VLOOKUP((CONCATENATE("Overhead Heave-",Input!L15)),points1,2,)),0,(VLOOKUP((CONCATENATE("Overhead Heave-",Input!L15)),points1,2,))),0)) -> 0 | AF11: 24 | AG11: =IF(Input!E15=0,0,IF(ISNA(VLOOKUP((CONCATENATE("Hi-Stepper-",Input!M15)),points1,2,)),0,(VLOOKUP((CONCATENATE("Hi-Stepper-",Input!M15)),points1,2,)))) -> 25 | AH11: =IF(Input!E15=0,0,IF(ISNA(VLOOKUP((CONCATENATE("Chest Push-",Input!N15)),points1,2,)),0,(VLOOKUP((CONCATENATE("Chest Push-",Input!N15)),points1,2,)))) -> 0 | AI11: =IF(Input!E15=0,0,IF(ISNA(VLOOKUP((CONCATENATE("Vertical Jump-",Input!O15)),points1,2,)),0,(VLOOKUP((CONCATENATE("Vertical Jump-",Input!O15)),points1,2,)))) -> 0 | AJ11: =IF(Input!E15=0,0,IF(ISNA(VLOOKUP((CONCATENATE("Shuttle Run-",Input!P15)),points1,2,)),0,(VLOOKUP((CONCATENATE("Shuttle Run-",Input!P15)),points1,2,)))) -> 0 | AK11: =IF(Input!E15=0,0,IF(ISNA(VLOOKUP((CONCATENATE("Javelin Throw-",Input!Q15)),points1,2,)),0,(VLOOKUP((CONCATENATE("Javelin Throw-",Input!Q15)),points1,2,)))) -> 0 | AL11: =IF(Input!E15=0,0,IF(Input!$C15>6,IF(ISNA(VLOOKUP((CONCATENATE("Shot-",Input!R15)),points1,2,)),0,(VLOOKUP((CONCATENATE("Shot-",Input!R15)),points1,2,))),0)) -> 0 | AM11: 0 | AN11: =IF(Input!E15=0,0,IF(ISNA(VLOOKUP((CONCATENATE("Standing Triple Jump-",Input!S15)),points1,2,)),0,(VLOOKUP((CONCATENATE("Standing Triple Jump-",Input!S15)),points1,2,)))) -> 0 | AO11: =IF(Input!$C15>6,COUNT(Input!H15:J15,Input!M15:P15,Input!S15,Input!X15:Y15),IF(Input!$C15<=6,COUNT(Input!H15:K15,Input!M15:Q15,Input!S15))) -> 5 | AP11: =IF(AO11>=5,(LARGE((AA11:AC11,AF11:AJ11,AM11:AN11),1))+LARGE((AA11:AC11,AF11:AJ11,AM11:AN11),2)+LARGE((AA11:AC11,AF11:AJ11,AM11:AN11),3)+LARGE((AA11:AC11,AF11:AJ11,AM11:AN11),4)+LARGE((AA11:AC11,AF11:AJ11,AM11:AN11),5),0) -> 196 | AQ11: =IF(AP11=0,0,IF((Input!G15="Boy")*AND(Input!C15>6),VLOOKUP(AP11,award2,3),IF((Input!G15="Girl")*AND(Input!C15>6),VLOOKUP(AP11,award2,2),IF((Input!G15="Boy")*AND(Input!C15<=6),VLOOKUP(AP11,award12,3),IF((Input!G15="Girl")*AND(Input!C15<=6),VLOOKUP(AP11,award12,2),0))))) -> Bronze | AR11: =IF(Input!$C15>6,COUNT(Input!H15:J15,Input!M15:P15,Input!S15,Input!X15:Y15),IF(Input!$C15<=6,COUNT(Input!H15:K15,Input!M15:Q15,Input!S15))) -> 5 | AS11: 0 | AT11: =IF(AS11=0,0,IF((Input!G15="Boy")*AND(Input!C15>6),VLOOKUP(AS11,award2,5),IF((Input!G15="Girl")*AND(Input!C15>6),VLOOKUP(AS11,award2,4),IF((Input!G15="Boy")*AND(Input!C15<=6),VLOOKUP(AS11,award12,5),IF((Input!G15="Girl")*AND(Input!C15<=6),VLOOKUP(AS11,award12,4),0))))) -> 0 | AV11: 65.000005 | AW11: 46.000045 | AX11: 36.000085 | AY11: 24.000125 | AZ11: 25.000165 | BG11: =IF(AV11=" "," ",IF(Input!$G15="Boy",IF(RANK(AV11,($AV11:$BE11),0)<=5,AV11," ")," ")) ->  | BH11: =IF(AW11=" "," ",IF(Input!$G15="Boy",IF(RANK(AW11,($AV11:$BE11),0)<=5,AW11," ")," ")) ->  | BI11: =IF(AX11=" "," ",IF(Input!$G15="Boy",IF(RANK(AX11,($AV11:$BE11),0)<=5,AX11," ")," ")) ->  | BJ11: =IF(AY11=" "," ",IF(Input!$G15="Boy",IF(RANK(AY11,($AV11:$BE11),0)<=5,AY11," ")," ")) ->  | BK11: =IF(AZ11=" "," ",IF(Input!$G15="Boy",IF(RANK(AZ11,($AV11:$BE11),0)<=5,AZ11," ")," ")) ->  | BL11: =IF(BA11=" "," ",IF(Input!$G15="Boy",IF(RANK(BA11,($AV11:$BE11),0)<=5,BA11," ")," ")) ->  | BM11: =IF(BB11=" "," ",IF(Input!$G15="Boy",IF(RANK(BB11,($AV11:$BE11),0)<=5,BB11," ")," ")) ->  | BN11: =IF(BC11=" "," ",IF(Input!$G15="Boy",IF(RANK(BC11,($AV11:$BE11),0)<=5,BC11," ")," ")) ->  | BO11: =IF(BD11=" "," ",IF(Input!$G15="Boy",IF(RANK(BD11,($AV11:$BE11),0)<=5,BD11," ")," ")) ->  | BP11: =IF(BE11=" "," ",IF(Input!$G15="Boy",IF(RANK(BE11,($AV11:$BE11),0)<=5,BE11," ")," ")) ->  | BR11: =IF(AV11=" "," ",IF(Input!$G15="Girl",IF(RANK(AV11,($AV11:$BE11),0)<=5,AV11," ")," ")) -> 65.000005 | BS11: =IF(AW11=" "," ",IF(Input!$G15="Girl",IF(RANK(AW11,($AV11:$BE11),0)<=5,AW11," ")," ")) -> 46.000045 | BT11: =IF(AX11=" "," ",IF(Input!$G15="Girl",IF(RANK(AX11,($AV11:$BE11),0)<=5,AX11," ")," ")) -> 36.000085 | BU11: =IF(AY11=" "," ",IF(Input!$G15="Girl",IF(RANK(AY11,($AV11:$BE11),0)<=5,AY11," ")," ")) -> 24.000125 | BV11: =IF(AZ11=" "," ",IF(Input!$G15="Girl",IF(RANK(AZ11,($AV11:$BE11),0)<=5,AZ11," ")," ")) -> 25.000165 | BW11: =IF(BA11=" "," ",IF(Input!$G15="Girl",IF(RANK(BA11,($AV11:$BE11),0)<=5,BA11," ")," ")) ->  | BX11: =IF(BB11=" "," ",IF(Input!$G15="Girl",IF(RANK(BB11,($AV11:$BE11),0)<=5,BB11," ")," ")) ->  | BY11: =IF(BC11=" "," ",IF(Input!$G15="Girl",IF(RANK(BC11,($AV11:$BE11),0)<=5,BC11," ")," ")) ->  | BZ11: =IF(BD11=" "," ",IF(Input!$G15="Girl",IF(RANK(BD11,($AV11:$BE11),0)<=5,BD11," ")," ")) ->  | CA11: =IF(BE11=" "," ",IF(Input!$G15="Girl",IF(RANK(BE11,($AV11:$BE11),0)<=5,BE11," ")," ")) ->  | CN11: RED | CO11: RED | CP11: RED | CX11: 5e-06 | CY11: 4.5e-05 | CZ11: 8.5e-05 | DA11: 0.000125 | DB11: 0.000165 | DC11: 0.000205 | DD11: 0.000245 | DE11: 0.000285 | DF11: 0.000325 | DG11: 0.000365 | DS11: 65.000005 | DT11: 46.000045 | DU11: 36.000085 | DV11: 24.000125 | DW11: 25.000165
C12: =Input!D16 -> Bradley Cant | D12: =Input!#REF! ->  | E12: =Input!E16 -> 2 | F12: =Input!F16 -> 7 | G12: =Input!G16 -> BOY | H12: 31 | I12: 26 | J12: 20 | K12: 18 | L12: 0 | M12: 20 | N12: 0 | O12: 0 | P12: 0 | Q12: 0 | R12: 0 | S12: 0 | T12: 115 | U12: Step 6 | X12: 115 | Y12: 115-BOY-2 | Z12: =Input!D16 -> Bradley Cant | AA12: =IF(Input!E16=0,0,IF(ISNA(VLOOKUP((CONCATENATE("Balance Test-",Input!H16)),points1,2,)),0,(VLOOKUP((CONCATENATE("Balance Test-",Input!H16)),points1,2,)))) -> 31 | AB12: =IF(Input!E16=0,0,IF(ISNA(VLOOKUP((CONCATENATE("Standing Long Jump-",Input!I16)),points1,2,)),0,(VLOOKUP((CONCATENATE("Standing Long Jump-",Input!I16)),points1,2,)))) -> 26 | AC12: =IF(Input!E16=0,0,IF(ISNA(VLOOKUP((CONCATENATE("Speed Bounce-",Input!J16)),points1,2,)),0,(VLOOKUP((CONCATENATE("Speed Bounce-",Input!J16)),points1,2,)))) -> 20 | AD12: =IF(Input!E16=0,0,IF(ISNA(VLOOKUP((CONCATENATE("Target Throw-",Input!K16)),points1,2,)),0,(VLOOKUP((CONCATENATE("Target Throw-",Input!K16)),points1,2,)))) -> 18 | AE12: =IF(Input!E16=0,0,IF(Input!$C16>6,IF(ISNA(VLOOKUP((CONCATENATE("Overhead Heave-",Input!L16)),points1,2,)),0,(VLOOKUP((CONCATENATE("Overhead Heave-",Input!L16)),points1,2,))),0)) -> 0 | AF12: 18 | AG12: =IF(Input!E16=0,0,IF(ISNA(VLOOKUP((CONCATENATE("Hi-Stepper-",Input!M16)),points1,2,)),0,(VLOOKUP((CONCATENATE("Hi-Stepper-",Input!M16)),points1,2,)))) -> 20 | AH12: =IF(Input!E16=0,0,IF(ISNA(VLOOKUP((CONCATENATE("Chest Push-",Input!N16)),points1,2,)),0,(VLOOKUP((CONCATENATE("Chest Push-",Input!N16)),points1,2,)))) -> 0 | AI12: =IF(Input!E16=0,0,IF(ISNA(VLOOKUP((CONCATENATE("Vertical Jump-",Input!O16)),points1,2,)),0,(VLOOKUP((CONCATENATE("Vertical Jump-",Input!O16)),points1,2,)))) -> 0 | AJ12: =IF(Input!E16=0,0,IF(ISNA(VLOOKUP((CONCATENATE("Shuttle Run-",Input!P16)),points1,2,)),0,(VLOOKUP((CONCATENATE("Shuttle Run-",Input!P16)),points1,2,)))) -> 0 | AK12: =IF(Input!E16=0,0,IF(ISNA(VLOOKUP((CONCATENATE("Javelin Throw-",Input!Q16)),points1,2,)),0,(VLOOKUP((CONCATENATE("Javelin Throw-",Input!Q16)),points1,2,)))) -> 0 | AL12: =IF(Input!E16=0,0,IF(Input!$C16>6,IF(ISNA(VLOOKUP((CONCATENATE("Shot-",Input!R16)),points1,2,)),0,(VLOOKUP((CONCATENATE("Shot-",Input!R16)),points1,2,))),0)) -> 0 | AM12: 0 | AN12: =IF(Input!E16=0,0,IF(ISNA(VLOOKUP((CONCATENATE("Standing Triple Jump-",Input!S16)),points1,2,)),0,(VLOOKUP((CONCATENATE("Standing Triple Jump-",Input!S16)),points1,2,)))) -> 0 | AO12: =IF(Input!$C16>6,COUNT(Input!H16:J16,Input!M16:P16,Input!S16,Input!X16:Y16),IF(Input!$C16<=6,COUNT(Input!H16:K16,Input!M16:Q16,Input!S16))) -> 5 | AP12: =IF(AO12>=5,(LARGE((AA12:AC12,AF12:AJ12,AM12:AN12),1))+LARGE((AA12:AC12,AF12:AJ12,AM12:AN12),2)+LARGE((AA12:AC12,AF12:AJ12,AM12:AN12),3)+LARGE((AA12:AC12,AF12:AJ12,AM12:AN12),4)+LARGE((AA12:AC12,AF12:AJ12,AM12:AN12),5),0) -> 115 | AQ12: =IF(AP12=0,0,IF((Input!G16="Boy")*AND(Input!C16>6),VLOOKUP(AP12,award2,3),IF((Input!G16="Girl")*AND(Input!C16>6),VLOOKUP(AP12,award2,2),IF((Input!G16="Boy")*AND(Input!C16<=6),VLOOKUP(AP12,award12,3),IF((Input!G16="Girl")*AND(Input!C16<=6),VLOOKUP(AP12,award12,2),0))))) -> Step 6 | AR12: =IF(Input!$C16>6,COUNT(Input!H16:J16,Input!M16:P16,Input!S16,Input!X16:Y16),IF(Input!$C16<=6,COUNT(Input!H16:K16,Input!M16:Q16,Input!S16))) -> 5 | AS12: 0 | AT12: =IF(AS12=0,0,IF((Input!G16="Boy")*AND(Input!C16>6),VLOOKUP(AS12,award2,5),IF((Input!G16="Girl")*AND(Input!C16>6),VLOOKUP(AS12,award2,4),IF((Input!G16="Boy")*AND(Input!C16<=6),VLOOKUP(AS12,award12,5),IF((Input!G16="Girl")*AND(Input!C16<=6),VLOOKUP(AS12,award12,4),0))))) -> 0 | AV12: 31.000006 | AW12: 26.000046 | AX12: 20.000086 | AY12: 18.000126 | AZ12: 20.000166 | BG12: =IF(AV12=" "," ",IF(Input!$G16="Boy",IF(RANK(AV12,($AV12:$BE12),0)<=5,AV12," ")," ")) -> 31.000006 | BH12: =IF(AW12=" "," ",IF(Input!$G16="Boy",IF(RANK(AW12,($AV12:$BE12),0)<=5,AW12," ")," ")) -> 26.000046 | BI12: =IF(AX12=" "," ",IF(Input!$G16="Boy",IF(RANK(AX12,($AV12:$BE12),0)<=5,AX12," ")," ")) -> 20.000086 | BJ12: =IF(AY12=" "," ",IF(Input!$G16="Boy",IF(RANK(AY12,($AV12:$BE12),0)<=5,AY12," ")," ")) -> 18.000126 | BK12: =IF(AZ12=" "," ",IF(Input!$G16="Boy",IF(RANK(AZ12,($AV12:$BE12),0)<=5,AZ12," ")," ")) -> 20.000166 | BL12: =IF(BA12=" "," ",IF(Input!$G16="Boy",IF(RANK(BA12,($AV12:$BE12),0)<=5,BA12," ")," ")) ->  | BM12: =IF(BB12=" "," ",IF(Input!$G16="Boy",IF(RANK(BB12,($AV12:$BE12),0)<=5,BB12," ")," ")) ->  | BN12: =IF(BC12=" "," ",IF(Input!$G16="Boy",IF(RANK(BC12,($AV12:$BE12),0)<=5,BC12," ")," ")) ->  | BO12: =IF(BD12=" "," ",IF(Input!$G16="Boy",IF(RANK(BD12,($AV12:$BE12),0)<=5,BD12," ")," ")) ->  | BP12: =IF(BE12=" "," ",IF(Input!$G16="Boy",IF(RANK(BE12,($AV12:$BE12),0)<=5,BE12," ")," ")) ->  | BR12: =IF(AV12=" "," ",IF(Input!$G16="Girl",IF(RANK(AV12,($AV12:$BE12),0)<=5,AV12," ")," ")) ->  | BS12: =IF(AW12=" "," ",IF(Input!$G16="Girl",IF(RANK(AW12,($AV12:$BE12),0)<=5,AW12," ")," ")) ->  | BT12: =IF(AX12=" "," ",IF(Input!$G16="Girl",IF(RANK(AX12,($AV12:$BE12),0)<=5,AX12," ")," ")) ->  | BU12: =IF(AY12=" "," ",IF(Input!$G16="Girl",IF(RANK(AY12,($AV12:$BE12),0)<=5,AY12," ")," ")) ->  | BV12: =IF(AZ12=" "," ",IF(Input!$G16="Girl",IF(RANK(AZ12,($AV12:$BE12),0)<=5,AZ12," ")," ")) ->  | BW12: =IF(BA12=" "," ",IF(Input!$G16="Girl",IF(RANK(BA12,($AV12:$BE12),0)<=5,BA12," ")," ")) ->  | BX12: =IF(BB12=" "," ",IF(Input!$G16="Girl",IF(RANK(BB12,($AV12:$BE12),0)<=5,BB12," ")," ")) ->  | BY12: =IF(BC12=" "," ",IF(Input!$G16="Girl",IF(RANK(BC12,($AV12:$BE12),0)<=5,BC12," ")," ")) ->  | BZ12: =IF(BD12=" "," ",IF(Input!$G16="Girl",IF(RANK(BD12,($AV12:$BE12),0)<=5,BD12," ")," ")) ->  | CA12: =IF(BE12=" "," ",IF(Input!$G16="Girl",IF(RANK(BE12,($AV12:$BE12),0)<=5,BE12," ")," ")) ->  | CX12: 6e-06 | CY12: 4.6e-05 | CZ12: 8.6e-05 | DA12: 0.000126 | DB12: 0.000166 | DC12: 0.000206 | DD12: 0.000246 | DE12: 0.000286 | DF12: 0.000326 | DG12: 0.000366 | DH12: 31.000006 | DI12: 26.000046 | DJ12: 20.000086 | DK12: 18.000126 | DL12: 20.000166
C13: =Input!D17 -> Thaila Jade-Mason | D13: =Input!#REF! ->  | E13: =Input!E17 -> 5 | F13: =Input!F17 -> 10 | G13: =Input!G17 -> GIRL | H13: 56 | I13: 50 | J13: 30 | K13: 33 | L13: 0 | M13: 30 | N13: 0 | O13: 0 | P13: 0 | Q13: 0 | R13: 0 | S13: 0 | T13: 199 | U13: Bronze | X13: 199 | Y13: 199-GIRL-5 | Z13: =Input!D17 -> Thaila Jade-Mason | AA13: =IF(Input!E17=0,0,IF(ISNA(VLOOKUP((CONCATENATE("Balance Test-",Input!H17)),points1,2,)),0,(VLOOKUP((CONCATENATE("Balance Test-",Input!H17)),points1,2,)))) -> 56 | AB13: =IF(Input!E17=0,0,IF(ISNA(VLOOKUP((CONCATENATE("Standing Long Jump-",Input!I17)),points1,2,)),0,(VLOOKUP((CONCATENATE("Standing Long Jump-",Input!I17)),points1,2,)))) -> 50 | AC13: =IF(Input!E17=0,0,IF(ISNA(VLOOKUP((CONCATENATE("Speed Bounce-",Input!J17)),points1,2,)),0,(VLOOKUP((CONCATENATE("Speed Bounce-",Input!J17)),points1,2,)))) -> 30 | AD13: =IF(Input!E17=0,0,IF(ISNA(VLOOKUP((CONCATENATE("Target Throw-",Input!K17)),points1,2,)),0,(VLOOKUP((CONCATENATE("Target Throw-",Input!K17)),points1,2,)))) -> 33 | AE13: =IF(Input!E17=0,0,IF(Input!$C17>6,IF(ISNA(VLOOKUP((CONCATENATE("Overhead Heave-",Input!L17)),points1,2,)),0,(VLOOKUP((CONCATENATE("Overhead Heave-",Input!L17)),points1,2,))),0)) -> 0 | AF13: 33 | AG13: =IF(Input!E17=0,0,IF(ISNA(VLOOKUP((CONCATENATE("Hi-Stepper-",Input!M17)),points1,2,)),0,(VLOOKUP((CONCATENATE("Hi-Stepper-",Input!M17)),points1,2,)))) -> 30 | AH13: =IF(Input!E17=0,0,IF(ISNA(VLOOKUP((CONCATENATE("Chest Push-",Input!N17)),points1,2,)),0,(VLOOKUP((CONCATENATE("Chest Push-",Input!N17)),points1,2,)))) -> 0 | AI13: =IF(Input!E17=0,0,IF(ISNA(VLOOKUP((CONCATENATE("Vertical Jump-",Input!O17)),points1,2,)),0,(VLOOKUP((CONCATENATE("Vertical Jump-",Input!O17)),points1,2,)))) -> 0 | AJ13: =IF(Input!E17=0,0,IF(ISNA(VLOOKUP((CONCATENATE("Shuttle Run-",Input!P17)),points1,2,)),0,(VLOOKUP((CONCATENATE("Shuttle Run-",Input!P17)),points1,2,)))) -> 0 | AK13: =IF(Input!E17=0,0,IF(ISNA(VLOOKUP((CONCATENATE("Javelin Throw-",Input!Q17)),points1,2,)),0,(VLOOKUP((CONCATENATE("Javelin Throw-",Input!Q17)),points1,2,)))) -> 0 | AL13: =IF(Input!E17=0,0,IF(Input!$C17>6,IF(ISNA(VLOOKUP((CONCATENATE("Shot-",Input!R17)),points1,2,)),0,(VLOOKUP((CONCATENATE("Shot-",Input!R17)),points1,2,))),0)) -> 0 | AM13: 0 | AN13: =IF(Input!E17=0,0,IF(ISNA(VLOOKUP((CONCATENATE("Standing Triple Jump-",Input!S17)),points1,2,)),0,(VLOOKUP((CONCATENATE("Standing Triple Jump-",Input!S17)),points1,2,)))) -> 0 | AO13: =IF(Input!$C17>6,COUNT(Input!H17:J17,Input!M17:P17,Input!S17,Input!X17:Y17),IF(Input!$C17<=6,COUNT(Input!H17:K17,Input!M17:Q17,Input!S17))) -> 5 | AP13: =IF(AO13>=5,(LARGE((AA13:AC13,AF13:AJ13,AM13:AN13),1))+LARGE((AA13:AC13,AF13:AJ13,AM13:AN13),2)+LARGE((AA13:AC13,AF13:AJ13,AM13:AN13),3)+LARGE((AA13:AC13,AF13:AJ13,AM13:AN13),4)+LARGE((AA13:AC13,AF13:AJ13,AM13:AN13),5),0) -> 199 | AQ13: =IF(AP13=0,0,IF((Input!G17="Boy")*AND(Input!C17>6),VLOOKUP(AP13,award2,3),IF((Input!G17="Girl")*AND(Input!C17>6),VLOOKUP(AP13,award2,2),IF((Input!G17="Boy")*AND(Input!C17<=6),VLOOKUP(AP13,award12,3),IF((Input!G17="Girl")*AND(Input!C17<=6),VLOOKUP(AP13,award12,2),0))))) -> Bronze | AR13: =IF(Input!$C17>6,COUNT(Input!H17:J17,Input!M17:P17,Input!S17,Input!X17:Y17),IF(Input!$C17<=6,COUNT(Input!H17:K17,Input!M17:Q17,Input!S17))) -> 5 | AS13: 0 | AT13: =IF(AS13=0,0,IF((Input!G17="Boy")*AND(Input!C17>6),VLOOKUP(AS13,award2,5),IF((Input!G17="Girl")*AND(Input!C17>6),VLOOKUP(AS13,award2,4),IF((Input!G17="Boy")*AND(Input!C17<=6),VLOOKUP(AS13,award12,5),IF((Input!G17="Girl")*AND(Input!C17<=6),VLOOKUP(AS13,award12,4),0))))) -> 0 | AV13: 56.000007 | AW13: 50.000047 | AX13: 30.000087 | AY13: 33.000127 | AZ13: 30.000167 | BG13: =IF(AV13=" "," ",IF(Input!$G17="Boy",IF(RANK(AV13,($AV13:$BE13),0)<=5,AV13," ")," ")) ->  | BH13: =IF(AW13=" "," ",IF(Input!$G17="Boy",IF(RANK(AW13,($AV13:$BE13),0)<=5,AW13," ")," ")) ->  | BI13: =IF(AX13=" "," ",IF(Input!$G17="Boy",IF(RANK(AX13,($AV13:$BE13),0)<=5,AX13," ")," ")) ->  | BJ13: =IF(AY13=" "," ",IF(Input!$G17="Boy",IF(RANK(AY13,($AV13:$BE13),0)<=5,AY13," ")," ")) ->  | BK13: =IF(AZ13=" "," ",IF(Input!$G17="Boy",IF(RANK(AZ13,($AV13:$BE13),0)<=5,AZ13," ")," ")) ->  | BL13: =IF(BA13=" "," ",IF(Input!$G17="Boy",IF(RANK(BA13,($AV13:$BE13),0)<=5,BA13," ")," ")) ->  | BM13: =IF(BB13=" "," ",IF(Input!$G17="Boy",IF(RANK(BB13,($AV13:$BE13),0)<=5,BB13," ")," ")) ->  | BN13: =IF(BC13=" "," ",IF(Input!$G17="Boy",IF(RANK(BC13,($AV13:$BE13),0)<=5,BC13," ")," ")) ->  | BO13: =IF(BD13=" "," ",IF(Input!$G17="Boy",IF(RANK(BD13,($AV13:$BE13),0)<=5,BD13," ")," ")) ->  | BP13: =IF(BE13=" "," ",IF(Input!$G17="Boy",IF(RANK(BE13,($AV13:$BE13),0)<=5,BE13," ")," ")) ->  | BR13: =IF(AV13=" "," ",IF(Input!$G17="Girl",IF(RANK(AV13,($AV13:$BE13),0)<=5,AV13," ")," ")) -> 56.000007 | BS13: =IF(AW13=" "," ",IF(Input!$G17="Girl",IF(RANK(AW13,($AV13:$BE13),0)<=5,AW13," ")," ")) -> 50.000047 | BT13: =IF(AX13=" "," ",IF(Input!$G17="Girl",IF(RANK(AX13,($AV13:$BE13),0)<=5,AX13," ")," ")) -> 30.000087 | BU13: =IF(AY13=" "," ",IF(Input!$G17="Girl",IF(RANK(AY13,($AV13:$BE13),0)<=5,AY13," ")," ")) -> 33.000127 | BV13: =IF(AZ13=" "," ",IF(Input!$G17="Girl",IF(RANK(AZ13,($AV13:$BE13),0)<=5,AZ13," ")," ")) -> 30.000167 | BW13: =IF(BA13=" "," ",IF(Input!$G17="Girl",IF(RANK(BA13,($AV13:$BE13),0)<=5,BA13," ")," ")) ->  | BX13: =IF(BB13=" "," ",IF(Input!$G17="Girl",IF(RANK(BB13,($AV13:$BE13),0)<=5,BB13," ")," ")) ->  | BY13: =IF(BC13=" "," ",IF(Input!$G17="Girl",IF(RANK(BC13,($AV13:$BE13),0)<=5,BC13," ")," ")) ->  | BZ13: =IF(BD13=" "," ",IF(Input!$G17="Girl",IF(RANK(BD13,($AV13:$BE13),0)<=5,BD13," ")," ")) ->  | CA13: =IF(BE13=" "," ",IF(Input!$G17="Girl",IF(RANK(BE13,($AV13:$BE13),0)<=5,BE13," ")," ")) ->  | CO13: RED | CQ13: RED | CX13: 7e-06 | CY13: 4.7e-05 | CZ13: 8.7e-05 | DA13: 0.000127 | DB13: 0.000167 | DC13: 0.000207 | DD13: 0.000247 | DE13: 0.000287 | DF13: 0.000327 | DG13: 0.000367 | DS13: 56.000007 | DT13: 50.000047 | DU13: 30.000087 | DV13: 33.000127 | DW13: 30.000167
C14: =Input!D18 -> Grace Smith | D14: =Input!#REF! ->  | E14: =Input!E18 -> 5 | F14: =Input!F18 -> 9 | G14: =Input!G18 -> GIRL | H14: 64 | I14: 40 | J14: 32 | K14: 39 | L14: 0 | M14: 22 | N14: 0 | O14: 0 | P14: 0 | Q14: 0 | R14: 0 | S14: 0 | T14: 197 | U14: Bronze | X14: 197 | Y14: 197-GIRL-5 | Z14: =Input!D18 -> Grace Smith | AA14: =IF(Input!E18=0,0,IF(ISNA(VLOOKUP((CONCATENATE("Balance Test-",Input!H18)),points1,2,)),0,(VLOOKUP((CONCATENATE("Balance Test-",Input!H18)),points1,2,)))) -> 64 | AB14: =IF(Input!E18=0,0,IF(ISNA(VLOOKUP((CONCATENATE("Standing Long Jump-",Input!I18)),points1,2,)),0,(VLOOKUP((CONCATENATE("Standing Long Jump-",Input!I18)),points1,2,)))) -> 40 | AC14: =IF(Input!E18=0,0,IF(ISNA(VLOOKUP((CONCATENATE("Speed Bounce-",Input!J18)),points1,2,)),0,(VLOOKUP((CONCATENATE("Speed Bounce-",Input!J18)),points1,2,)))) -> 32 | AD14: =IF(Input!E18=0,0,IF(ISNA(VLOOKUP((CONCATENATE("Target Throw-",Input!K18)),points1,2,)),0,(VLOOKUP((CONCATENATE("Target Throw-",Input!K18)),points1,2,)))) -> 39 | AE14: =IF(Input!E18=0,0,IF(Input!$C18>6,IF(ISNA(VLOOKUP((CONCATENATE("Overhead Heave-",Input!L18)),points1,2,)),0,(VLOOKUP((CONCATENATE("Overhead Heave-",Input!L18)),points1,2,))),0)) -> 0 | AF14: 39 | AG14: =IF(Input!E18=0,0,IF(ISNA(VLOOKUP((CONCATENATE("Hi-Stepper-",Input!M18)),points1,2,)),0,(VLOOKUP((CONCATENATE("Hi-Stepper-",Input!M18)),points1,2,)))) -> 22 | AH14: =IF(Input!E18=0,0,IF(ISNA(VLOOKUP((CONCATENATE("Chest Push-",Input!N18)),points1,2,)),0,(VLOOKUP((CONCATENATE("Chest Push-",Input!N18)),points1,2,)))) -> 0 | AI14: =IF(Input!E18=0,0,IF(ISNA(VLOOKUP((CONCATENATE("Vertical Jump-",Input!O18)),points1,2,)),0,(VLOOKUP((CONCATENATE("Vertical Jump-",Input!O18)),points1,2,)))) -> 0 | AJ14: =IF(Input!E18=0,0,IF(ISNA(VLOOKUP((CONCATENATE("Shuttle Run-",Input!P18)),points1,2,)),0,(VLOOKUP((CONCATENATE("Shuttle Run-",Input!P18)),points1,2,)))) -> 0 | AK14: =IF(Input!E18=0,0,IF(ISNA(VLOOKUP((CONCATENATE("Javelin Throw-",Input!Q18)),points1,2,)),0,(VLOOKUP((CONCATENATE("Javelin Throw-",Input!Q18)),points1,2,)))) -> 0 | AL14: =IF(Input!E18=0,0,IF(Input!$C18>6,IF(ISNA(VLOOKUP((CONCATENATE("Shot-",Input!R18)),points1,2,)),0,(VLOOKUP((CONCATENATE("Shot-",Input!R18)),points1,2,))),0)) -> 0 | AM14: 0 | AN14: =IF(Input!E18=0,0,IF(ISNA(VLOOKUP((CONCATENATE("Standing Triple Jump-",Input!S18)),points1,2,)),0,(VLOOKUP((CONCATENATE("Standing Triple Jump-",Input!S18)),points1,2,)))) -> 0 | AO14: =IF(Input!$C18>6,COUNT(Input!H18:J18,Input!M18:P18,Input!S18,Input!X18:Y18),IF(Input!$C18<=6,COUNT(Input!H18:K18,Input!M18:Q18,Input!S18))) -> 5 | AP14: =IF(AO14>=5,(LARGE((AA14:AC14,AF14:AJ14,AM14:AN14),1))+LARGE((AA14:AC14,AF14:AJ14,AM14:AN14),2)+LARGE((AA14:AC14,AF14:AJ14,AM14:AN14),3)+LARGE((AA14:AC14,AF14:AJ14,AM14:AN14),4)+LARGE((AA14:AC14,AF14:AJ14,AM14:AN14),5),0) -> 197 | AQ14: =IF(AP14=0,0,IF((Input!G18="Boy")*AND(Input!C18>6),VLOOKUP(AP14,award2,3),IF((Input!G18="Girl")*AND(Input!C18>6),VLOOKUP(AP14,award2,2),IF((Input!G18="Boy")*AND(Input!C18<=6),VLOOKUP(AP14,award12,3),IF((Input!G18="Girl")*AND(Input!C18<=6),VLOOKUP(AP14,award12,2),0))))) -> Bronze | AR14: =IF(Input!$C18>6,COUNT(Input!H18:J18,Input!M18:P18,Input!S18,Input!X18:Y18),IF(Input!$C18<=6,COUNT(Input!H18:K18,Input!M18:Q18,Input!S18))) -> 5 | AS14: 0 | AT14: =IF(AS14=0,0,IF((Input!G18="Boy")*AND(Input!C18>6),VLOOKUP(AS14,award2,5),IF((Input!G18="Girl")*AND(Input!C18>6),VLOOKUP(AS14,award2,4),IF((Input!G18="Boy")*AND(Input!C18<=6),VLOOKUP(AS14,award12,5),IF((Input!G18="Girl")*AND(Input!C18<=6),VLOOKUP(AS14,award12,4),0))))) -> 0 | AV14: 64.000008 | AW14: 40.000048 | AX14: 32.000088 | AY14: 39.000128 | AZ14: 22.000168 | BG14: =IF(AV14=" "," ",IF(Input!$G18="Boy",IF(RANK(AV14,($AV14:$BE14),0)<=5,AV14," ")," ")) ->  | BH14: =IF(AW14=" "," ",IF(Input!$G18="Boy",IF(RANK(AW14,($AV14:$BE14),0)<=5,AW14," ")," ")) ->  | BI14: =IF(AX14=" "," ",IF(Input!$G18="Boy",IF(RANK(AX14,($AV14:$BE14),0)<=5,AX14," ")," ")) ->  | BJ14: =IF(AY14=" "," ",IF(Input!$G18="Boy",IF(RANK(AY14,($AV14:$BE14),0)<=5,AY14," ")," ")) ->  | BK14: =IF(AZ14=" "," ",IF(Input!$G18="Boy",IF(RANK(AZ14,($AV14:$BE14),0)<=5,AZ14," ")," ")) ->  | BL14: =IF(BA14=" "," ",IF(Input!$G18="Boy",IF(RANK(BA14,($AV14:$BE14),0)<=5,BA14," ")," ")) ->  | BM14: =IF(BB14=" "," ",IF(Input!$G18="Boy",IF(RANK(BB14,($AV14:$BE14),0)<=5,BB14," ")," ")) ->  | BN14: =IF(BC14=" "," ",IF(Input!$G18="Boy",IF(RANK(BC14,($AV14:$BE14),0)<=5,BC14," ")," ")) ->  | BO14: =IF(BD14=" "," ",IF(Input!$G18="Boy",IF(RANK(BD14,($AV14:$BE14),0)<=5,BD14," ")," ")) ->  | BP14: =IF(BE14=" "," ",IF(Input!$G18="Boy",IF(RANK(BE14,($AV14:$BE14),0)<=5,BE14," ")," ")) ->  | BR14: =IF(AV14=" "," ",IF(Input!$G18="Girl",IF(RANK(AV14,($AV14:$BE14),0)<=5,AV14," ")," ")) -> 64.000008 | BS14: =IF(AW14=" "," ",IF(Input!$G18="Girl",IF(RANK(AW14,($AV14:$BE14),0)<=5,AW14," ")," ")) -> 40.000048 | BT14: =IF(AX14=" "," ",IF(Input!$G18="Girl",IF(RANK(AX14,($AV14:$BE14),0)<=5,AX14," ")," ")) -> 32.000088 | BU14: =IF(AY14=" "," ",IF(Input!$G18="Girl",IF(RANK(AY14,($AV14:$BE14),0)<=5,AY14," ")," ")) -> 39.000128 | BV14: =IF(AZ14=" "," ",IF(Input!$G18="Girl",IF(RANK(AZ14,($AV14:$BE14),0)<=5,AZ14," ")," ")) -> 22.000168 | BW14: =IF(BA14=" "," ",IF(Input!$G18="Girl",IF(RANK(BA14,($AV14:$BE14),0)<=5,BA14," ")," ")) ->  | BX14: =IF(BB14=" "," ",IF(Input!$G18="Girl",IF(RANK(BB14,($AV14:$BE14),0)<=5,BB14," ")," ")) ->  | BY14: =IF(BC14=" "," ",IF(Input!$G18="Girl",IF(RANK(BC14,($AV14:$BE14),0)<=5,BC14," ")," ")) ->  | BZ14: =IF(BD14=" "," ",IF(Input!$G18="Girl",IF(RANK(BD14,($AV14:$BE14),0)<=5,BD14," ")," ")) ->  | CA14: =IF(BE14=" "," ",IF(Input!$G18="Girl",IF(RANK(BE14,($AV14:$BE14),0)<=5,BE14," ")," ")) ->  | CN14: RED | CP14: RED | CQ14: RED | CX14: 8e-06 | CY14: 4.8e-05 | CZ14: 8.8e-05 | DA14: 0.000128 | DB14: 0.000168 | DC14: 0.000208 | DD14: 0.000248 | DE14: 0.000288 | DF14: 0.000328 | DG14: 0.000368 | DS14: 64.000008 | DT14: 40.000048 | DU14: 32.000088 | DV14: 39.000128 | DW14: 22.000168
C15: =Input!D19 -> Logan Dewar | D15: =Input!#REF! ->  | E15: =Input!E19 -> 6 | F15: =Input!F19 -> 10 | G15: =Input!G19 -> BOY | H15: 42 | I15: 26 | J15: 31 | K15: 57 | L15: 0 | M15: 38 | N15: 0 | O15: 0 | P15: 0 | Q15: 0 | R15: 0 | S15: 0 | T15: 194 | U15: Bronze | X15: 194 | Y15: 194-BOY-6 | Z15: =Input!D19 -> Logan Dewar | AA15: =IF(Input!E19=0,0,IF(ISNA(VLOOKUP((CONCATENATE("Balance Test-",Input!H19)),points1,2,)),0,(VLOOKUP((CONCATENATE("Balance Test-",Input!H19)),points1,2,)))) -> 42 | AB15: =IF(Input!E19=0,0,IF(ISNA(VLOOKUP((CONCATENATE("Standing Long Jump-",Input!I19)),points1,2,)),0,(VLOOKUP((CONCATENATE("Standing Long Jump-",Input!I19)),points1,2,)))) -> 26 | AC15: =IF(Input!E19=0,0,IF(ISNA(VLOOKUP((CONCATENATE("Speed Bounce-",Input!J19)),points1,2,)),0,(VLOOKUP((CONCATENATE("Speed Bounce-",Input!J19)),points1,2,)))) -> 31 | AD15: =IF(Input!E19=0,0,IF(ISNA(VLOOKUP((CONCATENATE("Target Throw-",Input!K19)),points1,2,)),0,(VLOOKUP((CONCATENATE("Target Throw-",Input!K19)),points1,2,)))) -> 57 | AE15: =IF(Input!E19=0,0,IF(Input!$C19>6,IF(ISNA(VLOOKUP((CONCATENATE("Overhead Heave-",Input!L19)),points1,2,)),0,(VLOOKUP((CONCATENATE("Overhead Heave-",Input!L19)),points1,2,))),0)) -> 0 | AF15: 57 | AG15: =IF(Input!E19=0,0,IF(ISNA(VLOOKUP((CONCATENATE("Hi-Stepper-",Input!M19)),points1,2,)),0,(VLOOKUP((CONCATENATE("Hi-Stepper-",Input!M19)),points1,2,)))) -> 38 | AH15: =IF(Input!E19=0,0,IF(ISNA(VLOOKUP((CONCATENATE("Chest Push-",Input!N19)),points1,2,)),0,(VLOOKUP((CONCATENATE("Chest Push-",Input!N19)),points1,2,)))) -> 0 | AI15: =IF(Input!E19=0,0,IF(ISNA(VLOOKUP((CONCATENATE("Vertical Jump-",Input!O19)),points1,2,)),0,(VLOOKUP((CONCATENATE("Vertical Jump-",Input!O19)),points1,2,)))) -> 0 | AJ15: =IF(Input!E19=0,0,IF(ISNA(VLOOKUP((CONCATENATE("Shuttle Run-",Input!P19)),points1,2,)),0,(VLOOKUP((CONCATENATE("Shuttle Run-",Input!P19)),points1,2,)))) -> 0 | AK15: =IF(Input!E19=0,0,IF(ISNA(VLOOKUP((CONCATENATE("Javelin Throw-",Input!Q19)),points1,2,)),0,(VLOOKUP((CONCATENATE("Javelin Throw-",Input!Q19)),points1,2,)))) -> 0 | AL15: =IF(Input!E19=0,0,IF(Input!$C19>6,IF(ISNA(VLOOKUP((CONCATENATE("Shot-",Input!R19)),points1,2,)),0,(VLOOKUP((CONCATENATE("Shot-",Input!R19)),points1,2,))),0)) -> 0 | AM15: 0 | AN15: =IF(Input!E19=0,0,IF(ISNA(VLOOKUP((CONCATENATE("Standing Triple Jump-",Input!S19)),points1,2,)),0,(VLOOKUP((CONCATENATE("Standing Triple Jump-",Input!S19)),points1,2,)))) -> 0 | AO15: =IF(Input!$C19>6,COUNT(Input!H19:J19,Input!M19:P19,Input!S19,Input!X19:Y19),IF(Input!$C19<=6,COUNT(Input!H19:K19,Input!M19:Q19,Input!S19))) -> 5 | AP15: =IF(AO15>=5,(LARGE((AA15:AC15,AF15:AJ15,AM15:AN15),1))+LARGE((AA15:AC15,AF15:AJ15,AM15:AN15),2)+LARGE((AA15:AC15,AF15:AJ15,AM15:AN15),3)+LARGE((AA15:AC15,AF15:AJ15,AM15:AN15),4)+LARGE((AA15:AC15,AF15:AJ15,AM15:AN15),5),0) -> 194 | AQ15: =IF(AP15=0,0,IF((Input!G19="Boy")*AND(Input!C19>6),VLOOKUP(AP15,award2,3),IF((Input!G19="Girl")*AND(Input!C19>6),VLOOKUP(AP15,award2,2),IF((Input!G19="Boy")*AND(Input!C19<=6),VLOOKUP(AP15,award12,3),IF((Input!G19="Girl")*AND(Input!C19<=6),VLOOKUP(AP15,award12,2),0))))) -> Bronze | AR15: =IF(Input!$C19>6,COUNT(Input!H19:J19,Input!M19:P19,Input!S19,Input!X19:Y19),IF(Input!$C19<=6,COUNT(Input!H19:K19,Input!M19:Q19,Input!S19))) -> 5 | AS15: 0 | AT15: =IF(AS15=0,0,IF((Input!G19="Boy")*AND(Input!C19>6),VLOOKUP(AS15,award2,5),IF((Input!G19="Girl")*AND(Input!C19>6),VLOOKUP(AS15,award2,4),IF((Input!G19="Boy")*AND(Input!C19<=6),VLOOKUP(AS15,award12,5),IF((Input!G19="Girl")*AND(Input!C19<=6),VLOOKUP(AS15,award12,4),0))))) -> 0 | AV15: 42.000009 | AW15: 26.000049 | AX15: 31.000089 | AY15: 57.000129 | AZ15: 38.000169 | BG15: =IF(AV15=" "," ",IF(Input!$G19="Boy",IF(RANK(AV15,($AV15:$BE15),0)<=5,AV15," ")," ")) -> 42.000009 | BH15: =IF(AW15=" "," ",IF(Input!$G19="Boy",IF(RANK(AW15,($AV15:$BE15),0)<=5,AW15," ")," ")) -> 26.000049 | BI15: =IF(AX15=" "," ",IF(Input!$G19="Boy",IF(RANK(AX15,($AV15:$BE15),0)<=5,AX15," ")," ")) -> 31.000089 | BJ15: =IF(AY15=" "," ",IF(Input!$G19="Boy",IF(RANK(AY15,($AV15:$BE15),0)<=5,AY15," ")," ")) -> 57.000129 | BK15: =IF(AZ15=" "," ",IF(Input!$G19="Boy",IF(RANK(AZ15,($AV15:$BE15),0)<=5,AZ15," ")," ")) -> 38.000169 | BL15: =IF(BA15=" "," ",IF(Input!$G19="Boy",IF(RANK(BA15,($AV15:$BE15),0)<=5,BA15," ")," ")) ->  | BM15: =IF(BB15=" "," ",IF(Input!$G19="Boy",IF(RANK(BB15,($AV15:$BE15),0)<=5,BB15," ")," ")) ->  | BN15: =IF(BC15=" "," ",IF(Input!$G19="Boy",IF(RANK(BC15,($AV15:$BE15),0)<=5,BC15," ")," ")) ->  | BO15: =IF(BD15=" "," ",IF(Input!$G19="Boy",IF(RANK(BD15,($AV15:$BE15),0)<=5,BD15," ")," ")) ->  | BP15: =IF(BE15=" "," ",IF(Input!$G19="Boy",IF(RANK(BE15,($AV15:$BE15),0)<=5,BE15," ")," ")) ->  | BR15: =IF(AV15=" "," ",IF(Input!$G19="Girl",IF(RANK(AV15,($AV15:$BE15),0)<=5,AV15," ")," ")) ->  | BS15: =IF(AW15=" "," ",IF(Input!$G19="Girl",IF(RANK(AW15,($AV15:$BE15),0)<=5,AW15," ")," ")) ->  | BT15: =IF(AX15=" "," ",IF(Input!$G19="Girl",IF(RANK(AX15,($AV15:$BE15),0)<=5,AX15," ")," ")) ->  | BU15: =IF(AY15=" "," ",IF(Input!$G19="Girl",IF(RANK(AY15,($AV15:$BE15),0)<=5,AY15," ")," ")) ->  | BV15: =IF(AZ15=" "," ",IF(Input!$G19="Girl",IF(RANK(AZ15,($AV15:$BE15),0)<=5,AZ15," ")," ")) ->  | BW15: =IF(BA15=" "," ",IF(Input!$G19="Girl",IF(RANK(BA15,($AV15:$BE15),0)<=5,BA15," ")," ")) ->  | BX15: =IF(BB15=" "," ",IF(Input!$G19="Girl",IF(RANK(BB15,($AV15:$BE15),0)<=5,BB15," ")," ")) ->  | BY15: =IF(BC15=" "," ",IF(Input!$G19="Girl",IF(RANK(BC15,($AV15:$BE15),0)<=5,BC15," ")," ")) ->  | BZ15: =IF(BD15=" "," ",IF(Input!$G19="Girl",IF(RANK(BD15,($AV15:$BE15),0)<=5,BD15," ")," ")) ->  | CA15: =IF(BE15=" "," ",IF(Input!$G19="Girl",IF(RANK(BE15,($AV15:$BE15),0)<=5,BE15," ")," ")) ->  | CF15: RED | CX15: 9e-06 | CY15: 4.9e-05 | CZ15: 8.9e-05 | DA15: 0.000129 | DB15: 0.000169 | DC15: 0.000209 | DD15: 0.000249 | DE15: 0.000289 | DF15: 0.000329 | DG15: 0.000369 | DH15: 42.000009 | DI15: 26.000049 | DJ15: 31.000089 | DK15: 57.000129 | DL15: 38.000169
C16: =Input!D20 -> Ash Carter | D16: =Input!#REF! ->  | E16: =Input!E20 -> 6 | F16: =Input!F20 -> 10 | G16: =Input!G20 -> BOY | H16: 62 | I16: 28 | J16: 34 | K16: 36 | L16: 0 | M16: 52 | N16: 0 | O16: 0 | P16: 0 | Q16: 0 | R16: 0 | S16: 0 | T16: 212 | U16: Bronze | X16: 212 | Y16: 212-BOY-6 | Z16: =Input!D20 -> Ash Carter | AA16: =IF(Input!E20=0,0,IF(ISNA(VLOOKUP((CONCATENATE("Balance Test-",Input!H20)),points1,2,)),0,(VLOOKUP((CONCATENATE("Balance Test-",Input!H20)),points1,2,)))) -> 62 | AB16: =IF(Input!E20=0,0,IF(ISNA(VLOOKUP((CONCATENATE("Standing Long Jump-",Input!I20)),points1,2,)),0,(VLOOKUP((CONCATENATE("Standing Long Jump-",Input!I20)),points1,2,)))) -> 28 | AC16: =IF(Input!E20=0,0,IF(ISNA(VLOOKUP((CONCATENATE("Speed Bounce-",Input!J20)),points1,2,)),0,(VLOOKUP((CONCATENATE("Speed Bounce-",Input!J20)),points1,2,)))) -> 34 | AD16: =IF(Input!E20=0,0,IF(ISNA(VLOOKUP((CONCATENATE("Target Throw-",Input!K20)),points1,2,)),0,(VLOOKUP((CONCATENATE("Target Throw-",Input!K20)),points1,2,)))) -> 36 | AE16: =IF(Input!E20=0,0,IF(Input!$C20>6,IF(ISNA(VLOOKUP((CONCATENATE("Overhead Heave-",Input!L20)),points1,2,)),0,(VLOOKUP((CONCATENATE("Overhead Heave-",Input!L20)),points1,2,))),0)) -> 0 | AF16: 36 | AG16: =IF(Input!E20=0,0,IF(ISNA(VLOOKUP((CONCATENATE("Hi-Stepper-",Input!M20)),points1,2,)),0,(VLOOKUP((CONCATENATE("Hi-Stepper-",Input!M20)),points1,2,)))) -> 52 | AH16: =IF(Input!E20=0,0,IF(ISNA(VLOOKUP((CONCATENATE("Chest Push-",Input!N20)),points1,2,)),0,(VLOOKUP((CONCATENATE("Chest Push-",Input!N20)),points1,2,)))) -> 0 | AI16: =IF(Input!E20=0,0,IF(ISNA(VLOOKUP((CONCATENATE("Vertical Jump-",Input!O20)),points1,2,)),0,(VLOOKUP((CONCATENATE("Vertical Jump-",Input!O20)),points1,2,)))) -> 0 | AJ16: =IF(Input!E20=0,0,IF(ISNA(VLOOKUP((CONCATENATE("Shuttle Run-",Input!P20)),points1,2,)),0,(VLOOKUP((CONCATENATE("Shuttle Run-",Input!P20)),points1,2,)))) -> 0 | AK16: =IF(Input!E20=0,0,IF(ISNA(VLOOKUP((CONCATENATE("Javelin Throw-",Input!Q20)),points1,2,)),0,(VLOOKUP((CONCATENATE("Javelin Throw-",Input!Q20)),points1,2,)))) -> 0 | AL16: =IF(Input!E20=0,0,IF(Input!$C20>6,IF(ISNA(VLOOKUP((CONCATENATE("Shot-",Input!R20)),points1,2,)),0,(VLOOKUP((CONCATENATE("Shot-",Input!R20)),points1,2,))),0)) -> 0 | AM16: 0 | AN16: =IF(Input!E20=0,0,IF(ISNA(VLOOKUP((CONCATENATE("Standing Triple Jump-",Input!S20)),points1,2,)),0,(VLOOKUP((CONCATENATE("Standing Triple Jump-",Input!S20)),points1,2,)))) -> 0 | AO16: =IF(Input!$C20>6,COUNT(Input!H20:J20,Input!M20:P20,Input!S20,Input!X20:Y20),IF(Input!$C20<=6,COUNT(Input!H20:K20,Input!M20:Q20,Input!S20))) -> 5 | AP16: =IF(AO16>=5,(LARGE((AA16:AC16,AF16:AJ16,AM16:AN16),1))+LARGE((AA16:AC16,AF16:AJ16,AM16:AN16),2)+LARGE((AA16:AC16,AF16:AJ16,AM16:AN16),3)+LARGE((AA16:AC16,AF16:AJ16,AM16:AN16),4)+LARGE((AA16:AC16,AF16:AJ16,AM16:AN16),5),0) -> 212 | AQ16: =IF(AP16=0,0,IF((Input!G20="Boy")*AND(Input!C20>6),VLOOKUP(AP16,award2,3),IF((Input!G20="Girl")*AND(Input!C20>6),VLOOKUP(AP16,award2,2),IF((Input!G20="Boy")*AND(Input!C20<=6),VLOOKUP(AP16,award12,3),IF((Input!G20="Girl")*AND(Input!C20<=6),VLOOKUP(AP16,award12,2),0))))) -> Bronze | AR16: =IF(Input!$C20>6,COUNT(Input!H20:J20,Input!M20:P20,Input!S20,Input!X20:Y20),IF(Input!$C20<=6,COUNT(Input!H20:K20,Input!M20:Q20,Input!S20))) -> 5 | AS16: 0 | AT16: =IF(AS16=0,0,IF((Input!G20="Boy")*AND(Input!C20>6),VLOOKUP(AS16,award2,5),IF((Input!G20="Girl")*AND(Input!C20>6),VLOOKUP(AS16,award2,4),IF((Input!G20="Boy")*AND(Input!C20<=6),VLOOKUP(AS16,award12,5),IF((Input!G20="Girl")*AND(Input!C20<=6),VLOOKUP(AS16,award12,4),0))))) -> 0 | AV16: 62.00001 | AW16: 28.00005 | AX16: 34.00009 | AY16: 36.00013 | AZ16: 52.00017 | BG16: =IF(AV16=" "," ",IF(Input!$G20="Boy",IF(RANK(AV16,($AV16:$BE16),0)<=5,AV16," ")," ")) -> 62.00001 | BH16: =IF(AW16=" "," ",IF(Input!$G20="Boy",IF(RANK(AW16,($AV16:$BE16),0)<=5,AW16," ")," ")) -> 28.00005 | BI16: =IF(AX16=" "," ",IF(Input!$G20="Boy",IF(RANK(AX16,($AV16:$BE16),0)<=5,AX16," ")," ")) -> 34.00009 | BJ16: =IF(AY16=" "," ",IF(Input!$G20="Boy",IF(RANK(AY16,($AV16:$BE16),0)<=5,AY16," ")," ")) -> 36.00013 | BK16: =IF(AZ16=" "," ",IF(Input!$G20="Boy",IF(RANK(AZ16,($AV16:$BE16),0)<=5,AZ16," ")," ")) -> 52.00017 | BL16: =IF(BA16=" "," ",IF(Input!$G20="Boy",IF(RANK(BA16,($AV16:$BE16),0)<=5,BA16," ")," ")) ->  | BM16: =IF(BB16=" "," ",IF(Input!$G20="Boy",IF(RANK(BB16,($AV16:$BE16),0)<=5,BB16," ")," ")) ->  | BN16: =IF(BC16=" "," ",IF(Input!$G20="Boy",IF(RANK(BC16,($AV16:$BE16),0)<=5,BC16," ")," ")) ->  | BO16: =IF(BD16=" "," ",IF(Input!$G20="Boy",IF(RANK(BD16,($AV16:$BE16),0)<=5,BD16," ")," ")) ->  | BP16: =IF(BE16=" "," ",IF(Input!$G20="Boy",IF(RANK(BE16,($AV16:$BE16),0)<=5,BE16," ")," ")) ->  | BR16: =IF(AV16=" "," ",IF(Input!$G20="Girl",IF(RANK(AV16,($AV16:$BE16),0)<=5,AV16," ")," ")) ->  | BS16: =IF(AW16=" "," ",IF(Input!$G20="Girl",IF(RANK(AW16,($AV16:$BE16),0)<=5,AW16," ")," ")) ->  | BT16: =IF(AX16=" "," ",IF(Input!$G20="Girl",IF(RANK(AX16,($AV16:$BE16),0)<=5,AX16," ")," ")) ->  | BU16: =IF(AY16=" "," ",IF(Input!$G20="Girl",IF(RANK(AY16,($AV16:$BE16),0)<=5,AY16," ")," ")) ->  | BV16: =IF(AZ16=" "," ",IF(Input!$G20="Girl",IF(RANK(AZ16,($AV16:$BE16),0)<=5,AZ16," ")," ")) ->  | BW16: =IF(BA16=" "," ",IF(Input!$G20="Girl",IF(RANK(BA16,($AV16:$BE16),0)<=5,BA16," ")," ")) ->  | BX16: =IF(BB16=" "," ",IF(Input!$G20="Girl",IF(RANK(BB16,($AV16:$BE16),0)<=5,BB16," ")," ")) ->  | BY16: =IF(BC16=" "," ",IF(Input!$G20="Girl",IF(RANK(BC16,($AV16:$BE16),0)<=5,BC16," ")," ")) ->  | BZ16: =IF(BD16=" "," ",IF(Input!$G20="Girl",IF(RANK(BD16,($AV16:$BE16),0)<=5,BD16," ")," ")) ->  | CA16: =IF(BE16=" "," ",IF(Input!$G20="Girl",IF(RANK(BE16,($AV16:$BE16),0)<=5,BE16," ")," ")) ->  | CC16: RED | CE16: RED | CG16: RED | CX16: 1e-05 | CY16: 5e-05 | CZ16: 9e-05 | DA16: 0.00013 | DB16: 0.00017 | DC16: 0.00021 | DD16: 0.00025 | DE16: 0.00029 | DF16: 0.00033 | DG16: 0.00037 | DH16: 62.00001 | DI16: 28.00005 | DJ16: 34.00009 | DK16: 36.00013 | DL16: 52.00017
C17: =Input!D21 -> Archie Wright | D17: =Input!#REF! ->  | E17: =Input!E21 -> 6 | F17: =Input!F21 -> 10 | G17: =Input!G21 -> BOY | H17: 24 | I17: 32 | J17: 28 | K17: 27 | L17: 0 | M17: 28 | N17: 0 | O17: 0 | P17: 0 | Q17: 0 | R17: 0 | S17: 0 | T17: 139 | U17: Step 7 | X17: 139 | Y17: 139-BOY-6 | Z17: =Input!D21 -> Archie Wright | AA17: =IF(Input!E21=0,0,IF(ISNA(VLOOKUP((CONCATENATE("Balance Test-",Input!H21)),points1,2,)),0,(VLOOKUP((CONCATENATE("Balance Test-",Input!H21)),points1,2,)))) -> 24 | AB17: =IF(Input!E21=0,0,IF(ISNA(VLOOKUP((CONCATENATE("Standing Long Jump-",Input!I21)),points1,2,)),0,(VLOOKUP((CONCATENATE("Standing Long Jump-",Input!I21)),points1,2,)))) -> 32 | AC17: =IF(Input!E21=0,0,IF(ISNA(VLOOKUP((CONCATENATE("Speed Bounce-",Input!J21)),points1,2,)),0,(VLOOKUP((CONCATENATE("Speed Bounce-",Input!J21)),points1,2,)))) -> 28 | AD17: =IF(Input!E21=0,0,IF(ISNA(VLOOKUP((CONCATENATE("Target Throw-",Input!K21)),points1,2,)),0,(VLOOKUP((CONCATENATE("Target Throw-",Input!K21)),points1,2,)))) -> 27 | AE17: =IF(Input!E21=0,0,IF(Input!$C21>6,IF(ISNA(VLOOKUP((CONCATENATE("Overhead Heave-",Input!L21)),points1,2,)),0,(VLOOKUP((CONCATENATE("Overhead Heave-",Input!L21)),points1,2,))),0)) -> 0 | AF17: 27 | AG17: =IF(Input!E21=0,0,IF(ISNA(VLOOKUP((CONCATENATE("Hi-Stepper-",Input!M21)),points1,2,)),0,(VLOOKUP((CONCATENATE("Hi-Stepper-",Input!M21)),points1,2,)))) -> 28 | AH17: =IF(Input!E21=0,0,IF(ISNA(VLOOKUP((CONCATENATE("Chest Push-",Input!N21)),points1,2,)),0,(VLOOKUP((CONCATENATE("Chest Push-",Input!N21)),points1,2,)))) -> 0 | AI17: =IF(Input!E21=0,0,IF(ISNA(VLOOKUP((CONCATENATE("Vertical Jump-",Input!O21)),points1,2,)),0,(VLOOKUP((CONCATENATE("Vertical Jump-",Input!O21)),points1,2,)))) -> 0 | AJ17: =IF(Input!E21=0,0,IF(ISNA(VLOOKUP((CONCATENATE("Shuttle Run-",Input!P21)),points1,2,)),0,(VLOOKUP((CONCATENATE("Shuttle Run-",Input!P21)),points1,2,)))) -> 0 | AK17: =IF(Input!E21=0,0,IF(ISNA(VLOOKUP((CONCATENATE("Javelin Throw-",Input!Q21)),points1,2,)),0,(VLOOKUP((CONCATENATE("Javelin Throw-",Input!Q21)),points1,2,)))) -> 0 | AL17: =IF(Input!E21=0,0,IF(Input!$C21>6,IF(ISNA(VLOOKUP((CONCATENATE("Shot-",Input!R21)),points1,2,)),0,(VLOOKUP((CONCATENATE("Shot-",Input!R21)),points1,2,))),0)) -> 0 | AM17: 0 | AN17: =IF(Input!E21=0,0,IF(ISNA(VLOOKUP((CONCATENATE("Standing Triple Jump-",Input!S21)),points1,2,)),0,(VLOOKUP((CONCATENATE("Standing Triple Jump-",Input!S21)),points1,2,)))) -> 0 | AO17: =IF(Input!$C21>6,COUNT(Input!H21:J21,Input!M21:P21,Input!S21,Input!X21:Y21),IF(Input!$C21<=6,COUNT(Input!H21:K21,Input!M21:Q21,Input!S21))) -> 5 | AP17: =IF(AO17>=5,(LARGE((AA17:AC17,AF17:AJ17,AM17:AN17),1))+LARGE((AA17:AC17,AF17:AJ17,AM17:AN17),2)+LARGE((AA17:AC17,AF17:AJ17,AM17:AN17),3)+LARGE((AA17:AC17,AF17:AJ17,AM17:AN17),4)+LARGE((AA17:AC17,AF17:AJ17,AM17:AN17),5),0) -> 139 | AQ17: =IF(AP17=0,0,IF((Input!G21="Boy")*AND(Input!C21>6),VLOOKUP(AP17,award2,3),IF((Input!G21="Girl")*AND(Input!C21>6),VLOOKUP(AP17,award2,2),IF((Input!G21="Boy")*AND(Input!C21<=6),VLOOKUP(AP17,award12,3),IF((Input!G21="Girl")*AND(Input!C21<=6),VLOOKUP(AP17,award12,2),0))))) -> Step 7 | AR17: =IF(Input!$C21>6,COUNT(Input!H21:J21,Input!M21:P21,Input!S21,Input!X21:Y21),IF(Input!$C21<=6,COUNT(Input!H21:K21,Input!M21:Q21,Input!S21))) -> 5 | AS17: 0 | AT17: =IF(AS17=0,0,IF((Input!G21="Boy")*AND(Input!C21>6),VLOOKUP(AS17,award2,5),IF((Input!G21="Girl")*AND(Input!C21>6),VLOOKUP(AS17,award2,4),IF((Input!G21="Boy")*AND(Input!C21<=6),VLOOKUP(AS17,award12,5),IF((Input!G21="Girl")*AND(Input!C21<=6),VLOOKUP(AS17,award12,4),0))))) -> 0 | AV17: 24.000011 | AW17: 32.000051 | AX17: 28.000091 | AY17: 27.000131 | AZ17: 28.000171 | BG17: =IF(AV17=" "," ",IF(Input!$G21="Boy",IF(RANK(AV17,($AV17:$BE17),0)<=5,AV17," ")," ")) -> 24.000011 | BH17: =IF(AW17=" "," ",IF(Input!$G21="Boy",IF(RANK(AW17,($AV17:$BE17),0)<=5,AW17," ")," ")) -> 32.000051 | BI17: =IF(AX17=" "," ",IF(Input!$G21="Boy",IF(RANK(AX17,($AV17:$BE17),0)<=5,AX17," ")," ")) -> 28.000091 | BJ17: =IF(AY17=" "," ",IF(Input!$G21="Boy",IF(RANK(AY17,($AV17:$BE17),0)<=5,AY17," ")," ")) -> 27.000131 | BK17: =IF(AZ17=" "," ",IF(Input!$G21="Boy",IF(RANK(AZ17,($AV17:$BE17),0)<=5,AZ17," ")," ")) -> 28.000171 | BL17: =IF(BA17=" "," ",IF(Input!$G21="Boy",IF(RANK(BA17,($AV17:$BE17),0)<=5,BA17," ")," ")) ->  | BM17: =IF(BB17=" "," ",IF(Input!$G21="Boy",IF(RANK(BB17,($AV17:$BE17),0)<=5,BB17," ")," ")) ->  | BN17: =IF(BC17=" "," ",IF(Input!$G21="Boy",IF(RANK(BC17,($AV17:$BE17),0)<=5,BC17," ")," ")) ->  | BO17: =IF(BD17=" "," ",IF(Input!$G21="Boy",IF(RANK(BD17,($AV17:$BE17),0)<=5,BD17," ")," ")) ->  | BP17: =IF(BE17=" "," ",IF(Input!$G21="Boy",IF(RANK(BE17,($AV17:$BE17),0)<=5,BE17," ")," ")) ->  | BR17: =IF(AV17=" "," ",IF(Input!$G21="Girl",IF(RANK(AV17,($AV17:$BE17),0)<=5,AV17," ")," ")) ->  | BS17: =IF(AW17=" "," ",IF(Input!$G21="Girl",IF(RANK(AW17,($AV17:$BE17),0)<=5,AW17," ")," ")) ->  | BT17: =IF(AX17=" "," ",IF(Input!$G21="Girl",IF(RANK(AX17,($AV17:$BE17),0)<=5,AX17," ")," ")) ->  | BU17: =IF(AY17=" "," ",IF(Input!$G21="Girl",IF(RANK(AY17,($AV17:$BE17),0)<=5,AY17," ")," ")) ->  | BV17: =IF(AZ17=" "," ",IF(Input!$G21="Girl",IF(RANK(AZ17,($AV17:$BE17),0)<=5,AZ17," ")," ")) ->  | BW17: =IF(BA17=" "," ",IF(Input!$G21="Girl",IF(RANK(BA17,($AV17:$BE17),0)<=5,BA17," ")," ")) ->  | BX17: =IF(BB17=" "," ",IF(Input!$G21="Girl",IF(RANK(BB17,($AV17:$BE17),0)<=5,BB17," ")," ")) ->  | BY17: =IF(BC17=" "," ",IF(Input!$G21="Girl",IF(RANK(BC17,($AV17:$BE17),0)<=5,BC17," ")," ")) ->  | BZ17: =IF(BD17=" "," ",IF(Input!$G21="Girl",IF(RANK(BD17,($AV17:$BE17),0)<=5,BD17," ")," ")) ->  | CA17: =IF(BE17=" "," ",IF(Input!$G21="Girl",IF(RANK(BE17,($AV17:$BE17),0)<=5,BE17," ")," ")) ->  | CX17: 1.1e-05 | CY17: 5.1e-05 | CZ17: 9.1e-05 | DA17: 0.000131 | DB17: 0.000171 | DC17: 0.000211 | DD17: 0.000251 | DE17: 0.000291 | DF17: 0.000331 | DG17: 0.000371 | DH17: 24.000011 | DI17: 32.000051 | DJ17: 28.000091 | DK17: 27.000131 | DL17: 28.000171
C18: =Input!D22 -> Charlotte Keane | D18: =Input!#REF! ->  | E18: =Input!E22 -> 7 | F18: =Input!F22 -> 11 | G18: =Input!G22 -> GIRL | H18: 65 | I18: 41 | J18: 33 | K18: 0 | L18: 0 | M18: 29 | N18: 36 | O18: 0 | P18: 0 | Q18: 0 | R18: 0 | S18: 0 | T18: 204 | U18: Step 10 | X18: 204 | Y18: 204-GIRL-7 | Z18: =Input!D22 -> Charlotte Keane | AA18: =IF(Input!E22=0,0,IF(ISNA(VLOOKUP((CONCATENATE("Balance Test-",Input!H22)),points1,2,)),0,(VLOOKUP((CONCATENATE("Balance Test-",Input!H22)),points1,2,)))) -> 65 | AB18: =IF(Input!E22=0,0,IF(ISNA(VLOOKUP((CONCATENATE("Standing Long Jump-",Input!I22)),points1,2,)),0,(VLOOKUP((CONCATENATE("Standing Long Jump-",Input!I22)),points1,2,)))) -> 41 | AC18: =IF(Input!E22=0,0,IF(ISNA(VLOOKUP((CONCATENATE("Speed Bounce-",Input!J22)),points1,2,)),0,(VLOOKUP((CONCATENATE("Speed Bounce-",Input!J22)),points1,2,)))) -> 33 | AD18: =IF(Input!E22=0,0,IF(ISNA(VLOOKUP((CONCATENATE("Target Throw-",Input!K22)),points1,2,)),0,(VLOOKUP((CONCATENATE("Target Throw-",Input!K22)),points1,2,)))) -> 0 | AE18: =IF(Input!E22=0,0,IF(Input!$C22>6,IF(ISNA(VLOOKUP((CONCATENATE("Overhead Heave-",Input!L22)),points1,2,)),0,(VLOOKUP((CONCATENATE("Overhead Heave-",Input!L22)),points1,2,))),0)) -> 0 | AF18: 0 | AG18: =IF(Input!E22=0,0,IF(ISNA(VLOOKUP((CONCATENATE("Hi-Stepper-",Input!M22)),points1,2,)),0,(VLOOKUP((CONCATENATE("Hi-Stepper-",Input!M22)),points1,2,)))) -> 29 | AH18: =IF(Input!E22=0,0,IF(ISNA(VLOOKUP((CONCATENATE("Chest Push-",Input!N22)),points1,2,)),0,(VLOOKUP((CONCATENATE("Chest Push-",Input!N22)),points1,2,)))) -> 36 | AI18: =IF(Input!E22=0,0,IF(ISNA(VLOOKUP((CONCATENATE("Vertical Jump-",Input!O22)),points1,2,)),0,(VLOOKUP((CONCATENATE("Vertical Jump-",Input!O22)),points1,2,)))) -> 0 | AJ18: =IF(Input!E22=0,0,IF(ISNA(VLOOKUP((CONCATENATE("Shuttle Run-",Input!P22)),points1,2,)),0,(VLOOKUP((CONCATENATE("Shuttle Run-",Input!P22)),points1,2,)))) -> 0 | AK18: =IF(Input!E22=0,0,IF(ISNA(VLOOKUP((CONCATENATE("Javelin Throw-",Input!Q22)),points1,2,)),0,(VLOOKUP((CONCATENATE("Javelin Throw-",Input!Q22)),points1,2,)))) -> 0 | AL18: =IF(Input!E22=0,0,IF(Input!$C22>6,IF(ISNA(VLOOKUP((CONCATENATE("Shot-",Input!R22)),points1,2,)),0,(VLOOKUP((CONCATENATE("Shot-",Input!R22)),points1,2,))),0)) -> 0 | AM18: 0 | AN18: =IF(Input!E22=0,0,IF(ISNA(VLOOKUP((CONCATENATE("Standing Triple Jump-",Input!S22)),points1,2,)),0,(VLOOKUP((CONCATENATE("Standing Triple Jump-",Input!S22)),points1,2,)))) -> 0 | AO18: =IF(Input!$C22>6,COUNT(Input!H22:J22,Input!M22:P22,Input!S22,Input!X22:Y22),IF(Input!$C22<=6,COUNT(Input!H22:K22,Input!M22:Q22,Input!S22))) -> 5 | AP18: =IF(AO18>=5,(LARGE((AA18:AC18,AF18:AJ18,AM18:AN18),1))+LARGE((AA18:AC18,AF18:AJ18,AM18:AN18),2)+LARGE((AA18:AC18,AF18:AJ18,AM18:AN18),3)+LARGE((AA18:AC18,AF18:AJ18,AM18:AN18),4)+LARGE((AA18:AC18,AF18:AJ18,AM18:AN18),5),0) -> 204 | AQ18: =IF(AP18=0,0,IF((Input!G22="Boy")*AND(Input!C22>6),VLOOKUP(AP18,award2,3),IF((Input!G22="Girl")*AND(Input!C22>6),VLOOKUP(AP18,award2,2),IF((Input!G22="Boy")*AND(Input!C22<=6),VLOOKUP(AP18,award12,3),IF((Input!G22="Girl")*AND(Input!C22<=6),VLOOKUP(AP18,award12,2),0))))) -> Step 10 | AR18: =IF(Input!$C22>6,COUNT(Input!H22:J22,Input!M22:P22,Input!S22,Input!X22:Y22),IF(Input!$C22<=6,COUNT(Input!H22:K22,Input!M22:Q22,Input!S22))) -> 5 | AS18: 0 | AT18: =IF(AS18=0,0,IF((Input!G22="Boy")*AND(Input!C22>6),VLOOKUP(AS18,award2,5),IF((Input!G22="Girl")*AND(Input!C22>6),VLOOKUP(AS18,award2,4),IF((Input!G22="Boy")*AND(Input!C22<=6),VLOOKUP(AS18,award12,5),IF((Input!G22="Girl")*AND(Input!C22<=6),VLOOKUP(AS18,award12,4),0))))) -> 0 | AV18: 65.000012 | AW18: 41.000052 | AX18: 33.000092 | AZ18: 29.000172 | BA18: 36.000212 | BG18: =IF(AV18=" "," ",IF(Input!$G22="Boy",IF(RANK(AV18,($AV18:$BE18),0)<=5,AV18," ")," ")) ->  | BH18: =IF(AW18=" "," ",IF(Input!$G22="Boy",IF(RANK(AW18,($AV18:$BE18),0)<=5,AW18," ")," ")) ->  | BI18: =IF(AX18=" "," ",IF(Input!$G22="Boy",IF(RANK(AX18,($AV18:$BE18),0)<=5,AX18," ")," ")) ->  | BJ18: =IF(AY18=" "," ",IF(Input!$G22="Boy",IF(RANK(AY18,($AV18:$BE18),0)<=5,AY18," ")," ")) ->  | BK18: =IF(AZ18=" "," ",IF(Input!$G22="Boy",IF(RANK(AZ18,($AV18:$BE18),0)<=5,AZ18," ")," ")) ->  | BL18: =IF(BA18=" "," ",IF(Input!$G22="Boy",IF(RANK(BA18,($AV18:$BE18),0)<=5,BA18," ")," ")) ->  | BM18: =IF(BB18=" "," ",IF(Input!$G22="Boy",IF(RANK(BB18,($AV18:$BE18),0)<=5,BB18," ")," ")) ->  | BN18: =IF(BC18=" "," ",IF(Input!$G22="Boy",IF(RANK(BC18,($AV18:$BE18),0)<=5,BC18," ")," ")) ->  | BO18: =IF(BD18=" "," ",IF(Input!$G22="Boy",IF(RANK(BD18,($AV18:$BE18),0)<=5,BD18," ")," ")) ->  | BP18: =IF(BE18=" "," ",IF(Input!$G22="Boy",IF(RANK(BE18,($AV18:$BE18),0)<=5,BE18," ")," ")) ->  | BR18: =IF(AV18=" "," ",IF(Input!$G22="Girl",IF(RANK(AV18,($AV18:$BE18),0)<=5,AV18," ")," ")) -> 65.000012 | BS18: =IF(AW18=" "," ",IF(Input!$G22="Girl",IF(RANK(AW18,($AV18:$BE18),0)<=5,AW18," ")," ")) -> 41.000052 | BT18: =IF(AX18=" "," ",IF(Input!$G22="Girl",IF(RANK(AX18,($AV18:$BE18),0)<=5,AX18," ")," ")) -> 33.000092 | BU18: =IF(AY18=" "," ",IF(Input!$G22="Girl",IF(RANK(AY18,($AV18:$BE18),0)<=5,AY18," ")," ")) ->  | BV18: =IF(AZ18=" "," ",IF(Input!$G22="Girl",IF(RANK(AZ18,($AV18:$BE18),0)<=5,AZ18," ")," ")) -> 29.000172 | BW18: =IF(BA18=" "," ",IF(Input!$G22="Girl",IF(RANK(BA18,($AV18:$BE18),0)<=5,BA18," ")," ")) -> 36.000212 | BX18: =IF(BB18=" "," ",IF(Input!$G22="Girl",IF(RANK(BB18,($AV18:$BE18),0)<=5,BB18," ")," ")) ->  | BY18: =IF(BC18=" "," ",IF(Input!$G22="Girl",IF(RANK(BC18,($AV18:$BE18),0)<=5,BC18," ")," ")) ->  | BZ18: =IF(BD18=" "," ",IF(Input!$G22="Girl",IF(RANK(BD18,($AV18:$BE18),0)<=5,BD18," ")," ")) ->  | CA18: =IF(BE18=" "," ",IF(Input!$G22="Girl",IF(RANK(BE18,($AV18:$BE18),0)<=5,BE18," ")," ")) ->  | CN18: RED | CP18: RED | CS18: RED | CX18: 1.2e-05 | CY18: 5.2e-05 | CZ18: 9.2e-05 | DA18: 0.000132 | DB18: 0.000172 | DC18: 0.000212 | DD18: 0.000252 | DE18: 0.000292 | DF18: 0.000332 | DG18: 0.000372 | DS18: 65.000012 | DT18: 41.000052 | DU18: 33.000092 | DW18: 29.000172 | DX18: 36.000212
C19: =Input!D23 -> Arti Mead | D19: =Input!#REF! ->  | E19: =Input!E23 -> 8 | F19: =Input!F23 -> 12 | G19: =Input!G23 -> BOY | H19: 56 | I19: 32 | J19: 32 | K19: 0 | L19: 0 | M19: 46 | N19: 36 | O19: 0 | P19: 0 | Q19: 0 | R19: 0 | S19: 0 | T19: 202 | U19: Step 9 | X19: 202 | Y19: 202-BOY-8 | Z19: =Input!D23 -> Arti Mead | AA19: =IF(Input!E23=0,0,IF(ISNA(VLOOKUP((CONCATENATE("Balance Test-",Input!H23)),points1,2,)),0,(VLOOKUP((CONCATENATE("Balance Test-",Input!H23)),points1,2,)))) -> 56 | AB19: =IF(Input!E23=0,0,IF(ISNA(VLOOKUP((CONCATENATE("Standing Long Jump-",Input!I23)),points1,2,)),0,(VLOOKUP((CONCATENATE("Standing Long Jump-",Input!I23)),points1,2,)))) -> 32 | AC19: =IF(Input!E23=0,0,IF(ISNA(VLOOKUP((CONCATENATE("Speed Bounce-",Input!J23)),points1,2,)),0,(VLOOKUP((CONCATENATE("Speed Bounce-",Input!J23)),points1,2,)))) -> 32 | AD19: =IF(Input!E23=0,0,IF(ISNA(VLOOKUP((CONCATENATE("Target Throw-",Input!K23)),points1,2,)),0,(VLOOKUP((CONCATENATE("Target Throw-",Input!K23)),points1,2,)))) -> 0 | AE19: =IF(Input!E23=0,0,IF(Input!$C23>6,IF(ISNA(VLOOKUP((CONCATENATE("Overhead Heave-",Input!L23)),points1,2,)),0,(VLOOKUP((CONCATENATE("Overhead Heave-",Input!L23)),points1,2,))),0)) -> 0 | AF19: 0 | AG19: =IF(Input!E23=0,0,IF(ISNA(VLOOKUP((CONCATENATE("Hi-Stepper-",Input!M23)),points1,2,)),0,(VLOOKUP((CONCATENATE("Hi-Stepper-",Input!M23)),points1,2,)))) -> 46 | AH19: =IF(Input!E23=0,0,IF(ISNA(VLOOKUP((CONCATENATE("Chest Push-",Input!N23)),points1,2,)),0,(VLOOKUP((CONCATENATE("Chest Push-",Input!N23)),points1,2,)))) -> 36 | AI19: =IF(Input!E23=0,0,IF(ISNA(VLOOKUP((CONCATENATE("Vertical Jump-",Input!O23)),points1,2,)),0,(VLOOKUP((CONCATENATE("Vertical Jump-",Input!O23)),points1,2,)))) -> 0 | AJ19: =IF(Input!E23=0,0,IF(ISNA(VLOOKUP((CONCATENATE("Shuttle Run-",Input!P23)),points1,2,)),0,(VLOOKUP((CONCATENATE("Shuttle Run-",Input!P23)),points1,2,)))) -> 0 | AK19: =IF(Input!E23=0,0,IF(ISNA(VLOOKUP((CONCATENATE("Javelin Throw-",Input!Q23)),points1,2,)),0,(VLOOKUP((CONCATENATE("Javelin Throw-",Input!Q23)),points1,2,)))) -> 0 | AL19: =IF(Input!E23=0,0,IF(Input!$C23>6,IF(ISNA(VLOOKUP((CONCATENATE("Shot-",Input!R23)),points1,2,)),0,(VLOOKUP((CONCATENATE("Shot-",Input!R23)),points1,2,))),0)) -> 0 | AM19: 0 | AN19: =IF(Input!E23=0,0,IF(ISNA(VLOOKUP((CONCATENATE("Standing Triple Jump-",Input!S23)),points1,2,)),0,(VLOOKUP((CONCATENATE("Standing Triple Jump-",Input!S23)),points1,2,)))) -> 0 | AO19: =IF(Input!$C23>6,COUNT(Input!H23:J23,Input!M23:P23,Input!S23,Input!X23:Y23),IF(Input!$C23<=6,COUNT(Input!H23:K23,Input!M23:Q23,Input!S23))) -> 5 | AP19: =IF(AO19>=5,(LARGE((AA19:AC19,AF19:AJ19,AM19:AN19),1))+LARGE((AA19:AC19,AF19:AJ19,AM19:AN19),2)+LARGE((AA19:AC19,AF19:AJ19,AM19:AN19),3)+LARGE((AA19:AC19,AF19:AJ19,AM19:AN19),4)+LARGE((AA19:AC19,AF19:AJ19,AM19:AN19),5),0) -> 202 | AQ19: =IF(AP19=0,0,IF((Input!G23="Boy")*AND(Input!C23>6),VLOOKUP(AP19,award2,3),IF((Input!G23="Girl")*AND(Input!C23>6),VLOOKUP(AP19,award2,2),IF((Input!G23="Boy")*AND(Input!C23<=6),VLOOKUP(AP19,award12,3),IF((Input!G23="Girl")*AND(Input!C23<=6),VLOOKUP(AP19,award12,2),0))))) -> Step 9 | AR19: =IF(Input!$C23>6,COUNT(Input!H23:J23,Input!M23:P23,Input!S23,Input!X23:Y23),IF(Input!$C23<=6,COUNT(Input!H23:K23,Input!M23:Q23,Input!S23))) -> 5 | AS19: 0 | AT19: =IF(AS19=0,0,IF((Input!G23="Boy")*AND(Input!C23>6),VLOOKUP(AS19,award2,5),IF((Input!G23="Girl")*AND(Input!C23>6),VLOOKUP(AS19,award2,4),IF((Input!G23="Boy")*AND(Input!C23<=6),VLOOKUP(AS19,award12,5),IF((Input!G23="Girl")*AND(Input!C23<=6),VLOOKUP(AS19,award12,4),0))))) -> 0 | AV19: 56.000013 | AW19: 32.000053 | AX19: 32.000093 | AZ19: 46.000173 | BA19: 36.000213 | BG19: =IF(AV19=" "," ",IF(Input!$G23="Boy",IF(RANK(AV19,($AV19:$BE19),0)<=5,AV19," ")," ")) -> 56.000013 | BH19: =IF(AW19=" "," ",IF(Input!$G23="Boy",IF(RANK(AW19,($AV19:$BE19),0)<=5,AW19," ")," ")) -> 32.000053 | BI19: =IF(AX19=" "," ",IF(Input!$G23="Boy",IF(RANK(AX19,($AV19:$BE19),0)<=5,AX19," ")," ")) -> 32.000093 | BJ19: =IF(AY19=" "," ",IF(Input!$G23="Boy",IF(RANK(AY19,($AV19:$BE19),0)<=5,AY19," ")," ")) ->  | BK19: =IF(AZ19=" "," ",IF(Input!$G23="Boy",IF(RANK(AZ19,($AV19:$BE19),0)<=5,AZ19," ")," ")) -> 46.000173 | BL19: =IF(BA19=" "," ",IF(Input!$G23="Boy",IF(RANK(BA19,($AV19:$BE19),0)<=5,BA19," ")," ")) -> 36.000213 | BM19: =IF(BB19=" "," ",IF(Input!$G23="Boy",IF(RANK(BB19,($AV19:$BE19),0)<=5,BB19," ")," ")) ->  | BN19: =IF(BC19=" "," ",IF(Input!$G23="Boy",IF(RANK(BC19,($AV19:$BE19),0)<=5,BC19," ")," ")) ->  | BO19: =IF(BD19=" "," ",IF(Input!$G23="Boy",IF(RANK(BD19,($AV19:$BE19),0)<=5,BD19," ")," ")) ->  | BP19: =IF(BE19=" "," ",IF(Input!$G23="Boy",IF(RANK(BE19,($AV19:$BE19),0)<=5,BE19," ")," ")) ->  | BR19: =IF(AV19=" "," ",IF(Input!$G23="Girl",IF(RANK(AV19,($AV19:$BE19),0)<=5,AV19," ")," ")) ->  | BS19: =IF(AW19=" "," ",IF(Input!$G23="Girl",IF(RANK(AW19,($AV19:$BE19),0)<=5,AW19," ")," ")) ->  | BT19: =IF(AX19=" "," ",IF(Input!$G23="Girl",IF(RANK(AX19,($AV19:$BE19),0)<=5,AX19," ")," ")) ->  | BU19: =IF(AY19=" "," ",IF(Input!$G23="Girl",IF(RANK(AY19,($AV19:$BE19),0)<=5,AY19," ")," ")) ->  | BV19: =IF(AZ19=" "," ",IF(Input!$G23="Girl",IF(RANK(AZ19,($AV19:$BE19),0)<=5,AZ19," ")," ")) ->  | BW19: =IF(BA19=" "," ",IF(Input!$G23="Girl",IF(RANK(BA19,($AV19:$BE19),0)<=5,BA19," ")," ")) ->  | BX19: =IF(BB19=" "," ",IF(Input!$G23="Girl",IF(RANK(BB19,($AV19:$BE19),0)<=5,BB19," ")," ")) ->  | BY19: =IF(BC19=" "," ",IF(Input!$G23="Girl",IF(RANK(BC19,($AV19:$BE19),0)<=5,BC19," ")," ")) ->  | BZ19: =IF(BD19=" "," ",IF(Input!$G23="Girl",IF(RANK(BD19,($AV19:$BE19),0)<=5,BD19," ")," ")) ->  | CA19: =IF(BE19=" "," ",IF(Input!$G23="Girl",IF(RANK(BE19,($AV19:$BE19),0)<=5,BE19," ")," ")) ->  | CC19: RED | CG19: RED | CH19: RED | CX19: 1.3e-05 | CY19: 5.3e-05 | CZ19: 9.3e-05 | DA19: 0.000133 | DB19: 0.000173 | DC19: 0.000213 | DD19: 0.000253 | DE19: 0.000293 | DF19: 0.000333 | DG19: 0.000373 | DH19: 56.000013 | DI19: 32.000053 | DJ19: 32.000093 | DL19: 46.000173 | DM19: 36.000213
C20: =Input!D24 -> Sid Mead | D20: =Input!#REF! ->  | E20: =Input!E24 -> 7 | F20: =Input!F24 -> 11 | G20: =Input!G24 -> BOY | H20: 44 | I20: 18 | J20: 30 | K20: 0 | L20: 0 | M20: 39 | N20: 31 | O20: 0 | P20: 0 | Q20: 0 | R20: 0 | S20: 0 | T20: 162 | U20: Step 7 | X20: 162 | Y20: 162-BOY-7 | Z20: =Input!D24 -> Sid Mead | AA20: =IF(Input!E24=0,0,IF(ISNA(VLOOKUP((CONCATENATE("Balance Test-",Input!H24)),points1,2,)),0,(VLOOKUP((CONCATENATE("Balance Test-",Input!H24)),points1,2,)))) -> 44 | AB20: =IF(Input!E24=0,0,IF(ISNA(VLOOKUP((CONCATENATE("Standing Long Jump-",Input!I24)),points1,2,)),0,(VLOOKUP((CONCATENATE("Standing Long Jump-",Input!I24)),points1,2,)))) -> 18 | AC20: =IF(Input!E24=0,0,IF(ISNA(VLOOKUP((CONCATENATE("Speed Bounce-",Input!J24)),points1,2,)),0,(VLOOKUP((CONCATENATE("Speed Bounce-",Input!J24)),points1,2,)))) -> 30 | AD20: =IF(Input!E24=0,0,IF(ISNA(VLOOKUP((CONCATENATE("Target Throw-",Input!K24)),points1,2,)),0,(VLOOKUP((CONCATENATE("Target Throw-",Input!K24)),points1,2,)))) -> 0 | AE20: =IF(Input!E24=0,0,IF(Input!$C24>6,IF(ISNA(VLOOKUP((CONCATENATE("Overhead Heave-",Input!L24)),points1,2,)),0,(VLOOKUP((CONCATENATE("Overhead Heave-",Input!L24)),points1,2,))),0)) -> 0 | AF20: 0 | AG20: =IF(Input!E24=0,0,IF(ISNA(VLOOKUP((CONCATENATE("Hi-Stepper-",Input!M24)),points1,2,)),0,(VLOOKUP((CONCATENATE("Hi-Stepper-",Input!M24)),points1,2,)))) -> 39 | AH20: =IF(Input!E24=0,0,IF(ISNA(VLOOKUP((CONCATENATE("Chest Push-",Input!N24)),points1,2,)),0,(VLOOKUP((CONCATENATE("Chest Push-",Input!N24)),points1,2,)))) -> 31 | AI20: =IF(Input!E24=0,0,IF(ISNA(VLOOKUP((CONCATENATE("Vertical Jump-",Input!O24)),points1,2,)),0,(VLOOKUP((CONCATENATE("Vertical Jump-",Input!O24)),points1,2,)))) -> 0 | AJ20: =IF(Input!E24=0,0,IF(ISNA(VLOOKUP((CONCATENATE("Shuttle Run-",Input!P24)),points1,2,)),0,(VLOOKUP((CONCATENATE("Shuttle Run-",Input!P24)),points1,2,)))) -> 0 | AK20: =IF(Input!E24=0,0,IF(ISNA(VLOOKUP((CONCATENATE("Javelin Throw-",Input!Q24)),points1,2,)),0,(VLOOKUP((CONCATENATE("Javelin Throw-",Input!Q24)),points1,2,)))) -> 0 | AL20: =IF(Input!E24=0,0,IF(Input!$C24>6,IF(ISNA(VLOOKUP((CONCATENATE("Shot-",Input!R24)),points1,2,)),0,(VLOOKUP((CONCATENATE("Shot-",Input!R24)),points1,2,))),0)) -> 0 | AM20: 0 | AN20: =IF(Input!E24=0,0,IF(ISNA(VLOOKUP((CONCATENATE("Standing Triple Jump-",Input!S24)),points1,2,)),0,(VLOOKUP((CONCATENATE("Standing Triple Jump-",Input!S24)),points1,2,)))) -> 0 | AO20: =IF(Input!$C24>6,COUNT(Input!H24:J24,Input!M24:P24,Input!S24,Input!X24:Y24),IF(Input!$C24<=6,COUNT(Input!H24:K24,Input!M24:Q24,Input!S24))) -> 5 | AP20: =IF(AO20>=5,(LARGE((AA20:AC20,AF20:AJ20,AM20:AN20),1))+LARGE((AA20:AC20,AF20:AJ20,AM20:AN20),2)+LARGE((AA20:AC20,AF20:AJ20,AM20:AN20),3)+LARGE((AA20:AC20,AF20:AJ20,AM20:AN20),4)+LARGE((AA20:AC20,AF20:AJ20,AM20:AN20),5),0) -> 162 | AQ20: =IF(AP20=0,0,IF((Input!G24="Boy")*AND(Input!C24>6),VLOOKUP(AP20,award2,3),IF((Input!G24="Girl")*AND(Input!C24>6),VLOOKUP(AP20,award2,2),IF((Input!G24="Boy")*AND(Input!C24<=6),VLOOKUP(AP20,award12,3),IF((Input!G24="Girl")*AND(Input!C24<=6),VLOOKUP(AP20,award12,2),0))))) -> Step 7 | AR20: =IF(Input!$C24>6,COUNT(Input!H24:J24,Input!M24:P24,Input!S24,Input!X24:Y24),IF(Input!$C24<=6,COUNT(Input!H24:K24,Input!M24:Q24,Input!S24))) -> 5 | AS20: 0 | AT20: =IF(AS20=0,0,IF((Input!G24="Boy")*AND(Input!C24>6),VLOOKUP(AS20,award2,5),IF((Input!G24="Girl")*AND(Input!C24>6),VLOOKUP(AS20,award2,4),IF((Input!G24="Boy")*AND(Input!C24<=6),VLOOKUP(AS20,award12,5),IF((Input!G24="Girl")*AND(Input!C24<=6),VLOOKUP(AS20,award12,4),0))))) -> 0 | AV20: 44.000014 | AW20: 18.000054 | AX20: 30.000094 | AZ20: 39.000174 | BA20: 31.000214 | BG20: =IF(AV20=" "," ",IF(Input!$G24="Boy",IF(RANK(AV20,($AV20:$BE20),0)<=5,AV20," ")," ")) -> 44.000014 | BH20: =IF(AW20=" "," ",IF(Input!$G24="Boy",IF(RANK(AW20,($AV20:$BE20),0)<=5,AW20," ")," ")) -> 18.000054 | BI20: =IF(AX20=" "," ",IF(Input!$G24="Boy",IF(RANK(AX20,($AV20:$BE20),0)<=5,AX20," ")," ")) -> 30.000094 | BJ20: =IF(AY20=" "," ",IF(Input!$G24="Boy",IF(RANK(AY20,($AV20:$BE20),0)<=5,AY20," ")," ")) ->  | BK20: =IF(AZ20=" "," ",IF(Input!$G24="Boy",IF(RANK(AZ20,($AV20:$BE20),0)<=5,AZ20," ")," ")) -> 39.000174 | BL20: =IF(BA20=" "," ",IF(Input!$G24="Boy",IF(RANK(BA20,($AV20:$BE20),0)<=5,BA20," ")," ")) -> 31.000214 | BM20: =IF(BB20=" "," ",IF(Input!$G24="Boy",IF(RANK(BB20,($AV20:$BE20),0)<=5,BB20," ")," ")) ->  | BN20: =IF(BC20=" "," ",IF(Input!$G24="Boy",IF(RANK(BC20,($AV20:$BE20),0)<=5,BC20," ")," ")) ->  | BO20: =IF(BD20=" "," ",IF(Input!$G24="Boy",IF(RANK(BD20,($AV20:$BE20),0)<=5,BD20," ")," ")) ->  | BP20: =IF(BE20=" "," ",IF(Input!$G24="Boy",IF(RANK(BE20,($AV20:$BE20),0)<=5,BE20," ")," ")) ->  | BR20: =IF(AV20=" "," ",IF(Input!$G24="Girl",IF(RANK(AV20,($AV20:$BE20),0)<=5,AV20," ")," ")) ->  | BS20: =IF(AW20=" "," ",IF(Input!$G24="Girl",IF(RANK(AW20,($AV20:$BE20),0)<=5,AW20," ")," ")) ->  | BT20: =IF(AX20=" "," ",IF(Input!$G24="Girl",IF(RANK(AX20,($AV20:$BE20),0)<=5,AX20," ")," ")) ->  | BU20: =IF(AY20=" "," ",IF(Input!$G24="Girl",IF(RANK(AY20,($AV20:$BE20),0)<=5,AY20," ")," ")) ->  | BV20: =IF(AZ20=" "," ",IF(Input!$G24="Girl",IF(RANK(AZ20,($AV20:$BE20),0)<=5,AZ20," ")," ")) ->  | BW20: =IF(BA20=" "," ",IF(Input!$G24="Girl",IF(RANK(BA20,($AV20:$BE20),0)<=5,BA20," ")," ")) ->  | BX20: =IF(BB20=" "," ",IF(Input!$G24="Girl",IF(RANK(BB20,($AV20:$BE20),0)<=5,BB20," ")," ")) ->  | BY20: =IF(BC20=" "," ",IF(Input!$G24="Girl",IF(RANK(BC20,($AV20:$BE20),0)<=5,BC20," ")," ")) ->  | BZ20: =IF(BD20=" "," ",IF(Input!$G24="Girl",IF(RANK(BD20,($AV20:$BE20),0)<=5,BD20," ")," ")) ->  | CA20: =IF(BE20=" "," ",IF(Input!$G24="Girl",IF(RANK(BE20,($AV20:$BE20),0)<=5,BE20," ")," ")) ->  | CG20: RED | CX20: 1.4e-05 | CY20: 5.4e-05 | CZ20: 9.4e-05 | DA20: 0.000134 | DB20: 0.000174 | DC20: 0.000214 | DD20: 0.000254 | DE20: 0.000294 | DF20: 0.000334 | DG20: 0.000374 | DH20: 44.000014 | DI20: 18.000054 | DJ20: 30.000094 | DL20: 39.000174 | DM20: 31.000214
C21: =Input!D25 -> Arron O'Dwyer | D21: =Input!#REF! ->  | E21: =Input!E25 -> 7 | F21: =Input!F25 -> 11 | G21: =Input!G25 -> BOY | H21: 65 | I21: 50 | J21: 42 | K21: 0 | L21: 0 | M21: 46 | N21: 40 | O21: 0 | P21: 0 | Q21: 0 | R21: 0 | S21: 0 | T21: 243 | U21: Bronze | X21: 243 | Y21: 243-BOY-7 | Z21: =Input!D25 -> Arron O'Dwyer | AA21: =IF(Input!E25=0,0,IF(ISNA(VLOOKUP((CONCATENATE("Balance Test-",Input!H25)),points1,2,)),0,(VLOOKUP((CONCATENATE("Balance Test-",Input!H25)),points1,2,)))) -> 65 | AB21: =IF(Input!E25=0,0,IF(ISNA(VLOOKUP((CONCATENATE("Standing Long Jump-",Input!I25)),points1,2,)),0,(VLOOKUP((CONCATENATE("Standing Long Jump-",Input!I25)),points1,2,)))) -> 50 | AC21: =IF(Input!E25=0,0,IF(ISNA(VLOOKUP((CONCATENATE("Speed Bounce-",Input!J25)),points1,2,)),0,(VLOOKUP((CONCATENATE("Speed Bounce-",Input!J25)),points1,2,)))) -> 42 | AD21: =IF(Input!E25=0,0,IF(ISNA(VLOOKUP((CONCATENATE("Target Throw-",Input!K25)),points1,2,)),0,(VLOOKUP((CONCATENATE("Target Throw-",Input!K25)),points1,2,)))) -> 0 | AE21: =IF(Input!E25=0,0,IF(Input!$C25>6,IF(ISNA(VLOOKUP((CONCATENATE("Overhead Heave-",Input!L25)),points1,2,)),0,(VLOOKUP((CONCATENATE("Overhead Heave-",Input!L25)),points1,2,))),0)) -> 0 | AF21: 0 | AG21: =IF(Input!E25=0,0,IF(ISNA(VLOOKUP((CONCATENATE("Hi-Stepper-",Input!M25)),points1,2,)),0,(VLOOKUP((CONCATENATE("Hi-Stepper-",Input!M25)),points1,2,)))) -> 46 | AH21: =IF(Input!E25=0,0,IF(ISNA(VLOOKUP((CONCATENATE("Chest Push-",Input!N25)),points1,2,)),0,(VLOOKUP((CONCATENATE("Chest Push-",Input!N25)),points1,2,)))) -> 40 | AI21: =IF(Input!E25=0,0,IF(ISNA(VLOOKUP((CONCATENATE("Vertical Jump-",Input!O25)),points1,2,)),0,(VLOOKUP((CONCATENATE("Vertical Jump-",Input!O25)),points1,2,)))) -> 0 | AJ21: =IF(Input!E25=0,0,IF(ISNA(VLOOKUP((CONCATENATE("Shuttle Run-",Input!P25)),points1,2,)),0,(VLOOKUP((CONCATENATE("Shuttle Run-",Input!P25)),points1,2,)))) -> 0 | AK21: =IF(Input!E25=0,0,IF(ISNA(VLOOKUP((CONCATENATE("Javelin Throw-",Input!Q25)),points1,2,)),0,(VLOOKUP((CONCATENATE("Javelin Throw-",Input!Q25)),points1,2,)))) -> 0 | AL21: =IF(Input!E25=0,0,IF(Input!$C25>6,IF(ISNA(VLOOKUP((CONCATENATE("Shot-",Input!R25)),points1,2,)),0,(VLOOKUP((CONCATENATE("Shot-",Input!R25)),points1,2,))),0)) -> 0 | AM21: 0 | AN21: =IF(Input!E25=0,0,IF(ISNA(VLOOKUP((CONCATENATE("Standing Triple Jump-",Input!S25)),points1,2,)),0,(VLOOKUP((CONCATENATE("Standing Triple Jump-",Input!S25)),points1,2,)))) -> 0 | AO21: =IF(Input!$C25>6,COUNT(Input!H25:J25,Input!M25:P25,Input!S25,Input!X25:Y25),IF(Input!$C25<=6,COUNT(Input!H25:K25,Input!M25:Q25,Input!S25))) -> 5 | AP21: =IF(AO21>=5,(LARGE((AA21:AC21,AF21:AJ21,AM21:AN21),1))+LARGE((AA21:AC21,AF21:AJ21,AM21:AN21),2)+LARGE((AA21:AC21,AF21:AJ21,AM21:AN21),3)+LARGE((AA21:AC21,AF21:AJ21,AM21:AN21),4)+LARGE((AA21:AC21,AF21:AJ21,AM21:AN21),5),0) -> 243 | AQ21: =IF(AP21=0,0,IF((Input!G25="Boy")*AND(Input!C25>6),VLOOKUP(AP21,award2,3),IF((Input!G25="Girl")*AND(Input!C25>6),VLOOKUP(AP21,award2,2),IF((Input!G25="Boy")*AND(Input!C25<=6),VLOOKUP(AP21,award12,3),IF((Input!G25="Girl")*AND(Input!C25<=6),VLOOKUP(AP21,award12,2),0))))) -> Bronze | AR21: =IF(Input!$C25>6,COUNT(Input!H25:J25,Input!M25:P25,Input!S25,Input!X25:Y25),IF(Input!$C25<=6,COUNT(Input!H25:K25,Input!M25:Q25,Input!S25))) -> 5 | AS21: 0 | AT21: =IF(AS21=0,0,IF((Input!G25="Boy")*AND(Input!C25>6),VLOOKUP(AS21,award2,5),IF((Input!G25="Girl")*AND(Input!C25>6),VLOOKUP(AS21,award2,4),IF((Input!G25="Boy")*AND(Input!C25<=6),VLOOKUP(AS21,award12,5),IF((Input!G25="Girl")*AND(Input!C25<=6),VLOOKUP(AS21,award12,4),0))))) -> 0 | AV21: 65.000015 | AW21: 50.000055 | AX21: 42.000095 | AZ21: 46.000175 | BA21: 40.000215 | BG21: =IF(AV21=" "," ",IF(Input!$G25="Boy",IF(RANK(AV21,($AV21:$BE21),0)<=5,AV21," ")," ")) -> 65.000015 | BH21: =IF(AW21=" "," ",IF(Input!$G25="Boy",IF(RANK(AW21,($AV21:$BE21),0)<=5,AW21," ")," ")) -> 50.000055 | BI21: =IF(AX21=" "," ",IF(Input!$G25="Boy",IF(RANK(AX21,($AV21:$BE21),0)<=5,AX21," ")," ")) -> 42.000095 | BJ21: =IF(AY21=" "," ",IF(Input!$G25="Boy",IF(RANK(AY21,($AV21:$BE21),0)<=5,AY21," ")," ")) ->  | BK21: =IF(AZ21=" "," ",IF(Input!$G25="Boy",IF(RANK(AZ21,($AV21:$BE21),0)<=5,AZ21," ")," ")) -> 46.000175 | BL21: =IF(BA21=" "," ",IF(Input!$G25="Boy",IF(RANK(BA21,($AV21:$BE21),0)<=5,BA21," ")," ")) -> 40.000215 | BM21: =IF(BB21=" "," ",IF(Input!$G25="Boy",IF(RANK(BB21,($AV21:$BE21),0)<=5,BB21," ")," ")) ->  | BN21: =IF(BC21=" "," ",IF(Input!$G25="Boy",IF(RANK(BC21,($AV21:$BE21),0)<=5,BC21," ")," ")) ->  | BO21: =IF(BD21=" "," ",IF(Input!$G25="Boy",IF(RANK(BD21,($AV21:$BE21),0)<=5,BD21," ")," ")) ->  | BP21: =IF(BE21=" "," ",IF(Input!$G25="Boy",IF(RANK(BE21,($AV21:$BE21),0)<=5,BE21," ")," ")) ->  | BR21: =IF(AV21=" "," ",IF(Input!$G25="Girl",IF(RANK(AV21,($AV21:$BE21),0)<=5,AV21," ")," ")) ->  | BS21: =IF(AW21=" "," ",IF(Input!$G25="Girl",IF(RANK(AW21,($AV21:$BE21),0)<=5,AW21," ")," ")) ->  | BT21: =IF(AX21=" "," ",IF(Input!$G25="Girl",IF(RANK(AX21,($AV21:$BE21),0)<=5,AX21," ")," ")) ->  | BU21: =IF(AY21=" "," ",IF(Input!$G25="Girl",IF(RANK(AY21,($AV21:$BE21),0)<=5,AY21," ")," ")) ->  | BV21: =IF(AZ21=" "," ",IF(Input!$G25="Girl",IF(RANK(AZ21,($AV21:$BE21),0)<=5,AZ21," ")," ")) ->  | BW21: =IF(BA21=" "," ",IF(Input!$G25="Girl",IF(RANK(BA21,($AV21:$BE21),0)<=5,BA21," ")," ")) ->  | BX21: =IF(BB21=" "," ",IF(Input!$G25="Girl",IF(RANK(BB21,($AV21:$BE21),0)<=5,BB21," ")," ")) ->  | BY21: =IF(BC21=" "," ",IF(Input!$G25="Girl",IF(RANK(BC21,($AV21:$BE21),0)<=5,BC21," ")," ")) ->  | BZ21: =IF(BD21=" "," ",IF(Input!$G25="Girl",IF(RANK(BD21,($AV21:$BE21),0)<=5,BD21," ")," ")) ->  | CA21: =IF(BE21=" "," ",IF(Input!$G25="Girl",IF(RANK(BE21,($AV21:$BE21),0)<=5,BE21," ")," ")) ->  | CC21: RED | CD21: RED | CE21: RED | CG21: RED | CH21: RED | CX21: 1.5e-05 | CY21: 5.5e-05 | CZ21: 9.5e-05 | DA21: 0.000135 | DB21: 0.000175 | DC21: 0.000215 | DD21: 0.000255 | DE21: 0.000295 | DF21: 0.000335 | DG21: 0.000375 | DH21: 65.000015 | DI21: 50.000055 | DJ21: 42.000095 | DL21: 46.000175 | DM21: 40.000215
C22: =Input!D26 -> Emily Axen-Blackwell | D22: =Input!#REF! ->  | E22: =Input!E26 -> 5 | F22: =Input!F26 -> 9 | G22: =Input!G26 -> Girl | H22: 26 | I22: 27 | J22: 25 | K22: 30 | L22: 0 | M22: 30 | N22: 0 | O22: 0 | P22: 0 | Q22: 0 | R22: 0 | S22: 0 | T22: 138 | U22: Step 7 | X22: 138 | Y22: 138-Girl-5 | Z22: =Input!D26 -> Emily Axen-Blackwell | AA22: =IF(Input!E26=0,0,IF(ISNA(VLOOKUP((CONCATENATE("Balance Test-",Input!H26)),points1,2,)),0,(VLOOKUP((CONCATENATE("Balance Test-",Input!H26)),points1,2,)))) -> 26 | AB22: =IF(Input!E26=0,0,IF(ISNA(VLOOKUP((CONCATENATE("Standing Long Jump-",Input!I26)),points1,2,)),0,(VLOOKUP((CONCATENATE("Standing Long Jump-",Input!I26)),points1,2,)))) -> 27 | AC22: =IF(Input!E26=0,0,IF(ISNA(VLOOKUP((CONCATENATE("Speed Bounce-",Input!J26)),points1,2,)),0,(VLOOKUP((CONCATENATE("Speed Bounce-",Input!J26)),points1,2,)))) -> 25 | AD22: =IF(Input!E26=0,0,IF(ISNA(VLOOKUP((CONCATENATE("Target Throw-",Input!K26)),points1,2,)),0,(VLOOKUP((CONCATENATE("Target Throw-",Input!K26)),points1,2,)))) -> 30 | AE22: =IF(Input!E26=0,0,IF(Input!$C26>6,IF(ISNA(VLOOKUP((CONCATENATE("Overhead Heave-",Input!L26)),points1,2,)),0,(VLOOKUP((CONCATENATE("Overhead Heave-",Input!L26)),points1,2,))),0)) -> 0 | AF22: 30 | AG22: =IF(Input!E26=0,0,IF(ISNA(VLOOKUP((CONCATENATE("Hi-Stepper-",Input!M26)),points1,2,)),0,(VLOOKUP((CONCATENATE("Hi-Stepper-",Input!M26)),points1,2,)))) -> 30 | AH22: =IF(Input!E26=0,0,IF(ISNA(VLOOKUP((CONCATENATE("Chest Push-",Input!N26)),points1,2,)),0,(VLOOKUP((CONCATENATE("Chest Push-",Input!N26)),points1,2,)))) -> 0 | AI22: =IF(Input!E26=0,0,IF(ISNA(VLOOKUP((CONCATENATE("Vertical Jump-",Input!O26)),points1,2,)),0,(VLOOKUP((CONCATENATE("Vertical Jump-",Input!O26)),points1,2,)))) -> 0 | AJ22: =IF(Input!E26=0,0,IF(ISNA(VLOOKUP((CONCATENATE("Shuttle Run-",Input!P26)),points1,2,)),0,(VLOOKUP((CONCATENATE("Shuttle Run-",Input!P26)),points1,2,)))) -> 0 | AK22: =IF(Input!E26=0,0,IF(ISNA(VLOOKUP((CONCATENATE("Javelin Throw-",Input!Q26)),points1,2,)),0,(VLOOKUP((CONCATENATE("Javelin Throw-",Input!Q26)),points1,2,)))) -> 0 | AL22: =IF(Input!E26=0,0,IF(Input!$C26>6,IF(ISNA(VLOOKUP((CONCATENATE("Shot-",Input!R26)),points1,2,)),0,(VLOOKUP((CONCATENATE("Shot-",Input!R26)),points1,2,))),0)) -> 0 | AM22: 0 | AN22: =IF(Input!E26=0,0,IF(ISNA(VLOOKUP((CONCATENATE("Standing Triple Jump-",Input!S26)),points1,2,)),0,(VLOOKUP((CONCATENATE("Standing Triple Jump-",Input!S26)),points1,2,)))) -> 0 | AO22: =IF(Input!$C26>6,COUNT(Input!H26:J26,Input!M26:P26,Input!S26,Input!X26:Y26),IF(Input!$C26<=6,COUNT(Input!H26:K26,Input!M26:Q26,Input!S26))) -> 5 | AP22: =IF(AO22>=5,(LARGE((AA22:AC22,AF22:AJ22,AM22:AN22),1))+LARGE((AA22:AC22,AF22:AJ22,AM22:AN22),2)+LARGE((AA22:AC22,AF22:AJ22,AM22:AN22),3)+LARGE((AA22:AC22,AF22:AJ22,AM22:AN22),4)+LARGE((AA22:AC22,AF22:AJ22,AM22:AN22),5),0) -> 138 | AQ22: =IF(AP22=0,0,IF((Input!G26="Boy")*AND(Input!C26>6),VLOOKUP(AP22,award2,3),IF((Input!G26="Girl")*AND(Input!C26>6),VLOOKUP(AP22,award2,2),IF((Input!G26="Boy")*AND(Input!C26<=6),VLOOKUP(AP22,award12,3),IF((Input!G26="Girl")*AND(Input!C26<=6),VLOOKUP(AP22,award12,2),0))))) -> Step 7 | AR22: =IF(Input!$C26>6,COUNT(Input!H26:J26,Input!M26:P26,Input!S26,Input!X26:Y26),IF(Input!$C26<=6,COUNT(Input!H26:K26,Input!M26:Q26,Input!S26))) -> 5 | AS22: 0 | AT22: =IF(AS22=0,0,IF((Input!G26="Boy")*AND(Input!C26>6),VLOOKUP(AS22,award2,5),IF((Input!G26="Girl")*AND(Input!C26>6),VLOOKUP(AS22,award2,4),IF((Input!G26="Boy")*AND(Input!C26<=6),VLOOKUP(AS22,award12,5),IF((Input!G26="Girl")*AND(Input!C26<=6),VLOOKUP(AS22,award12,4),0))))) -> 0 | AV22: 26.000016 | AW22: 27.000056 | AX22: 25.000096 | AY22: 30.000136 | AZ22: 30.000176 | BG22: =IF(AV22=" "," ",IF(Input!$G26="Boy",IF(RANK(AV22,($AV22:$BE22),0)<=5,AV22," ")," ")) ->  | BH22: =IF(AW22=" "," ",IF(Input!$G26="Boy",IF(RANK(AW22,($AV22:$BE22),0)<=5,AW22," ")," ")) ->  | BI22: =IF(AX22=" "," ",IF(Input!$G26="Boy",IF(RANK(AX22,($AV22:$BE22),0)<=5,AX22," ")," ")) ->  | BJ22: =IF(AY22=" "," ",IF(Input!$G26="Boy",IF(RANK(AY22,($AV22:$BE22),0)<=5,AY22," ")," ")) ->  | BK22: =IF(AZ22=" "," ",IF(Input!$G26="Boy",IF(RANK(AZ22,($AV22:$BE22),0)<=5,AZ22," ")," ")) ->  | BL22: =IF(BA22=" "," ",IF(Input!$G26="Boy",IF(RANK(BA22,($AV22:$BE22),0)<=5,BA22," ")," ")) ->  | BM22: =IF(BB22=" "," ",IF(Input!$G26="Boy",IF(RANK(BB22,($AV22:$BE22),0)<=5,BB22," ")," ")) ->  | BN22: =IF(BC22=" "," ",IF(Input!$G26="Boy",IF(RANK(BC22,($AV22:$BE22),0)<=5,BC22," ")," ")) ->  | BO22: =IF(BD22=" "," ",IF(Input!$G26="Boy",IF(RANK(BD22,($AV22:$BE22),0)<=5,BD22," ")," ")) ->  | BP22: =IF(BE22=" "," ",IF(Input!$G26="Boy",IF(RANK(BE22,($AV22:$BE22),0)<=5,BE22," ")," ")) ->  | BR22: =IF(AV22=" "," ",IF(Input!$G26="Girl",IF(RANK(AV22,($AV22:$BE22),0)<=5,AV22," ")," ")) -> 26.000016 | BS22: =IF(AW22=" "," ",IF(Input!$G26="Girl",IF(RANK(AW22,($AV22:$BE22),0)<=5,AW22," ")," ")) -> 27.000056 | BT22: =IF(AX22=" "," ",IF(Input!$G26="Girl",IF(RANK(AX22,($AV22:$BE22),0)<=5,AX22," ")," ")) -> 25.000096 | BU22: =IF(AY22=" "," ",IF(Input!$G26="Girl",IF(RANK(AY22,($AV22:$BE22),0)<=5,AY22," ")," ")) -> 30.000136 | BV22: =IF(AZ22=" "," ",IF(Input!$G26="Girl",IF(RANK(AZ22,($AV22:$BE22),0)<=5,AZ22," ")," ")) -> 30.000176 | BW22: =IF(BA22=" "," ",IF(Input!$G26="Girl",IF(RANK(BA22,($AV22:$BE22),0)<=5,BA22," ")," ")) ->  | BX22: =IF(BB22=" "," ",IF(Input!$G26="Girl",IF(RANK(BB22,($AV22:$BE22),0)<=5,BB22," ")," ")) ->  | BY22: =IF(BC22=" "," ",IF(Input!$G26="Girl",IF(RANK(BC22,($AV22:$BE22),0)<=5,BC22," ")," ")) ->  | BZ22: =IF(BD22=" "," ",IF(Input!$G26="Girl",IF(RANK(BD22,($AV22:$BE22),0)<=5,BD22," ")," ")) ->  | CA22: =IF(BE22=" "," ",IF(Input!$G26="Girl",IF(RANK(BE22,($AV22:$BE22),0)<=5,BE22," ")," ")) ->  | CX22: 1.6e-05 | CY22: 5.6e-05 | CZ22: 9.6e-05 | DA22: 0.000136 | DB22: 0.000176 | DC22: 0.000216 | DD22: 0.000256 | DE22: 0.000296 | DF22: 0.000336 | DG22: 0.000376 | DS22: 26.000016 | DT22: 27.000056 | DU22: 25.000096 | DV22: 30.000136 | DW22: 30.000176
C23: =Input!D27 -> Alice Burhams | D23: =Input!#REF! ->  | E23: =Input!E27 -> 4 | F23: =Input!F27 -> 8 | G23: =Input!G27 -> Girl | H23: 26 | I23: 28 | J23: 22 | K23: 6 | L23: 0 | M23: 24 | N23: 0 | O23: 0 | P23: 0 | Q23: 0 | R23: 0 | S23: 0 | T23: 106 | U23: Step 5 | X23: 106 | Y23: 106-Girl-4 | Z23: =Input!D27 -> Alice Burhams | AA23: =IF(Input!E27=0,0,IF(ISNA(VLOOKUP((CONCATENATE("Balance Test-",Input!H27)),points1,2,)),0,(VLOOKUP((CONCATENATE("Balance Test-",Input!H27)),points1,2,)))) -> 26 | AB23: =IF(Input!E27=0,0,IF(ISNA(VLOOKUP((CONCATENATE("Standing Long Jump-",Input!I27)),points1,2,)),0,(VLOOKUP((CONCATENATE("Standing Long Jump-",Input!I27)),points1,2,)))) -> 28 | AC23: =IF(Input!E27=0,0,IF(ISNA(VLOOKUP((CONCATENATE("Speed Bounce-",Input!J27)),points1,2,)),0,(VLOOKUP((CONCATENATE("Speed Bounce-",Input!J27)),points1,2,)))) -> 22 | AD23: =IF(Input!E27=0,0,IF(ISNA(VLOOKUP((CONCATENATE("Target Throw-",Input!K27)),points1,2,)),0,(VLOOKUP((CONCATENATE("Target Throw-",Input!K27)),points1,2,)))) -> 6 | AE23: =IF(Input!E27=0,0,IF(Input!$C27>6,IF(ISNA(VLOOKUP((CONCATENATE("Overhead Heave-",Input!L27)),points1,2,)),0,(VLOOKUP((CONCATENATE("Overhead Heave-",Input!L27)),points1,2,))),0)) -> 0 | AF23: 6 | AG23: =IF(Input!E27=0,0,IF(ISNA(VLOOKUP((CONCATENATE("Hi-Stepper-",Input!M27)),points1,2,)),0,(VLOOKUP((CONCATENATE("Hi-Stepper-",Input!M27)),points1,2,)))) -> 24 | AH23: =IF(Input!E27=0,0,IF(ISNA(VLOOKUP((CONCATENATE("Chest Push-",Input!N27)),points1,2,)),0,(VLOOKUP((CONCATENATE("Chest Push-",Input!N27)),points1,2,)))) -> 0 | AI23: =IF(Input!E27=0,0,IF(ISNA(VLOOKUP((CONCATENATE("Vertical Jump-",Input!O27)),points1,2,)),0,(VLOOKUP((CONCATENATE("Vertical Jump-",Input!O27)),points1,2,)))) -> 0 | AJ23: =IF(Input!E27=0,0,IF(ISNA(VLOOKUP((CONCATENATE("Shuttle Run-",Input!P27)),points1,2,)),0,(VLOOKUP((CONCATENATE("Shuttle Run-",Input!P27)),points1,2,)))) -> 0 | AK23: =IF(Input!E27=0,0,IF(ISNA(VLOOKUP((CONCATENATE("Javelin Throw-",Input!Q27)),points1,2,)),0,(VLOOKUP((CONCATENATE("Javelin Throw-",Input!Q27)),points1,2,)))) -> 0 | AL23: =IF(Input!E27=0,0,IF(Input!$C27>6,IF(ISNA(VLOOKUP((CONCATENATE("Shot-",Input!R27)),points1,2,)),0,(VLOOKUP((CONCATENATE("Shot-",Input!R27)),points1,2,))),0)) -> 0 | AM23: 0 | AN23: =IF(Input!E27=0,0,IF(ISNA(VLOOKUP((CONCATENATE("Standing Triple Jump-",Input!S27)),points1,2,)),0,(VLOOKUP((CONCATENATE("Standing Triple Jump-",Input!S27)),points1,2,)))) -> 0 | AO23: =IF(Input!$C27>6,COUNT(Input!H27:J27,Input!M27:P27,Input!S27,Input!X27:Y27),IF(Input!$C27<=6,COUNT(Input!H27:K27,Input!M27:Q27,Input!S27))) -> 5 | AP23: =IF(AO23>=5,(LARGE((AA23:AC23,AF23:AJ23,AM23:AN23),1))+LARGE((AA23:AC23,AF23:AJ23,AM23:AN23),2)+LARGE((AA23:AC23,AF23:AJ23,AM23:AN23),3)+LARGE((AA23:AC23,AF23:AJ23,AM23:AN23),4)+LARGE((AA23:AC23,AF23:AJ23,AM23:AN23),5),0) -> 106 | AQ23: =IF(AP23=0,0,IF((Input!G27="Boy")*AND(Input!C27>6),VLOOKUP(AP23,award2,3),IF((Input!G27="Girl")*AND(Input!C27>6),VLOOKUP(AP23,award2,2),IF((Input!G27="Boy")*AND(Input!C27<=6),VLOOKUP(AP23,award12,3),IF((Input!G27="Girl")*AND(Input!C27<=6),VLOOKUP(AP23,award12,2),0))))) -> Step 5 | AR23: =IF(Input!$C27>6,COUNT(Input!H27:J27,Input!M27:P27,Input!S27,Input!X27:Y27),IF(Input!$C27<=6,COUNT(Input!H27:K27,Input!M27:Q27,Input!S27))) -> 5 | AS23: 0 | AT23: =IF(AS23=0,0,IF((Input!G27="Boy")*AND(Input!C27>6),VLOOKUP(AS23,award2,5),IF((Input!G27="Girl")*AND(Input!C27>6),VLOOKUP(AS23,award2,4),IF((Input!G27="Boy")*AND(Input!C27<=6),VLOOKUP(AS23,award12,5),IF((Input!G27="Girl")*AND(Input!C27<=6),VLOOKUP(AS23,award12,4),0))))) -> 0 | AV23: 26.000017 | AW23: 28.000057 | AX23: 22.000097 | AY23: 6.000137 | AZ23: 24.000177 | BG23: =IF(AV23=" "," ",IF(Input!$G27="Boy",IF(RANK(AV23,($AV23:$BE23),0)<=5,AV23," ")," ")) ->  | BH23: =IF(AW23=" "," ",IF(Input!$G27="Boy",IF(RANK(AW23,($AV23:$BE23),0)<=5,AW23," ")," ")) ->  | BI23: =IF(AX23=" "," ",IF(Input!$G27="Boy",IF(RANK(AX23,($AV23:$BE23),0)<=5,AX23," ")," ")) ->  | BJ23: =IF(AY23=" "," ",IF(Input!$G27="Boy",IF(RANK(AY23,($AV23:$BE23),0)<=5,AY23," ")," ")) ->  | BK23: =IF(AZ23=" "," ",IF(Input!$G27="Boy",IF(RANK(AZ23,($AV23:$BE23),0)<=5,AZ23," ")," ")) ->  | BL23: =IF(BA23=" "," ",IF(Input!$G27="Boy",IF(RANK(BA23,($AV23:$BE23),0)<=5,BA23," ")," ")) ->  | BM23: =IF(BB23=" "," ",IF(Input!$G27="Boy",IF(RANK(BB23,($AV23:$BE23),0)<=5,BB23," ")," ")) ->  | BN23: =IF(BC23=" "," ",IF(Input!$G27="Boy",IF(RANK(BC23,($AV23:$BE23),0)<=5,BC23," ")," ")) ->  | BO23: =IF(BD23=" "," ",IF(Input!$G27="Boy",IF(RANK(BD23,($AV23:$BE23),0)<=5,BD23," ")," ")) ->  | BP23: =IF(BE23=" "," ",IF(Input!$G27="Boy",IF(RANK(BE23,($AV23:$BE23),0)<=5,BE23," ")," ")) ->  | BR23: =IF(AV23=" "," ",IF(Input!$G27="Girl",IF(RANK(AV23,($AV23:$BE23),0)<=5,AV23," ")," ")) -> 26.000017 | BS23: =IF(AW23=" "," ",IF(Input!$G27="Girl",IF(RANK(AW23,($AV23:$BE23),0)<=5,AW23," ")," ")) -> 28.000057 | BT23: =IF(AX23=" "," ",IF(Input!$G27="Girl",IF(RANK(AX23,($AV23:$BE23),0)<=5,AX23," ")," ")) -> 22.000097 | BU23: =IF(AY23=" "," ",IF(Input!$G27="Girl",IF(RANK(AY23,($AV23:$BE23),0)<=5,AY23," ")," ")) -> 6.000137 | BV23: =IF(AZ23=" "," ",IF(Input!$G27="Girl",IF(RANK(AZ23,($AV23:$BE23),0)<=5,AZ23," ")," ")) -> 24.000177 | BW23: =IF(BA23=" "," ",IF(Input!$G27="Girl",IF(RANK(BA23,($AV23:$BE23),0)<=5,BA23," ")," ")) ->  | BX23: =IF(BB23=" "," ",IF(Input!$G27="Girl",IF(RANK(BB23,($AV23:$BE23),0)<=5,BB23," ")," ")) ->  | BY23: =IF(BC23=" "," ",IF(Input!$G27="Girl",IF(RANK(BC23,($AV23:$BE23),0)<=5,BC23," ")," ")) ->  | BZ23: =IF(BD23=" "," ",IF(Input!$G27="Girl",IF(RANK(BD23,($AV23:$BE23),0)<=5,BD23," ")," ")) ->  | CA23: =IF(BE23=" "," ",IF(Input!$G27="Girl",IF(RANK(BE23,($AV23:$BE23),0)<=5,BE23," ")," ")) ->  | CX23: 1.7e-05 | CY23: 5.7e-05 | CZ23: 9.7e-05 | DA23: 0.000137 | DB23: 0.000177 | DC23: 0.000217 | DD23: 0.000257 | DE23: 0.000297 | DF23: 0.000337 | DG23: 0.000377 | DS23: 26.000017 | DT23: 28.000057 | DU23: 22.000097 | DV23: 6.000137 | DW23: 24.000177
C24: =Input!D28 -> Mukhtar Farah | D24: =Input!#REF! ->  | E24: =Input!E28 -> 7 | F24: =Input!F28 -> 11 | G24: =Input!G28 -> BOY | H24: 44 | I24: 44 | J24: 31 | K24: 0 | L24: 0 | M24: 27 | N24: 28 | O24: 0 | P24: 0 | Q24: 0 | R24: 0 | S24: 0 | T24: 174 | U24: Step 8 | X24: 174 | Y24: 174-BOY-7 | Z24: =Input!D28 -> Mukhtar Farah | AA24: =IF(Input!E28=0,0,IF(ISNA(VLOOKUP((CONCATENATE("Balance Test-",Input!H28)),points1,2,)),0,(VLOOKUP((CONCATENATE("Balance Test-",Input!H28)),points1,2,)))) -> 44 | AB24: =IF(Input!E28=0,0,IF(ISNA(VLOOKUP((CONCATENATE("Standing Long Jump-",Input!I28)),points1,2,)),0,(VLOOKUP((CONCATENATE("Standing Long Jump-",Input!I28)),points1,2,)))) -> 44 | AC24: =IF(Input!E28=0,0,IF(ISNA(VLOOKUP((CONCATENATE("Speed Bounce-",Input!J28)),points1,2,)),0,(VLOOKUP((CONCATENATE("Speed Bounce-",Input!J28)),points1,2,)))) -> 31 | AD24: =IF(Input!E28=0,0,IF(ISNA(VLOOKUP((CONCATENATE("Target Throw-",Input!K28)),points1,2,)),0,(VLOOKUP((CONCATENATE("Target Throw-",Input!K28)),points1,2,)))) -> 0 | AE24: =IF(Input!E28=0,0,IF(Input!$C28>6,IF(ISNA(VLOOKUP((CONCATENATE("Overhead Heave-",Input!L28)),points1,2,)),0,(VLOOKUP((CONCATENATE("Overhead Heave-",Input!L28)),points1,2,))),0)) -> 0 | AF24: 0 | AG24: =IF(Input!E28=0,0,IF(ISNA(VLOOKUP((CONCATENATE("Hi-Stepper-",Input!M28)),points1,2,)),0,(VLOOKUP((CONCATENATE("Hi-Stepper-",Input!M28)),points1,2,)))) -> 27 | AH24: =IF(Input!E28=0,0,IF(ISNA(VLOOKUP((CONCATENATE("Chest Push-",Input!N28)),points1,2,)),0,(VLOOKUP((CONCATENATE("Chest Push-",Input!N28)),points1,2,)))) -> 28 | AI24: =IF(Input!E28=0,0,IF(ISNA(VLOOKUP((CONCATENATE("Vertical Jump-",Input!O28)),points1,2,)),0,(VLOOKUP((CONCATENATE("Vertical Jump-",Input!O28)),points1,2,)))) -> 0 | AJ24: =IF(Input!E28=0,0,IF(ISNA(VLOOKUP((CONCATENATE("Shuttle Run-",Input!P28)),points1,2,)),0,(VLOOKUP((CONCATENATE("Shuttle Run-",Input!P28)),points1,2,)))) -> 0 | AK24: =IF(Input!E28=0,0,IF(ISNA(VLOOKUP((CONCATENATE("Javelin Throw-",Input!Q28)),points1,2,)),0,(VLOOKUP((CONCATENATE("Javelin Throw-",Input!Q28)),points1,2,)))) -> 0 | AL24: =IF(Input!E28=0,0,IF(Input!$C28>6,IF(ISNA(VLOOKUP((CONCATENATE("Shot-",Input!R28)),points1,2,)),0,(VLOOKUP((CONCATENATE("Shot-",Input!R28)),points1,2,))),0)) -> 0 | AM24: 0 | AN24: =IF(Input!E28=0,0,IF(ISNA(VLOOKUP((CONCATENATE("Standing Triple Jump-",Input!S28)),points1,2,)),0,(VLOOKUP((CONCATENATE("Standing Triple Jump-",Input!S28)),points1,2,)))) -> 0 | AO24: =IF(Input!$C28>6,COUNT(Input!H28:J28,Input!M28:P28,Input!S28,Input!X28:Y28),IF(Input!$C28<=6,COUNT(Input!H28:K28,Input!M28:Q28,Input!S28))) -> 5 | AP24: =IF(AO24>=5,(LARGE((AA24:AC24,AF24:AJ24,AM24:AN24),1))+LARGE((AA24:AC24,AF24:AJ24,AM24:AN24),2)+LARGE((AA24:AC24,AF24:AJ24,AM24:AN24),3)+LARGE((AA24:AC24,AF24:AJ24,AM24:AN24),4)+LARGE((AA24:AC24,AF24:AJ24,AM24:AN24),5),0) -> 174 | AQ24: =IF(AP24=0,0,IF((Input!G28="Boy")*AND(Input!C28>6),VLOOKUP(AP24,award2,3),IF((Input!G28="Girl")*AND(Input!C28>6),VLOOKUP(AP24,award2,2),IF((Input!G28="Boy")*AND(Input!C28<=6),VLOOKUP(AP24,award12,3),IF((Input!G28="Girl")*AND(Input!C28<=6),VLOOKUP(AP24,award12,2),0))))) -> Step 8 | AR24: =IF(Input!$C28>6,COUNT(Input!H28:J28,Input!M28:P28,Input!S28,Input!X28:Y28),IF(Input!$C28<=6,COUNT(Input!H28:K28,Input!M28:Q28,Input!S28))) -> 5 | AS24: 0 | AT24: =IF(AS24=0,0,IF((Input!G28="Boy")*AND(Input!C28>6),VLOOKUP(AS24,award2,5),IF((Input!G28="Girl")*AND(Input!C28>6),VLOOKUP(AS24,award2,4),IF((Input!G28="Boy")*AND(Input!C28<=6),VLOOKUP(AS24,award12,5),IF((Input!G28="Girl")*AND(Input!C28<=6),VLOOKUP(AS24,award12,4),0))))) -> 0 | AV24: 44.000018 | AW24: 44.000058 | AX24: 31.000098 | AZ24: 27.000178 | BA24: 28.000218 | BG24: =IF(AV24=" "," ",IF(Input!$G28="Boy",IF(RANK(AV24,($AV24:$BE24),0)<=5,AV24," ")," ")) -> 44.000018 | BH24: =IF(AW24=" "," ",IF(Input!$G28="Boy",IF(RANK(AW24,($AV24:$BE24),0)<=5,AW24," ")," ")) -> 44.000058 | BI24: =IF(AX24=" "," ",IF(Input!$G28="Boy",IF(RANK(AX24,($AV24:$BE24),0)<=5,AX24," ")," ")) -> 31.000098 | BJ24: =IF(AY24=" "," ",IF(Input!$G28="Boy",IF(RANK(AY24,($AV24:$BE24),0)<=5,AY24," ")," ")) ->  | BK24: =IF(AZ24=" "," ",IF(Input!$G28="Boy",IF(RANK(AZ24,($AV24:$BE24),0)<=5,AZ24," ")," ")) -> 27.000178 | BL24: =IF(BA24=" "," ",IF(Input!$G28="Boy",IF(RANK(BA24,($AV24:$BE24),0)<=5,BA24," ")," ")) -> 28.000218 | BM24: =IF(BB24=" "," ",IF(Input!$G28="Boy",IF(RANK(BB24,($AV24:$BE24),0)<=5,BB24," ")," ")) ->  | BN24: =IF(BC24=" "," ",IF(Input!$G28="Boy",IF(RANK(BC24,($AV24:$BE24),0)<=5,BC24," ")," ")) ->  | BO24: =IF(BD24=" "," ",IF(Input!$G28="Boy",IF(RANK(BD24,($AV24:$BE24),0)<=5,BD24," ")," ")) ->  | BP24: =IF(BE24=" "," ",IF(Input!$G28="Boy",IF(RANK(BE24,($AV24:$BE24),0)<=5,BE24," ")," ")) ->  | BR24: =IF(AV24=" "," ",IF(Input!$G28="Girl",IF(RANK(AV24,($AV24:$BE24),0)<=5,AV24," ")," ")) ->  | BS24: =IF(AW24=" "," ",IF(Input!$G28="Girl",IF(RANK(AW24,($AV24:$BE24),0)<=5,AW24," ")," ")) ->  | BT24: =IF(AX24=" "," ",IF(Input!$G28="Girl",IF(RANK(AX24,($AV24:$BE24),0)<=5,AX24," ")," ")) ->  | BU24: =IF(AY24=" "," ",IF(Input!$G28="Girl",IF(RANK(AY24,($AV24:$BE24),0)<=5,AY24," ")," ")) ->  | BV24: =IF(AZ24=" "," ",IF(Input!$G28="Girl",IF(RANK(AZ24,($AV24:$BE24),0)<=5,AZ24," ")," ")) ->  | BW24: =IF(BA24=" "," ",IF(Input!$G28="Girl",IF(RANK(BA24,($AV24:$BE24),0)<=5,BA24," ")," ")) ->  | BX24: =IF(BB24=" "," ",IF(Input!$G28="Girl",IF(RANK(BB24,($AV24:$BE24),0)<=5,BB24," ")," ")) ->  | BY24: =IF(BC24=" "," ",IF(Input!$G28="Girl",IF(RANK(BC24,($AV24:$BE24),0)<=5,BC24," ")," ")) ->  | BZ24: =IF(BD24=" "," ",IF(Input!$G28="Girl",IF(RANK(BD24,($AV24:$BE24),0)<=5,BD24," ")," ")) ->  | CA24: =IF(BE24=" "," ",IF(Input!$G28="Girl",IF(RANK(BE24,($AV24:$BE24),0)<=5,BE24," ")," ")) ->  | CD24: RED | CX24: 1.8e-05 | CY24: 5.8e-05 | CZ24: 9.8e-05 | DA24: 0.000138 | DB24: 0.000178 | DC24: 0.000218 | DD24: 0.000258 | DE24: 0.000298 | DF24: 0.000338 | DG24: 0.000378 | DH24: 44.000018 | DI24: 44.000058 | DJ24: 31.000098 | DL24: 27.000178 | DM24: 28.000218
C25: =Input!D29 -> Fenya Treece | D25: =Input!#REF! ->  | E25: =Input!E29 -> 3 | F25: =Input!F29 -> 7 | G25: =Input!G29 -> GIRL | H25: 24 | I25: 22 | J25: 12 | K25: 18 | L25: 0 | M25: 17 | N25: 0 | O25: 0 | P25: 0 | Q25: 0 | R25: 0 | S25: 0 | T25: 93 | U25: Step 4 | X25: 93 | Y25: 93-GIRL-3 | Z25: =Input!D29 -> Fenya Treece | AA25: =IF(Input!E29=0,0,IF(ISNA(VLOOKUP((CONCATENATE("Balance Test-",Input!H29)),points1,2,)),0,(VLOOKUP((CONCATENATE("Balance Test-",Input!H29)),points1,2,)))) -> 24 | AB25: =IF(Input!E29=0,0,IF(ISNA(VLOOKUP((CONCATENATE("Standing Long Jump-",Input!I29)),points1,2,)),0,(VLOOKUP((CONCATENATE("Standing Long Jump-",Input!I29)),points1,2,)))) -> 22 | AC25: =IF(Input!E29=0,0,IF(ISNA(VLOOKUP((CONCATENATE("Speed Bounce-",Input!J29)),points1,2,)),0,(VLOOKUP((CONCATENATE("Speed Bounce-",Input!J29)),points1,2,)))) -> 12 | AD25: =IF(Input!E29=0,0,IF(ISNA(VLOOKUP((CONCATENATE("Target Throw-",Input!K29)),points1,2,)),0,(VLOOKUP((CONCATENATE("Target Throw-",Input!K29)),points1,2,)))) -> 18 | AE25: =IF(Input!E29=0,0,IF(Input!$C29>6,IF(ISNA(VLOOKUP((CONCATENATE("Overhead Heave-",Input!L29)),points1,2,)),0,(VLOOKUP((CONCATENATE("Overhead Heave-",Input!L29)),points1,2,))),0)) -> 0 | AF25: 18 | AG25: =IF(Input!E29=0,0,IF(ISNA(VLOOKUP((CONCATENATE("Hi-Stepper-",Input!M29)),points1,2,)),0,(VLOOKUP((CONCATENATE("Hi-Stepper-",Input!M29)),points1,2,)))) -> 17 | AH25: =IF(Input!E29=0,0,IF(ISNA(VLOOKUP((CONCATENATE("Chest Push-",Input!N29)),points1,2,)),0,(VLOOKUP((CONCATENATE("Chest Push-",Input!N29)),points1,2,)))) -> 0 | AI25: =IF(Input!E29=0,0,IF(ISNA(VLOOKUP((CONCATENATE("Vertical Jump-",Input!O29)),points1,2,)),0,(VLOOKUP((CONCATENATE("Vertical Jump-",Input!O29)),points1,2,)))) -> 0 | AJ25: =IF(Input!E29=0,0,IF(ISNA(VLOOKUP((CONCATENATE("Shuttle Run-",Input!P29)),points1,2,)),0,(VLOOKUP((CONCATENATE("Shuttle Run-",Input!P29)),points1,2,)))) -> 0 | AK25: =IF(Input!E29=0,0,IF(ISNA(VLOOKUP((CONCATENATE("Javelin Throw-",Input!Q29)),points1,2,)),0,(VLOOKUP((CONCATENATE("Javelin Throw-",Input!Q29)),points1,2,)))) -> 0 | AL25: =IF(Input!E29=0,0,IF(Input!$C29>6,IF(ISNA(VLOOKUP((CONCATENATE("Shot-",Input!R29)),points1,2,)),0,(VLOOKUP((CONCATENATE("Shot-",Input!R29)),points1,2,))),0)) -> 0 | AM25: 0 | AN25: =IF(Input!E29=0,0,IF(ISNA(VLOOKUP((CONCATENATE("Standing Triple Jump-",Input!S29)),points1,2,)),0,(VLOOKUP((CONCATENATE("Standing Triple Jump-",Input!S29)),points1,2,)))) -> 0 | AO25: =IF(Input!$C29>6,COUNT(Input!H29:J29,Input!M29:P29,Input!S29,Input!X29:Y29),IF(Input!$C29<=6,COUNT(Input!H29:K29,Input!M29:Q29,Input!S29))) -> 5 | AP25: =IF(AO25>=5,(LARGE((AA25:AC25,AF25:AJ25,AM25:AN25),1))+LARGE((AA25:AC25,AF25:AJ25,AM25:AN25),2)+LARGE((AA25:AC25,AF25:AJ25,AM25:AN25),3)+LARGE((AA25:AC25,AF25:AJ25,AM25:AN25),4)+LARGE((AA25:AC25,AF25:AJ25,AM25:AN25),5),0) -> 93 | AQ25: =IF(AP25=0,0,IF((Input!G29="Boy")*AND(Input!C29>6),VLOOKUP(AP25,award2,3),IF((Input!G29="Girl")*AND(Input!C29>6),VLOOKUP(AP25,award2,2),IF((Input!G29="Boy")*AND(Input!C29<=6),VLOOKUP(AP25,award12,3),IF((Input!G29="Girl")*AND(Input!C29<=6),VLOOKUP(AP25,award12,2),0))))) -> Step 4 | AR25: =IF(Input!$C29>6,COUNT(Input!H29:J29,Input!M29:P29,Input!S29,Input!X29:Y29),IF(Input!$C29<=6,COUNT(Input!H29:K29,Input!M29:Q29,Input!S29))) -> 5 | AS25: 0 | AT25: =IF(AS25=0,0,IF((Input!G29="Boy")*AND(Input!C29>6),VLOOKUP(AS25,award2,5),IF((Input!G29="Girl")*AND(Input!C29>6),VLOOKUP(AS25,award2,4),IF((Input!G29="Boy")*AND(Input!C29<=6),VLOOKUP(AS25,award12,5),IF((Input!G29="Girl")*AND(Input!C29<=6),VLOOKUP(AS25,award12,4),0))))) -> 0 | AV25: 24.000019 | AW25: 22.000059 | AX25: 12.000099 | AY25: 18.000139 | AZ25: 17.000179 | BG25: =IF(AV25=" "," ",IF(Input!$G29="Boy",IF(RANK(AV25,($AV25:$BE25),0)<=5,AV25," ")," ")) ->  | BH25: =IF(AW25=" "," ",IF(Input!$G29="Boy",IF(RANK(AW25,($AV25:$BE25),0)<=5,AW25," ")," ")) ->  | BI25: =IF(AX25=" "," ",IF(Input!$G29="Boy",IF(RANK(AX25,($AV25:$BE25),0)<=5,AX25," ")," ")) ->  | BJ25: =IF(AY25=" "," ",IF(Input!$G29="Boy",IF(RANK(AY25,($AV25:$BE25),0)<=5,AY25," ")," ")) ->  | BK25: =IF(AZ25=" "," ",IF(Input!$G29="Boy",IF(RANK(AZ25,($AV25:$BE25),0)<=5,AZ25," ")," ")) ->  | BL25: =IF(BA25=" "," ",IF(Input!$G29="Boy",IF(RANK(BA25,($AV25:$BE25),0)<=5,BA25," ")," ")) ->  | BM25: =IF(BB25=" "," ",IF(Input!$G29="Boy",IF(RANK(BB25,($AV25:$BE25),0)<=5,BB25," ")," ")) ->  | BN25: =IF(BC25=" "," ",IF(Input!$G29="Boy",IF(RANK(BC25,($AV25:$BE25),0)<=5,BC25," ")," ")) ->  | BO25: =IF(BD25=" "," ",IF(Input!$G29="Boy",IF(RANK(BD25,($AV25:$BE25),0)<=5,BD25," ")," ")) ->  | BP25: =IF(BE25=" "," ",IF(Input!$G29="Boy",IF(RANK(BE25,($AV25:$BE25),0)<=5,BE25," ")," ")) ->  | BR25: =IF(AV25=" "," ",IF(Input!$G29="Girl",IF(RANK(AV25,($AV25:$BE25),0)<=5,AV25," ")," ")) -> 24.000019 | BS25: =IF(AW25=" "," ",IF(Input!$G29="Girl",IF(RANK(AW25,($AV25:$BE25),0)<=5,AW25," ")," ")) -> 22.000059 | BT25: =IF(AX25=" "," ",IF(Input!$G29="Girl",IF(RANK(AX25,($AV25:$BE25),0)<=5,AX25," ")," ")) -> 12.000099 | BU25: =IF(AY25=" "," ",IF(Input!$G29="Girl",IF(RANK(AY25,($AV25:$BE25),0)<=5,AY25," ")," ")) -> 18.000139 | BV25: =IF(AZ25=" "," ",IF(Input!$G29="Girl",IF(RANK(AZ25,($AV25:$BE25),0)<=5,AZ25," ")," ")) -> 17.000179 | BW25: =IF(BA25=" "," ",IF(Input!$G29="Girl",IF(RANK(BA25,($AV25:$BE25),0)<=5,BA25," ")," ")) ->  | BX25: =IF(BB25=" "," ",IF(Input!$G29="Girl",IF(RANK(BB25,($AV25:$BE25),0)<=5,BB25," ")," ")) ->  | BY25: =IF(BC25=" "," ",IF(Input!$G29="Girl",IF(RANK(BC25,($AV25:$BE25),0)<=5,BC25," ")," ")) ->  | BZ25: =IF(BD25=" "," ",IF(Input!$G29="Girl",IF(RANK(BD25,($AV25:$BE25),0)<=5,BD25," ")," ")) ->  | CA25: =IF(BE25=" "," ",IF(Input!$G29="Girl",IF(RANK(BE25,($AV25:$BE25),0)<=5,BE25," ")," ")) ->  | CX25: 1.9e-05 | CY25: 5.9e-05 | CZ25: 9.9e-05 | DA25: 0.000139 | DB25: 0.000179 | DC25: 0.000219 | DD25: 0.000259 | DE25: 0.000299 | DF25: 0.000339 | DG25: 0.000379 | DS25: 24.000019 | DT25: 22.000059 | DU25: 12.000099 | DV25: 18.000139 | DW25: 17.000179
C26: =Input!D30 -> Arlo Treece | D26: =Input!#REF! ->  | E26: =Input!E30 -> 6 | F26: =Input!F30 -> 10 | G26: =Input!G30 -> BOY | H26: 65 | I26: 41 | J26: 33 | K26: 42 | L26: 0 | M26: 39 | N26: 0 | O26: 0 | P26: 0 | Q26: 0 | R26: 0 | S26: 0 | T26: 220 | U26: Bronze | X26: 220 | Y26: 220-BOY-6 | Z26: =Input!D30 -> Arlo Treece | AA26: =IF(Input!E30=0,0,IF(ISNA(VLOOKUP((CONCATENATE("Balance Test-",Input!H30)),points1,2,)),0,(VLOOKUP((CONCATENATE("Balance Test-",Input!H30)),points1,2,)))) -> 65 | AB26: =IF(Input!E30=0,0,IF(ISNA(VLOOKUP((CONCATENATE("Standing Long Jump-",Input!I30)),points1,2,)),0,(VLOOKUP((CONCATENATE("Standing Long Jump-",Input!I30)),points1,2,)))) -> 41 | AC26: =IF(Input!E30=0,0,IF(ISNA(VLOOKUP((CONCATENATE("Speed Bounce-",Input!J30)),points1,2,)),0,(VLOOKUP((CONCATENATE("Speed Bounce-",Input!J30)),points1,2,)))) -> 33 | AD26: =IF(Input!E30=0,0,IF(ISNA(VLOOKUP((CONCATENATE("Target Throw-",Input!K30)),points1,2,)),0,(VLOOKUP((CONCATENATE("Target Throw-",Input!K30)),points1,2,)))) -> 42 | AE26: =IF(Input!E30=0,0,IF(Input!$C30>6,IF(ISNA(VLOOKUP((CONCATENATE("Overhead Heave-",Input!L30)),points1,2,)),0,(VLOOKUP((CONCATENATE("Overhead Heave-",Input!L30)),points1,2,))),0)) -> 0 | AF26: 42 | AG26: =IF(Input!E30=0,0,IF(ISNA(VLOOKUP((CONCATENATE("Hi-Stepper-",Input!M30)),points1,2,)),0,(VLOOKUP((CONCATENATE("Hi-Stepper-",Input!M30)),points1,2,)))) -> 39 | AH26: =IF(Input!E30=0,0,IF(ISNA(VLOOKUP((CONCATENATE("Chest Push-",Input!N30)),points1,2,)),0,(VLOOKUP((CONCATENATE("Chest Push-",Input!N30)),points1,2,)))) -> 0 | AI26: =IF(Input!E30=0,0,IF(ISNA(VLOOKUP((CONCATENATE("Vertical Jump-",Input!O30)),points1,2,)),0,(VLOOKUP((CONCATENATE("Vertical Jump-",Input!O30)),points1,2,)))) -> 0 | AJ26: =IF(Input!E30=0,0,IF(ISNA(VLOOKUP((CONCATENATE("Shuttle Run-",Input!P30)),points1,2,)),0,(VLOOKUP((CONCATENATE("Shuttle Run-",Input!P30)),points1,2,)))) -> 0 | AK26: =IF(Input!E30=0,0,IF(ISNA(VLOOKUP((CONCATENATE("Javelin Throw-",Input!Q30)),points1,2,)),0,(VLOOKUP((CONCATENATE("Javelin Throw-",Input!Q30)),points1,2,)))) -> 0 | AL26: =IF(Input!E30=0,0,IF(Input!$C30>6,IF(ISNA(VLOOKUP((CONCATENATE("Shot-",Input!R30)),points1,2,)),0,(VLOOKUP((CONCATENATE("Shot-",Input!R30)),points1,2,))),0)) -> 0 | AM26: 0 | AN26: =IF(Input!E30=0,0,IF(ISNA(VLOOKUP((CONCATENATE("Standing Triple Jump-",Input!S30)),points1,2,)),0,(VLOOKUP((CONCATENATE("Standing Triple Jump-",Input!S30)),points1,2,)))) -> 0 | AO26: =IF(Input!$C30>6,COUNT(Input!H30:J30,Input!M30:P30,Input!S30,Input!X30:Y30),IF(Input!$C30<=6,COUNT(Input!H30:K30,Input!M30:Q30,Input!S30))) -> 5 | AP26: =IF(AO26>=5,(LARGE((AA26:AC26,AF26:AJ26,AM26:AN26),1))+LARGE((AA26:AC26,AF26:AJ26,AM26:AN26),2)+LARGE((AA26:AC26,AF26:AJ26,AM26:AN26),3)+LARGE((AA26:AC26,AF26:AJ26,AM26:AN26),4)+LARGE((AA26:AC26,AF26:AJ26,AM26:AN26),5),0) -> 220 | AQ26: =IF(AP26=0,0,IF((Input!G30="Boy")*AND(Input!C30>6),VLOOKUP(AP26,award2,3),IF((Input!G30="Girl")*AND(Input!C30>6),VLOOKUP(AP26,award2,2),IF((Input!G30="Boy")*AND(Input!C30<=6),VLOOKUP(AP26,award12,3),IF((Input!G30="Girl")*AND(Input!C30<=6),VLOOKUP(AP26,award12,2),0))))) -> Bronze | AR26: =IF(Input!$C30>6,COUNT(Input!H30:J30,Input!M30:P30,Input!S30,Input!X30:Y30),IF(Input!$C30<=6,COUNT(Input!H30:K30,Input!M30:Q30,Input!S30))) -> 5 | AS26: 0 | AT26: =IF(AS26=0,0,IF((Input!G30="Boy")*AND(Input!C30>6),VLOOKUP(AS26,award2,5),IF((Input!G30="Girl")*AND(Input!C30>6),VLOOKUP(AS26,award2,4),IF((Input!G30="Boy")*AND(Input!C30<=6),VLOOKUP(AS26,award12,5),IF((Input!G30="Girl")*AND(Input!C30<=6),VLOOKUP(AS26,award12,4),0))))) -> 0 | AV26: 65.00002 | AW26: 41.00006 | AX26: 33.0001 | AY26: 42.00014 | AZ26: 39.00018 | BG26: =IF(AV26=" "," ",IF(Input!$G30="Boy",IF(RANK(AV26,($AV26:$BE26),0)<=5,AV26," ")," ")) -> 65.00002 | BH26: =IF(AW26=" "," ",IF(Input!$G30="Boy",IF(RANK(AW26,($AV26:$BE26),0)<=5,AW26," ")," ")) -> 41.00006 | BI26: =IF(AX26=" "," ",IF(Input!$G30="Boy",IF(RANK(AX26,($AV26:$BE26),0)<=5,AX26," ")," ")) -> 33.0001 | BJ26: =IF(AY26=" "," ",IF(Input!$G30="Boy",IF(RANK(AY26,($AV26:$BE26),0)<=5,AY26," ")," ")) -> 42.00014 | BK26: =IF(AZ26=" "," ",IF(Input!$G30="Boy",IF(RANK(AZ26,($AV26:$BE26),0)<=5,AZ26," ")," ")) -> 39.00018 | BL26: =IF(BA26=" "," ",IF(Input!$G30="Boy",IF(RANK(BA26,($AV26:$BE26),0)<=5,BA26," ")," ")) ->  | BM26: =IF(BB26=" "," ",IF(Input!$G30="Boy",IF(RANK(BB26,($AV26:$BE26),0)<=5,BB26," ")," ")) ->  | BN26: =IF(BC26=" "," ",IF(Input!$G30="Boy",IF(RANK(BC26,($AV26:$BE26),0)<=5,BC26," ")," ")) ->  | BO26: =IF(BD26=" "," ",IF(Input!$G30="Boy",IF(RANK(BD26,($AV26:$BE26),0)<=5,BD26," ")," ")) ->  | BP26: =IF(BE26=" "," ",IF(Input!$G30="Boy",IF(RANK(BE26,($AV26:$BE26),0)<=5,BE26," ")," ")) ->  | BR26: =IF(AV26=" "," ",IF(Input!$G30="Girl",IF(RANK(AV26,($AV26:$BE26),0)<=5,AV26," ")," ")) ->  | BS26: =IF(AW26=" "," ",IF(Input!$G30="Girl",IF(RANK(AW26,($AV26:$BE26),0)<=5,AW26," ")," ")) ->  | BT26: =IF(AX26=" "," ",IF(Input!$G30="Girl",IF(RANK(AX26,($AV26:$BE26),0)<=5,AX26," ")," ")) ->  | BU26: =IF(AY26=" "," ",IF(Input!$G30="Girl",IF(RANK(AY26,($AV26:$BE26),0)<=5,AY26," ")," ")) ->  | BV26: =IF(AZ26=" "," ",IF(Input!$G30="Girl",IF(RANK(AZ26,($AV26:$BE26),0)<=5,AZ26," ")," ")) ->  | BW26: =IF(BA26=" "," ",IF(Input!$G30="Girl",IF(RANK(BA26,($AV26:$BE26),0)<=5,BA26," ")," ")) ->  | BX26: =IF(BB26=" "," ",IF(Input!$G30="Girl",IF(RANK(BB26,($AV26:$BE26),0)<=5,BB26," ")," ")) ->  | BY26: =IF(BC26=" "," ",IF(Input!$G30="Girl",IF(RANK(BC26,($AV26:$BE26),0)<=5,BC26," ")," ")) ->  | BZ26: =IF(BD26=" "," ",IF(Input!$G30="Girl",IF(RANK(BD26,($AV26:$BE26),0)<=5,BD26," ")," ")) ->  | CA26: =IF(BE26=" "," ",IF(Input!$G30="Girl",IF(RANK(BE26,($AV26:$BE26),0)<=5,BE26," ")," ")) ->  | CC26: RED | CD26: RED | CE26: RED | CF26: RED | CG26: RED | CX26: 2e-05 | CY26: 6e-05 | CZ26: 0.0001 | DA26: 0.00014 | DB26: 0.00018 | DC26: 0.00022 | DD26: 0.00026 | DE26: 0.0003 | DF26: 0.00034 | DG26: 0.00038 | DH26: 65.00002 | DI26: 41.00006 | DJ26: 33.0001 | DK26: 42.00014 | DL26: 39.00018
C27: =Input!D31 -> Esa Blake | D27: =Input!#REF! ->  | E27: =Input!E31 -> 3 | F27: =Input!F31 -> 7 | G27: =Input!G31 -> GIRL | H27: 36 | I27: 18 | J27: 12 | K27: 12 | L27: 0 | M27: 21 | N27: 0 | O27: 0 | P27: 0 | Q27: 0 | R27: 0 | S27: 0 | T27: 99 | U27: Step 4 | X27: 99 | Y27: 99-GIRL-3 | Z27: =Input!D31 -> Esa Blake | AA27: =IF(Input!E31=0,0,IF(ISNA(VLOOKUP((CONCATENATE("Balance Test-",Input!H31)),points1,2,)),0,(VLOOKUP((CONCATENATE("Balance Test-",Input!H31)),points1,2,)))) -> 36 | AB27: =IF(Input!E31=0,0,IF(ISNA(VLOOKUP((CONCATENATE("Standing Long Jump-",Input!I31)),points1,2,)),0,(VLOOKUP((CONCATENATE("Standing Long Jump-",Input!I31)),points1,2,)))) -> 18 | AC27: =IF(Input!E31=0,0,IF(ISNA(VLOOKUP((CONCATENATE("Speed Bounce-",Input!J31)),points1,2,)),0,(VLOOKUP((CONCATENATE("Speed Bounce-",Input!J31)),points1,2,)))) -> 12 | AD27: =IF(Input!E31=0,0,IF(ISNA(VLOOKUP((CONCATENATE("Target Throw-",Input!K31)),points1,2,)),0,(VLOOKUP((CONCATENATE("Target Throw-",Input!K31)),points1,2,)))) -> 12 | AE27: =IF(Input!E31=0,0,IF(Input!$C31>6,IF(ISNA(VLOOKUP((CONCATENATE("Overhead Heave-",Input!L31)),points1,2,)),0,(VLOOKUP((CONCATENATE("Overhead Heave-",Input!L31)),points1,2,))),0)) -> 0 | AF27: 12 | AG27: =IF(Input!E31=0,0,IF(ISNA(VLOOKUP((CONCATENATE("Hi-Stepper-",Input!M31)),points1,2,)),0,(VLOOKUP((CONCATENATE("Hi-Stepper-",Input!M31)),points1,2,)))) -> 21 | AH27: =IF(Input!E31=0,0,IF(ISNA(VLOOKUP((CONCATENATE("Chest Push-",Input!N31)),points1,2,)),0,(VLOOKUP((CONCATENATE("Chest Push-",Input!N31)),points1,2,)))) -> 0 | AI27: =IF(Input!E31=0,0,IF(ISNA(VLOOKUP((CONCATENATE("Vertical Jump-",Input!O31)),points1,2,)),0,(VLOOKUP((CONCATENATE("Vertical Jump-",Input!O31)),points1,2,)))) -> 0 | AJ27: =IF(Input!E31=0,0,IF(ISNA(VLOOKUP((CONCATENATE("Shuttle Run-",Input!P31)),points1,2,)),0,(VLOOKUP((CONCATENATE("Shuttle Run-",Input!P31)),points1,2,)))) -> 0 | AK27: =IF(Input!E31=0,0,IF(ISNA(VLOOKUP((CONCATENATE("Javelin Throw-",Input!Q31)),points1,2,)),0,(VLOOKUP((CONCATENATE("Javelin Throw-",Input!Q31)),points1,2,)))) -> 0 | AL27: =IF(Input!E31=0,0,IF(Input!$C31>6,IF(ISNA(VLOOKUP((CONCATENATE("Shot-",Input!R31)),points1,2,)),0,(VLOOKUP((CONCATENATE("Shot-",Input!R31)),points1,2,))),0)) -> 0 | AM27: 0 | AN27: =IF(Input!E31=0,0,IF(ISNA(VLOOKUP((CONCATENATE("Standing Triple Jump-",Input!S31)),points1,2,)),0,(VLOOKUP((CONCATENATE("Standing Triple Jump-",Input!S31)),points1,2,)))) -> 0 | AO27: =IF(Input!$C31>6,COUNT(Input!H31:J31,Input!M31:P31,Input!S31,Input!X31:Y31),IF(Input!$C31<=6,COUNT(Input!H31:K31,Input!M31:Q31,Input!S31))) -> 5 | AP27: =IF(AO27>=5,(LARGE((AA27:AC27,AF27:AJ27,AM27:AN27),1))+LARGE((AA27:AC27,AF27:AJ27,AM27:AN27),2)+LARGE((AA27:AC27,AF27:AJ27,AM27:AN27),3)+LARGE((AA27:AC27,AF27:AJ27,AM27:AN27),4)+LARGE((AA27:AC27,AF27:AJ27,AM27:AN27),5),0) -> 99 | AQ27: =IF(AP27=0,0,IF((Input!G31="Boy")*AND(Input!C31>6),VLOOKUP(AP27,award2,3),IF((Input!G31="Girl")*AND(Input!C31>6),VLOOKUP(AP27,award2,2),IF((Input!G31="Boy")*AND(Input!C31<=6),VLOOKUP(AP27,award12,3),IF((Input!G31="Girl")*AND(Input!C31<=6),VLOOKUP(AP27,award12,2),0))))) -> Step 4 | AR27: =IF(Input!$C31>6,COUNT(Input!H31:J31,Input!M31:P31,Input!S31,Input!X31:Y31),IF(Input!$C31<=6,COUNT(Input!H31:K31,Input!M31:Q31,Input!S31))) -> 5 | AS27: 0 | AT27: =IF(AS27=0,0,IF((Input!G31="Boy")*AND(Input!C31>6),VLOOKUP(AS27,award2,5),IF((Input!G31="Girl")*AND(Input!C31>6),VLOOKUP(AS27,award2,4),IF((Input!G31="Boy")*AND(Input!C31<=6),VLOOKUP(AS27,award12,5),IF((Input!G31="Girl")*AND(Input!C31<=6),VLOOKUP(AS27,award12,4),0))))) -> 0 | AV27: 36.000021 | AW27: 18.000061 | AX27: 12.000101 | AY27: 12.000141 | AZ27: 21.000181 | BG27: =IF(AV27=" "," ",IF(Input!$G31="Boy",IF(RANK(AV27,($AV27:$BE27),0)<=5,AV27," ")," ")) ->  | BH27: =IF(AW27=" "," ",IF(Input!$G31="Boy",IF(RANK(AW27,($AV27:$BE27),0)<=5,AW27," ")," ")) ->  | BI27: =IF(AX27=" "," ",IF(Input!$G31="Boy",IF(RANK(AX27,($AV27:$BE27),0)<=5,AX27," ")," ")) ->  | BJ27: =IF(AY27=" "," ",IF(Input!$G31="Boy",IF(RANK(AY27,($AV27:$BE27),0)<=5,AY27," ")," ")) ->  | BK27: =IF(AZ27=" "," ",IF(Input!$G31="Boy",IF(RANK(AZ27,($AV27:$BE27),0)<=5,AZ27," ")," ")) ->  | BL27: =IF(BA27=" "," ",IF(Input!$G31="Boy",IF(RANK(BA27,($AV27:$BE27),0)<=5,BA27," ")," ")) ->  | BM27: =IF(BB27=" "," ",IF(Input!$G31="Boy",IF(RANK(BB27,($AV27:$BE27),0)<=5,BB27," ")," ")) ->  | BN27: =IF(BC27=" "," ",IF(Input!$G31="Boy",IF(RANK(BC27,($AV27:$BE27),0)<=5,BC27," ")," ")) ->  | BO27: =IF(BD27=" "," ",IF(Input!$G31="Boy",IF(RANK(BD27,($AV27:$BE27),0)<=5,BD27," ")," ")) ->  | BP27: =IF(BE27=" "," ",IF(Input!$G31="Boy",IF(RANK(BE27,($AV27:$BE27),0)<=5,BE27," ")," ")) ->  | BR27: =IF(AV27=" "," ",IF(Input!$G31="Girl",IF(RANK(AV27,($AV27:$BE27),0)<=5,AV27," ")," ")) -> 36.000021 | BS27: =IF(AW27=" "," ",IF(Input!$G31="Girl",IF(RANK(AW27,($AV27:$BE27),0)<=5,AW27," ")," ")) -> 18.000061 | BT27: =IF(AX27=" "," ",IF(Input!$G31="Girl",IF(RANK(AX27,($AV27:$BE27),0)<=5,AX27," ")," ")) -> 12.000101 | BU27: =IF(AY27=" "," ",IF(Input!$G31="Girl",IF(RANK(AY27,($AV27:$BE27),0)<=5,AY27," ")," ")) -> 12.000141 | BV27: =IF(AZ27=" "," ",IF(Input!$G31="Girl",IF(RANK(AZ27,($AV27:$BE27),0)<=5,AZ27," ")," ")) -> 21.000181 | BW27: =IF(BA27=" "," ",IF(Input!$G31="Girl",IF(RANK(BA27,($AV27:$BE27),0)<=5,BA27," ")," ")) ->  | BX27: =IF(BB27=" "," ",IF(Input!$G31="Girl",IF(RANK(BB27,($AV27:$BE27),0)<=5,BB27," ")," ")) ->  | BY27: =IF(BC27=" "," ",IF(Input!$G31="Girl",IF(RANK(BC27,($AV27:$BE27),0)<=5,BC27," ")," ")) ->  | BZ27: =IF(BD27=" "," ",IF(Input!$G31="Girl",IF(RANK(BD27,($AV27:$BE27),0)<=5,BD27," ")," ")) ->  | CA27: =IF(BE27=" "," ",IF(Input!$G31="Girl",IF(RANK(BE27,($AV27:$BE27),0)<=5,BE27," ")," ")) ->  | CX27: 2.1e-05 | CY27: 6.1e-05 | CZ27: 0.000101 | DA27: 0.000141 | DB27: 0.000181 | DC27: 0.000221 | DD27: 0.000261 | DE27: 0.000301 | DF27: 0.000341 | DG27: 0.000381 | DS27: 36.000021 | DT27: 18.000061 | DU27: 12.000101 | DV27: 12.000141 | DW27: 21.000181
C28: =Input!D32 -> Oran Blake | D28: =Input!#REF! ->  | E28: =Input!E32 -> 4 | F28: =Input!F32 -> 8 | G28: =Input!G32 -> BOY | H28: 13 | I28: 21 | J28: 19 | K28: 24 | L28: 0 | M28: 17 | N28: 0 | O28: 0 | P28: 0 | Q28: 0 | R28: 0 | S28: 0 | T28: 94 | U28: Step 4 | X28: 94 | Y28: 94-BOY-4 | Z28: =Input!D32 -> Oran Blake | AA28: =IF(Input!E32=0,0,IF(ISNA(VLOOKUP((CONCATENATE("Balance Test-",Input!H32)),points1,2,)),0,(VLOOKUP((CONCATENATE("Balance Test-",Input!H32)),points1,2,)))) -> 13 | AB28: =IF(Input!E32=0,0,IF(ISNA(VLOOKUP((CONCATENATE("Standing Long Jump-",Input!I32)),points1,2,)),0,(VLOOKUP((CONCATENATE("Standing Long Jump-",Input!I32)),points1,2,)))) -> 21 | AC28: =IF(Input!E32=0,0,IF(ISNA(VLOOKUP((CONCATENATE("Speed Bounce-",Input!J32)),points1,2,)),0,(VLOOKUP((CONCATENATE("Speed Bounce-",Input!J32)),points1,2,)))) -> 19 | AD28: =IF(Input!E32=0,0,IF(ISNA(VLOOKUP((CONCATENATE("Target Throw-",Input!K32)),points1,2,)),0,(VLOOKUP((CONCATENATE("Target Throw-",Input!K32)),points1,2,)))) -> 24 | AE28: =IF(Input!E32=0,0,IF(Input!$C32>6,IF(ISNA(VLOOKUP((CONCATENATE("Overhead Heave-",Input!L32)),points1,2,)),0,(VLOOKUP((CONCATENATE("Overhead Heave-",Input!L32)),points1,2,))),0)) -> 0 | AF28: 24 | AG28: =IF(Input!E32=0,0,IF(ISNA(VLOOKUP((CONCATENATE("Hi-Stepper-",Input!M32)),points1,2,)),0,(VLOOKUP((CONCATENATE("Hi-Stepper-",Input!M32)),points1,2,)))) -> 17 | AH28: =IF(Input!E32=0,0,IF(ISNA(VLOOKUP((CONCATENATE("Chest Push-",Input!N32)),points1,2,)),0,(VLOOKUP((CONCATENATE("Chest Push-",Input!N32)),points1,2,)))) -> 0 | AI28: =IF(Input!E32=0,0,IF(ISNA(VLOOKUP((CONCATENATE("Vertical Jump-",Input!O32)),points1,2,)),0,(VLOOKUP((CONCATENATE("Vertical Jump-",Input!O32)),points1,2,)))) -> 0 | AJ28: =IF(Input!E32=0,0,IF(ISNA(VLOOKUP((CONCATENATE("Shuttle Run-",Input!P32)),points1,2,)),0,(VLOOKUP((CONCATENATE("Shuttle Run-",Input!P32)),points1,2,)))) -> 0 | AK28: =IF(Input!E32=0,0,IF(ISNA(VLOOKUP((CONCATENATE("Javelin Throw-",Input!Q32)),points1,2,)),0,(VLOOKUP((CONCATENATE("Javelin Throw-",Input!Q32)),points1,2,)))) -> 0 | AL28: =IF(Input!E32=0,0,IF(Input!$C32>6,IF(ISNA(VLOOKUP((CONCATENATE("Shot-",Input!R32)),points1,2,)),0,(VLOOKUP((CONCATENATE("Shot-",Input!R32)),points1,2,))),0)) -> 0 | AM28: 0 | AN28: =IF(Input!E32=0,0,IF(ISNA(VLOOKUP((CONCATENATE("Standing Triple Jump-",Input!S32)),points1,2,)),0,(VLOOKUP((CONCATENATE("Standing Triple Jump-",Input!S32)),points1,2,)))) -> 0 | AO28: =IF(Input!$C32>6,COUNT(Input!H32:J32,Input!M32:P32,Input!S32,Input!X32:Y32),IF(Input!$C32<=6,COUNT(Input!H32:K32,Input!M32:Q32,Input!S32))) -> 5 | AP28: =IF(AO28>=5,(LARGE((AA28:AC28,AF28:AJ28,AM28:AN28),1))+LARGE((AA28:AC28,AF28:AJ28,AM28:AN28),2)+LARGE((AA28:AC28,AF28:AJ28,AM28:AN28),3)+LARGE((AA28:AC28,AF28:AJ28,AM28:AN28),4)+LARGE((AA28:AC28,AF28:AJ28,AM28:AN28),5),0) -> 94 | AQ28: =IF(AP28=0,0,IF((Input!G32="Boy")*AND(Input!C32>6),VLOOKUP(AP28,award2,3),IF((Input!G32="Girl")*AND(Input!C32>6),VLOOKUP(AP28,award2,2),IF((Input!G32="Boy")*AND(Input!C32<=6),VLOOKUP(AP28,award12,3),IF((Input!G32="Girl")*AND(Input!C32<=6),VLOOKUP(AP28,award12,2),0))))) -> Step 4 | AR28: =IF(Input!$C32>6,COUNT(Input!H32:J32,Input!M32:P32,Input!S32,Input!X32:Y32),IF(Input!$C32<=6,COUNT(Input!H32:K32,Input!M32:Q32,Input!S32))) -> 5 | AS28: 0 | AT28: =IF(AS28=0,0,IF((Input!G32="Boy")*AND(Input!C32>6),VLOOKUP(AS28,award2,5),IF((Input!G32="Girl")*AND(Input!C32>6),VLOOKUP(AS28,award2,4),IF((Input!G32="Boy")*AND(Input!C32<=6),VLOOKUP(AS28,award12,5),IF((Input!G32="Girl")*AND(Input!C32<=6),VLOOKUP(AS28,award12,4),0))))) -> 0 | AV28: 13.000022 | AW28: 21.000062 | AX28: 19.000102 | AY28: 24.000142 | AZ28: 17.000182 | BG28: =IF(AV28=" "," ",IF(Input!$G32="Boy",IF(RANK(AV28,($AV28:$BE28),0)<=5,AV28," ")," ")) -> 13.000022 | BH28: =IF(AW28=" "," ",IF(Input!$G32="Boy",IF(RANK(AW28,($AV28:$BE28),0)<=5,AW28," ")," ")) -> 21.000062 | BI28: =IF(AX28=" "," ",IF(Input!$G32="Boy",IF(RANK(AX28,($AV28:$BE28),0)<=5,AX28," ")," ")) -> 19.000102 | BJ28: =IF(AY28=" "," ",IF(Input!$G32="Boy",IF(RANK(AY28,($AV28:$BE28),0)<=5,AY28," ")," ")) -> 24.000142 | BK28: =IF(AZ28=" "," ",IF(Input!$G32="Boy",IF(RANK(AZ28,($AV28:$BE28),0)<=5,AZ28," ")," ")) -> 17.000182 | BL28: =IF(BA28=" "," ",IF(Input!$G32="Boy",IF(RANK(BA28,($AV28:$BE28),0)<=5,BA28," ")," ")) ->  | BM28: =IF(BB28=" "," ",IF(Input!$G32="Boy",IF(RANK(BB28,($AV28:$BE28),0)<=5,BB28," ")," ")) ->  | BN28: =IF(BC28=" "," ",IF(Input!$G32="Boy",IF(RANK(BC28,($AV28:$BE28),0)<=5,BC28," ")," ")) ->  | BO28: =IF(BD28=" "," ",IF(Input!$G32="Boy",IF(RANK(BD28,($AV28:$BE28),0)<=5,BD28," ")," ")) ->  | BP28: =IF(BE28=" "," ",IF(Input!$G32="Boy",IF(RANK(BE28,($AV28:$BE28),0)<=5,BE28," ")," ")) ->  | BR28: =IF(AV28=" "," ",IF(Input!$G32="Girl",IF(RANK(AV28,($AV28:$BE28),0)<=5,AV28," ")," ")) ->  | BS28: =IF(AW28=" "," ",IF(Input!$G32="Girl",IF(RANK(AW28,($AV28:$BE28),0)<=5,AW28," ")," ")) ->  | BT28: =IF(AX28=" "," ",IF(Input!$G32="Girl",IF(RANK(AX28,($AV28:$BE28),0)<=5,AX28," ")," ")) ->  | BU28: =IF(AY28=" "," ",IF(Input!$G32="Girl",IF(RANK(AY28,($AV28:$BE28),0)<=5,AY28," ")," ")) ->  | BV28: =IF(AZ28=" "," ",IF(Input!$G32="Girl",IF(RANK(AZ28,($AV28:$BE28),0)<=5,AZ28," ")," ")) ->  | BW28: =IF(BA28=" "," ",IF(Input!$G32="Girl",IF(RANK(BA28,($AV28:$BE28),0)<=5,BA28," ")," ")) ->  | BX28: =IF(BB28=" "," ",IF(Input!$G32="Girl",IF(RANK(BB28,($AV28:$BE28),0)<=5,BB28," ")," ")) ->  | BY28: =IF(BC28=" "," ",IF(Input!$G32="Girl",IF(RANK(BC28,($AV28:$BE28),0)<=5,BC28," ")," ")) ->  | BZ28: =IF(BD28=" "," ",IF(Input!$G32="Girl",IF(RANK(BD28,($AV28:$BE28),0)<=5,BD28," ")," ")) ->  | CA28: =IF(BE28=" "," ",IF(Input!$G32="Girl",IF(RANK(BE28,($AV28:$BE28),0)<=5,BE28," ")," ")) ->  | CX28: 2.2e-05 | CY28: 6.2e-05 | CZ28: 0.000102 | DA28: 0.000142 | DB28: 0.000182 | DC28: 0.000222 | DD28: 0.000262 | DE28: 0.000302 | DF28: 0.000342 | DG28: 0.000382 | DH28: 13.000022 | DI28: 21.000062 | DJ28: 19.000102 | DK28: 24.000142 | DL28: 17.000182
C29: =Input!D33 -> Donncha Blake | D29: =Input!#REF! ->  | E29: =Input!E33 -> 6 | F29: =Input!F33 -> 10 | G29: =Input!G33 -> BOY | H29: 55 | I29: 27 | J29: 28 | K29: 48 | L29: 0 | M29: 27 | N29: 0 | O29: 0 | P29: 0 | Q29: 0 | R29: 0 | S29: 0 | T29: 185 | U29: Bronze | X29: 185 | Y29: 185-BOY-6 | Z29: =Input!D33 -> Donncha Blake | AA29: =IF(Input!E33=0,0,IF(ISNA(VLOOKUP((CONCATENATE("Balance Test-",Input!H33)),points1,2,)),0,(VLOOKUP((CONCATENATE("Balance Test-",Input!H33)),points1,2,)))) -> 55 | AB29: =IF(Input!E33=0,0,IF(ISNA(VLOOKUP((CONCATENATE("Standing Long Jump-",Input!I33)),points1,2,)),0,(VLOOKUP((CONCATENATE("Standing Long Jump-",Input!I33)),points1,2,)))) -> 27 | AC29: =IF(Input!E33=0,0,IF(ISNA(VLOOKUP((CONCATENATE("Speed Bounce-",Input!J33)),points1,2,)),0,(VLOOKUP((CONCATENATE("Speed Bounce-",Input!J33)),points1,2,)))) -> 28 | AD29: =IF(Input!E33=0,0,IF(ISNA(VLOOKUP((CONCATENATE("Target Throw-",Input!K33)),points1,2,)),0,(VLOOKUP((CONCATENATE("Target Throw-",Input!K33)),points1,2,)))) -> 48 | AE29: =IF(Input!E33=0,0,IF(Input!$C33>6,IF(ISNA(VLOOKUP((CONCATENATE("Overhead Heave-",Input!L33)),points1,2,)),0,(VLOOKUP((CONCATENATE("Overhead Heave-",Input!L33)),points1,2,))),0)) -> 0 | AF29: 48 | AG29: =IF(Input!E33=0,0,IF(ISNA(VLOOKUP((CONCATENATE("Hi-Stepper-",Input!M33)),points1,2,)),0,(VLOOKUP((CONCATENATE("Hi-Stepper-",Input!M33)),points1,2,)))) -> 27 | AH29: =IF(Input!E33=0,0,IF(ISNA(VLOOKUP((CONCATENATE("Chest Push-",Input!N33)),points1,2,)),0,(VLOOKUP((CONCATENATE("Chest Push-",Input!N33)),points1,2,)))) -> 0 | AI29: =IF(Input!E33=0,0,IF(ISNA(VLOOKUP((CONCATENATE("Vertical Jump-",Input!O33)),points1,2,)),0,(VLOOKUP((CONCATENATE("Vertical Jump-",Input!O33)),points1,2,)))) -> 0 | AJ29: =IF(Input!E33=0,0,IF(ISNA(VLOOKUP((CONCATENATE("Shuttle Run-",Input!P33)),points1,2,)),0,(VLOOKUP((CONCATENATE("Shuttle Run-",Input!P33)),points1,2,)))) -> 0 | AK29: =IF(Input!E33=0,0,IF(ISNA(VLOOKUP((CONCATENATE("Javelin Throw-",Input!Q33)),points1,2,)),0,(VLOOKUP((CONCATENATE("Javelin Throw-",Input!Q33)),points1,2,)))) -> 0 | AL29: =IF(Input!E33=0,0,IF(Input!$C33>6,IF(ISNA(VLOOKUP((CONCATENATE("Shot-",Input!R33)),points1,2,)),0,(VLOOKUP((CONCATENATE("Shot-",Input!R33)),points1,2,))),0)) -> 0 | AM29: 0 | AN29: =IF(Input!E33=0,0,IF(ISNA(VLOOKUP((CONCATENATE("Standing Triple Jump-",Input!S33)),points1,2,)),0,(VLOOKUP((CONCATENATE("Standing Triple Jump-",Input!S33)),points1,2,)))) -> 0 | AO29: =IF(Input!$C33>6,COUNT(Input!H33:J33,Input!M33:P33,Input!S33,Input!X33:Y33),IF(Input!$C33<=6,COUNT(Input!H33:K33,Input!M33:Q33,Input!S33))) -> 5 | AP29: =IF(AO29>=5,(LARGE((AA29:AC29,AF29:AJ29,AM29:AN29),1))+LARGE((AA29:AC29,AF29:AJ29,AM29:AN29),2)+LARGE((AA29:AC29,AF29:AJ29,AM29:AN29),3)+LARGE((AA29:AC29,AF29:AJ29,AM29:AN29),4)+LARGE((AA29:AC29,AF29:AJ29,AM29:AN29),5),0) -> 185 | AQ29: =IF(AP29=0,0,IF((Input!G33="Boy")*AND(Input!C33>6),VLOOKUP(AP29,award2,3),IF((Input!G33="Girl")*AND(Input!C33>6),VLOOKUP(AP29,award2,2),IF((Input!G33="Boy")*AND(Input!C33<=6),VLOOKUP(AP29,award12,3),IF((Input!G33="Girl")*AND(Input!C33<=6),VLOOKUP(AP29,award12,2),0))))) -> Bronze | AR29: =IF(Input!$C33>6,COUNT(Input!H33:J33,Input!M33:P33,Input!S33,Input!X33:Y33),IF(Input!$C33<=6,COUNT(Input!H33:K33,Input!M33:Q33,Input!S33))) -> 5 | AS29: 0 | AT29: =IF(AS29=0,0,IF((Input!G33="Boy")*AND(Input!C33>6),VLOOKUP(AS29,award2,5),IF((Input!G33="Girl")*AND(Input!C33>6),VLOOKUP(AS29,award2,4),IF((Input!G33="Boy")*AND(Input!C33<=6),VLOOKUP(AS29,award12,5),IF((Input!G33="Girl")*AND(Input!C33<=6),VLOOKUP(AS29,award12,4),0))))) -> 0 | AV29: 55.000023 | AW29: 27.000063 | AX29: 28.000103 | AY29: 48.000143 | AZ29: 27.000183 | BG29: =IF(AV29=" "," ",IF(Input!$G33="Boy",IF(RANK(AV29,($AV29:$BE29),0)<=5,AV29," ")," ")) -> 55.000023 | BH29: =IF(AW29=" "," ",IF(Input!$G33="Boy",IF(RANK(AW29,($AV29:$BE29),0)<=5,AW29," ")," ")) -> 27.000063 | BI29: =IF(AX29=" "," ",IF(Input!$G33="Boy",IF(RANK(AX29,($AV29:$BE29),0)<=5,AX29," ")," ")) -> 28.000103 | BJ29: =IF(AY29=" "," ",IF(Input!$G33="Boy",IF(RANK(AY29,($AV29:$BE29),0)<=5,AY29," ")," ")) -> 48.000143 | BK29: =IF(AZ29=" "," ",IF(Input!$G33="Boy",IF(RANK(AZ29,($AV29:$BE29),0)<=5,AZ29," ")," ")) -> 27.000183 | BL29: =IF(BA29=" "," ",IF(Input!$G33="Boy",IF(RANK(BA29,($AV29:$BE29),0)<=5,BA29," ")," ")) ->  | BM29: =IF(BB29=" "," ",IF(Input!$G33="Boy",IF(RANK(BB29,($AV29:$BE29),0)<=5,BB29," ")," ")) ->  | BN29: =IF(BC29=" "," ",IF(Input!$G33="Boy",IF(RANK(BC29,($AV29:$BE29),0)<=5,BC29," ")," ")) ->  | BO29: =IF(BD29=" "," ",IF(Input!$G33="Boy",IF(RANK(BD29,($AV29:$BE29),0)<=5,BD29," ")," ")) ->  | BP29: =IF(BE29=" "," ",IF(Input!$G33="Boy",IF(RANK(BE29,($AV29:$BE29),0)<=5,BE29," ")," ")) ->  | BR29: =IF(AV29=" "," ",IF(Input!$G33="Girl",IF(RANK(AV29,($AV29:$BE29),0)<=5,AV29," ")," ")) ->  | BS29: =IF(AW29=" "," ",IF(Input!$G33="Girl",IF(RANK(AW29,($AV29:$BE29),0)<=5,AW29," ")," ")) ->  | BT29: =IF(AX29=" "," ",IF(Input!$G33="Girl",IF(RANK(AX29,($AV29:$BE29),0)<=5,AX29," ")," ")) ->  | BU29: =IF(AY29=" "," ",IF(Input!$G33="Girl",IF(RANK(AY29,($AV29:$BE29),0)<=5,AY29," ")," ")) ->  | BV29: =IF(AZ29=" "," ",IF(Input!$G33="Girl",IF(RANK(AZ29,($AV29:$BE29),0)<=5,AZ29," ")," ")) ->  | BW29: =IF(BA29=" "," ",IF(Input!$G33="Girl",IF(RANK(BA29,($AV29:$BE29),0)<=5,BA29," ")," ")) ->  | BX29: =IF(BB29=" "," ",IF(Input!$G33="Girl",IF(RANK(BB29,($AV29:$BE29),0)<=5,BB29," ")," ")) ->  | BY29: =IF(BC29=" "," ",IF(Input!$G33="Girl",IF(RANK(BC29,($AV29:$BE29),0)<=5,BC29," ")," ")) ->  | BZ29: =IF(BD29=" "," ",IF(Input!$G33="Girl",IF(RANK(BD29,($AV29:$BE29),0)<=5,BD29," ")," ")) ->  | CA29: =IF(BE29=" "," ",IF(Input!$G33="Girl",IF(RANK(BE29,($AV29:$BE29),0)<=5,BE29," ")," ")) ->  | CF29: RED | CX29: 2.3e-05 | CY29: 6.3e-05 | CZ29: 0.000103 | DA29: 0.000143 | DB29: 0.000183 | DC29: 0.000223 | DD29: 0.000263 | DE29: 0.000303 | DF29: 0.000343 | DG29: 0.000383 | DH29: 55.000023 | DI29: 27.000063 | DJ29: 28.000103 | DK29: 48.000143 | DL29: 27.000183
C30: =Input!D34 -> Teagan Blake | D30: =Input!#REF! ->  | E30: =Input!E34 -> 8 | F30: =Input!F34 -> 12 | G30: =Input!G34 -> GIRL | H30: 62 | I30: 48 | J30: 32 | K30: 0 | L30: 0 | M30: 28 | N30: 44 | O30: 0 | P30: 0 | Q30: 0 | R30: 0 | S30: 0 | T30: 214 | U30: Step 10 | X30: 214 | Y30: 214-GIRL-8 | Z30: =Input!D34 -> Teagan Blake | AA30: =IF(Input!E34=0,0,IF(ISNA(VLOOKUP((CONCATENATE("Balance Test-",Input!H34)),points1,2,)),0,(VLOOKUP((CONCATENATE("Balance Test-",Input!H34)),points1,2,)))) -> 62 | AB30: =IF(Input!E34=0,0,IF(ISNA(VLOOKUP((CONCATENATE("Standing Long Jump-",Input!I34)),points1,2,)),0,(VLOOKUP((CONCATENATE("Standing Long Jump-",Input!I34)),points1,2,)))) -> 48 | AC30: =IF(Input!E34=0,0,IF(ISNA(VLOOKUP((CONCATENATE("Speed Bounce-",Input!J34)),points1,2,)),0,(VLOOKUP((CONCATENATE("Speed Bounce-",Input!J34)),points1,2,)))) -> 32 | AD30: =IF(Input!E34=0,0,IF(ISNA(VLOOKUP((CONCATENATE("Target Throw-",Input!K34)),points1,2,)),0,(VLOOKUP((CONCATENATE("Target Throw-",Input!K34)),points1,2,)))) -> 0 | AE30: =IF(Input!E34=0,0,IF(Input!$C34>6,IF(ISNA(VLOOKUP((CONCATENATE("Overhead Heave-",Input!L34)),points1,2,)),0,(VLOOKUP((CONCATENATE("Overhead Heave-",Input!L34)),points1,2,))),0)) -> 0 | AF30: 0 | AG30: =IF(Input!E34=0,0,IF(ISNA(VLOOKUP((CONCATENATE("Hi-Stepper-",Input!M34)),points1,2,)),0,(VLOOKUP((CONCATENATE("Hi-Stepper-",Input!M34)),points1,2,)))) -> 28 | AH30: =IF(Input!E34=0,0,IF(ISNA(VLOOKUP((CONCATENATE("Chest Push-",Input!N34)),points1,2,)),0,(VLOOKUP((CONCATENATE("Chest Push-",Input!N34)),points1,2,)))) -> 44 | AI30: =IF(Input!E34=0,0,IF(ISNA(VLOOKUP((CONCATENATE("Vertical Jump-",Input!O34)),points1,2,)),0,(VLOOKUP((CONCATENATE("Vertical Jump-",Input!O34)),points1,2,)))) -> 0 | AJ30: =IF(Input!E34=0,0,IF(ISNA(VLOOKUP((CONCATENATE("Shuttle Run-",Input!P34)),points1,2,)),0,(VLOOKUP((CONCATENATE("Shuttle Run-",Input!P34)),points1,2,)))) -> 0 | AK30: =IF(Input!E34=0,0,IF(ISNA(VLOOKUP((CONCATENATE("Javelin Throw-",Input!Q34)),points1,2,)),0,(VLOOKUP((CONCATENATE("Javelin Throw-",Input!Q34)),points1,2,)))) -> 0 | AL30: =IF(Input!E34=0,0,IF(Input!$C34>6,IF(ISNA(VLOOKUP((CONCATENATE("Shot-",Input!R34)),points1,2,)),0,(VLOOKUP((CONCATENATE("Shot-",Input!R34)),points1,2,))),0)) -> 0 | AM30: 0 | AN30: =IF(Input!E34=0,0,IF(ISNA(VLOOKUP((CONCATENATE("Standing Triple Jump-",Input!S34)),points1,2,)),0,(VLOOKUP((CONCATENATE("Standing Triple Jump-",Input!S34)),points1,2,)))) -> 0 | AO30: =IF(Input!$C34>6,COUNT(Input!H34:J34,Input!M34:P34,Input!S34,Input!X34:Y34),IF(Input!$C34<=6,COUNT(Input!H34:K34,Input!M34:Q34,Input!S34))) -> 5 | AP30: =IF(AO30>=5,(LARGE((AA30:AC30,AF30:AJ30,AM30:AN30),1))+LARGE((AA30:AC30,AF30:AJ30,AM30:AN30),2)+LARGE((AA30:AC30,AF30:AJ30,AM30:AN30),3)+LARGE((AA30:AC30,AF30:AJ30,AM30:AN30),4)+LARGE((AA30:AC30,AF30:AJ30,AM30:AN30),5),0) -> 214 | AQ30: =IF(AP30=0,0,IF((Input!G34="Boy")*AND(Input!C34>6),VLOOKUP(AP30,award2,3),IF((Input!G34="Girl")*AND(Input!C34>6),VLOOKUP(AP30,award2,2),IF((Input!G34="Boy")*AND(Input!C34<=6),VLOOKUP(AP30,award12,3),IF((Input!G34="Girl")*AND(Input!C34<=6),VLOOKUP(AP30,award12,2),0))))) -> Step 10 | AR30: =IF(Input!$C34>6,COUNT(Input!H34:J34,Input!M34:P34,Input!S34,Input!X34:Y34),IF(Input!$C34<=6,COUNT(Input!H34:K34,Input!M34:Q34,Input!S34))) -> 5 | AS30: 0 | AT30: =IF(AS30=0,0,IF((Input!G34="Boy")*AND(Input!C34>6),VLOOKUP(AS30,award2,5),IF((Input!G34="Girl")*AND(Input!C34>6),VLOOKUP(AS30,award2,4),IF((Input!G34="Boy")*AND(Input!C34<=6),VLOOKUP(AS30,award12,5),IF((Input!G34="Girl")*AND(Input!C34<=6),VLOOKUP(AS30,award12,4),0))))) -> 0 | AV30: 62.000024 | AW30: 48.000064 | AX30: 32.000104 | AZ30: 28.000184 | BA30: 44.000224 | BG30: =IF(AV30=" "," ",IF(Input!$G34="Boy",IF(RANK(AV30,($AV30:$BE30),0)<=5,AV30," ")," ")) ->  | BH30: =IF(AW30=" "," ",IF(Input!$G34="Boy",IF(RANK(AW30,($AV30:$BE30),0)<=5,AW30," ")," ")) ->  | BI30: =IF(AX30=" "," ",IF(Input!$G34="Boy",IF(RANK(AX30,($AV30:$BE30),0)<=5,AX30," ")," ")) ->  | BJ30: =IF(AY30=" "," ",IF(Input!$G34="Boy",IF(RANK(AY30,($AV30:$BE30),0)<=5,AY30," ")," ")) ->  | BK30: =IF(AZ30=" "," ",IF(Input!$G34="Boy",IF(RANK(AZ30,($AV30:$BE30),0)<=5,AZ30," ")," ")) ->  | BL30: =IF(BA30=" "," ",IF(Input!$G34="Boy",IF(RANK(BA30,($AV30:$BE30),0)<=5,BA30," ")," ")) ->  | BM30: =IF(BB30=" "," ",IF(Input!$G34="Boy",IF(RANK(BB30,($AV30:$BE30),0)<=5,BB30," ")," ")) ->  | BN30: =IF(BC30=" "," ",IF(Input!$G34="Boy",IF(RANK(BC30,($AV30:$BE30),0)<=5,BC30," ")," ")) ->  | BO30: =IF(BD30=" "," ",IF(Input!$G34="Boy",IF(RANK(BD30,($AV30:$BE30),0)<=5,BD30," ")," ")) ->  | BP30: =IF(BE30=" "," ",IF(Input!$G34="Boy",IF(RANK(BE30,($AV30:$BE30),0)<=5,BE30," ")," ")) ->  | BR30: =IF(AV30=" "," ",IF(Input!$G34="Girl",IF(RANK(AV30,($AV30:$BE30),0)<=5,AV30," ")," ")) -> 62.000024 | BS30: =IF(AW30=" "," ",IF(Input!$G34="Girl",IF(RANK(AW30,($AV30:$BE30),0)<=5,AW30," ")," ")) -> 48.000064 | BT30: =IF(AX30=" "," ",IF(Input!$G34="Girl",IF(RANK(AX30,($AV30:$BE30),0)<=5,AX30," ")," ")) -> 32.000104 | BU30: =IF(AY30=" "," ",IF(Input!$G34="Girl",IF(RANK(AY30,($AV30:$BE30),0)<=5,AY30," ")," ")) ->  | BV30: =IF(AZ30=" "," ",IF(Input!$G34="Girl",IF(RANK(AZ30,($AV30:$BE30),0)<=5,AZ30," ")," ")) -> 28.000184 | BW30: =IF(BA30=" "," ",IF(Input!$G34="Girl",IF(RANK(BA30,($AV30:$BE30),0)<=5,BA30," ")," ")) -> 44.000224 | BX30: =IF(BB30=" "," ",IF(Input!$G34="Girl",IF(RANK(BB30,($AV30:$BE30),0)<=5,BB30," ")," ")) ->  | BY30: =IF(BC30=" "," ",IF(Input!$G34="Girl",IF(RANK(BC30,($AV30:$BE30),0)<=5,BC30," ")," ")) ->  | BZ30: =IF(BD30=" "," ",IF(Input!$G34="Girl",IF(RANK(BD30,($AV30:$BE30),0)<=5,BD30," ")," ")) ->  | CA30: =IF(BE30=" "," ",IF(Input!$G34="Girl",IF(RANK(BE30,($AV30:$BE30),0)<=5,BE30," ")," ")) ->  | CO30: RED | CP30: RED | CS30: RED | CX30: 2.4e-05 | CY30: 6.4e-05 | CZ30: 0.000104 | DA30: 0.000144 | DB30: 0.000184 | DC30: 0.000224 | DD30: 0.000264 | DE30: 0.000304 | DF30: 0.000344 | DG30: 0.000384 | DS30: 62.000024 | DT30: 48.000064 | DU30: 32.000104 | DW30: 28.000184 | DX30: 44.000224
C31: =Input!D35 -> Ruby Sanders | D31: =Input!#REF! ->  | E31: =Input!E35 -> 8 | F31: =Input!F35 -> 12 | G31: =Input!G35 -> GIRL | H31: 65 | I31: 49 | J31: 32 | K31: 0 | L31: 0 | M31: 40 | N31: 42 | O31: 0 | P31: 0 | Q31: 0 | R31: 0 | S31: 0 | T31: 228 | U31: Bronze | X31: 228 | Y31: 228-GIRL-8 | Z31: =Input!D35 -> Ruby Sanders | AA31: =IF(Input!E35=0,0,IF(ISNA(VLOOKUP((CONCATENATE("Balance Test-",Input!H35)),points1,2,)),0,(VLOOKUP((CONCATENATE("Balance Test-",Input!H35)),points1,2,)))) -> 65 | AB31: =IF(Input!E35=0,0,IF(ISNA(VLOOKUP((CONCATENATE("Standing Long Jump-",Input!I35)),points1,2,)),0,(VLOOKUP((CONCATENATE("Standing Long Jump-",Input!I35)),points1,2,)))) -> 49 | AC31: =IF(Input!E35=0,0,IF(ISNA(VLOOKUP((CONCATENATE("Speed Bounce-",Input!J35)),points1,2,)),0,(VLOOKUP((CONCATENATE("Speed Bounce-",Input!J35)),points1,2,)))) -> 32 | AD31: =IF(Input!E35=0,0,IF(ISNA(VLOOKUP((CONCATENATE("Target Throw-",Input!K35)),points1,2,)),0,(VLOOKUP((CONCATENATE("Target Throw-",Input!K35)),points1,2,)))) -> 0 | AE31: =IF(Input!E35=0,0,IF(Input!$C35>6,IF(ISNA(VLOOKUP((CONCATENATE("Overhead Heave-",Input!L35)),points1,2,)),0,(VLOOKUP((CONCATENATE("Overhead Heave-",Input!L35)),points1,2,))),0)) -> 0 | AF31: 0 | AG31: =IF(Input!E35=0,0,IF(ISNA(VLOOKUP((CONCATENATE("Hi-Stepper-",Input!M35)),points1,2,)),0,(VLOOKUP((CONCATENATE("Hi-Stepper-",Input!M35)),points1,2,)))) -> 40 | AH31: =IF(Input!E35=0,0,IF(ISNA(VLOOKUP((CONCATENATE("Chest Push-",Input!N35)),points1,2,)),0,(VLOOKUP((CONCATENATE("Chest Push-",Input!N35)),points1,2,)))) -> 42 | AI31: =IF(Input!E35=0,0,IF(ISNA(VLOOKUP((CONCATENATE("Vertical Jump-",Input!O35)),points1,2,)),0,(VLOOKUP((CONCATENATE("Vertical Jump-",Input!O35)),points1,2,)))) -> 0 | AJ31: =IF(Input!E35=0,0,IF(ISNA(VLOOKUP((CONCATENATE("Shuttle Run-",Input!P35)),points1,2,)),0,(VLOOKUP((CONCATENATE("Shuttle Run-",Input!P35)),points1,2,)))) -> 0 | AK31: =IF(Input!E35=0,0,IF(ISNA(VLOOKUP((CONCATENATE("Javelin Throw-",Input!Q35)),points1,2,)),0,(VLOOKUP((CONCATENATE("Javelin Throw-",Input!Q35)),points1,2,)))) -> 0 | AL31: =IF(Input!E35=0,0,IF(Input!$C35>6,IF(ISNA(VLOOKUP((CONCATENATE("Shot-",Input!R35)),points1,2,)),0,(VLOOKUP((CONCATENATE("Shot-",Input!R35)),points1,2,))),0)) -> 0 | AM31: 0 | AN31: =IF(Input!E35=0,0,IF(ISNA(VLOOKUP((CONCATENATE("Standing Triple Jump-",Input!S35)),points1,2,)),0,(VLOOKUP((CONCATENATE("Standing Triple Jump-",Input!S35)),points1,2,)))) -> 0 | AO31: =IF(Input!$C35>6,COUNT(Input!H35:J35,Input!M35:P35,Input!S35,Input!X35:Y35),IF(Input!$C35<=6,COUNT(Input!H35:K35,Input!M35:Q35,Input!S35))) -> 5 | AP31: =IF(AO31>=5,(LARGE((AA31:AC31,AF31:AJ31,AM31:AN31),1))+LARGE((AA31:AC31,AF31:AJ31,AM31:AN31),2)+LARGE((AA31:AC31,AF31:AJ31,AM31:AN31),3)+LARGE((AA31:AC31,AF31:AJ31,AM31:AN31),4)+LARGE((AA31:AC31,AF31:AJ31,AM31:AN31),5),0) -> 228 | AQ31: =IF(AP31=0,0,IF((Input!G35="Boy")*AND(Input!C35>6),VLOOKUP(AP31,award2,3),IF((Input!G35="Girl")*AND(Input!C35>6),VLOOKUP(AP31,award2,2),IF((Input!G35="Boy")*AND(Input!C35<=6),VLOOKUP(AP31,award12,3),IF((Input!G35="Girl")*AND(Input!C35<=6),VLOOKUP(AP31,award12,2),0))))) -> Bronze | AR31: =IF(Input!$C35>6,COUNT(Input!H35:J35,Input!M35:P35,Input!S35,Input!X35:Y35),IF(Input!$C35<=6,COUNT(Input!H35:K35,Input!M35:Q35,Input!S35))) -> 5 | AS31: 0 | AT31: =IF(AS31=0,0,IF((Input!G35="Boy")*AND(Input!C35>6),VLOOKUP(AS31,award2,5),IF((Input!G35="Girl")*AND(Input!C35>6),VLOOKUP(AS31,award2,4),IF((Input!G35="Boy")*AND(Input!C35<=6),VLOOKUP(AS31,award12,5),IF((Input!G35="Girl")*AND(Input!C35<=6),VLOOKUP(AS31,award12,4),0))))) -> 0 | AV31: 65.000025 | AW31: 49.000065 | AX31: 32.000105 | AZ31: 40.000185 | BA31: 42.000225 | BG31: =IF(AV31=" "," ",IF(Input!$G35="Boy",IF(RANK(AV31,($AV31:$BE31),0)<=5,AV31," ")," ")) ->  | BH31: =IF(AW31=" "," ",IF(Input!$G35="Boy",IF(RANK(AW31,($AV31:$BE31),0)<=5,AW31," ")," ")) ->  | BI31: =IF(AX31=" "," ",IF(Input!$G35="Boy",IF(RANK(AX31,($AV31:$BE31),0)<=5,AX31," ")," ")) ->  | BJ31: =IF(AY31=" "," ",IF(Input!$G35="Boy",IF(RANK(AY31,($AV31:$BE31),0)<=5,AY31," ")," ")) ->  | BK31: =IF(AZ31=" "," ",IF(Input!$G35="Boy",IF(RANK(AZ31,($AV31:$BE31),0)<=5,AZ31," ")," ")) ->  | BL31: =IF(BA31=" "," ",IF(Input!$G35="Boy",IF(RANK(BA31,($AV31:$BE31),0)<=5,BA31," ")," ")) ->  | BM31: =IF(BB31=" "," ",IF(Input!$G35="Boy",IF(RANK(BB31,($AV31:$BE31),0)<=5,BB31," ")," ")) ->  | BN31: =IF(BC31=" "," ",IF(Input!$G35="Boy",IF(RANK(BC31,($AV31:$BE31),0)<=5,BC31," ")," ")) ->  | BO31: =IF(BD31=" "," ",IF(Input!$G35="Boy",IF(RANK(BD31,($AV31:$BE31),0)<=5,BD31," ")," ")) ->  | BP31: =IF(BE31=" "," ",IF(Input!$G35="Boy",IF(RANK(BE31,($AV31:$BE31),0)<=5,BE31," ")," ")) ->  | BR31: =IF(AV31=" "," ",IF(Input!$G35="Girl",IF(RANK(AV31,($AV31:$BE31),0)<=5,AV31," ")," ")) -> 65.000025 | BS31: =IF(AW31=" "," ",IF(Input!$G35="Girl",IF(RANK(AW31,($AV31:$BE31),0)<=5,AW31," ")," ")) -> 49.000065 | BT31: =IF(AX31=" "," ",IF(Input!$G35="Girl",IF(RANK(AX31,($AV31:$BE31),0)<=5,AX31," ")," ")) -> 32.000105 | BU31: =IF(AY31=" "," ",IF(Input!$G35="Girl",IF(RANK(AY31,($AV31:$BE31),0)<=5,AY31," ")," ")) ->  | BV31: =IF(AZ31=" "," ",IF(Input!$G35="Girl",IF(RANK(AZ31,($AV31:$BE31),0)<=5,AZ31," ")," ")) -> 40.000185 | BW31: =IF(BA31=" "," ",IF(Input!$G35="Girl",IF(RANK(BA31,($AV31:$BE31),0)<=5,BA31," ")," ")) -> 42.000225 | BX31: =IF(BB31=" "," ",IF(Input!$G35="Girl",IF(RANK(BB31,($AV31:$BE31),0)<=5,BB31," ")," ")) ->  | BY31: =IF(BC31=" "," ",IF(Input!$G35="Girl",IF(RANK(BC31,($AV31:$BE31),0)<=5,BC31," ")," ")) ->  | BZ31: =IF(BD31=" "," ",IF(Input!$G35="Girl",IF(RANK(BD31,($AV31:$BE31),0)<=5,BD31," ")," ")) ->  | CA31: =IF(BE31=" "," ",IF(Input!$G35="Girl",IF(RANK(BE31,($AV31:$BE31),0)<=5,BE31," ")," ")) ->  | CN31: RED | CO31: RED | CP31: RED | CR31: RED | CS31: RED | CX31: 2.5e-05 | CY31: 6.5e-05 | CZ31: 0.000105 | DA31: 0.000145 | DB31: 0.000185 | DC31: 0.000225 | DD31: 0.000265 | DE31: 0.000305 | DF31: 0.000345 | DG31: 0.000385 | DS31: 65.000025 | DT31: 49.000065 | DU31: 32.000105 | DW31: 40.000185 | DX31: 42.000225
C32: =Input!D36 -> Annabelle Deards | D32: =Input!#REF! ->  | E32: =Input!E36 -> 8 | F32: =Input!F36 -> 12 | G32: =Input!G36 -> GIRL | H32: 24 | I32: 34 | J32: 31 | K32: 0 | L32: 0 | M32: 29 | N32: 46 | O32: 0 | P32: 0 | Q32: 0 | R32: 0 | S32: 0 | T32: 164 | U32: Step 8 | X32: 164 | Y32: 164-GIRL-8 | Z32: =Input!D36 -> Annabelle Deards | AA32: =IF(Input!E36=0,0,IF(ISNA(VLOOKUP((CONCATENATE("Balance Test-",Input!H36)),points1,2,)),0,(VLOOKUP((CONCATENATE("Balance Test-",Input!H36)),points1,2,)))) -> 24 | AB32: =IF(Input!E36=0,0,IF(ISNA(VLOOKUP((CONCATENATE("Standing Long Jump-",Input!I36)),points1,2,)),0,(VLOOKUP((CONCATENATE("Standing Long Jump-",Input!I36)),points1,2,)))) -> 34 | AC32: =IF(Input!E36=0,0,IF(ISNA(VLOOKUP((CONCATENATE("Speed Bounce-",Input!J36)),points1,2,)),0,(VLOOKUP((CONCATENATE("Speed Bounce-",Input!J36)),points1,2,)))) -> 31 | AD32: =IF(Input!E36=0,0,IF(ISNA(VLOOKUP((CONCATENATE("Target Throw-",Input!K36)),points1,2,)),0,(VLOOKUP((CONCATENATE("Target Throw-",Input!K36)),points1,2,)))) -> 0 | AE32: =IF(Input!E36=0,0,IF(Input!$C36>6,IF(ISNA(VLOOKUP((CONCATENATE("Overhead Heave-",Input!L36)),points1,2,)),0,(VLOOKUP((CONCATENATE("Overhead Heave-",Input!L36)),points1,2,))),0)) -> 0 | AF32: 0 | AG32: =IF(Input!E36=0,0,IF(ISNA(VLOOKUP((CONCATENATE("Hi-Stepper-",Input!M36)),points1,2,)),0,(VLOOKUP((CONCATENATE("Hi-Stepper-",Input!M36)),points1,2,)))) -> 29 | AH32: =IF(Input!E36=0,0,IF(ISNA(VLOOKUP((CONCATENATE("Chest Push-",Input!N36)),points1,2,)),0,(VLOOKUP((CONCATENATE("Chest Push-",Input!N36)),points1,2,)))) -> 46 | AI32: =IF(Input!E36=0,0,IF(ISNA(VLOOKUP((CONCATENATE("Vertical Jump-",Input!O36)),points1,2,)),0,(VLOOKUP((CONCATENATE("Vertical Jump-",Input!O36)),points1,2,)))) -> 0 | AJ32: =IF(Input!E36=0,0,IF(ISNA(VLOOKUP((CONCATENATE("Shuttle Run-",Input!P36)),points1,2,)),0,(VLOOKUP((CONCATENATE("Shuttle Run-",Input!P36)),points1,2,)))) -> 0 | AK32: =IF(Input!E36=0,0,IF(ISNA(VLOOKUP((CONCATENATE("Javelin Throw-",Input!Q36)),points1,2,)),0,(VLOOKUP((CONCATENATE("Javelin Throw-",Input!Q36)),points1,2,)))) -> 0 | AL32: =IF(Input!E36=0,0,IF(Input!$C36>6,IF(ISNA(VLOOKUP((CONCATENATE("Shot-",Input!R36)),points1,2,)),0,(VLOOKUP((CONCATENATE("Shot-",Input!R36)),points1,2,))),0)) -> 0 | AM32: 0 | AN32: =IF(Input!E36=0,0,IF(ISNA(VLOOKUP((CONCATENATE("Standing Triple Jump-",Input!S36)),points1,2,)),0,(VLOOKUP((CONCATENATE("Standing Triple Jump-",Input!S36)),points1,2,)))) -> 0 | AO32: =IF(Input!$C36>6,COUNT(Input!H36:J36,Input!M36:P36,Input!S36,Input!X36:Y36),IF(Input!$C36<=6,COUNT(Input!H36:K36,Input!M36:Q36,Input!S36))) -> 5 | AP32: =IF(AO32>=5,(LARGE((AA32:AC32,AF32:AJ32,AM32:AN32),1))+LARGE((AA32:AC32,AF32:AJ32,AM32:AN32),2)+LARGE((AA32:AC32,AF32:AJ32,AM32:AN32),3)+LARGE((AA32:AC32,AF32:AJ32,AM32:AN32),4)+LARGE((AA32:AC32,AF32:AJ32,AM32:AN32),5),0) -> 164 | AQ32: =IF(AP32=0,0,IF((Input!G36="Boy")*AND(Input!C36>6),VLOOKUP(AP32,award2,3),IF((Input!G36="Girl")*AND(Input!C36>6),VLOOKUP(AP32,award2,2),IF((Input!G36="Boy")*AND(Input!C36<=6),VLOOKUP(AP32,award12,3),IF((Input!G36="Girl")*AND(Input!C36<=6),VLOOKUP(AP32,award12,2),0))))) -> Step 8 | AR32: =IF(Input!$C36>6,COUNT(Input!H36:J36,Input!M36:P36,Input!S36,Input!X36:Y36),IF(Input!$C36<=6,COUNT(Input!H36:K36,Input!M36:Q36,Input!S36))) -> 5 | AS32: 0 | AT32: =IF(AS32=0,0,IF((Input!G36="Boy")*AND(Input!C36>6),VLOOKUP(AS32,award2,5),IF((Input!G36="Girl")*AND(Input!C36>6),VLOOKUP(AS32,award2,4),IF((Input!G36="Boy")*AND(Input!C36<=6),VLOOKUP(AS32,award12,5),IF((Input!G36="Girl")*AND(Input!C36<=6),VLOOKUP(AS32,award12,4),0))))) -> 0 | AV32: 24.000026 | AW32: 34.000066 | AX32: 31.000106 | AZ32: 29.000186 | BA32: 46.000226 | BG32: =IF(AV32=" "," ",IF(Input!$G36="Boy",IF(RANK(AV32,($AV32:$BE32),0)<=5,AV32," ")," ")) ->  | BH32: =IF(AW32=" "," ",IF(Input!$G36="Boy",IF(RANK(AW32,($AV32:$BE32),0)<=5,AW32," ")," ")) ->  | BI32: =IF(AX32=" "," ",IF(Input!$G36="Boy",IF(RANK(AX32,($AV32:$BE32),0)<=5,AX32," ")," ")) ->  | BJ32: =IF(AY32=" "," ",IF(Input!$G36="Boy",IF(RANK(AY32,($AV32:$BE32),0)<=5,AY32," ")," ")) ->  | BK32: =IF(AZ32=" "," ",IF(Input!$G36="Boy",IF(RANK(AZ32,($AV32:$BE32),0)<=5,AZ32," ")," ")) ->  | BL32: =IF(BA32=" "," ",IF(Input!$G36="Boy",IF(RANK(BA32,($AV32:$BE32),0)<=5,BA32," ")," ")) ->  | BM32: =IF(BB32=" "," ",IF(Input!$G36="Boy",IF(RANK(BB32,($AV32:$BE32),0)<=5,BB32," ")," ")) ->  | BN32: =IF(BC32=" "," ",IF(Input!$G36="Boy",IF(RANK(BC32,($AV32:$BE32),0)<=5,BC32," ")," ")) ->  | BO32: =IF(BD32=" "," ",IF(Input!$G36="Boy",IF(RANK(BD32,($AV32:$BE32),0)<=5,BD32," ")," ")) ->  | BP32: =IF(BE32=" "," ",IF(Input!$G36="Boy",IF(RANK(BE32,($AV32:$BE32),0)<=5,BE32," ")," ")) ->  | BR32: =IF(AV32=" "," ",IF(Input!$G36="Girl",IF(RANK(AV32,($AV32:$BE32),0)<=5,AV32," ")," ")) -> 24.000026 | BS32: =IF(AW32=" "," ",IF(Input!$G36="Girl",IF(RANK(AW32,($AV32:$BE32),0)<=5,AW32," ")," ")) -> 34.000066 | BT32: =IF(AX32=" "," ",IF(Input!$G36="Girl",IF(RANK(AX32,($AV32:$BE32),0)<=5,AX32," ")," ")) -> 31.000106 | BU32: =IF(AY32=" "," ",IF(Input!$G36="Girl",IF(RANK(AY32,($AV32:$BE32),0)<=5,AY32," ")," ")) ->  | BV32: =IF(AZ32=" "," ",IF(Input!$G36="Girl",IF(RANK(AZ32,($AV32:$BE32),0)<=5,AZ32," ")," ")) -> 29.000186 | BW32: =IF(BA32=" "," ",IF(Input!$G36="Girl",IF(RANK(BA32,($AV32:$BE32),0)<=5,BA32," ")," ")) -> 46.000226 | BX32: =IF(BB32=" "," ",IF(Input!$G36="Girl",IF(RANK(BB32,($AV32:$BE32),0)<=5,BB32," ")," ")) ->  | BY32: =IF(BC32=" "," ",IF(Input!$G36="Girl",IF(RANK(BC32,($AV32:$BE32),0)<=5,BC32," ")," ")) ->  | BZ32: =IF(BD32=" "," ",IF(Input!$G36="Girl",IF(RANK(BD32,($AV32:$BE32),0)<=5,BD32," ")," ")) ->  | CA32: =IF(BE32=" "," ",IF(Input!$G36="Girl",IF(RANK(BE32,($AV32:$BE32),0)<=5,BE32," ")," ")) ->  | CS32: RED | CX32: 2.6e-05 | CY32: 6.6e-05 | CZ32: 0.000106 | DA32: 0.000146 | DB32: 0.000186 | DC32: 0.000226 | DD32: 0.000266 | DE32: 0.000306 | DF32: 0.000346 | DG32: 0.000386 | DS32: 24.000026 | DT32: 34.000066 | DU32: 31.000106 | DW32: 29.000186 | DX32: 46.000226
C33: =Input!D37 -> William Deards | D33: =Input!#REF! ->  | E33: =Input!E37 -> 3 | F33: =Input!F37 -> 8 | G33: =Input!G37 -> BOY | H33: 48 | I33: 18 | J33: 15 | K33: 30 | L33: 0 | M33: 24 | N33: 0 | O33: 0 | P33: 0 | Q33: 0 | R33: 0 | S33: 0 | T33: 135 | U33: Step 7 | X33: 135 | Y33: 135-BOY-3 | Z33: =Input!D37 -> William Deards | AA33: =IF(Input!E37=0,0,IF(ISNA(VLOOKUP((CONCATENATE("Balance Test-",Input!H37)),points1,2,)),0,(VLOOKUP((CONCATENATE("Balance Test-",Input!H37)),points1,2,)))) -> 48 | AB33: =IF(Input!E37=0,0,IF(ISNA(VLOOKUP((CONCATENATE("Standing Long Jump-",Input!I37)),points1,2,)),0,(VLOOKUP((CONCATENATE("Standing Long Jump-",Input!I37)),points1,2,)))) -> 18 | AC33: =IF(Input!E37=0,0,IF(ISNA(VLOOKUP((CONCATENATE("Speed Bounce-",Input!J37)),points1,2,)),0,(VLOOKUP((CONCATENATE("Speed Bounce-",Input!J37)),points1,2,)))) -> 15 | AD33: =IF(Input!E37=0,0,IF(ISNA(VLOOKUP((CONCATENATE("Target Throw-",Input!K37)),points1,2,)),0,(VLOOKUP((CONCATENATE("Target Throw-",Input!K37)),points1,2,)))) -> 30 | AE33: =IF(Input!E37=0,0,IF(Input!$C37>6,IF(ISNA(VLOOKUP((CONCATENATE("Overhead Heave-",Input!L37)),points1,2,)),0,(VLOOKUP((CONCATENATE("Overhead Heave-",Input!L37)),points1,2,))),0)) -> 0 | AF33: 30 | AG33: =IF(Input!E37=0,0,IF(ISNA(VLOOKUP((CONCATENATE("Hi-Stepper-",Input!M37)),points1,2,)),0,(VLOOKUP((CONCATENATE("Hi-Stepper-",Input!M37)),points1,2,)))) -> 24 | AH33: =IF(Input!E37=0,0,IF(ISNA(VLOOKUP((CONCATENATE("Chest Push-",Input!N37)),points1,2,)),0,(VLOOKUP((CONCATENATE("Chest Push-",Input!N37)),points1,2,)))) -> 0 | AI33: =IF(Input!E37=0,0,IF(ISNA(VLOOKUP((CONCATENATE("Vertical Jump-",Input!O37)),points1,2,)),0,(VLOOKUP((CONCATENATE("Vertical Jump-",Input!O37)),points1,2,)))) -> 0 | AJ33: =IF(Input!E37=0,0,IF(ISNA(VLOOKUP((CONCATENATE("Shuttle Run-",Input!P37)),points1,2,)),0,(VLOOKUP((CONCATENATE("Shuttle Run-",Input!P37)),points1,2,)))) -> 0 | AK33: =IF(Input!E37=0,0,IF(ISNA(VLOOKUP((CONCATENATE("Javelin Throw-",Input!Q37)),points1,2,)),0,(VLOOKUP((CONCATENATE("Javelin Throw-",Input!Q37)),points1,2,)))) -> 0 | AL33: =IF(Input!E37=0,0,IF(Input!$C37>6,IF(ISNA(VLOOKUP((CONCATENATE("Shot-",Input!R37)),points1,2,)),0,(VLOOKUP((CONCATENATE("Shot-",Input!R37)),points1,2,))),0)) -> 0 | AM33: 0 | AN33: =IF(Input!E37=0,0,IF(ISNA(VLOOKUP((CONCATENATE("Standing Triple Jump-",Input!S37)),points1,2,)),0,(VLOOKUP((CONCATENATE("Standing Triple Jump-",Input!S37)),points1,2,)))) -> 0 | AO33: =IF(Input!$C37>6,COUNT(Input!H37:J37,Input!M37:P37,Input!S37,Input!X37:Y37),IF(Input!$C37<=6,COUNT(Input!H37:K37,Input!M37:Q37,Input!S37))) -> 5 | AP33: =IF(AO33>=5,(LARGE((AA33:AC33,AF33:AJ33,AM33:AN33),1))+LARGE((AA33:AC33,AF33:AJ33,AM33:AN33),2)+LARGE((AA33:AC33,AF33:AJ33,AM33:AN33),3)+LARGE((AA33:AC33,AF33:AJ33,AM33:AN33),4)+LARGE((AA33:AC33,AF33:AJ33,AM33:AN33),5),0) -> 135 | AQ33: =IF(AP33=0,0,IF((Input!G37="Boy")*AND(Input!C37>6),VLOOKUP(AP33,award2,3),IF((Input!G37="Girl")*AND(Input!C37>6),VLOOKUP(AP33,award2,2),IF((Input!G37="Boy")*AND(Input!C37<=6),VLOOKUP(AP33,award12,3),IF((Input!G37="Girl")*AND(Input!C37<=6),VLOOKUP(AP33,award12,2),0))))) -> Step 7 | AR33: =IF(Input!$C37>6,COUNT(Input!H37:J37,Input!M37:P37,Input!S37,Input!X37:Y37),IF(Input!$C37<=6,COUNT(Input!H37:K37,Input!M37:Q37,Input!S37))) -> 5 | AS33: 0 | AT33: =IF(AS33=0,0,IF((Input!G37="Boy")*AND(Input!C37>6),VLOOKUP(AS33,award2,5),IF((Input!G37="Girl")*AND(Input!C37>6),VLOOKUP(AS33,award2,4),IF((Input!G37="Boy")*AND(Input!C37<=6),VLOOKUP(AS33,award12,5),IF((Input!G37="Girl")*AND(Input!C37<=6),VLOOKUP(AS33,award12,4),0))))) -> 0 | AV33: 48.000027 | AW33: 18.000067 | AX33: 15.000107 | AY33: 30.000147 | AZ33: 24.000187 | BG33: =IF(AV33=" "," ",IF(Input!$G37="Boy",IF(RANK(AV33,($AV33:$BE33),0)<=5,AV33," ")," ")) -> 48.000027 | BH33: =IF(AW33=" "," ",IF(Input!$G37="Boy",IF(RANK(AW33,($AV33:$BE33),0)<=5,AW33," ")," ")) -> 18.000067 | BI33: =IF(AX33=" "," ",IF(Input!$G37="Boy",IF(RANK(AX33,($AV33:$BE33),0)<=5,AX33," ")," ")) -> 15.000107 | BJ33: =IF(AY33=" "," ",IF(Input!$G37="Boy",IF(RANK(AY33,($AV33:$BE33),0)<=5,AY33," ")," ")) -> 30.000147 | BK33: =IF(AZ33=" "," ",IF(Input!$G37="Boy",IF(RANK(AZ33,($AV33:$BE33),0)<=5,AZ33," ")," ")) -> 24.000187 | BL33: =IF(BA33=" "," ",IF(Input!$G37="Boy",IF(RANK(BA33,($AV33:$BE33),0)<=5,BA33," ")," ")) ->  | BM33: =IF(BB33=" "," ",IF(Input!$G37="Boy",IF(RANK(BB33,($AV33:$BE33),0)<=5,BB33," ")," ")) ->  | BN33: =IF(BC33=" "," ",IF(Input!$G37="Boy",IF(RANK(BC33,($AV33:$BE33),0)<=5,BC33," ")," ")) ->  | BO33: =IF(BD33=" "," ",IF(Input!$G37="Boy",IF(RANK(BD33,($AV33:$BE33),0)<=5,BD33," ")," ")) ->  | BP33: =IF(BE33=" "," ",IF(Input!$G37="Boy",IF(RANK(BE33,($AV33:$BE33),0)<=5,BE33," ")," ")) ->  | BR33: =IF(AV33=" "," ",IF(Input!$G37="Girl",IF(RANK(AV33,($AV33:$BE33),0)<=5,AV33," ")," ")) ->  | BS33: =IF(AW33=" "," ",IF(Input!$G37="Girl",IF(RANK(AW33,($AV33:$BE33),0)<=5,AW33," ")," ")) ->  | BT33: =IF(AX33=" "," ",IF(Input!$G37="Girl",IF(RANK(AX33,($AV33:$BE33),0)<=5,AX33," ")," ")) ->  | BU33: =IF(AY33=" "," ",IF(Input!$G37="Girl",IF(RANK(AY33,($AV33:$BE33),0)<=5,AY33," ")," ")) ->  | BV33: =IF(AZ33=" "," ",IF(Input!$G37="Girl",IF(RANK(AZ33,($AV33:$BE33),0)<=5,AZ33," ")," ")) ->  | BW33: =IF(BA33=" "," ",IF(Input!$G37="Girl",IF(RANK(BA33,($AV33:$BE33),0)<=5,BA33," ")," ")) ->  | BX33: =IF(BB33=" "," ",IF(Input!$G37="Girl",IF(RANK(BB33,($AV33:$BE33),0)<=5,BB33," ")," ")) ->  | BY33: =IF(BC33=" "," ",IF(Input!$G37="Girl",IF(RANK(BC33,($AV33:$BE33),0)<=5,BC33," ")," ")) ->  | BZ33: =IF(BD33=" "," ",IF(Input!$G37="Girl",IF(RANK(BD33,($AV33:$BE33),0)<=5,BD33," ")," ")) ->  | CA33: =IF(BE33=" "," ",IF(Input!$G37="Girl",IF(RANK(BE33,($AV33:$BE33),0)<=5,BE33," ")," ")) ->  | CX33: 2.7e-05 | CY33: 6.7e-05 | CZ33: 0.000107 | DA33: 0.000147 | DB33: 0.000187 | DC33: 0.000227 | DD33: 0.000267 | DE33: 0.000307 | DF33: 0.000347 | DG33: 0.000387 | DH33: 48.000027 | DI33: 18.000067 | DJ33: 15.000107 | DK33: 30.000147 | DL33: 24.000187
C34: =Input!D38 -> William Blunt | D34: =Input!#REF! ->  | E34: =Input!E38 -> 2 | F34: =Input!F38 -> 6 | G34: =Input!G38 -> BOY | H34: 19 | I34: 14 | J34: 12 | K34: 6 | L34: 0 | M34: 18 | N34: 0 | O34: 0 | P34: 0 | Q34: 0 | R34: 0 | S34: 0 | T34: 69 | U34: Step 3 | X34: 69 | Y34: 69-BOY-2 | Z34: =Input!D38 -> William Blunt | AA34: =IF(Input!E38=0,0,IF(ISNA(VLOOKUP((CONCATENATE("Balance Test-",Input!H38)),points1,2,)),0,(VLOOKUP((CONCATENATE("Balance Test-",Input!H38)),points1,2,)))) -> 19 | AB34: =IF(Input!E38=0,0,IF(ISNA(VLOOKUP((CONCATENATE("Standing Long Jump-",Input!I38)),points1,2,)),0,(VLOOKUP((CONCATENATE("Standing Long Jump-",Input!I38)),points1,2,)))) -> 14 | AC34: =IF(Input!E38=0,0,IF(ISNA(VLOOKUP((CONCATENATE("Speed Bounce-",Input!J38)),points1,2,)),0,(VLOOKUP((CONCATENATE("Speed Bounce-",Input!J38)),points1,2,)))) -> 12 | AD34: =IF(Input!E38=0,0,IF(ISNA(VLOOKUP((CONCATENATE("Target Throw-",Input!K38)),points1,2,)),0,(VLOOKUP((CONCATENATE("Target Throw-",Input!K38)),points1,2,)))) -> 6 | AE34: =IF(Input!E38=0,0,IF(Input!$C38>6,IF(ISNA(VLOOKUP((CONCATENATE("Overhead Heave-",Input!L38)),points1,2,)),0,(VLOOKUP((CONCATENATE("Overhead Heave-",Input!L38)),points1,2,))),0)) -> 0 | AF34: 6 | AG34: =IF(Input!E38=0,0,IF(ISNA(VLOOKUP((CONCATENATE("Hi-Stepper-",Input!M38)),points1,2,)),0,(VLOOKUP((CONCATENATE("Hi-Stepper-",Input!M38)),points1,2,)))) -> 18 | AH34: =IF(Input!E38=0,0,IF(ISNA(VLOOKUP((CONCATENATE("Chest Push-",Input!N38)),points1,2,)),0,(VLOOKUP((CONCATENATE("Chest Push-",Input!N38)),points1,2,)))) -> 0 | AI34: =IF(Input!E38=0,0,IF(ISNA(VLOOKUP((CONCATENATE("Vertical Jump-",Input!O38)),points1,2,)),0,(VLOOKUP((CONCATENATE("Vertical Jump-",Input!O38)),points1,2,)))) -> 0 | AJ34: =IF(Input!E38=0,0,IF(ISNA(VLOOKUP((CONCATENATE("Shuttle Run-",Input!P38)),points1,2,)),0,(VLOOKUP((CONCATENATE("Shuttle Run-",Input!P38)),points1,2,)))) -> 0 | AK34: =IF(Input!E38=0,0,IF(ISNA(VLOOKUP((CONCATENATE("Javelin Throw-",Input!Q38)),points1,2,)),0,(VLOOKUP((CONCATENATE("Javelin Throw-",Input!Q38)),points1,2,)))) -> 0 | AL34: =IF(Input!E38=0,0,IF(Input!$C38>6,IF(ISNA(VLOOKUP((CONCATENATE("Shot-",Input!R38)),points1,2,)),0,(VLOOKUP((CONCATENATE("Shot-",Input!R38)),points1,2,))),0)) -> 0 | AM34: 0 | AN34: =IF(Input!E38=0,0,IF(ISNA(VLOOKUP((CONCATENATE("Standing Triple Jump-",Input!S38)),points1,2,)),0,(VLOOKUP((CONCATENATE("Standing Triple Jump-",Input!S38)),points1,2,)))) -> 0 | AO34: =IF(Input!$C38>6,COUNT(Input!H38:J38,Input!M38:P38,Input!S38,Input!X38:Y38),IF(Input!$C38<=6,COUNT(Input!H38:K38,Input!M38:Q38,Input!S38))) -> 5 | AP34: =IF(AO34>=5,(LARGE((AA34:AC34,AF34:AJ34,AM34:AN34),1))+LARGE((AA34:AC34,AF34:AJ34,AM34:AN34),2)+LARGE((AA34:AC34,AF34:AJ34,AM34:AN34),3)+LARGE((AA34:AC34,AF34:AJ34,AM34:AN34),4)+LARGE((AA34:AC34,AF34:AJ34,AM34:AN34),5),0) -> 69 | AQ34: =IF(AP34=0,0,IF((Input!G38="Boy")*AND(Input!C38>6),VLOOKUP(AP34,award2,3),IF((Input!G38="Girl")*AND(Input!C38>6),VLOOKUP(AP34,award2,2),IF((Input!G38="Boy")*AND(Input!C38<=6),VLOOKUP(AP34,award12,3),IF((Input!G38="Girl")*AND(Input!C38<=6),VLOOKUP(AP34,award12,2),0))))) -> Step 3 | AR34: =IF(Input!$C38>6,COUNT(Input!H38:J38,Input!M38:P38,Input!S38,Input!X38:Y38),IF(Input!$C38<=6,COUNT(Input!H38:K38,Input!M38:Q38,Input!S38))) -> 5 | AS34: 0 | AT34: =IF(AS34=0,0,IF((Input!G38="Boy")*AND(Input!C38>6),VLOOKUP(AS34,award2,5),IF((Input!G38="Girl")*AND(Input!C38>6),VLOOKUP(AS34,award2,4),IF((Input!G38="Boy")*AND(Input!C38<=6),VLOOKUP(AS34,award12,5),IF((Input!G38="Girl")*AND(Input!C38<=6),VLOOKUP(AS34,award12,4),0))))) -> 0 | AV34: 19.000028 | AW34: 14.000068 | AX34: 12.000108 | AY34: 6.000148 | AZ34: 18.000188 | BG34: =IF(AV34=" "," ",IF(Input!$G38="Boy",IF(RANK(AV34,($AV34:$BE34),0)<=5,AV34," ")," ")) -> 19.000028 | BH34: =IF(AW34=" "," ",IF(Input!$G38="Boy",IF(RANK(AW34,($AV34:$BE34),0)<=5,AW34," ")," ")) -> 14.000068 | BI34: =IF(AX34=" "," ",IF(Input!$G38="Boy",IF(RANK(AX34,($AV34:$BE34),0)<=5,AX34," ")," ")) -> 12.000108 | BJ34: =IF(AY34=" "," ",IF(Input!$G38="Boy",IF(RANK(AY34,($AV34:$BE34),0)<=5,AY34," ")," ")) -> 6.000148 | BK34: =IF(AZ34=" "," ",IF(Input!$G38="Boy",IF(RANK(AZ34,($AV34:$BE34),0)<=5,AZ34," ")," ")) -> 18.000188 | BL34: =IF(BA34=" "," ",IF(Input!$G38="Boy",IF(RANK(BA34,($AV34:$BE34),0)<=5,BA34," ")," ")) ->  | BM34: =IF(BB34=" "," ",IF(Input!$G38="Boy",IF(RANK(BB34,($AV34:$BE34),0)<=5,BB34," ")," ")) ->  | BN34: =IF(BC34=" "," ",IF(Input!$G38="Boy",IF(RANK(BC34,($AV34:$BE34),0)<=5,BC34," ")," ")) ->  | BO34: =IF(BD34=" "," ",IF(Input!$G38="Boy",IF(RANK(BD34,($AV34:$BE34),0)<=5,BD34," ")," ")) ->  | BP34: =IF(BE34=" "," ",IF(Input!$G38="Boy",IF(RANK(BE34,($AV34:$BE34),0)<=5,BE34," ")," ")) ->  | BR34: =IF(AV34=" "," ",IF(Input!$G38="Girl",IF(RANK(AV34,($AV34:$BE34),0)<=5,AV34," ")," ")) ->  | BS34: =IF(AW34=" "," ",IF(Input!$G38="Girl",IF(RANK(AW34,($AV34:$BE34),0)<=5,AW34," ")," ")) ->  | BT34: =IF(AX34=" "," ",IF(Input!$G38="Girl",IF(RANK(AX34,($AV34:$BE34),0)<=5,AX34," ")," ")) ->  | BU34: =IF(AY34=" "," ",IF(Input!$G38="Girl",IF(RANK(AY34,($AV34:$BE34),0)<=5,AY34," ")," ")) ->  | BV34: =IF(AZ34=" "," ",IF(Input!$G38="Girl",IF(RANK(AZ34,($AV34:$BE34),0)<=5,AZ34," ")," ")) ->  | BW34: =IF(BA34=" "," ",IF(Input!$G38="Girl",IF(RANK(BA34,($AV34:$BE34),0)<=5,BA34," ")," ")) ->  | BX34: =IF(BB34=" "," ",IF(Input!$G38="Girl",IF(RANK(BB34,($AV34:$BE34),0)<=5,BB34," ")," ")) ->  | BY34: =IF(BC34=" "," ",IF(Input!$G38="Girl",IF(RANK(BC34,($AV34:$BE34),0)<=5,BC34," ")," ")) ->  | BZ34: =IF(BD34=" "," ",IF(Input!$G38="Girl",IF(RANK(BD34,($AV34:$BE34),0)<=5,BD34," ")," ")) ->  | CA34: =IF(BE34=" "," ",IF(Input!$G38="Girl",IF(RANK(BE34,($AV34:$BE34),0)<=5,BE34," ")," ")) ->  | CX34: 2.8e-05 | CY34: 6.8e-05 | CZ34: 0.000108 | DA34: 0.000148 | DB34: 0.000188 | DC34: 0.000228 | DD34: 0.000268 | DE34: 0.000308 | DF34: 0.000348 | DG34: 0.000388 | DH34: 19.000028 | DI34: 14.000068 | DJ34: 12.000108 | DK34: 6.000148 | DL34: 18.000188
C35: =Input!D39 -> Barni Fritz | D35: =Input!#REF! ->  | E35: =Input!E39 -> 4 | F35: =Input!F39 -> 8 | G35: =Input!G39 -> BOY | H35: 25 | I35: 15 | J35: 13 | K35: 27 | L35: 0 | M35: 15 | N35: 0 | O35: 0 | P35: 0 | Q35: 0 | R35: 0 | S35: 0 | T35: 95 | U35: Step 4 | X35: 95 | Y35: 95-BOY-4 | Z35: =Input!D39 -> Barni Fritz | AA35: =IF(Input!E39=0,0,IF(ISNA(VLOOKUP((CONCATENATE("Balance Test-",Input!H39)),points1,2,)),0,(VLOOKUP((CONCATENATE("Balance Test-",Input!H39)),points1,2,)))) -> 25 | AB35: =IF(Input!E39=0,0,IF(ISNA(VLOOKUP((CONCATENATE("Standing Long Jump-",Input!I39)),points1,2,)),0,(VLOOKUP((CONCATENATE("Standing Long Jump-",Input!I39)),points1,2,)))) -> 15 | AC35: =IF(Input!E39=0,0,IF(ISNA(VLOOKUP((CONCATENATE("Speed Bounce-",Input!J39)),points1,2,)),0,(VLOOKUP((CONCATENATE("Speed Bounce-",Input!J39)),points1,2,)))) -> 13 | AD35: =IF(Input!E39=0,0,IF(ISNA(VLOOKUP((CONCATENATE("Target Throw-",Input!K39)),points1,2,)),0,(VLOOKUP((CONCATENATE("Target Throw-",Input!K39)),points1,2,)))) -> 27 | AE35: =IF(Input!E39=0,0,IF(Input!$C39>6,IF(ISNA(VLOOKUP((CONCATENATE("Overhead Heave-",Input!L39)),points1,2,)),0,(VLOOKUP((CONCATENATE("Overhead Heave-",Input!L39)),points1,2,))),0)) -> 0 | AF35: 27 | AG35: =IF(Input!E39=0,0,IF(ISNA(VLOOKUP((CONCATENATE("Hi-Stepper-",Input!M39)),points1,2,)),0,(VLOOKUP((CONCATENATE("Hi-Stepper-",Input!M39)),points1,2,)))) -> 15 | AH35: =IF(Input!E39=0,0,IF(ISNA(VLOOKUP((CONCATENATE("Chest Push-",Input!N39)),points1,2,)),0,(VLOOKUP((CONCATENATE("Chest Push-",Input!N39)),points1,2,)))) -> 0 | AI35: =IF(Input!E39=0,0,IF(ISNA(VLOOKUP((CONCATENATE("Vertical Jump-",Input!O39)),points1,2,)),0,(VLOOKUP((CONCATENATE("Vertical Jump-",Input!O39)),points1,2,)))) -> 0 | AJ35: =IF(Input!E39=0,0,IF(ISNA(VLOOKUP((CONCATENATE("Shuttle Run-",Input!P39)),points1,2,)),0,(VLOOKUP((CONCATENATE("Shuttle Run-",Input!P39)),points1,2,)))) -> 0 | AK35: =IF(Input!E39=0,0,IF(ISNA(VLOOKUP((CONCATENATE("Javelin Throw-",Input!Q39)),points1,2,)),0,(VLOOKUP((CONCATENATE("Javelin Throw-",Input!Q39)),points1,2,)))) -> 0 | AL35: =IF(Input!E39=0,0,IF(Input!$C39>6,IF(ISNA(VLOOKUP((CONCATENATE("Shot-",Input!R39)),points1,2,)),0,(VLOOKUP((CONCATENATE("Shot-",Input!R39)),points1,2,))),0)) -> 0 | AM35: 0 | AN35: =IF(Input!E39=0,0,IF(ISNA(VLOOKUP((CONCATENATE("Standing Triple Jump-",Input!S39)),points1,2,)),0,(VLOOKUP((CONCATENATE("Standing Triple Jump-",Input!S39)),points1,2,)))) -> 0 | AO35: =IF(Input!$C39>6,COUNT(Input!H39:J39,Input!M39:P39,Input!S39,Input!X39:Y39),IF(Input!$C39<=6,COUNT(Input!H39:K39,Input!M39:Q39,Input!S39))) -> 5 | AP35: =IF(AO35>=5,(LARGE((AA35:AC35,AF35:AJ35,AM35:AN35),1))+LARGE((AA35:AC35,AF35:AJ35,AM35:AN35),2)+LARGE((AA35:AC35,AF35:AJ35,AM35:AN35),3)+LARGE((AA35:AC35,AF35:AJ35,AM35:AN35),4)+LARGE((AA35:AC35,AF35:AJ35,AM35:AN35),5),0) -> 95 | AQ35: =IF(AP35=0,0,IF((Input!G39="Boy")*AND(Input!C39>6),VLOOKUP(AP35,award2,3),IF((Input!G39="Girl")*AND(Input!C39>6),VLOOKUP(AP35,award2,2),IF((Input!G39="Boy")*AND(Input!C39<=6),VLOOKUP(AP35,award12,3),IF((Input!G39="Girl")*AND(Input!C39<=6),VLOOKUP(AP35,award12,2),0))))) -> Step 4 | AR35: =IF(Input!$C39>6,COUNT(Input!H39:J39,Input!M39:P39,Input!S39,Input!X39:Y39),IF(Input!$C39<=6,COUNT(Input!H39:K39,Input!M39:Q39,Input!S39))) -> 5 | AS35: 0 | AT35: =IF(AS35=0,0,IF((Input!G39="Boy")*AND(Input!C39>6),VLOOKUP(AS35,award2,5),IF((Input!G39="Girl")*AND(Input!C39>6),VLOOKUP(AS35,award2,4),IF((Input!G39="Boy")*AND(Input!C39<=6),VLOOKUP(AS35,award12,5),IF((Input!G39="Girl")*AND(Input!C39<=6),VLOOKUP(AS35,award12,4),0))))) -> 0 | AV35: 25.000029 | AW35: 15.000069 | AX35: 13.000109 | AY35: 27.000149 | AZ35: 15.000189 | BG35: =IF(AV35=" "," ",IF(Input!$G39="Boy",IF(RANK(AV35,($AV35:$BE35),0)<=5,AV35," ")," ")) -> 25.000029 | BH35: =IF(AW35=" "," ",IF(Input!$G39="Boy",IF(RANK(AW35,($AV35:$BE35),0)<=5,AW35," ")," ")) -> 15.000069 | BI35: =IF(AX35=" "," ",IF(Input!$G39="Boy",IF(RANK(AX35,($AV35:$BE35),0)<=5,AX35," ")," ")) -> 13.000109 | BJ35: =IF(AY35=" "," ",IF(Input!$G39="Boy",IF(RANK(AY35,($AV35:$BE35),0)<=5,AY35," ")," ")) -> 27.000149 | BK35: =IF(AZ35=" "," ",IF(Input!$G39="Boy",IF(RANK(AZ35,($AV35:$BE35),0)<=5,AZ35," ")," ")) -> 15.000189 | BL35: =IF(BA35=" "," ",IF(Input!$G39="Boy",IF(RANK(BA35,($AV35:$BE35),0)<=5,BA35," ")," ")) ->  | BM35: =IF(BB35=" "," ",IF(Input!$G39="Boy",IF(RANK(BB35,($AV35:$BE35),0)<=5,BB35," ")," ")) ->  | BN35: =IF(BC35=" "," ",IF(Input!$G39="Boy",IF(RANK(BC35,($AV35:$BE35),0)<=5,BC35," ")," ")) ->  | BO35: =IF(BD35=" "," ",IF(Input!$G39="Boy",IF(RANK(BD35,($AV35:$BE35),0)<=5,BD35," ")," ")) ->  | BP35: =IF(BE35=" "," ",IF(Input!$G39="Boy",IF(RANK(BE35,($AV35:$BE35),0)<=5,BE35," ")," ")) ->  | BR35: =IF(AV35=" "," ",IF(Input!$G39="Girl",IF(RANK(AV35,($AV35:$BE35),0)<=5,AV35," ")," ")) ->  | BS35: =IF(AW35=" "," ",IF(Input!$G39="Girl",IF(RANK(AW35,($AV35:$BE35),0)<=5,AW35," ")," ")) ->  | BT35: =IF(AX35=" "," ",IF(Input!$G39="Girl",IF(RANK(AX35,($AV35:$BE35),0)<=5,AX35," ")," ")) ->  | BU35: =IF(AY35=" "," ",IF(Input!$G39="Girl",IF(RANK(AY35,($AV35:$BE35),0)<=5,AY35," ")," ")) ->  | BV35: =IF(AZ35=" "," ",IF(Input!$G39="Girl",IF(RANK(AZ35,($AV35:$BE35),0)<=5,AZ35," ")," ")) ->  | BW35: =IF(BA35=" "," ",IF(Input!$G39="Girl",IF(RANK(BA35,($AV35:$BE35),0)<=5,BA35," ")," ")) ->  | BX35: =IF(BB35=" "," ",IF(Input!$G39="Girl",IF(RANK(BB35,($AV35:$BE35),0)<=5,BB35," ")," ")) ->  | BY35: =IF(BC35=" "," ",IF(Input!$G39="Girl",IF(RANK(BC35,($AV35:$BE35),0)<=5,BC35," ")," ")) ->  | BZ35: =IF(BD35=" "," ",IF(Input!$G39="Girl",IF(RANK(BD35,($AV35:$BE35),0)<=5,BD35," ")," ")) ->  | CA35: =IF(BE35=" "," ",IF(Input!$G39="Girl",IF(RANK(BE35,($AV35:$BE35),0)<=5,BE35," ")," ")) ->  | CX35: 2.9e-05 | CY35: 6.9e-05 | CZ35: 0.000109 | DA35: 0.000149 | DB35: 0.000189 | DC35: 0.000229 | DD35: 0.000269 | DE35: 0.000309 | DF35: 0.000349 | DG35: 0.000389 | DH35: 25.000029 | DI35: 15.000069 | DJ35: 13.000109 | DK35: 27.000149 | DL35: 15.000189
C36: =Input!D40 -> Charlie Sabbitini | D36: =Input!#REF! ->  | E36: =Input!E40 -> 6 | F36: =Input!F40 -> 10 | G36: =Input!G40 -> BOY | H36: 40 | I36: 19 | J36: 24 | K36: 9 | L36: 0 | M36: 20 | N36: 0 | O36: 0 | P36: 0 | Q36: 0 | R36: 0 | S36: 0 | T36: 112 | U36: Step 5 | V36: =IF(AS36=0," ",AS36) ->  | W36: =IF(AT36=0," ",AT36) ->  | X36: =SUM(H36:S36) -> 112 | Y36: 112-BOY-6 | Z36: =Input!D40 -> Charlie Sabbitini | AA36: =IF(Input!E40=0,0,IF(ISNA(VLOOKUP((CONCATENATE("Balance Test-",Input!H40)),points1,2,)),0,(VLOOKUP((CONCATENATE("Balance Test-",Input!H40)),points1,2,)))) -> 40 | AB36: =IF(Input!E40=0,0,IF(ISNA(VLOOKUP((CONCATENATE("Standing Long Jump-",Input!I40)),points1,2,)),0,(VLOOKUP((CONCATENATE("Standing Long Jump-",Input!I40)),points1,2,)))) -> 19 | AC36: =IF(Input!E40=0,0,IF(ISNA(VLOOKUP((CONCATENATE("Speed Bounce-",Input!J40)),points1,2,)),0,(VLOOKUP((CONCATENATE("Speed Bounce-",Input!J40)),points1,2,)))) -> 24 | AD36: =IF(Input!E40=0,0,IF(ISNA(VLOOKUP((CONCATENATE("Target Throw-",Input!K40)),points1,2,)),0,(VLOOKUP((CONCATENATE("Target Throw-",Input!K40)),points1,2,)))) -> 9 | AE36: =IF(Input!E40=0,0,IF(Input!$C40>6,IF(ISNA(VLOOKUP((CONCATENATE("Overhead Heave-",Input!L40)),points1,2,)),0,(VLOOKUP((CONCATENATE("Overhead Heave-",Input!L40)),points1,2,))),0)) -> 0 | AF36: 9 | AG36: =IF(Input!E40=0,0,IF(ISNA(VLOOKUP((CONCATENATE("Hi-Stepper-",Input!M40)),points1,2,)),0,(VLOOKUP((CONCATENATE("Hi-Stepper-",Input!M40)),points1,2,)))) -> 20 | AH36: =IF(Input!E40=0,0,IF(ISNA(VLOOKUP((CONCATENATE("Chest Push-",Input!N40)),points1,2,)),0,(VLOOKUP((CONCATENATE("Chest Push-",Input!N40)),points1,2,)))) -> 0 | AI36: =IF(Input!E40=0,0,IF(ISNA(VLOOKUP((CONCATENATE("Vertical Jump-",Input!O40)),points1,2,)),0,(VLOOKUP((CONCATENATE("Vertical Jump-",Input!O40)),points1,2,)))) -> 0 | AJ36: =IF(Input!E40=0,0,IF(ISNA(VLOOKUP((CONCATENATE("Shuttle Run-",Input!P40)),points1,2,)),0,(VLOOKUP((CONCATENATE("Shuttle Run-",Input!P40)),points1,2,)))) -> 0 | AK36: =IF(Input!E40=0,0,IF(ISNA(VLOOKUP((CONCATENATE("Javelin Throw-",Input!Q40)),points1,2,)),0,(VLOOKUP((CONCATENATE("Javelin Throw-",Input!Q40)),points1,2,)))) -> 0 | AL36: =IF(Input!E40=0,0,IF(Input!$C40>6,IF(ISNA(VLOOKUP((CONCATENATE("Shot-",Input!R40)),points1,2,)),0,(VLOOKUP((CONCATENATE("Shot-",Input!R40)),points1,2,))),0)) -> 0 | AM36: 0 | AN36: =IF(Input!E40=0,0,IF(ISNA(VLOOKUP((CONCATENATE("Standing Triple Jump-",Input!S40)),points1,2,)),0,(VLOOKUP((CONCATENATE("Standing Triple Jump-",Input!S40)),points1,2,)))) -> 0 | AO36: =IF(Input!$C40>6,COUNT(Input!H40:J40,Input!M40:P40,Input!S40,Input!X40:Y40),IF(Input!$C40<=6,COUNT(Input!H40:K40,Input!M40:Q40,Input!S40))) -> 5 | AP36: =IF(AO36>=5,(LARGE((AA36:AC36,AF36:AJ36,AM36:AN36),1))+LARGE((AA36:AC36,AF36:AJ36,AM36:AN36),2)+LARGE((AA36:AC36,AF36:AJ36,AM36:AN36),3)+LARGE((AA36:AC36,AF36:AJ36,AM36:AN36),4)+LARGE((AA36:AC36,AF36:AJ36,AM36:AN36),5),0) -> 112 | AQ36: =IF(AP36=0,0,IF((Input!G40="Boy")*AND(Input!C40>6),VLOOKUP(AP36,award2,3),IF((Input!G40="Girl")*AND(Input!C40>6),VLOOKUP(AP36,award2,2),IF((Input!G40="Boy")*AND(Input!C40<=6),VLOOKUP(AP36,award12,3),IF((Input!G40="Girl")*AND(Input!C40<=6),VLOOKUP(AP36,award12,2),0))))) -> Step 5 | AR36: =IF(Input!$C40>6,COUNT(Input!H40:J40,Input!M40:P40,Input!S40,Input!X40:Y40),IF(Input!$C40<=6,COUNT(Input!H40:K40,Input!M40:Q40,Input!S40))) -> 5 | AS36: 0 | AT36: =IF(AS36=0,0,IF((Input!G40="Boy")*AND(Input!C40>6),VLOOKUP(AS36,award2,5),IF((Input!G40="Girl")*AND(Input!C40>6),VLOOKUP(AS36,award2,4),IF((Input!G40="Boy")*AND(Input!C40<=6),VLOOKUP(AS36,award12,5),IF((Input!G40="Girl")*AND(Input!C40<=6),VLOOKUP(AS36,award12,4),0))))) -> 0 | AV36: 40.00003 | AW36: 19.00007 | AX36: 24.00011 | AY36: 9.00015 | AZ36: 20.00019 | BG36: =IF(AV36=" "," ",IF(Input!$G40="Boy",IF(RANK(AV36,($AV36:$BE36),0)<=5,AV36," ")," ")) -> 40.00003 | BH36: =IF(AW36=" "," ",IF(Input!$G40="Boy",IF(RANK(AW36,($AV36:$BE36),0)<=5,AW36," ")," ")) -> 19.00007 | BI36: =IF(AX36=" "," ",IF(Input!$G40="Boy",IF(RANK(AX36,($AV36:$BE36),0)<=5,AX36," ")," ")) -> 24.00011 | BJ36: =IF(AY36=" "," ",IF(Input!$G40="Boy",IF(RANK(AY36,($AV36:$BE36),0)<=5,AY36," ")," ")) -> 9.00015 | BK36: =IF(AZ36=" "," ",IF(Input!$G40="Boy",IF(RANK(AZ36,($AV36:$BE36),0)<=5,AZ36," ")," ")) -> 20.00019 | BL36: =IF(BA36=" "," ",IF(Input!$G40="Boy",IF(RANK(BA36,($AV36:$BE36),0)<=5,BA36," ")," ")) ->  | BM36: =IF(BB36=" "," ",IF(Input!$G40="Boy",IF(RANK(BB36,($AV36:$BE36),0)<=5,BB36," ")," ")) ->  | BN36: =IF(BC36=" "," ",IF(Input!$G40="Boy",IF(RANK(BC36,($AV36:$BE36),0)<=5,BC36," ")," ")) ->  | BO36: =IF(BD36=" "," ",IF(Input!$G40="Boy",IF(RANK(BD36,($AV36:$BE36),0)<=5,BD36," ")," ")) ->  | BP36: =IF(BE36=" "," ",IF(Input!$G40="Boy",IF(RANK(BE36,($AV36:$BE36),0)<=5,BE36," ")," ")) ->  | BR36: =IF(AV36=" "," ",IF(Input!$G40="Girl",IF(RANK(AV36,($AV36:$BE36),0)<=5,AV36," ")," ")) ->  | BS36: =IF(AW36=" "," ",IF(Input!$G40="Girl",IF(RANK(AW36,($AV36:$BE36),0)<=5,AW36," ")," ")) ->  | BT36: =IF(AX36=" "," ",IF(Input!$G40="Girl",IF(RANK(AX36,($AV36:$BE36),0)<=5,AX36," ")," ")) ->  | BU36: =IF(AY36=" "," ",IF(Input!$G40="Girl",IF(RANK(AY36,($AV36:$BE36),0)<=5,AY36," ")," ")) ->  | BV36: =IF(AZ36=" "," ",IF(Input!$G40="Girl",IF(RANK(AZ36,($AV36:$BE36),0)<=5,AZ36," ")," ")) ->  | BW36: =IF(BA36=" "," ",IF(Input!$G40="Girl",IF(RANK(BA36,($AV36:$BE36),0)<=5,BA36," ")," ")) ->  | BX36: =IF(BB36=" "," ",IF(Input!$G40="Girl",IF(RANK(BB36,($AV36:$BE36),0)<=5,BB36," ")," ")) ->  | BY36: =IF(BC36=" "," ",IF(Input!$G40="Girl",IF(RANK(BC36,($AV36:$BE36),0)<=5,BC36," ")," ")) ->  | BZ36: =IF(BD36=" "," ",IF(Input!$G40="Girl",IF(RANK(BD36,($AV36:$BE36),0)<=5,BD36," ")," ")) ->  | CA36: =IF(BE36=" "," ",IF(Input!$G40="Girl",IF(RANK(BE36,($AV36:$BE36),0)<=5,BE36," ")," ")) ->  | CX36: 3e-05 | CY36: 7e-05 | CZ36: 0.00011 | DA36: 0.00015 | DB36: 0.00019 | DC36: 0.00023 | DD36: 0.00027 | DE36: 0.00031 | DF36: 0.00035 | DG36: 0.00039 | DH36: 40.00003 | DI36: 19.00007 | DJ36: 24.00011 | DK36: 9.00015 | DL36: 20.00019
C37: =Input!D41 -> Toby Evans | D37: =Input!#REF! ->  | E37: =Input!E41 -> 6 | F37: =Input!F41 -> 10 | G37: =Input!G41 -> BOY | H37: 63 | I37: 32 | J37: 29 | K37: 54 | L37: 0 | M37: 25 | N37: 0 | O37: 0 | P37: 0 | Q37: 0 | R37: 0 | S37: 0 | T37: 203 | U37: Bronze | V37: =IF(AS37=0," ",AS37) ->  | W37: =IF(AT37=0," ",AT37) ->  | X37: =SUM(H37:S37) -> 203 | Y37: 203-BOY-6 | Z37: =Input!D41 -> Toby Evans | AA37: =IF(Input!E41=0,0,IF(ISNA(VLOOKUP((CONCATENATE("Balance Test-",Input!H41)),points1,2,)),0,(VLOOKUP((CONCATENATE("Balance Test-",Input!H41)),points1,2,)))) -> 63 | AB37: =IF(Input!E41=0,0,IF(ISNA(VLOOKUP((CONCATENATE("Standing Long Jump-",Input!I41)),points1,2,)),0,(VLOOKUP((CONCATENATE("Standing Long Jump-",Input!I41)),points1,2,)))) -> 32 | AC37: =IF(Input!E41=0,0,IF(ISNA(VLOOKUP((CONCATENATE("Speed Bounce-",Input!J41)),points1,2,)),0,(VLOOKUP((CONCATENATE("Speed Bounce-",Input!J41)),points1,2,)))) -> 29 | AD37: =IF(Input!E41=0,0,IF(ISNA(VLOOKUP((CONCATENATE("Target Throw-",Input!K41)),points1,2,)),0,(VLOOKUP((CONCATENATE("Target Throw-",Input!K41)),points1,2,)))) -> 54 | AE37: =IF(Input!E41=0,0,IF(Input!$C41>6,IF(ISNA(VLOOKUP((CONCATENATE("Overhead Heave-",Input!L41)),points1,2,)),0,(VLOOKUP((CONCATENATE("Overhead Heave-",Input!L41)),points1,2,))),0)) -> 0 | AF37: 54 | AG37: =IF(Input!E41=0,0,IF(ISNA(VLOOKUP((CONCATENATE("Hi-Stepper-",Input!M41)),points1,2,)),0,(VLOOKUP((CONCATENATE("Hi-Stepper-",Input!M41)),points1,2,)))) -> 25 | AH37: =IF(Input!E41=0,0,IF(ISNA(VLOOKUP((CONCATENATE("Chest Push-",Input!N41)),points1,2,)),0,(VLOOKUP((CONCATENATE("Chest Push-",Input!N41)),points1,2,)))) -> 0 | AI37: =IF(Input!E41=0,0,IF(ISNA(VLOOKUP((CONCATENATE("Vertical Jump-",Input!O41)),points1,2,)),0,(VLOOKUP((CONCATENATE("Vertical Jump-",Input!O41)),points1,2,)))) -> 0 | AJ37: =IF(Input!E41=0,0,IF(ISNA(VLOOKUP((CONCATENATE("Shuttle Run-",Input!P41)),points1,2,)),0,(VLOOKUP((CONCATENATE("Shuttle Run-",Input!P41)),points1,2,)))) -> 0 | AK37: =IF(Input!E41=0,0,IF(ISNA(VLOOKUP((CONCATENATE("Javelin Throw-",Input!Q41)),points1,2,)),0,(VLOOKUP((CONCATENATE("Javelin Throw-",Input!Q41)),points1,2,)))) -> 0 | AL37: =IF(Input!E41=0,0,IF(Input!$C41>6,IF(ISNA(VLOOKUP((CONCATENATE("Shot-",Input!R41)),points1,2,)),0,(VLOOKUP((CONCATENATE("Shot-",Input!R41)),points1,2,))),0)) -> 0 | AM37: 0 | AN37: =IF(Input!E41=0,0,IF(ISNA(VLOOKUP((CONCATENATE("Standing Triple Jump-",Input!S41)),points1,2,)),0,(VLOOKUP((CONCATENATE("Standing Triple Jump-",Input!S41)),points1,2,)))) -> 0 | AO37: =IF(Input!$C41>6,COUNT(Input!H41:J41,Input!M41:P41,Input!S41,Input!X41:Y41),IF(Input!$C41<=6,COUNT(Input!H41:K41,Input!M41:Q41,Input!S41))) -> 5 | AP37: =IF(AO37>=5,(LARGE((AA37:AC37,AF37:AJ37,AM37:AN37),1))+LARGE((AA37:AC37,AF37:AJ37,AM37:AN37),2)+LARGE((AA37:AC37,AF37:AJ37,AM37:AN37),3)+LARGE((AA37:AC37,AF37:AJ37,AM37:AN37),4)+LARGE((AA37:AC37,AF37:AJ37,AM37:AN37),5),0) -> 203 | AQ37: =IF(AP37=0,0,IF((Input!G41="Boy")*AND(Input!C41>6),VLOOKUP(AP37,award2,3),IF((Input!G41="Girl")*AND(Input!C41>6),VLOOKUP(AP37,award2,2),IF((Input!G41="Boy")*AND(Input!C41<=6),VLOOKUP(AP37,award12,3),IF((Input!G41="Girl")*AND(Input!C41<=6),VLOOKUP(AP37,award12,2),0))))) -> Bronze | AR37: =IF(Input!$C41>6,COUNT(Input!H41:J41,Input!M41:P41,Input!S41,Input!X41:Y41),IF(Input!$C41<=6,COUNT(Input!H41:K41,Input!M41:Q41,Input!S41))) -> 5 | AS37: 0 | AT37: =IF(AS37=0,0,IF((Input!G41="Boy")*AND(Input!C41>6),VLOOKUP(AS37,award2,5),IF((Input!G41="Girl")*AND(Input!C41>6),VLOOKUP(AS37,award2,4),IF((Input!G41="Boy")*AND(Input!C41<=6),VLOOKUP(AS37,award12,5),IF((Input!G41="Girl")*AND(Input!C41<=6),VLOOKUP(AS37,award12,4),0))))) -> 0 | AV37: 63.000031 | AW37: 32.000071 | AX37: 29.000111 | AY37: 54.000151 | AZ37: 25.000191 | BG37: =IF(AV37=" "," ",IF(Input!$G41="Boy",IF(RANK(AV37,($AV37:$BE37),0)<=5,AV37," ")," ")) -> 63.000031 | BH37: =IF(AW37=" "," ",IF(Input!$G41="Boy",IF(RANK(AW37,($AV37:$BE37),0)<=5,AW37," ")," ")) -> 32.000071 | BI37: =IF(AX37=" "," ",IF(Input!$G41="Boy",IF(RANK(AX37,($AV37:$BE37),0)<=5,AX37," ")," ")) -> 29.000111 | BJ37: =IF(AY37=" "," ",IF(Input!$G41="Boy",IF(RANK(AY37,($AV37:$BE37),0)<=5,AY37," ")," ")) -> 54.000151 | BK37: =IF(AZ37=" "," ",IF(Input!$G41="Boy",IF(RANK(AZ37,($AV37:$BE37),0)<=5,AZ37," ")," ")) -> 25.000191 | BL37: =IF(BA37=" "," ",IF(Input!$G41="Boy",IF(RANK(BA37,($AV37:$BE37),0)<=5,BA37," ")," ")) ->  | BM37: =IF(BB37=" "," ",IF(Input!$G41="Boy",IF(RANK(BB37,($AV37:$BE37),0)<=5,BB37," ")," ")) ->  | BN37: =IF(BC37=" "," ",IF(Input!$G41="Boy",IF(RANK(BC37,($AV37:$BE37),0)<=5,BC37," ")," ")) ->  | BO37: =IF(BD37=" "," ",IF(Input!$G41="Boy",IF(RANK(BD37,($AV37:$BE37),0)<=5,BD37," ")," ")) ->  | BP37: =IF(BE37=" "," ",IF(Input!$G41="Boy",IF(RANK(BE37,($AV37:$BE37),0)<=5,BE37," ")," ")) ->  | BR37: =IF(AV37=" "," ",IF(Input!$G41="Girl",IF(RANK(AV37,($AV37:$BE37),0)<=5,AV37," ")," ")) ->  | BS37: =IF(AW37=" "," ",IF(Input!$G41="Girl",IF(RANK(AW37,($AV37:$BE37),0)<=5,AW37," ")," ")) ->  | BT37: =IF(AX37=" "," ",IF(Input!$G41="Girl",IF(RANK(AX37,($AV37:$BE37),0)<=5,AX37," ")," ")) ->  | BU37: =IF(AY37=" "," ",IF(Input!$G41="Girl",IF(RANK(AY37,($AV37:$BE37),0)<=5,AY37," ")," ")) ->  | BV37: =IF(AZ37=" "," ",IF(Input!$G41="Girl",IF(RANK(AZ37,($AV37:$BE37),0)<=5,AZ37," ")," ")) ->  | BW37: =IF(BA37=" "," ",IF(Input!$G41="Girl",IF(RANK(BA37,($AV37:$BE37),0)<=5,BA37," ")," ")) ->  | BX37: =IF(BB37=" "," ",IF(Input!$G41="Girl",IF(RANK(BB37,($AV37:$BE37),0)<=5,BB37," ")," ")) ->  | BY37: =IF(BC37=" "," ",IF(Input!$G41="Girl",IF(RANK(BC37,($AV37:$BE37),0)<=5,BC37," ")," ")) ->  | BZ37: =IF(BD37=" "," ",IF(Input!$G41="Girl",IF(RANK(BD37,($AV37:$BE37),0)<=5,BD37," ")," ")) ->  | CA37: =IF(BE37=" "," ",IF(Input!$G41="Girl",IF(RANK(BE37,($AV37:$BE37),0)<=5,BE37," ")," ")) ->  | CC37: RED | CF37: RED | CX37: 3.1e-05 | CY37: 7.1e-05 | CZ37: 0.000111 | DA37: 0.000151 | DB37: 0.000191 | DC37: 0.000231 | DD37: 0.000271 | DE37: 0.000311 | DF37: 0.000351 | DG37: 0.000391 | DH37: 63.000031 | DI37: 32.000071 | DJ37: 29.000111 | DK37: 54.000151 | DL37: 25.000191
C38: =Input!D42 -> Charlotte Evans | D38: =Input!#REF! ->  | E38: =Input!E42 -> 4 | F38: =Input!F42 -> 8 | G38: =Input!G42 -> GIRL | H38: 61 | I38: 17 | J38: 28 | K38: 12 | L38: 0 | M38: 24 | N38: 0 | O38: 0 | P38: 0 | Q38: 0 | R38: 0 | S38: 0 | T38: 142 | U38: Step 8 | X38: 142 | Y38: 142-GIRL-4 | Z38: =Input!D42 -> Charlotte Evans | AA38: =IF(Input!E42=0,0,IF(ISNA(VLOOKUP((CONCATENATE("Balance Test-",Input!H42)),points1,2,)),0,(VLOOKUP((CONCATENATE("Balance Test-",Input!H42)),points1,2,)))) -> 61 | AB38: =IF(Input!E42=0,0,IF(ISNA(VLOOKUP((CONCATENATE("Standing Long Jump-",Input!I42)),points1,2,)),0,(VLOOKUP((CONCATENATE("Standing Long Jump-",Input!I42)),points1,2,)))) -> 17 | AC38: =IF(Input!E42=0,0,IF(ISNA(VLOOKUP((CONCATENATE("Speed Bounce-",Input!J42)),points1,2,)),0,(VLOOKUP((CONCATENATE("Speed Bounce-",Input!J42)),points1,2,)))) -> 28 | AD38: =IF(Input!E42=0,0,IF(ISNA(VLOOKUP((CONCATENATE("Target Throw-",Input!K42)),points1,2,)),0,(VLOOKUP((CONCATENATE("Target Throw-",Input!K42)),points1,2,)))) -> 12 | AE38: =IF(Input!E42=0,0,IF(Input!$C42>6,IF(ISNA(VLOOKUP((CONCATENATE("Overhead Heave-",Input!L42)),points1,2,)),0,(VLOOKUP((CONCATENATE("Overhead Heave-",Input!L42)),points1,2,))),0)) -> 0 | AF38: 12 | AG38: =IF(Input!E42=0,0,IF(ISNA(VLOOKUP((CONCATENATE("Hi-Stepper-",Input!M42)),points1,2,)),0,(VLOOKUP((CONCATENATE("Hi-Stepper-",Input!M42)),points1,2,)))) -> 24 | AH38: =IF(Input!E42=0,0,IF(ISNA(VLOOKUP((CONCATENATE("Chest Push-",Input!N42)),points1,2,)),0,(VLOOKUP((CONCATENATE("Chest Push-",Input!N42)),points1,2,)))) -> 0 | AI38: =IF(Input!E42=0,0,IF(ISNA(VLOOKUP((CONCATENATE("Vertical Jump-",Input!O42)),points1,2,)),0,(VLOOKUP((CONCATENATE("Vertical Jump-",Input!O42)),points1,2,)))) -> 0 | AJ38: =IF(Input!E42=0,0,IF(ISNA(VLOOKUP((CONCATENATE("Shuttle Run-",Input!P42)),points1,2,)),0,(VLOOKUP((CONCATENATE("Shuttle Run-",Input!P42)),points1,2,)))) -> 0 | AK38: =IF(Input!E42=0,0,IF(ISNA(VLOOKUP((CONCATENATE("Javelin Throw-",Input!Q42)),points1,2,)),0,(VLOOKUP((CONCATENATE("Javelin Throw-",Input!Q42)),points1,2,)))) -> 0 | AL38: =IF(Input!E42=0,0,IF(Input!$C42>6,IF(ISNA(VLOOKUP((CONCATENATE("Shot-",Input!R42)),points1,2,)),0,(VLOOKUP((CONCATENATE("Shot-",Input!R42)),points1,2,))),0)) -> 0 | AM38: 0 | AN38: =IF(Input!E42=0,0,IF(ISNA(VLOOKUP((CONCATENATE("Standing Triple Jump-",Input!S42)),points1,2,)),0,(VLOOKUP((CONCATENATE("Standing Triple Jump-",Input!S42)),points1,2,)))) -> 0 | AO38: =IF(Input!$C42>6,COUNT(Input!H42:J42,Input!M42:P42,Input!S42,Input!X42:Y42),IF(Input!$C42<=6,COUNT(Input!H42:K42,Input!M42:Q42,Input!S42))) -> 5 | AP38: =IF(AO38>=5,(LARGE((AA38:AC38,AF38:AJ38,AM38:AN38),1))+LARGE((AA38:AC38,AF38:AJ38,AM38:AN38),2)+LARGE((AA38:AC38,AF38:AJ38,AM38:AN38),3)+LARGE((AA38:AC38,AF38:AJ38,AM38:AN38),4)+LARGE((AA38:AC38,AF38:AJ38,AM38:AN38),5),0) -> 142 | AQ38: =IF(AP38=0,0,IF((Input!G42="Boy")*AND(Input!C42>6),VLOOKUP(AP38,award2,3),IF((Input!G42="Girl")*AND(Input!C42>6),VLOOKUP(AP38,award2,2),IF((Input!G42="Boy")*AND(Input!C42<=6),VLOOKUP(AP38,award12,3),IF((Input!G42="Girl")*AND(Input!C42<=6),VLOOKUP(AP38,award12,2),0))))) -> Step 8 | AR38: =IF(Input!$C42>6,COUNT(Input!H42:J42,Input!M42:P42,Input!S42,Input!X42:Y42),IF(Input!$C42<=6,COUNT(Input!H42:K42,Input!M42:Q42,Input!S42))) -> 5 | AS38: 0 | AT38: =IF(AS38=0,0,IF((Input!G42="Boy")*AND(Input!C42>6),VLOOKUP(AS38,award2,5),IF((Input!G42="Girl")*AND(Input!C42>6),VLOOKUP(AS38,award2,4),IF((Input!G42="Boy")*AND(Input!C42<=6),VLOOKUP(AS38,award12,5),IF((Input!G42="Girl")*AND(Input!C42<=6),VLOOKUP(AS38,award12,4),0))))) -> 0 | AV38: 61.000032 | AW38: 17.000072 | AX38: 28.000112 | AY38: 12.000152 | AZ38: 24.000192 | BG38: =IF(AV38=" "," ",IF(Input!$G42="Boy",IF(RANK(AV38,($AV38:$BE38),0)<=5,AV38," ")," ")) ->  | BH38: =IF(AW38=" "," ",IF(Input!$G42="Boy",IF(RANK(AW38,($AV38:$BE38),0)<=5,AW38," ")," ")) ->  | BI38: =IF(AX38=" "," ",IF(Input!$G42="Boy",IF(RANK(AX38,($AV38:$BE38),0)<=5,AX38," ")," ")) ->  | BJ38: =IF(AY38=" "," ",IF(Input!$G42="Boy",IF(RANK(AY38,($AV38:$BE38),0)<=5,AY38," ")," ")) ->  | BK38: =IF(AZ38=" "," ",IF(Input!$G42="Boy",IF(RANK(AZ38,($AV38:$BE38),0)<=5,AZ38," ")," ")) ->  | BL38: =IF(BA38=" "," ",IF(Input!$G42="Boy",IF(RANK(BA38,($AV38:$BE38),0)<=5,BA38," ")," ")) ->  | BM38: =IF(BB38=" "," ",IF(Input!$G42="Boy",IF(RANK(BB38,($AV38:$BE38),0)<=5,BB38," ")," ")) ->  | BN38: =IF(BC38=" "," ",IF(Input!$G42="Boy",IF(RANK(BC38,($AV38:$BE38),0)<=5,BC38," ")," ")) ->  | BO38: =IF(BD38=" "," ",IF(Input!$G42="Boy",IF(RANK(BD38,($AV38:$BE38),0)<=5,BD38," ")," ")) ->  | BP38: =IF(BE38=" "," ",IF(Input!$G42="Boy",IF(RANK(BE38,($AV38:$BE38),0)<=5,BE38," ")," ")) ->  | BR38: =IF(AV38=" "," ",IF(Input!$G42="Girl",IF(RANK(AV38,($AV38:$BE38),0)<=5,AV38," ")," ")) -> 61.000032 | BS38: =IF(AW38=" "," ",IF(Input!$G42="Girl",IF(RANK(AW38,($AV38:$BE38),0)<=5,AW38," ")," ")) -> 17.000072 | BT38: =IF(AX38=" "," ",IF(Input!$G42="Girl",IF(RANK(AX38,($AV38:$BE38),0)<=5,AX38," ")," ")) -> 28.000112 | BU38: =IF(AY38=" "," ",IF(Input!$G42="Girl",IF(RANK(AY38,($AV38:$BE38),0)<=5,AY38," ")," ")) -> 12.000152 | BV38: =IF(AZ38=" "," ",IF(Input!$G42="Girl",IF(RANK(AZ38,($AV38:$BE38),0)<=5,AZ38," ")," ")) -> 24.000192 | BW38: =IF(BA38=" "," ",IF(Input!$G42="Girl",IF(RANK(BA38,($AV38:$BE38),0)<=5,BA38," ")," ")) ->  | BX38: =IF(BB38=" "," ",IF(Input!$G42="Girl",IF(RANK(BB38,($AV38:$BE38),0)<=5,BB38," ")," ")) ->  | BY38: =IF(BC38=" "," ",IF(Input!$G42="Girl",IF(RANK(BC38,($AV38:$BE38),0)<=5,BC38," ")," ")) ->  | BZ38: =IF(BD38=" "," ",IF(Input!$G42="Girl",IF(RANK(BD38,($AV38:$BE38),0)<=5,BD38," ")," ")) ->  | CA38: =IF(BE38=" "," ",IF(Input!$G42="Girl",IF(RANK(BE38,($AV38:$BE38),0)<=5,BE38," ")," ")) ->  | CX38: 3.2e-05 | CY38: 7.2e-05 | CZ38: 0.000112 | DA38: 0.000152 | DB38: 0.000192 | DC38: 0.000232 | DD38: 0.000272 | DE38: 0.000312 | DF38: 0.000352 | DG38: 0.000392 | DS38: 61.000032 | DT38: 17.000072 | DU38: 28.000112 | DV38: 12.000152 | DW38: 24.000192
C39: =Input!D43 -> James Gibney | D39: =Input!#REF! ->  | E39: =Input!E43 -> 5 | F39: =Input!F43 -> 9 | G39: =Input!G43 -> BOY | H39: 55 | I39: 23 | J39: 21 | K39: 27 | L39: 0 | M39: 16 | N39: 0 | O39: 0 | P39: 0 | Q39: 0 | R39: 0 | S39: 0 | T39: 142 | U39: Step 7 | X39: 142 | Y39: 142-BOY-5 | Z39: =Input!D43 -> James Gibney | AA39: =IF(Input!E43=0,0,IF(ISNA(VLOOKUP((CONCATENATE("Balance Test-",Input!H43)),points1,2,)),0,(VLOOKUP((CONCATENATE("Balance Test-",Input!H43)),points1,2,)))) -> 55 | AB39: =IF(Input!E43=0,0,IF(ISNA(VLOOKUP((CONCATENATE("Standing Long Jump-",Input!I43)),points1,2,)),0,(VLOOKUP((CONCATENATE("Standing Long Jump-",Input!I43)),points1,2,)))) -> 23 | AC39: =IF(Input!E43=0,0,IF(ISNA(VLOOKUP((CONCATENATE("Speed Bounce-",Input!J43)),points1,2,)),0,(VLOOKUP((CONCATENATE("Speed Bounce-",Input!J43)),points1,2,)))) -> 21 | AD39: =IF(Input!E43=0,0,IF(ISNA(VLOOKUP((CONCATENATE("Target Throw-",Input!K43)),points1,2,)),0,(VLOOKUP((CONCATENATE("Target Throw-",Input!K43)),points1,2,)))) -> 27 | AE39: =IF(Input!E43=0,0,IF(Input!$C43>6,IF(ISNA(VLOOKUP((CONCATENATE("Overhead Heave-",Input!L43)),points1,2,)),0,(VLOOKUP((CONCATENATE("Overhead Heave-",Input!L43)),points1,2,))),0)) -> 0 | AF39: 27 | AG39: =IF(Input!E43=0,0,IF(ISNA(VLOOKUP((CONCATENATE("Hi-Stepper-",Input!M43)),points1,2,)),0,(VLOOKUP((CONCATENATE("Hi-Stepper-",Input!M43)),points1,2,)))) -> 16 | AH39: =IF(Input!E43=0,0,IF(ISNA(VLOOKUP((CONCATENATE("Chest Push-",Input!N43)),points1,2,)),0,(VLOOKUP((CONCATENATE("Chest Push-",Input!N43)),points1,2,)))) -> 0 | AI39: =IF(Input!E43=0,0,IF(ISNA(VLOOKUP((CONCATENATE("Vertical Jump-",Input!O43)),points1,2,)),0,(VLOOKUP((CONCATENATE("Vertical Jump-",Input!O43)),points1,2,)))) -> 0 | AJ39: =IF(Input!E43=0,0,IF(ISNA(VLOOKUP((CONCATENATE("Shuttle Run-",Input!P43)),points1,2,)),0,(VLOOKUP((CONCATENATE("Shuttle Run-",Input!P43)),points1,2,)))) -> 0 | AK39: =IF(Input!E43=0,0,IF(ISNA(VLOOKUP((CONCATENATE("Javelin Throw-",Input!Q43)),points1,2,)),0,(VLOOKUP((CONCATENATE("Javelin Throw-",Input!Q43)),points1,2,)))) -> 0 | AL39: =IF(Input!E43=0,0,IF(Input!$C43>6,IF(ISNA(VLOOKUP((CONCATENATE("Shot-",Input!R43)),points1,2,)),0,(VLOOKUP((CONCATENATE("Shot-",Input!R43)),points1,2,))),0)) -> 0 | AM39: 0 | AN39: =IF(Input!E43=0,0,IF(ISNA(VLOOKUP((CONCATENATE("Standing Triple Jump-",Input!S43)),points1,2,)),0,(VLOOKUP((CONCATENATE("Standing Triple Jump-",Input!S43)),points1,2,)))) -> 0 | AO39: =IF(Input!$C43>6,COUNT(Input!H43:J43,Input!M43:P43,Input!S43,Input!X43:Y43),IF(Input!$C43<=6,COUNT(Input!H43:K43,Input!M43:Q43,Input!S43))) -> 5 | AP39: =IF(AO39>=5,(LARGE((AA39:AC39,AF39:AJ39,AM39:AN39),1))+LARGE((AA39:AC39,AF39:AJ39,AM39:AN39),2)+LARGE((AA39:AC39,AF39:AJ39,AM39:AN39),3)+LARGE((AA39:AC39,AF39:AJ39,AM39:AN39),4)+LARGE((AA39:AC39,AF39:AJ39,AM39:AN39),5),0) -> 142 | AQ39: =IF(AP39=0,0,IF((Input!G43="Boy")*AND(Input!C43>6),VLOOKUP(AP39,award2,3),IF((Input!G43="Girl")*AND(Input!C43>6),VLOOKUP(AP39,award2,2),IF((Input!G43="Boy")*AND(Input!C43<=6),VLOOKUP(AP39,award12,3),IF((Input!G43="Girl")*AND(Input!C43<=6),VLOOKUP(AP39,award12,2),0))))) -> Step 7 | AR39: =IF(Input!$C43>6,COUNT(Input!H43:J43,Input!M43:P43,Input!S43,Input!X43:Y43),IF(Input!$C43<=6,COUNT(Input!H43:K43,Input!M43:Q43,Input!S43))) -> 5 | AS39: 0 | AT39: =IF(AS39=0,0,IF((Input!G43="Boy")*AND(Input!C43>6),VLOOKUP(AS39,award2,5),IF((Input!G43="Girl")*AND(Input!C43>6),VLOOKUP(AS39,award2,4),IF((Input!G43="Boy")*AND(Input!C43<=6),VLOOKUP(AS39,award12,5),IF((Input!G43="Girl")*AND(Input!C43<=6),VLOOKUP(AS39,award12,4),0))))) -> 0 | AV39: 55.000033 | AW39: 23.000073 | AX39: 21.000113 | AY39: 27.000153 | AZ39: 16.000193 | BG39: =IF(AV39=" "," ",IF(Input!$G43="Boy",IF(RANK(AV39,($AV39:$BE39),0)<=5,AV39," ")," ")) -> 55.000033 | BH39: =IF(AW39=" "," ",IF(Input!$G43="Boy",IF(RANK(AW39,($AV39:$BE39),0)<=5,AW39," ")," ")) -> 23.000073 | BI39: =IF(AX39=" "," ",IF(Input!$G43="Boy",IF(RANK(AX39,($AV39:$BE39),0)<=5,AX39," ")," ")) -> 21.000113 | BJ39: =IF(AY39=" "," ",IF(Input!$G43="Boy",IF(RANK(AY39,($AV39:$BE39),0)<=5,AY39," ")," ")) -> 27.000153 | BK39: =IF(AZ39=" "," ",IF(Input!$G43="Boy",IF(RANK(AZ39,($AV39:$BE39),0)<=5,AZ39," ")," ")) -> 16.000193 | BL39: =IF(BA39=" "," ",IF(Input!$G43="Boy",IF(RANK(BA39,($AV39:$BE39),0)<=5,BA39," ")," ")) ->  | BM39: =IF(BB39=" "," ",IF(Input!$G43="Boy",IF(RANK(BB39,($AV39:$BE39),0)<=5,BB39," ")," ")) ->  | BN39: =IF(BC39=" "," ",IF(Input!$G43="Boy",IF(RANK(BC39,($AV39:$BE39),0)<=5,BC39," ")," ")) ->  | BO39: =IF(BD39=" "," ",IF(Input!$G43="Boy",IF(RANK(BD39,($AV39:$BE39),0)<=5,BD39," ")," ")) ->  | BP39: =IF(BE39=" "," ",IF(Input!$G43="Boy",IF(RANK(BE39,($AV39:$BE39),0)<=5,BE39," ")," ")) ->  | BR39: =IF(AV39=" "," ",IF(Input!$G43="Girl",IF(RANK(AV39,($AV39:$BE39),0)<=5,AV39," ")," ")) ->  | BS39: =IF(AW39=" "," ",IF(Input!$G43="Girl",IF(RANK(AW39,($AV39:$BE39),0)<=5,AW39," ")," ")) ->  | BT39: =IF(AX39=" "," ",IF(Input!$G43="Girl",IF(RANK(AX39,($AV39:$BE39),0)<=5,AX39," ")," ")) ->  | BU39: =IF(AY39=" "," ",IF(Input!$G43="Girl",IF(RANK(AY39,($AV39:$BE39),0)<=5,AY39," ")," ")) ->  | BV39: =IF(AZ39=" "," ",IF(Input!$G43="Girl",IF(RANK(AZ39,($AV39:$BE39),0)<=5,AZ39," ")," ")) ->  | BW39: =IF(BA39=" "," ",IF(Input!$G43="Girl",IF(RANK(BA39,($AV39:$BE39),0)<=5,BA39," ")," ")) ->  | BX39: =IF(BB39=" "," ",IF(Input!$G43="Girl",IF(RANK(BB39,($AV39:$BE39),0)<=5,BB39," ")," ")) ->  | BY39: =IF(BC39=" "," ",IF(Input!$G43="Girl",IF(RANK(BC39,($AV39:$BE39),0)<=5,BC39," ")," ")) ->  | BZ39: =IF(BD39=" "," ",IF(Input!$G43="Girl",IF(RANK(BD39,($AV39:$BE39),0)<=5,BD39," ")," ")) ->  | CA39: =IF(BE39=" "," ",IF(Input!$G43="Girl",IF(RANK(BE39,($AV39:$BE39),0)<=5,BE39," ")," ")) ->  | CX39: 3.3e-05 | CY39: 7.3e-05 | CZ39: 0.000113 | DA39: 0.000153 | DB39: 0.000193 | DC39: 0.000233 | DD39: 0.000273 | DE39: 0.000313 | DF39: 0.000353 | DG39: 0.000393 | DH39: 55.000033 | DI39: 23.000073 | DJ39: 21.000113 | DK39: 27.000153 | DL39: 16.000193
C40: =Input!D44 -> Orlagh Brunning | D40: =Input!#REF! ->  | E40: =Input!E44 -> 5 | F40: =Input!F44 -> 9 | G40: =Input!G44 -> GIRL | H40: 58 | I40: 47 | J40: 28 | K40: 51 | L40: 0 | M40: 33 | N40: 0 | O40: 0 | P40: 0 | Q40: 0 | R40: 0 | S40: 0 | T40: 217 | U40: Bronze | X40: 217 | Y40: 217-GIRL-5 | Z40: =Input!D44 -> Orlagh Brunning | AA40: =IF(Input!E44=0,0,IF(ISNA(VLOOKUP((CONCATENATE("Balance Test-",Input!H44)),points1,2,)),0,(VLOOKUP((CONCATENATE("Balance Test-",Input!H44)),points1,2,)))) -> 58 | AB40: =IF(Input!E44=0,0,IF(ISNA(VLOOKUP((CONCATENATE("Standing Long Jump-",Input!I44)),points1,2,)),0,(VLOOKUP((CONCATENATE("Standing Long Jump-",Input!I44)),points1,2,)))) -> 47 | AC40: =IF(Input!E44=0,0,IF(ISNA(VLOOKUP((CONCATENATE("Speed Bounce-",Input!J44)),points1,2,)),0,(VLOOKUP((CONCATENATE("Speed Bounce-",Input!J44)),points1,2,)))) -> 28 | AD40: =IF(Input!E44=0,0,IF(ISNA(VLOOKUP((CONCATENATE("Target Throw-",Input!K44)),points1,2,)),0,(VLOOKUP((CONCATENATE("Target Throw-",Input!K44)),points1,2,)))) -> 51 | AE40: =IF(Input!E44=0,0,IF(Input!$C44>6,IF(ISNA(VLOOKUP((CONCATENATE("Overhead Heave-",Input!L44)),points1,2,)),0,(VLOOKUP((CONCATENATE("Overhead Heave-",Input!L44)),points1,2,))),0)) -> 0 | AF40: 51 | AG40: =IF(Input!E44=0,0,IF(ISNA(VLOOKUP((CONCATENATE("Hi-Stepper-",Input!M44)),points1,2,)),0,(VLOOKUP((CONCATENATE("Hi-Stepper-",Input!M44)),points1,2,)))) -> 33 | AH40: =IF(Input!E44=0,0,IF(ISNA(VLOOKUP((CONCATENATE("Chest Push-",Input!N44)),points1,2,)),0,(VLOOKUP((CONCATENATE("Chest Push-",Input!N44)),points1,2,)))) -> 0 | AI40: =IF(Input!E44=0,0,IF(ISNA(VLOOKUP((CONCATENATE("Vertical Jump-",Input!O44)),points1,2,)),0,(VLOOKUP((CONCATENATE("Vertical Jump-",Input!O44)),points1,2,)))) -> 0 | AJ40: =IF(Input!E44=0,0,IF(ISNA(VLOOKUP((CONCATENATE("Shuttle Run-",Input!P44)),points1,2,)),0,(VLOOKUP((CONCATENATE("Shuttle Run-",Input!P44)),points1,2,)))) -> 0 | AK40: =IF(Input!E44=0,0,IF(ISNA(VLOOKUP((CONCATENATE("Javelin Throw-",Input!Q44)),points1,2,)),0,(VLOOKUP((CONCATENATE("Javelin Throw-",Input!Q44)),points1,2,)))) -> 0 | AL40: =IF(Input!E44=0,0,IF(Input!$C44>6,IF(ISNA(VLOOKUP((CONCATENATE("Shot-",Input!R44)),points1,2,)),0,(VLOOKUP((CONCATENATE("Shot-",Input!R44)),points1,2,))),0)) -> 0 | AM40: 0 | AN40: =IF(Input!E44=0,0,IF(ISNA(VLOOKUP((CONCATENATE("Standing Triple Jump-",Input!S44)),points1,2,)),0,(VLOOKUP((CONCATENATE("Standing Triple Jump-",Input!S44)),points1,2,)))) -> 0 | AO40: =IF(Input!$C44>6,COUNT(Input!H44:J44,Input!M44:P44,Input!S44,Input!X44:Y44),IF(Input!$C44<=6,COUNT(Input!H44:K44,Input!M44:Q44,Input!S44))) -> 5 | AP40: =IF(AO40>=5,(LARGE((AA40:AC40,AF40:AJ40,AM40:AN40),1))+LARGE((AA40:AC40,AF40:AJ40,AM40:AN40),2)+LARGE((AA40:AC40,AF40:AJ40,AM40:AN40),3)+LARGE((AA40:AC40,AF40:AJ40,AM40:AN40),4)+LARGE((AA40:AC40,AF40:AJ40,AM40:AN40),5),0) -> 217 | AQ40: =IF(AP40=0,0,IF((Input!G44="Boy")*AND(Input!C44>6),VLOOKUP(AP40,award2,3),IF((Input!G44="Girl")*AND(Input!C44>6),VLOOKUP(AP40,award2,2),IF((Input!G44="Boy")*AND(Input!C44<=6),VLOOKUP(AP40,award12,3),IF((Input!G44="Girl")*AND(Input!C44<=6),VLOOKUP(AP40,award12,2),0))))) -> Bronze | AR40: =IF(Input!$C44>6,COUNT(Input!H44:J44,Input!M44:P44,Input!S44,Input!X44:Y44),IF(Input!$C44<=6,COUNT(Input!H44:K44,Input!M44:Q44,Input!S44))) -> 5 | AS40: 0 | AT40: =IF(AS40=0,0,IF((Input!G44="Boy")*AND(Input!C44>6),VLOOKUP(AS40,award2,5),IF((Input!G44="Girl")*AND(Input!C44>6),VLOOKUP(AS40,award2,4),IF((Input!G44="Boy")*AND(Input!C44<=6),VLOOKUP(AS40,award12,5),IF((Input!G44="Girl")*AND(Input!C44<=6),VLOOKUP(AS40,award12,4),0))))) -> 0 | AV40: 58.000034 | AW40: 47.000074 | AX40: 28.000114 | AY40: 51.000154 | AZ40: 33.000194 | BG40: =IF(AV40=" "," ",IF(Input!$G44="Boy",IF(RANK(AV40,($AV40:$BE40),0)<=5,AV40," ")," ")) ->  | BH40: =IF(AW40=" "," ",IF(Input!$G44="Boy",IF(RANK(AW40,($AV40:$BE40),0)<=5,AW40," ")," ")) ->  | BI40: =IF(AX40=" "," ",IF(Input!$G44="Boy",IF(RANK(AX40,($AV40:$BE40),0)<=5,AX40," ")," ")) ->  | BJ40: =IF(AY40=" "," ",IF(Input!$G44="Boy",IF(RANK(AY40,($AV40:$BE40),0)<=5,AY40," ")," ")) ->  | BK40: =IF(AZ40=" "," ",IF(Input!$G44="Boy",IF(RANK(AZ40,($AV40:$BE40),0)<=5,AZ40," ")," ")) ->  | BL40: =IF(BA40=" "," ",IF(Input!$G44="Boy",IF(RANK(BA40,($AV40:$BE40),0)<=5,BA40," ")," ")) ->  | BM40: =IF(BB40=" "," ",IF(Input!$G44="Boy",IF(RANK(BB40,($AV40:$BE40),0)<=5,BB40," ")," ")) ->  | BN40: =IF(BC40=" "," ",IF(Input!$G44="Boy",IF(RANK(BC40,($AV40:$BE40),0)<=5,BC40," ")," ")) ->  | BO40: =IF(BD40=" "," ",IF(Input!$G44="Boy",IF(RANK(BD40,($AV40:$BE40),0)<=5,BD40," ")," ")) ->  | BP40: =IF(BE40=" "," ",IF(Input!$G44="Boy",IF(RANK(BE40,($AV40:$BE40),0)<=5,BE40," ")," ")) ->  | BR40: =IF(AV40=" "," ",IF(Input!$G44="Girl",IF(RANK(AV40,($AV40:$BE40),0)<=5,AV40," ")," ")) -> 58.000034 | BS40: =IF(AW40=" "," ",IF(Input!$G44="Girl",IF(RANK(AW40,($AV40:$BE40),0)<=5,AW40," ")," ")) -> 47.000074 | BT40: =IF(AX40=" "," ",IF(Input!$G44="Girl",IF(RANK(AX40,($AV40:$BE40),0)<=5,AX40," ")," ")) -> 28.000114 | BU40: =IF(AY40=" "," ",IF(Input!$G44="Girl",IF(RANK(AY40,($AV40:$BE40),0)<=5,AY40," ")," ")) -> 51.000154 | BV40: =IF(AZ40=" "," ",IF(Input!$G44="Girl",IF(RANK(AZ40,($AV40:$BE40),0)<=5,AZ40," ")," ")) -> 33.000194 | BW40: =IF(BA40=" "," ",IF(Input!$G44="Girl",IF(RANK(BA40,($AV40:$BE40),0)<=5,BA40," ")," ")) ->  | BX40: =IF(BB40=" "," ",IF(Input!$G44="Girl",IF(RANK(BB40,($AV40:$BE40),0)<=5,BB40," ")," ")) ->  | BY40: =IF(BC40=" "," ",IF(Input!$G44="Girl",IF(RANK(BC40,($AV40:$BE40),0)<=5,BC40," ")," ")) ->  | BZ40: =IF(BD40=" "," ",IF(Input!$G44="Girl",IF(RANK(BD40,($AV40:$BE40),0)<=5,BD40," ")," ")) ->  | CA40: =IF(BE40=" "," ",IF(Input!$G44="Girl",IF(RANK(BE40,($AV40:$BE40),0)<=5,BE40," ")," ")) ->  | CO40: RED | CQ40: RED | CR40: RED | CX40: 3.4e-05 | CY40: 7.4e-05 | CZ40: 0.000114 | DA40: 0.000154 | DB40: 0.000194 | DC40: 0.000234 | DD40: 0.000274 | DE40: 0.000314 | DF40: 0.000354 | DG40: 0.000394 | DS40: 58.000034 | DT40: 47.000074 | DU40: 28.000114 | DV40: 51.000154 | DW40: 33.000194
C41: =Input!D45 -> Harriet Butlin | D41: =Input!#REF! ->  | E41: =Input!E45 -> 6 | F41: =Input!F45 -> 10 | G41: =Input!G45 -> GIRL | H41: 26 | I41: 26 | J41: 30 | K41: 30 | L41: 0 | M41: 22 | N41: 0 | O41: 0 | P41: 0 | Q41: 0 | R41: 0 | S41: 0 | T41: 134 | U41: Step 7 | X41: 134 | Y41: 134-GIRL-6 | Z41: =Input!D45 -> Harriet Butlin | AA41: =IF(Input!E45=0,0,IF(ISNA(VLOOKUP((CONCATENATE("Balance Test-",Input!H45)),points1,2,)),0,(VLOOKUP((CONCATENATE("Balance Test-",Input!H45)),points1,2,)))) -> 26 | AB41: =IF(Input!E45=0,0,IF(ISNA(VLOOKUP((CONCATENATE("Standing Long Jump-",Input!I45)),points1,2,)),0,(VLOOKUP((CONCATENATE("Standing Long Jump-",Input!I45)),points1,2,)))) -> 26 | AC41: =IF(Input!E45=0,0,IF(ISNA(VLOOKUP((CONCATENATE("Speed Bounce-",Input!J45)),points1,2,)),0,(VLOOKUP((CONCATENATE("Speed Bounce-",Input!J45)),points1,2,)))) -> 30 | AD41: =IF(Input!E45=0,0,IF(ISNA(VLOOKUP((CONCATENATE("Target Throw-",Input!K45)),points1,2,)),0,(VLOOKUP((CONCATENATE("Target Throw-",Input!K45)),points1,2,)))) -> 30 | AE41: =IF(Input!E45=0,0,IF(Input!$C45>6,IF(ISNA(VLOOKUP((CONCATENATE("Overhead Heave-",Input!L45)),points1,2,)),0,(VLOOKUP((CONCATENATE("Overhead Heave-",Input!L45)),points1,2,))),0)) -> 0 | AF41: 30 | AG41: =IF(Input!E45=0,0,IF(ISNA(VLOOKUP((CONCATENATE("Hi-Stepper-",Input!M45)),points1,2,)),0,(VLOOKUP((CONCATENATE("Hi-Stepper-",Input!M45)),points1,2,)))) -> 22 | AH41: =IF(Input!E45=0,0,IF(ISNA(VLOOKUP((CONCATENATE("Chest Push-",Input!N45)),points1,2,)),0,(VLOOKUP((CONCATENATE("Chest Push-",Input!N45)),points1,2,)))) -> 0 | AI41: =IF(Input!E45=0,0,IF(ISNA(VLOOKUP((CONCATENATE("Vertical Jump-",Input!O45)),points1,2,)),0,(VLOOKUP((CONCATENATE("Vertical Jump-",Input!O45)),points1,2,)))) -> 0 | AJ41: =IF(Input!E45=0,0,IF(ISNA(VLOOKUP((CONCATENATE("Shuttle Run-",Input!P45)),points1,2,)),0,(VLOOKUP((CONCATENATE("Shuttle Run-",Input!P45)),points1,2,)))) -> 0 | AK41: =IF(Input!E45=0,0,IF(ISNA(VLOOKUP((CONCATENATE("Javelin Throw-",Input!Q45)),points1,2,)),0,(VLOOKUP((CONCATENATE("Javelin Throw-",Input!Q45)),points1,2,)))) -> 0 | AL41: =IF(Input!E45=0,0,IF(Input!$C45>6,IF(ISNA(VLOOKUP((CONCATENATE("Shot-",Input!R45)),points1,2,)),0,(VLOOKUP((CONCATENATE("Shot-",Input!R45)),points1,2,))),0)) -> 0 | AM41: 0 | AN41: =IF(Input!E45=0,0,IF(ISNA(VLOOKUP((CONCATENATE("Standing Triple Jump-",Input!S45)),points1,2,)),0,(VLOOKUP((CONCATENATE("Standing Triple Jump-",Input!S45)),points1,2,)))) -> 0 | AO41: =IF(Input!$C45>6,COUNT(Input!H45:J45,Input!M45:P45,Input!S45,Input!X45:Y45),IF(Input!$C45<=6,COUNT(Input!H45:K45,Input!M45:Q45,Input!S45))) -> 5 | AP41: =IF(AO41>=5,(LARGE((AA41:AC41,AF41:AJ41,AM41:AN41),1))+LARGE((AA41:AC41,AF41:AJ41,AM41:AN41),2)+LARGE((AA41:AC41,AF41:AJ41,AM41:AN41),3)+LARGE((AA41:AC41,AF41:AJ41,AM41:AN41),4)+LARGE((AA41:AC41,AF41:AJ41,AM41:AN41),5),0) -> 134 | AQ41: =IF(AP41=0,0,IF((Input!G45="Boy")*AND(Input!C45>6),VLOOKUP(AP41,award2,3),IF((Input!G45="Girl")*AND(Input!C45>6),VLOOKUP(AP41,award2,2),IF((Input!G45="Boy")*AND(Input!C45<=6),VLOOKUP(AP41,award12,3),IF((Input!G45="Girl")*AND(Input!C45<=6),VLOOKUP(AP41,award12,2),0))))) -> Step 7 | AR41: =IF(Input!$C45>6,COUNT(Input!H45:J45,Input!M45:P45,Input!S45,Input!X45:Y45),IF(Input!$C45<=6,COUNT(Input!H45:K45,Input!M45:Q45,Input!S45))) -> 5 | AS41: 0 | AT41: =IF(AS41=0,0,IF((Input!G45="Boy")*AND(Input!C45>6),VLOOKUP(AS41,award2,5),IF((Input!G45="Girl")*AND(Input!C45>6),VLOOKUP(AS41,award2,4),IF((Input!G45="Boy")*AND(Input!C45<=6),VLOOKUP(AS41,award12,5),IF((Input!G45="Girl")*AND(Input!C45<=6),VLOOKUP(AS41,award12,4),0))))) -> 0 | AV41: 26.000035 | AW41: 26.000075 | AX41: 30.000115 | AY41: 30.000155 | AZ41: 22.000195 | BG41: =IF(AV41=" "," ",IF(Input!$G45="Boy",IF(RANK(AV41,($AV41:$BE41),0)<=5,AV41," ")," ")) ->  | BH41: =IF(AW41=" "," ",IF(Input!$G45="Boy",IF(RANK(AW41,($AV41:$BE41),0)<=5,AW41," ")," ")) ->  | BI41: =IF(AX41=" "," ",IF(Input!$G45="Boy",IF(RANK(AX41,($AV41:$BE41),0)<=5,AX41," ")," ")) ->  | BJ41: =IF(AY41=" "," ",IF(Input!$G45="Boy",IF(RANK(AY41,($AV41:$BE41),0)<=5,AY41," ")," ")) ->  | BK41: =IF(AZ41=" "," ",IF(Input!$G45="Boy",IF(RANK(AZ41,($AV41:$BE41),0)<=5,AZ41," ")," ")) ->  | BL41: =IF(BA41=" "," ",IF(Input!$G45="Boy",IF(RANK(BA41,($AV41:$BE41),0)<=5,BA41," ")," ")) ->  | BM41: =IF(BB41=" "," ",IF(Input!$G45="Boy",IF(RANK(BB41,($AV41:$BE41),0)<=5,BB41," ")," ")) ->  | BN41: =IF(BC41=" "," ",IF(Input!$G45="Boy",IF(RANK(BC41,($AV41:$BE41),0)<=5,BC41," ")," ")) ->  | BO41: =IF(BD41=" "," ",IF(Input!$G45="Boy",IF(RANK(BD41,($AV41:$BE41),0)<=5,BD41," ")," ")) ->  | BP41: =IF(BE41=" "," ",IF(Input!$G45="Boy",IF(RANK(BE41,($AV41:$BE41),0)<=5,BE41," ")," ")) ->  | BR41: =IF(AV41=" "," ",IF(Input!$G45="Girl",IF(RANK(AV41,($AV41:$BE41),0)<=5,AV41," ")," ")) -> 26.000035 | BS41: =IF(AW41=" "," ",IF(Input!$G45="Girl",IF(RANK(AW41,($AV41:$BE41),0)<=5,AW41," ")," ")) -> 26.000075 | BT41: =IF(AX41=" "," ",IF(Input!$G45="Girl",IF(RANK(AX41,($AV41:$BE41),0)<=5,AX41," ")," ")) -> 30.000115 | BU41: =IF(AY41=" "," ",IF(Input!$G45="Girl",IF(RANK(AY41,($AV41:$BE41),0)<=5,AY41," ")," ")) -> 30.000155 | BV41: =IF(AZ41=" "," ",IF(Input!$G45="Girl",IF(RANK(AZ41,($AV41:$BE41),0)<=5,AZ41," ")," ")) -> 22.000195 | BW41: =IF(BA41=" "," ",IF(Input!$G45="Girl",IF(RANK(BA41,($AV41:$BE41),0)<=5,BA41," ")," ")) ->  | BX41: =IF(BB41=" "," ",IF(Input!$G45="Girl",IF(RANK(BB41,($AV41:$BE41),0)<=5,BB41," ")," ")) ->  | BY41: =IF(BC41=" "," ",IF(Input!$G45="Girl",IF(RANK(BC41,($AV41:$BE41),0)<=5,BC41," ")," ")) ->  | BZ41: =IF(BD41=" "," ",IF(Input!$G45="Girl",IF(RANK(BD41,($AV41:$BE41),0)<=5,BD41," ")," ")) ->  | CA41: =IF(BE41=" "," ",IF(Input!$G45="Girl",IF(RANK(BE41,($AV41:$BE41),0)<=5,BE41," ")," ")) ->  | CX41: 3.5e-05 | CY41: 7.5e-05 | CZ41: 0.000115 | DA41: 0.000155 | DB41: 0.000195 | DC41: 0.000235 | DD41: 0.000275 | DE41: 0.000315 | DF41: 0.000355 | DG41: 0.000395 | DS41: 26.000035 | DT41: 26.000075 | DU41: 30.000115 | DV41: 30.000155 | DW41: 22.000195
C42: =Input!D46 -> Koye Sule | D42: =Input!#REF! ->  | E42: =Input!E46 -> 4 | F42: =Input!F46 -> 8 | G42: =Input!G46 -> BOY | H42: 14 | I42: 49 | J42: 21 | K42: 36 | L42: 0 | M42: 15 | N42: 0 | O42: 0 | P42: 0 | Q42: 0 | R42: 0 | S42: 0 | T42: 135 | U42: Step 7 | X42: 135 | Y42: 135-BOY-4 | Z42: =Input!D46 -> Koye Sule | AA42: =IF(Input!E46=0,0,IF(ISNA(VLOOKUP((CONCATENATE("Balance Test-",Input!H46)),points1,2,)),0,(VLOOKUP((CONCATENATE("Balance Test-",Input!H46)),points1,2,)))) -> 14 | AB42: =IF(Input!E46=0,0,IF(ISNA(VLOOKUP((CONCATENATE("Standing Long Jump-",Input!I46)),points1,2,)),0,(VLOOKUP((CONCATENATE("Standing Long Jump-",Input!I46)),points1,2,)))) -> 49 | AC42: =IF(Input!E46=0,0,IF(ISNA(VLOOKUP((CONCATENATE("Speed Bounce-",Input!J46)),points1,2,)),0,(VLOOKUP((CONCATENATE("Speed Bounce-",Input!J46)),points1,2,)))) -> 21 | AD42: =IF(Input!E46=0,0,IF(ISNA(VLOOKUP((CONCATENATE("Target Throw-",Input!K46)),points1,2,)),0,(VLOOKUP((CONCATENATE("Target Throw-",Input!K46)),points1,2,)))) -> 36 | AE42: =IF(Input!E46=0,0,IF(Input!$C46>6,IF(ISNA(VLOOKUP((CONCATENATE("Overhead Heave-",Input!L46)),points1,2,)),0,(VLOOKUP((CONCATENATE("Overhead Heave-",Input!L46)),points1,2,))),0)) -> 0 | AF42: 36 | AG42: =IF(Input!E46=0,0,IF(ISNA(VLOOKUP((CONCATENATE("Hi-Stepper-",Input!M46)),points1,2,)),0,(VLOOKUP((CONCATENATE("Hi-Stepper-",Input!M46)),points1,2,)))) -> 15 | AH42: =IF(Input!E46=0,0,IF(ISNA(VLOOKUP((CONCATENATE("Chest Push-",Input!N46)),points1,2,)),0,(VLOOKUP((CONCATENATE("Chest Push-",Input!N46)),points1,2,)))) -> 0 | AI42: =IF(Input!E46=0,0,IF(ISNA(VLOOKUP((CONCATENATE("Vertical Jump-",Input!O46)),points1,2,)),0,(VLOOKUP((CONCATENATE("Vertical Jump-",Input!O46)),points1,2,)))) -> 0 | AJ42: =IF(Input!E46=0,0,IF(ISNA(VLOOKUP((CONCATENATE("Shuttle Run-",Input!P46)),points1,2,)),0,(VLOOKUP((CONCATENATE("Shuttle Run-",Input!P46)),points1,2,)))) -> 0 | AK42: =IF(Input!E46=0,0,IF(ISNA(VLOOKUP((CONCATENATE("Javelin Throw-",Input!Q46)),points1,2,)),0,(VLOOKUP((CONCATENATE("Javelin Throw-",Input!Q46)),points1,2,)))) -> 0 | AL42: =IF(Input!E46=0,0,IF(Input!$C46>6,IF(ISNA(VLOOKUP((CONCATENATE("Shot-",Input!R46)),points1,2,)),0,(VLOOKUP((CONCATENATE("Shot-",Input!R46)),points1,2,))),0)) -> 0 | AM42: 0 | AN42: =IF(Input!E46=0,0,IF(ISNA(VLOOKUP((CONCATENATE("Standing Triple Jump-",Input!S46)),points1,2,)),0,(VLOOKUP((CONCATENATE("Standing Triple Jump-",Input!S46)),points1,2,)))) -> 0 | AO42: =IF(Input!$C46>6,COUNT(Input!H46:J46,Input!M46:P46,Input!S46,Input!X46:Y46),IF(Input!$C46<=6,COUNT(Input!H46:K46,Input!M46:Q46,Input!S46))) -> 5 | AP42: =IF(AO42>=5,(LARGE((AA42:AC42,AF42:AJ42,AM42:AN42),1))+LARGE((AA42:AC42,AF42:AJ42,AM42:AN42),2)+LARGE((AA42:AC42,AF42:AJ42,AM42:AN42),3)+LARGE((AA42:AC42,AF42:AJ42,AM42:AN42),4)+LARGE((AA42:AC42,AF42:AJ42,AM42:AN42),5),0) -> 135 | AQ42: =IF(AP42=0,0,IF((Input!G46="Boy")*AND(Input!C46>6),VLOOKUP(AP42,award2,3),IF((Input!G46="Girl")*AND(Input!C46>6),VLOOKUP(AP42,award2,2),IF((Input!G46="Boy")*AND(Input!C46<=6),VLOOKUP(AP42,award12,3),IF((Input!G46="Girl")*AND(Input!C46<=6),VLOOKUP(AP42,award12,2),0))))) -> Step 7 | AR42: =IF(Input!$C46>6,COUNT(Input!H46:J46,Input!M46:P46,Input!S46,Input!X46:Y46),IF(Input!$C46<=6,COUNT(Input!H46:K46,Input!M46:Q46,Input!S46))) -> 5 | AS42: 0 | AT42: =IF(AS42=0,0,IF((Input!G46="Boy")*AND(Input!C46>6),VLOOKUP(AS42,award2,5),IF((Input!G46="Girl")*AND(Input!C46>6),VLOOKUP(AS42,award2,4),IF((Input!G46="Boy")*AND(Input!C46<=6),VLOOKUP(AS42,award12,5),IF((Input!G46="Girl")*AND(Input!C46<=6),VLOOKUP(AS42,award12,4),0))))) -> 0 | AV42: 14.000036 | AW42: 49.000076 | AX42: 21.000116 | AY42: 36.000156 | AZ42: 15.000196 | BG42: =IF(AV42=" "," ",IF(Input!$G46="Boy",IF(RANK(AV42,($AV42:$BE42),0)<=5,AV42," ")," ")) -> 14.000036 | BH42: =IF(AW42=" "," ",IF(Input!$G46="Boy",IF(RANK(AW42,($AV42:$BE42),0)<=5,AW42," ")," ")) -> 49.000076 | BI42: =IF(AX42=" "," ",IF(Input!$G46="Boy",IF(RANK(AX42,($AV42:$BE42),0)<=5,AX42," ")," ")) -> 21.000116 | BJ42: =IF(AY42=" "," ",IF(Input!$G46="Boy",IF(RANK(AY42,($AV42:$BE42),0)<=5,AY42," ")," ")) -> 36.000156 | BK42: =IF(AZ42=" "," ",IF(Input!$G46="Boy",IF(RANK(AZ42,($AV42:$BE42),0)<=5,AZ42," ")," ")) -> 15.000196 | BL42: =IF(BA42=" "," ",IF(Input!$G46="Boy",IF(RANK(BA42,($AV42:$BE42),0)<=5,BA42," ")," ")) ->  | BM42: =IF(BB42=" "," ",IF(Input!$G46="Boy",IF(RANK(BB42,($AV42:$BE42),0)<=5,BB42," ")," ")) ->  | BN42: =IF(BC42=" "," ",IF(Input!$G46="Boy",IF(RANK(BC42,($AV42:$BE42),0)<=5,BC42," ")," ")) ->  | BO42: =IF(BD42=" "," ",IF(Input!$G46="Boy",IF(RANK(BD42,($AV42:$BE42),0)<=5,BD42," ")," ")) ->  | BP42: =IF(BE42=" "," ",IF(Input!$G46="Boy",IF(RANK(BE42,($AV42:$BE42),0)<=5,BE42," ")," ")) ->  | BR42: =IF(AV42=" "," ",IF(Input!$G46="Girl",IF(RANK(AV42,($AV42:$BE42),0)<=5,AV42," ")," ")) ->  | BS42: =IF(AW42=" "," ",IF(Input!$G46="Girl",IF(RANK(AW42,($AV42:$BE42),0)<=5,AW42," ")," ")) ->  | BT42: =IF(AX42=" "," ",IF(Input!$G46="Girl",IF(RANK(AX42,($AV42:$BE42),0)<=5,AX42," ")," ")) ->  | BU42: =IF(AY42=" "," ",IF(Input!$G46="Girl",IF(RANK(AY42,($AV42:$BE42),0)<=5,AY42," ")," ")) ->  | BV42: =IF(AZ42=" "," ",IF(Input!$G46="Girl",IF(RANK(AZ42,($AV42:$BE42),0)<=5,AZ42," ")," ")) ->  | BW42: =IF(BA42=" "," ",IF(Input!$G46="Girl",IF(RANK(BA42,($AV42:$BE42),0)<=5,BA42," ")," ")) ->  | BX42: =IF(BB42=" "," ",IF(Input!$G46="Girl",IF(RANK(BB42,($AV42:$BE42),0)<=5,BB42," ")," ")) ->  | BY42: =IF(BC42=" "," ",IF(Input!$G46="Girl",IF(RANK(BC42,($AV42:$BE42),0)<=5,BC42," ")," ")) ->  | BZ42: =IF(BD42=" "," ",IF(Input!$G46="Girl",IF(RANK(BD42,($AV42:$BE42),0)<=5,BD42," ")," ")) ->  | CA42: =IF(BE42=" "," ",IF(Input!$G46="Girl",IF(RANK(BE42,($AV42:$BE42),0)<=5,BE42," ")," ")) ->  | CD42: RED | CX42: 3.6e-05 | CY42: 7.6e-05 | CZ42: 0.000116 | DA42: 0.000156 | DB42: 0.000196 | DC42: 0.000236 | DD42: 0.000276 | DE42: 0.000316 | DF42: 0.000356 | DG42: 0.000396 | DH42: 14.000036 | DI42: 49.000076 | DJ42: 21.000116 | DK42: 36.000156 | DL42: 15.000196
C43: =Input!D47 -> 0 | D43: =Input!#REF! ->  | E43: =Input!E47 -> 0 | F43: =Input!F47 -> 0 | G43: =Input!G47 -> 0 | H43: 0 | I43: 0 | J43: 0 | K43: 0 | L43: 0 | M43: 0 | N43: 0 | O43: 0 | P43: 0 | Q43: 0 | R43: 0 | S43: 0 | X43: 0 | Y43: -0-0 | Z43: =Input!D47 -> 0 | AA43: =IF(Input!E47=0,0,IF(ISNA(VLOOKUP((CONCATENATE("Balance Test-",Input!H47)),points1,2,)),0,(VLOOKUP((CONCATENATE("Balance Test-",Input!H47)),points1,2,)))) -> 0 | AB43: =IF(Input!E47=0,0,IF(ISNA(VLOOKUP((CONCATENATE("Standing Long Jump-",Input!I47)),points1,2,)),0,(VLOOKUP((CONCATENATE("Standing Long Jump-",Input!I47)),points1,2,)))) -> 0 | AC43: =IF(Input!E47=0,0,IF(ISNA(VLOOKUP((CONCATENATE("Speed Bounce-",Input!J47)),points1,2,)),0,(VLOOKUP((CONCATENATE("Speed Bounce-",Input!J47)),points1,2,)))) -> 0 | AD43: =IF(Input!E47=0,0,IF(ISNA(VLOOKUP((CONCATENATE("Target Throw-",Input!K47)),points1,2,)),0,(VLOOKUP((CONCATENATE("Target Throw-",Input!K47)),points1,2,)))) -> 0 | AE43: =IF(Input!E47=0,0,IF(Input!$C47>6,IF(ISNA(VLOOKUP((CONCATENATE("Overhead Heave-",Input!L47)),points1,2,)),0,(VLOOKUP((CONCATENATE("Overhead Heave-",Input!L47)),points1,2,))),0)) -> 0 | AF43: 0 | AG43: =IF(Input!E47=0,0,IF(ISNA(VLOOKUP((CONCATENATE("Hi-Stepper-",Input!M47)),points1,2,)),0,(VLOOKUP((CONCATENATE("Hi-Stepper-",Input!M47)),points1,2,)))) -> 0 | AH43: =IF(Input!E47=0,0,IF(ISNA(VLOOKUP((CONCATENATE("Chest Push-",Input!N47)),points1,2,)),0,(VLOOKUP((CONCATENATE("Chest Push-",Input!N47)),points1,2,)))) -> 0 | AI43: =IF(Input!E47=0,0,IF(ISNA(VLOOKUP((CONCATENATE("Vertical Jump-",Input!O47)),points1,2,)),0,(VLOOKUP((CONCATENATE("Vertical Jump-",Input!O47)),points1,2,)))) -> 0 | AJ43: =IF(Input!E47=0,0,IF(ISNA(VLOOKUP((CONCATENATE("Shuttle Run-",Input!P47)),points1,2,)),0,(VLOOKUP((CONCATENATE("Shuttle Run-",Input!P47)),points1,2,)))) -> 0 | AK43: =IF(Input!E47=0,0,IF(ISNA(VLOOKUP((CONCATENATE("Javelin Throw-",Input!Q47)),points1,2,)),0,(VLOOKUP((CONCATENATE("Javelin Throw-",Input!Q47)),points1,2,)))) -> 0 | AL43: =IF(Input!E47=0,0,IF(Input!$C47>6,IF(ISNA(VLOOKUP((CONCATENATE("Shot-",Input!R47)),points1,2,)),0,(VLOOKUP((CONCATENATE("Shot-",Input!R47)),points1,2,))),0)) -> 0 | AM43: 0 | AN43: =IF(Input!E47=0,0,IF(ISNA(VLOOKUP((CONCATENATE("Standing Triple Jump-",Input!S47)),points1,2,)),0,(VLOOKUP((CONCATENATE("Standing Triple Jump-",Input!S47)),points1,2,)))) -> 0 | AO43: =IF(Input!$C47>6,COUNT(Input!H47:J47,Input!M47:P47,Input!S47,Input!X47:Y47),IF(Input!$C47<=6,COUNT(Input!H47:K47,Input!M47:Q47,Input!S47))) -> 0 | AP43: =IF(AO43>=5,(LARGE((AA43:AC43,AF43:AJ43,AM43:AN43),1))+LARGE((AA43:AC43,AF43:AJ43,AM43:AN43),2)+LARGE((AA43:AC43,AF43:AJ43,AM43:AN43),3)+LARGE((AA43:AC43,AF43:AJ43,AM43:AN43),4)+LARGE((AA43:AC43,AF43:AJ43,AM43:AN43),5),0) -> 0 | AQ43: =IF(AP43=0,0,IF((Input!G47="Boy")*AND(Input!C47>6),VLOOKUP(AP43,award2,3),IF((Input!G47="Girl")*AND(Input!C47>6),VLOOKUP(AP43,award2,2),IF((Input!G47="Boy")*AND(Input!C47<=6),VLOOKUP(AP43,award12,3),IF((Input!G47="Girl")*AND(Input!C47<=6),VLOOKUP(AP43,award12,2),0))))) -> 0 | AR43: =IF(Input!$C47>6,COUNT(Input!H47:J47,Input!M47:P47,Input!S47,Input!X47:Y47),IF(Input!$C47<=6,COUNT(Input!H47:K47,Input!M47:Q47,Input!S47))) -> 0 | AS43: 0 | AT43: =IF(AS43=0,0,IF((Input!G47="Boy")*AND(Input!C47>6),VLOOKUP(AS43,award2,5),IF((Input!G47="Girl")*AND(Input!C47>6),VLOOKUP(AS43,award2,4),IF((Input!G47="Boy")*AND(Input!C47<=6),VLOOKUP(AS43,award12,5),IF((Input!G47="Girl")*AND(Input!C47<=6),VLOOKUP(AS43,award12,4),0))))) -> 0 | BG43: =IF(AV43=" "," ",IF(Input!$G47="Boy",IF(RANK(AV43,($AV43:$BE43),0)<=5,AV43," ")," ")) ->  | BH43: =IF(AW43=" "," ",IF(Input!$G47="Boy",IF(RANK(AW43,($AV43:$BE43),0)<=5,AW43," ")," ")) ->  | BI43: =IF(AX43=" "," ",IF(Input!$G47="Boy",IF(RANK(AX43,($AV43:$BE43),0)<=5,AX43," ")," ")) ->  | BJ43: =IF(AY43=" "," ",IF(Input!$G47="Boy",IF(RANK(AY43,($AV43:$BE43),0)<=5,AY43," ")," ")) ->  | BK43: =IF(AZ43=" "," ",IF(Input!$G47="Boy",IF(RANK(AZ43,($AV43:$BE43),0)<=5,AZ43," ")," ")) ->  | BL43: =IF(BA43=" "," ",IF(Input!$G47="Boy",IF(RANK(BA43,($AV43:$BE43),0)<=5,BA43," ")," ")) ->  | BM43: =IF(BB43=" "," ",IF(Input!$G47="Boy",IF(RANK(BB43,($AV43:$BE43),0)<=5,BB43," ")," ")) ->  | BN43: =IF(BC43=" "," ",IF(Input!$G47="Boy",IF(RANK(BC43,($AV43:$BE43),0)<=5,BC43," ")," ")) ->  | BO43: =IF(BD43=" "," ",IF(Input!$G47="Boy",IF(RANK(BD43,($AV43:$BE43),0)<=5,BD43," ")," ")) ->  | BP43: =IF(BE43=" "," ",IF(Input!$G47="Boy",IF(RANK(BE43,($AV43:$BE43),0)<=5,BE43," ")," ")) ->  | BR43: =IF(AV43=" "," ",IF(Input!$G47="Girl",IF(RANK(AV43,($AV43:$BE43),0)<=5,AV43," ")," ")) ->  | BS43: =IF(AW43=" "," ",IF(Input!$G47="Girl",IF(RANK(AW43,($AV43:$BE43),0)<=5,AW43," ")," ")) ->  | BT43: =IF(AX43=" "," ",IF(Input!$G47="Girl",IF(RANK(AX43,($AV43:$BE43),0)<=5,AX43," ")," ")) ->  | BU43: =IF(AY43=" "," ",IF(Input!$G47="Girl",IF(RANK(AY43,($AV43:$BE43),0)<=5,AY43," ")," ")) ->  | BV43: =IF(AZ43=" "," ",IF(Input!$G47="Girl",IF(RANK(AZ43,($AV43:$BE43),0)<=5,AZ43," ")," ")) ->  | BW43: =IF(BA43=" "," ",IF(Input!$G47="Girl",IF(RANK(BA43,($AV43:$BE43),0)<=5,BA43," ")," ")) ->  | BX43: =IF(BB43=" "," ",IF(Input!$G47="Girl",IF(RANK(BB43,($AV43:$BE43),0)<=5,BB43," ")," ")) ->  | BY43: =IF(BC43=" "," ",IF(Input!$G47="Girl",IF(RANK(BC43,($AV43:$BE43),0)<=5,BC43," ")," ")) ->  | BZ43: =IF(BD43=" "," ",IF(Input!$G47="Girl",IF(RANK(BD43,($AV43:$BE43),0)<=5,BD43," ")," ")) ->  | CA43: =IF(BE43=" "," ",IF(Input!$G47="Girl",IF(RANK(BE43,($AV43:$BE43),0)<=5,BE43," ")," ")) ->  | CX43: 3.7e-05 | CY43: 7.7e-05 | CZ43: 0.000117 | DA43: 0.000157 | DB43: 0.000197 | DC43: 0.000237 | DD43: 0.000277 | DE43: 0.000317 | DF43: 0.000357 | DG43: 0.000397
C44: =Input!D48 -> 0 | D44: =Input!#REF! ->  | E44: =Input!E48 -> 0 | F44: =Input!F48 -> 0 | G44: =Input!G48 -> 0 | H44: 0 | I44: 0 | J44: 0 | K44: 0 | L44: 0 | M44: 0 | N44: 0 | O44: 0 | P44: 0 | Q44: 0 | R44: 0 | S44: 0 | X44: 0 | Y44: -0-0 | Z44: =Input!D48 -> 0 | AA44: =IF(Input!E48=0,0,IF(ISNA(VLOOKUP((CONCATENATE("Balance Test-",Input!H48)),points1,2,)),0,(VLOOKUP((CONCATENATE("Balance Test-",Input!H48)),points1,2,)))) -> 0 | AB44: =IF(Input!E48=0,0,IF(ISNA(VLOOKUP((CONCATENATE("Standing Long Jump-",Input!I48)),points1,2,)),0,(VLOOKUP((CONCATENATE("Standing Long Jump-",Input!I48)),points1,2,)))) -> 0 | AC44: =IF(Input!E48=0,0,IF(ISNA(VLOOKUP((CONCATENATE("Speed Bounce-",Input!J48)),points1,2,)),0,(VLOOKUP((CONCATENATE("Speed Bounce-",Input!J48)),points1,2,)))) -> 0 | AD44: =IF(Input!E48=0,0,IF(ISNA(VLOOKUP((CONCATENATE("Target Throw-",Input!K48)),points1,2,)),0,(VLOOKUP((CONCATENATE("Target Throw-",Input!K48)),points1,2,)))) -> 0 | AE44: =IF(Input!E48=0,0,IF(Input!$C48>6,IF(ISNA(VLOOKUP((CONCATENATE("Overhead Heave-",Input!L48)),points1,2,)),0,(VLOOKUP((CONCATENATE("Overhead Heave-",Input!L48)),points1,2,))),0)) -> 0 | AF44: 0 | AG44: =IF(Input!E48=0,0,IF(ISNA(VLOOKUP((CONCATENATE("Hi-Stepper-",Input!M48)),points1,2,)),0,(VLOOKUP((CONCATENATE("Hi-Stepper-",Input!M48)),points1,2,)))) -> 0 | AH44: =IF(Input!E48=0,0,IF(ISNA(VLOOKUP((CONCATENATE("Chest Push-",Input!N48)),points1,2,)),0,(VLOOKUP((CONCATENATE("Chest Push-",Input!N48)),points1,2,)))) -> 0 | AI44: =IF(Input!E48=0,0,IF(ISNA(VLOOKUP((CONCATENATE("Vertical Jump-",Input!O48)),points1,2,)),0,(VLOOKUP((CONCATENATE("Vertical Jump-",Input!O48)),points1,2,)))) -> 0 | AJ44: =IF(Input!E48=0,0,IF(ISNA(VLOOKUP((CONCATENATE("Shuttle Run-",Input!P48)),points1,2,)),0,(VLOOKUP((CONCATENATE("Shuttle Run-",Input!P48)),points1,2,)))) -> 0 | AK44: =IF(Input!E48=0,0,IF(ISNA(VLOOKUP((CONCATENATE("Javelin Throw-",Input!Q48)),points1,2,)),0,(VLOOKUP((CONCATENATE("Javelin Throw-",Input!Q48)),points1,2,)))) -> 0 | AL44: =IF(Input!E48=0,0,IF(Input!$C48>6,IF(ISNA(VLOOKUP((CONCATENATE("Shot-",Input!R48)),points1,2,)),0,(VLOOKUP((CONCATENATE("Shot-",Input!R48)),points1,2,))),0)) -> 0 | AM44: 0 | AN44: =IF(Input!E48=0,0,IF(ISNA(VLOOKUP((CONCATENATE("Standing Triple Jump-",Input!S48)),points1,2,)),0,(VLOOKUP((CONCATENATE("Standing Triple Jump-",Input!S48)),points1,2,)))) -> 0 | AO44: =IF(Input!$C48>6,COUNT(Input!H48:J48,Input!M48:P48,Input!S48,Input!X48:Y48),IF(Input!$C48<=6,COUNT(Input!H48:K48,Input!M48:Q48,Input!S48))) -> 0 | AP44: =IF(AO44>=5,(LARGE((AA44:AC44,AF44:AJ44,AM44:AN44),1))+LARGE((AA44:AC44,AF44:AJ44,AM44:AN44),2)+LARGE((AA44:AC44,AF44:AJ44,AM44:AN44),3)+LARGE((AA44:AC44,AF44:AJ44,AM44:AN44),4)+LARGE((AA44:AC44,AF44:AJ44,AM44:AN44),5),0) -> 0 | AQ44: =IF(AP44=0,0,IF((Input!G48="Boy")*AND(Input!C48>6),VLOOKUP(AP44,award2,3),IF((Input!G48="Girl")*AND(Input!C48>6),VLOOKUP(AP44,award2,2),IF((Input!G48="Boy")*AND(Input!C48<=6),VLOOKUP(AP44,award12,3),IF((Input!G48="Girl")*AND(Input!C48<=6),VLOOKUP(AP44,award12,2),0))))) -> 0 | AR44: =IF(Input!$C48>6,COUNT(Input!H48:J48,Input!M48:P48,Input!S48,Input!X48:Y48),IF(Input!$C48<=6,COUNT(Input!H48:K48,Input!M48:Q48,Input!S48))) -> 0 | AS44: 0 | AT44: =IF(AS44=0,0,IF((Input!G48="Boy")*AND(Input!C48>6),VLOOKUP(AS44,award2,5),IF((Input!G48="Girl")*AND(Input!C48>6),VLOOKUP(AS44,award2,4),IF((Input!G48="Boy")*AND(Input!C48<=6),VLOOKUP(AS44,award12,5),IF((Input!G48="Girl")*AND(Input!C48<=6),VLOOKUP(AS44,award12,4),0))))) -> 0 | BG44: =IF(AV44=" "," ",IF(Input!$G48="Boy",IF(RANK(AV44,($AV44:$BE44),0)<=5,AV44," ")," ")) ->  | BH44: =IF(AW44=" "," ",IF(Input!$G48="Boy",IF(RANK(AW44,($AV44:$BE44),0)<=5,AW44," ")," ")) ->  | BI44: =IF(AX44=" "," ",IF(Input!$G48="Boy",IF(RANK(AX44,($AV44:$BE44),0)<=5,AX44," ")," ")) ->  | BJ44: =IF(AY44=" "," ",IF(Input!$G48="Boy",IF(RANK(AY44,($AV44:$BE44),0)<=5,AY44," ")," ")) ->  | BK44: =IF(AZ44=" "," ",IF(Input!$G48="Boy",IF(RANK(AZ44,($AV44:$BE44),0)<=5,AZ44," ")," ")) ->  | BL44: =IF(BA44=" "," ",IF(Input!$G48="Boy",IF(RANK(BA44,($AV44:$BE44),0)<=5,BA44," ")," ")) ->  | BM44: =IF(BB44=" "," ",IF(Input!$G48="Boy",IF(RANK(BB44,($AV44:$BE44),0)<=5,BB44," ")," ")) ->  | BN44: =IF(BC44=" "," ",IF(Input!$G48="Boy",IF(RANK(BC44,($AV44:$BE44),0)<=5,BC44," ")," ")) ->  | BO44: =IF(BD44=" "," ",IF(Input!$G48="Boy",IF(RANK(BD44,($AV44:$BE44),0)<=5,BD44," ")," ")) ->  | BP44: =IF(BE44=" "," ",IF(Input!$G48="Boy",IF(RANK(BE44,($AV44:$BE44),0)<=5,BE44," ")," ")) ->  | BR44: =IF(AV44=" "," ",IF(Input!$G48="Girl",IF(RANK(AV44,($AV44:$BE44),0)<=5,AV44," ")," ")) ->  | BS44: =IF(AW44=" "," ",IF(Input!$G48="Girl",IF(RANK(AW44,($AV44:$BE44),0)<=5,AW44," ")," ")) ->  | BT44: =IF(AX44=" "," ",IF(Input!$G48="Girl",IF(RANK(AX44,($AV44:$BE44),0)<=5,AX44," ")," ")) ->  | BU44: =IF(AY44=" "," ",IF(Input!$G48="Girl",IF(RANK(AY44,($AV44:$BE44),0)<=5,AY44," ")," ")) ->  | BV44: =IF(AZ44=" "," ",IF(Input!$G48="Girl",IF(RANK(AZ44,($AV44:$BE44),0)<=5,AZ44," ")," ")) ->  | BW44: =IF(BA44=" "," ",IF(Input!$G48="Girl",IF(RANK(BA44,($AV44:$BE44),0)<=5,BA44," ")," ")) ->  | BX44: =IF(BB44=" "," ",IF(Input!$G48="Girl",IF(RANK(BB44,($AV44:$BE44),0)<=5,BB44," ")," ")) ->  | BY44: =IF(BC44=" "," ",IF(Input!$G48="Girl",IF(RANK(BC44,($AV44:$BE44),0)<=5,BC44," ")," ")) ->  | BZ44: =IF(BD44=" "," ",IF(Input!$G48="Girl",IF(RANK(BD44,($AV44:$BE44),0)<=5,BD44," ")," ")) ->  | CA44: =IF(BE44=" "," ",IF(Input!$G48="Girl",IF(RANK(BE44,($AV44:$BE44),0)<=5,BE44," ")," ")) ->  | CX44: 3.8e-05 | CY44: 7.8e-05 | CZ44: 0.000118 | DA44: 0.000158 | DB44: 0.000198 | DC44: 0.000238 | DD44: 0.000278 | DE44: 0.000318 | DF44: 0.000358 | DG44: 0.000398
C45: =Input!D49 -> 0 | D45: =Input!#REF! ->  | E45: =Input!E49 -> 0 | F45: =Input!F49 -> 0 | G45: =Input!G49 -> 0 | H45: 0 | I45: 0 | J45: 0 | K45: 0 | L45: 0 | M45: 0 | N45: 0 | O45: 0 | P45: 0 | Q45: 0 | R45: 0 | S45: 0 | X45: 0 | Y45: -0-0 | Z45: =Input!D49 -> 0 | AA45: =IF(Input!E49=0,0,IF(ISNA(VLOOKUP((CONCATENATE("Balance Test-",Input!H49)),points1,2,)),0,(VLOOKUP((CONCATENATE("Balance Test-",Input!H49)),points1,2,)))) -> 0 | AB45: =IF(Input!E49=0,0,IF(ISNA(VLOOKUP((CONCATENATE("Standing Long Jump-",Input!I49)),points1,2,)),0,(VLOOKUP((CONCATENATE("Standing Long Jump-",Input!I49)),points1,2,)))) -> 0 | AC45: =IF(Input!E49=0,0,IF(ISNA(VLOOKUP((CONCATENATE("Speed Bounce-",Input!J49)),points1,2,)),0,(VLOOKUP((CONCATENATE("Speed Bounce-",Input!J49)),points1,2,)))) -> 0 | AD45: =IF(Input!E49=0,0,IF(ISNA(VLOOKUP((CONCATENATE("Target Throw-",Input!K49)),points1,2,)),0,(VLOOKUP((CONCATENATE("Target Throw-",Input!K49)),points1,2,)))) -> 0 | AE45: =IF(Input!E49=0,0,IF(Input!$C49>6,IF(ISNA(VLOOKUP((CONCATENATE("Overhead Heave-",Input!L49)),points1,2,)),0,(VLOOKUP((CONCATENATE("Overhead Heave-",Input!L49)),points1,2,))),0)) -> 0 | AF45: 0 | AG45: =IF(Input!E49=0,0,IF(ISNA(VLOOKUP((CONCATENATE("Hi-Stepper-",Input!M49)),points1,2,)),0,(VLOOKUP((CONCATENATE("Hi-Stepper-",Input!M49)),points1,2,)))) -> 0 | AH45: =IF(Input!E49=0,0,IF(ISNA(VLOOKUP((CONCATENATE("Chest Push-",Input!N49)),points1,2,)),0,(VLOOKUP((CONCATENATE("Chest Push-",Input!N49)),points1,2,)))) -> 0 | AI45: =IF(Input!E49=0,0,IF(ISNA(VLOOKUP((CONCATENATE("Vertical Jump-",Input!O49)),points1,2,)),0,(VLOOKUP((CONCATENATE("Vertical Jump-",Input!O49)),points1,2,)))) -> 0 | AJ45: =IF(Input!E49=0,0,IF(ISNA(VLOOKUP((CONCATENATE("Shuttle Run-",Input!P49)),points1,2,)),0,(VLOOKUP((CONCATENATE("Shuttle Run-",Input!P49)),points1,2,)))) -> 0 | AK45: =IF(Input!E49=0,0,IF(ISNA(VLOOKUP((CONCATENATE("Javelin Throw-",Input!Q49)),points1,2,)),0,(VLOOKUP((CONCATENATE("Javelin Throw-",Input!Q49)),points1,2,)))) -> 0 | AL45: =IF(Input!E49=0,0,IF(Input!$C49>6,IF(ISNA(VLOOKUP((CONCATENATE("Shot-",Input!R49)),points1,2,)),0,(VLOOKUP((CONCATENATE("Shot-",Input!R49)),points1,2,))),0)) -> 0 | AM45: 0 | AN45: =IF(Input!E49=0,0,IF(ISNA(VLOOKUP((CONCATENATE("Standing Triple Jump-",Input!S49)),points1,2,)),0,(VLOOKUP((CONCATENATE("Standing Triple Jump-",Input!S49)),points1,2,)))) -> 0 | AO45: =IF(Input!$C49>6,COUNT(Input!H49:J49,Input!M49:P49,Input!S49,Input!X49:Y49),IF(Input!$C49<=6,COUNT(Input!H49:K49,Input!M49:Q49,Input!S49))) -> 0 | AP45: =IF(AO45>=5,(LARGE((AA45:AC45,AF45:AJ45,AM45:AN45),1))+LARGE((AA45:AC45,AF45:AJ45,AM45:AN45),2)+LARGE((AA45:AC45,AF45:AJ45,AM45:AN45),3)+LARGE((AA45:AC45,AF45:AJ45,AM45:AN45),4)+LARGE((AA45:AC45,AF45:AJ45,AM45:AN45),5),0) -> 0 | AQ45: =IF(AP45=0,0,IF((Input!G49="Boy")*AND(Input!C49>6),VLOOKUP(AP45,award2,3),IF((Input!G49="Girl")*AND(Input!C49>6),VLOOKUP(AP45,award2,2),IF((Input!G49="Boy")*AND(Input!C49<=6),VLOOKUP(AP45,award12,3),IF((Input!G49="Girl")*AND(Input!C49<=6),VLOOKUP(AP45,award12,2),0))))) -> 0 | AR45: =IF(Input!$C49>6,COUNT(Input!H49:J49,Input!M49:P49,Input!S49,Input!X49:Y49),IF(Input!$C49<=6,COUNT(Input!H49:K49,Input!M49:Q49,Input!S49))) -> 0 | AS45: 0 | AT45: =IF(AS45=0,0,IF((Input!G49="Boy")*AND(Input!C49>6),VLOOKUP(AS45,award2,5),IF((Input!G49="Girl")*AND(Input!C49>6),VLOOKUP(AS45,award2,4),IF((Input!G49="Boy")*AND(Input!C49<=6),VLOOKUP(AS45,award12,5),IF((Input!G49="Girl")*AND(Input!C49<=6),VLOOKUP(AS45,award12,4),0))))) -> 0 | BG45: =IF(AV45=" "," ",IF(Input!$G49="Boy",IF(RANK(AV45,($AV45:$BE45),0)<=5,AV45," ")," ")) ->  | BH45: =IF(AW45=" "," ",IF(Input!$G49="Boy",IF(RANK(AW45,($AV45:$BE45),0)<=5,AW45," ")," ")) ->  | BI45: =IF(AX45=" "," ",IF(Input!$G49="Boy",IF(RANK(AX45,($AV45:$BE45),0)<=5,AX45," ")," ")) ->  | BJ45: =IF(AY45=" "," ",IF(Input!$G49="Boy",IF(RANK(AY45,($AV45:$BE45),0)<=5,AY45," ")," ")) ->  | BK45: =IF(AZ45=" "," ",IF(Input!$G49="Boy",IF(RANK(AZ45,($AV45:$BE45),0)<=5,AZ45," ")," ")) ->  | BL45: =IF(BA45=" "," ",IF(Input!$G49="Boy",IF(RANK(BA45,($AV45:$BE45),0)<=5,BA45," ")," ")) ->  | BM45: =IF(BB45=" "," ",IF(Input!$G49="Boy",IF(RANK(BB45,($AV45:$BE45),0)<=5,BB45," ")," ")) ->  | BN45: =IF(BC45=" "," ",IF(Input!$G49="Boy",IF(RANK(BC45,($AV45:$BE45),0)<=5,BC45," ")," ")) ->  | BO45: =IF(BD45=" "," ",IF(Input!$G49="Boy",IF(RANK(BD45,($AV45:$BE45),0)<=5,BD45," ")," ")) ->  | BP45: =IF(BE45=" "," ",IF(Input!$G49="Boy",IF(RANK(BE45,($AV45:$BE45),0)<=5,BE45," ")," ")) ->  | BR45: =IF(AV45=" "," ",IF(Input!$G49="Girl",IF(RANK(AV45,($AV45:$BE45),0)<=5,AV45," ")," ")) ->  | BS45: =IF(AW45=" "," ",IF(Input!$G49="Girl",IF(RANK(AW45,($AV45:$BE45),0)<=5,AW45," ")," ")) ->  | BT45: =IF(AX45=" "," ",IF(Input!$G49="Girl",IF(RANK(AX45,($AV45:$BE45),0)<=5,AX45," ")," ")) ->  | BU45: =IF(AY45=" "," ",IF(Input!$G49="Girl",IF(RANK(AY45,($AV45:$BE45),0)<=5,AY45," ")," ")) ->  | BV45: =IF(AZ45=" "," ",IF(Input!$G49="Girl",IF(RANK(AZ45,($AV45:$BE45),0)<=5,AZ45," ")," ")) ->  | BW45: =IF(BA45=" "," ",IF(Input!$G49="Girl",IF(RANK(BA45,($AV45:$BE45),0)<=5,BA45," ")," ")) ->  | BX45: =IF(BB45=" "," ",IF(Input!$G49="Girl",IF(RANK(BB45,($AV45:$BE45),0)<=5,BB45," ")," ")) ->  | BY45: =IF(BC45=" "," ",IF(Input!$G49="Girl",IF(RANK(BC45,($AV45:$BE45),0)<=5,BC45," ")," ")) ->  | BZ45: =IF(BD45=" "," ",IF(Input!$G49="Girl",IF(RANK(BD45,($AV45:$BE45),0)<=5,BD45," ")," ")) ->  | CA45: =IF(BE45=" "," ",IF(Input!$G49="Girl",IF(RANK(BE45,($AV45:$BE45),0)<=5,BE45," ")," ")) ->  | CX45: 3.9e-05 | CY45: 7.9e-05 | CZ45: 0.000119 | DA45: 0.000159 | DB45: 0.000199 | DC45: 0.000239 | DD45: 0.000279 | DE45: 0.000319 | DF45: 0.000359 | DG45: 0.000399
C46: =Input!D50 -> 0 | D46: =Input!#REF! ->  | E46: =Input!E50 -> 0 | F46: =Input!F50 -> 0 | G46: =Input!G50 -> 0 | H46: 0 | I46: 0 | J46: 0 | K46: 0 | L46: =IF(AE46=0,0,AE46) -> 0 | M46: 0 | N46: 0 | O46: 0 | P46: 0 | Q46: 0 | R46: =IF(AL46=0,0,AL46) -> 0 | S46: 0 | X46: 0 | Y46: -0-0 | Z46: =Input!D50 -> 0 | AA46: =IF(Input!E50=0,0,IF(ISNA(VLOOKUP((CONCATENATE("Balance Test-",Input!H50)),points1,2,)),0,(VLOOKUP((CONCATENATE("Balance Test-",Input!H50)),points1,2,)))) -> 0 | AB46: =IF(Input!E50=0,0,IF(ISNA(VLOOKUP((CONCATENATE("Standing Long Jump-",Input!I50)),points1,2,)),0,(VLOOKUP((CONCATENATE("Standing Long Jump-",Input!I50)),points1,2,)))) -> 0 | AC46: =IF(Input!E50=0,0,IF(ISNA(VLOOKUP((CONCATENATE("Speed Bounce-",Input!J50)),points1,2,)),0,(VLOOKUP((CONCATENATE("Speed Bounce-",Input!J50)),points1,2,)))) -> 0 | AD46: =IF(Input!E50=0,0,IF(ISNA(VLOOKUP((CONCATENATE("Target Throw-",Input!K50)),points1,2,)),0,(VLOOKUP((CONCATENATE("Target Throw-",Input!K50)),points1,2,)))) -> 0 | AE46: =IF(Input!E50=0,0,IF(Input!$C50>6,IF(ISNA(VLOOKUP((CONCATENATE("Overhead Heave-",Input!L50)),points1,2,)),0,(VLOOKUP((CONCATENATE("Overhead Heave-",Input!L50)),points1,2,))),0)) -> 0 | AF46: 0 | AG46: =IF(Input!E50=0,0,IF(ISNA(VLOOKUP((CONCATENATE("Hi-Stepper-",Input!M50)),points1,2,)),0,(VLOOKUP((CONCATENATE("Hi-Stepper-",Input!M50)),points1,2,)))) -> 0 | AH46: =IF(Input!E50=0,0,IF(ISNA(VLOOKUP((CONCATENATE("Chest Push-",Input!N50)),points1,2,)),0,(VLOOKUP((CONCATENATE("Chest Push-",Input!N50)),points1,2,)))) -> 0 | AI46: =IF(Input!E50=0,0,IF(ISNA(VLOOKUP((CONCATENATE("Vertical Jump-",Input!O50)),points1,2,)),0,(VLOOKUP((CONCATENATE("Vertical Jump-",Input!O50)),points1,2,)))) -> 0 | AJ46: =IF(Input!E50=0,0,IF(ISNA(VLOOKUP((CONCATENATE("Shuttle Run-",Input!P50)),points1,2,)),0,(VLOOKUP((CONCATENATE("Shuttle Run-",Input!P50)),points1,2,)))) -> 0 | AK46: =IF(Input!E50=0,0,IF(ISNA(VLOOKUP((CONCATENATE("Javelin Throw-",Input!Q50)),points1,2,)),0,(VLOOKUP((CONCATENATE("Javelin Throw-",Input!Q50)),points1,2,)))) -> 0 | AL46: =IF(Input!E50=0,0,IF(Input!$C50>6,IF(ISNA(VLOOKUP((CONCATENATE("Shot-",Input!R50)),points1,2,)),0,(VLOOKUP((CONCATENATE("Shot-",Input!R50)),points1,2,))),0)) -> 0 | AM46: 0 | AN46: =IF(Input!E50=0,0,IF(ISNA(VLOOKUP((CONCATENATE("Standing Triple Jump-",Input!S50)),points1,2,)),0,(VLOOKUP((CONCATENATE("Standing Triple Jump-",Input!S50)),points1,2,)))) -> 0 | AO46: =IF(Input!$C50>6,COUNT(Input!H50:J50,Input!M50:P50,Input!S50,Input!X50:Y50),IF(Input!$C50<=6,COUNT(Input!H50:K50,Input!M50:Q50,Input!S50))) -> 0 | AP46: =IF(AO46>=5,(LARGE((AA46:AC46,AF46:AJ46,AM46:AN46),1))+LARGE((AA46:AC46,AF46:AJ46,AM46:AN46),2)+LARGE((AA46:AC46,AF46:AJ46,AM46:AN46),3)+LARGE((AA46:AC46,AF46:AJ46,AM46:AN46),4)+LARGE((AA46:AC46,AF46:AJ46,AM46:AN46),5),0) -> 0 | AQ46: =IF(AP46=0,0,IF((Input!G50="Boy")*AND(Input!C50>6),VLOOKUP(AP46,award2,3),IF((Input!G50="Girl")*AND(Input!C50>6),VLOOKUP(AP46,award2,2),IF((Input!G50="Boy")*AND(Input!C50<=6),VLOOKUP(AP46,award12,3),IF((Input!G50="Girl")*AND(Input!C50<=6),VLOOKUP(AP46,award12,2),0))))) -> 0 | AR46: =IF(Input!$C50>6,COUNT(Input!H50:J50,Input!M50:P50,Input!S50,Input!X50:Y50),IF(Input!$C50<=6,COUNT(Input!H50:K50,Input!M50:Q50,Input!S50))) -> 0 | AS46: 0 | AT46: =IF(AS46=0,0,IF((Input!G50="Boy")*AND(Input!C50>6),VLOOKUP(AS46,award2,5),IF((Input!G50="Girl")*AND(Input!C50>6),VLOOKUP(AS46,award2,4),IF((Input!G50="Boy")*AND(Input!C50<=6),VLOOKUP(AS46,award12,5),IF((Input!G50="Girl")*AND(Input!C50<=6),VLOOKUP(AS46,award12,4),0))))) -> 0 | BG46: =IF(AV46=" "," ",IF(Input!$G50="Boy",IF(RANK(AV46,($AV46:$BE46),0)<=5,AV46," ")," ")) ->  | BH46: =IF(AW46=" "," ",IF(Input!$G50="Boy",IF(RANK(AW46,($AV46:$BE46),0)<=5,AW46," ")," ")) ->  | BI46: =IF(AX46=" "," ",IF(Input!$G50="Boy",IF(RANK(AX46,($AV46:$BE46),0)<=5,AX46," ")," ")) ->  | BJ46: =IF(AY46=" "," ",IF(Input!$G50="Boy",IF(RANK(AY46,($AV46:$BE46),0)<=5,AY46," ")," ")) ->  | BK46: =IF(AZ46=" "," ",IF(Input!$G50="Boy",IF(RANK(AZ46,($AV46:$BE46),0)<=5,AZ46," ")," ")) ->  | BL46: =IF(BA46=" "," ",IF(Input!$G50="Boy",IF(RANK(BA46,($AV46:$BE46),0)<=5,BA46," ")," ")) ->  | BM46: =IF(BB46=" "," ",IF(Input!$G50="Boy",IF(RANK(BB46,($AV46:$BE46),0)<=5,BB46," ")," ")) ->  | BN46: =IF(BC46=" "," ",IF(Input!$G50="Boy",IF(RANK(BC46,($AV46:$BE46),0)<=5,BC46," ")," ")) ->  | BO46: =IF(BD46=" "," ",IF(Input!$G50="Boy",IF(RANK(BD46,($AV46:$BE46),0)<=5,BD46," ")," ")) ->  | BP46: =IF(BE46=" "," ",IF(Input!$G50="Boy",IF(RANK(BE46,($AV46:$BE46),0)<=5,BE46," ")," ")) ->  | BR46: =IF(AV46=" "," ",IF(Input!$G50="Girl",IF(RANK(AV46,($AV46:$BE46),0)<=5,AV46," ")," ")) ->  | BS46: =IF(AW46=" "," ",IF(Input!$G50="Girl",IF(RANK(AW46,($AV46:$BE46),0)<=5,AW46," ")," ")) ->  | BT46: =IF(AX46=" "," ",IF(Input!$G50="Girl",IF(RANK(AX46,($AV46:$BE46),0)<=5,AX46," ")," ")) ->  | BU46: =IF(AY46=" "," ",IF(Input!$G50="Girl",IF(RANK(AY46,($AV46:$BE46),0)<=5,AY46," ")," ")) ->  | BV46: =IF(AZ46=" "," ",IF(Input!$G50="Girl",IF(RANK(AZ46,($AV46:$BE46),0)<=5,AZ46," ")," ")) ->  | BW46: =IF(BA46=" "," ",IF(Input!$G50="Girl",IF(RANK(BA46,($AV46:$BE46),0)<=5,BA46," ")," ")) ->  | BX46: =IF(BB46=" "," ",IF(Input!$G50="Girl",IF(RANK(BB46,($AV46:$BE46),0)<=5,BB46," ")," ")) ->  | BY46: =IF(BC46=" "," ",IF(Input!$G50="Girl",IF(RANK(BC46,($AV46:$BE46),0)<=5,BC46," ")," ")) ->  | BZ46: =IF(BD46=" "," ",IF(Input!$G50="Girl",IF(RANK(BD46,($AV46:$BE46),0)<=5,BD46," ")," ")) ->  | CA46: =IF(BE46=" "," ",IF(Input!$G50="Girl",IF(RANK(BE46,($AV46:$BE46),0)<=5,BE46," ")," ")) ->  | CX46: 4e-05 | CY46: 8e-05 | CZ46: 0.00012 | DA46: 0.00016 | DB46: 0.0002 | DC46: 0.00024 | DD46: 0.00028 | DE46: 0.00032 | DF46: 0.00036 | DG46: 0.0004
AV47: =COUNT(AV7:AV46) -> 36 | AW47: =COUNT(AW7:AW46) -> 36 | AX47: 36 | AY47: 28 | AZ47: 36 | BA47: 8 | BB47: 0 | BC47: 0 | BD47: 0 | BE47: 0 | BG47: =COUNT(BG7:BG46) -> 19 | BH47: =COUNT(BH7:BH46) -> 19 | BI47: 19 | BJ47: 15 | BK47: 19 | BL47: 4 | BM47: 0 | BN47: 0 | BO47: 0 | BP47: 0 | BQ47: =SUM(BG47:BP47) -> 95 | BR47: =COUNT(BR7:BR46) -> 17 | BS47: =COUNT(BS7:BS46) -> 17 | BT47: 17 | BU47: 13 | BV47: 17 | BW47: 4 | BX47: 0 | BY47: 0 | BZ47: 0 | CA47: 0 | CB47: =SUM(BR47:CA47) -> 85 | CN47: =IF(BR47=" ",0,IF(AND(RANK(BR47,BR$48:CA$52,0)<=25)*OR(BR47=BR$48,BR47=BR$49,BR47=BR$50,BR47=BR$51,BR47=BR$52),"RED",0)) ->  | CO47: =IF(BS47=" ",0,IF(AND(RANK(BS47,BS47:BS86,0)<=5)*(BS47>0)*OR(BS47=BS$48,BS47=BS$49,BS47=BS$50,BS47=BS$51,BS47=BS$52),"RED",0)) -> 0 | CP47: 0 | CQ47: 0 | CR47: 0 | CS47: 0 | CT47: 0 | CU47: 0 | CV47: 0 | CW47: 0 | DH47: =COUNT(DH7:DH46) -> 19 | DI47: =COUNT(DI7:DI46) -> 19 | DJ47: 19 | DK47: 15 | DL47: 19 | DM47: 4 | DN47: 0 | DO47: 0 | DP47: 0 | DQ47: 0 | DR47: 0 | DS47: 17 | DT47: 17 | DU47: 17 | DV47: 13 | DW47: 17 | DX47: 4 | DY47: 0 | DZ47: 0 | EA47: 0 | EB47: 0
